{"text_format":"1","workbook":"xlsx","n_sheets":7,"sheets":["0","1","2","3","RESULTADOS","Municipios y Dep","Lista de desplegables"],"not_rendered":{"charts":0,"images":1,"macros":1,"external_links":0,"defined_names":3,"comments":0,"pivot_tables":0},"unopened":[],"bounds":{"document_bytes":16777216,"sheet_cells":100000,"rows_first":2000,"rows_last":500,"rows_between":2000,"halvings":0,"cell_chars":16384,"cell_head_chars":4096},"cells_cut":0,"cells_raw":0,"read":"whole","date_system":"1900"}

{"sheet":"0","index":0,"n_rows":17,"n_cols":3,"rows_kept":17,"cut":false,"hidden":false,"merged":[[3,2,3,13],[20,8,20,9],[5,2,9,13],[11,2,14,13],[16,2,17,13],[20,10,20,11],[20,12,20,13]]}
[]
[]
[null,null,"Formulario Anexo"]
[null,null,"Bienvenido al FORMULARIO DE INSCRIPCIÓN DE PROYECTOS DE GENERACIÓN DE LA UPME"]
[]
[null,null,"Este formulario asistido lo guiará en el proceso de diligenciamiento para la inscripción de proyectos de generación ante la UPME en Fase 1, Fase 2 o Fase 3, de acuerdo con la Resolución XXXXXXXX.\n\nUse los botones \"▶\" y \"◀\" para desplazarse hacia adelante y hacia atrás, respectivamente.\nEl botón \"RESULTADOS\" se encuentra al finalizar el formulario y lo llevará a una hoja resumen donde podrá verificar toda la información diligenciada; esta hoja está optimizada para impresión o exportación en formato PDF. El botón \"INICIO\" lo llevará de vuelta a esta hoja 0."]
[]
[]
[]
[]
[]
[null,null,"PARA TENER EN CUENTA\nLa información suministrada en este formulario se utilizará solo para fines estadísticos. "]
[]
[]
[]
[]
[null,null,"Este archivo de Excel, debidamente diligenciado, deberá ser enviado al correo electrónico correspondencia@upme.gov.co, junto con los demás documentos requeridos.\n\nImportante: No se tendrá en cuenta la información enviada únicamente en formato PDF. \nSolo se aceptará el archivo Excel diligenciado."]

{"sheet":"1","index":1,"n_rows":21,"n_cols":9,"rows_kept":21,"cut":false,"hidden":false,"merged":[[18,8,18,13],[19,8,19,13],[20,8,20,13],[11,8,11,10],[9,8,9,13],[13,8,13,13],[14,8,14,13],[15,8,15,13],[16,8,16,13],[17,8,17,13],[9,2,9,6],[11,2,11,6],[13,2,13,6],[20,2,20,6],[16,2,17,4],[4,2,4,6],[5,2,5,6],[6,2,6,6],[7,2,7,6],[4,8,4,13],[5,8,5,13],[6,8,6,13],[7,8,7,13]]}
[]
[]
[null,null,"Información de contacto"]
[]
[null,null,"Razón social de la Empresa / Persona natural :",null,null,null,null,null,"Escriba aquí"]
[null,null,"Número de NIT / C.C. :",null,null,null,null,null,"Escriba aquí"]
[null,null,"Dirección :",null,null,null,null,null,"Escriba aquí"]
[]
[]
[null,null,"Departamento :"]
[]
[null,null,"Municipio :"]
[]
[null,null,"Teléfono :",null,null,null,null,null,"Escriba aquí"]
[]
[null,null,"Representante legal:",null,null,null,"Nombres y apellidos:",null,"Escriba aquí"]
[null,null,"Tenga en cuenta que este será el canal oficial de comunicación.",null,null,null,"E-mail:",null,"Escriba aquí"]
[]
[]
[null,null,"Quien registra:",null,null,null,"Nombres y apellidos:",null,"Escriba aquí"]
[null,null,"E-mail:",null,null,null,null,null,"Escriba aquí"]

{"sheet":"2","index":2,"n_rows":29,"n_cols":12,"rows_kept":29,"cut":false,"hidden":false,"merged":[[4,2,4,5],[6,2,6,5],[7,7,7,13],[4,7,4,13],[6,7,6,11],[26,3,26,5],[9,11,9,13],[11,11,11,13],[13,11,13,13],[16,2,16,5],[18,2,19,5],[9,2,9,3],[16,7,16,9],[13,7,13,9],[11,7,11,9],[9,7,9,9],[23,7,23,11],[21,7,21,11]]}
[]
[]
[null,null,"Información del proyecto"]
[]
[null,null,"Nombre del proyecto:",null,null,null,null,"Escriba aquí"]
[]
[null,null,"Clase de proyecto:"]
[]
[]
[null,null,"Fuente energética:",null,null,"Recurso:",null,null,null,null,null,"Describa aquí si eligió  \nla opción “Otro”"]
[]
[null,null,null,null,null,"Fuente:",null,null,null,null,null,"Describa aquí si eligió  \nla opción “Otro”"]
[]
[null,null,null,null,null,"Tecnología:",null,null,null,null,null,"Describa aquí si eligió  \nla opción “Otro”"]
[]
[]
[null,null,"Fase de inscripción de proyecto:"]
[]
[null,null,"¿El proyecto a ejecutar se superpone con áreas previamente asignadas a otros proyectos del sector minero-energético?"]
[null,null,null,null,null,null,null,1,null,2]
[]
[null,null,"Ubicación:",null,null,"Departamento:"]
[]
[null,null,null,null,null,"Municipio:"]
[]
[null,null,null,null,null,null,null,"Este",null,"Norte"]
[null,null,"Coordenadas:","Coordenadas Planas MAGNA-SIRGAS (EPSG:9377)\n(Formato: Este, Norte. Ejemplo: 1234567,987654)",null,null,null,null,","]
[]
[null,null,null,null,null,"Pertenece a:",null,2]

{"sheet":"3","index":3,"n_rows":33,"n_cols":12,"rows_kept":33,"cut":false,"hidden":false,"merged":[[32,7,32,8],[24,7,24,12],[6,7,6,12],[9,7,9,9],[28,7,28,8],[30,7,30,8],[4,2,4,5],[9,2,9,5],[6,2,6,5],[9,11,9,12],[32,2,32,5],[30,2,30,5],[11,2,11,5],[24,2,24,5],[25,2,25,5],[28,2,28,5],[14,2,14,5],[16,2,16,5],[18,2,18,5],[20,2,20,5],[22,2,22,5],[25,7,25,12]]}
[]
[]
[null,null,"Información técnica y económica"]
[]
[null,null,"Capacidad estimada:",null,null,null,null,null,null,1]
[]
[null,null,"Posible punto de conexión a la red:",null,null,null,null,"Escriba aquí"]
[]
[]
[null,null,"Nombre de la subestación eléctrica (S/E)",null,null,null,null,null,null,null,null,"Describa aquí si eligió  \nla opción “Otra”"]
[]
[null,null,"Nivel de tensión:",null,null,null,null,null,null," [kV]"]
[]
[]
[null,null,"Costo total aproximado, incluidos los impuestos vigentes:",null,null,null,null,null,null," [USD]"]
[]
[null,null,"Costo AOM fijo:",null,null,null,null,null,null,"[USD/kW]"]
[]
[null,null,"Costo de generación:",null,null,null,null,null,null,"[USD/MWh]"]
[]
[null,null," Costo AOM variable:",null,null,null,null,null,null,"[USD/MWh]",null,false]
[]
[null,null,"Energía media estimada:",null,null,null,null,null,null,3]
[]
[null,null,"Posible(s) mercado(s) a atender:",null,null,null,null,"Escriba aquí"]
[null,null,"Posibles fuentes de financiación:",null,null,null,null,"Escriba aquí"]
[]
[]
[null,null,"Fecha estimada de inicio de construcción [dd/mm/aaaa]"]
[]
[null,null,"Fecha estimada de entrada en operación [dd/mm/aaaa]"]
[]
[null,null,"Vida útil estimada [años]"]

{"sheet":"RESULTADOS","index":4,"n_rows":80,"n_cols":14,"rows_kept":80,"cut":false,"hidden":false,"merged":[[13,9,13,12],[11,9,11,12],[33,9,33,11],[58,9,58,11],[56,9,56,12],[49,9,49,12],[54,9,54,14],[24,9,24,14],[31,9,31,11],[29,9,29,11],[26,9,26,11],[17,9,17,14],[18,9,18,14],[19,9,19,14],[20,9,20,14],[21,9,21,14],[71,9,71,14],[72,9,72,14],[44,9,44,12],[42,9,42,12],[36,9,36,10],[51,2,51,14],[44,2,44,4],[42,5,42,6],[44,5,44,6],[47,2,47,3],[47,5,47,6],[42,2,42,4],[53,3,53,6],[54,3,54,6],[79,3,79,6],[56,3,56,6],[61,2,61,6],[75,2,75,6],[77,2,77,6],[65,3,65,6],[67,3,67,6],[69,3,69,6],[71,3,71,6],[72,3,72,6],[57,3,57,6],[58,3,58,6],[63,3,63,6],[3,2,3,14],[21,2,21,6],[15,2,15,6],[9,2,9,6],[11,2,11,6],[13,2,13,6],[6,2,6,6],[6,9,6,14],[7,2,7,6],[4,2,4,14],[8,2,8,6],[7,9,7,14],[8,9,8,14],[9,9,9,14],[15,9,15,14],[16,9,16,14],[23,2,23,14],[29,2,29,4],[36,2,36,6],[39,2,39,6],[24,3,24,6],[26,3,26,6]]}
[]
[]
[null,null,"Fecha de diligenciamiento:",null,null,{"$f":"NOW()","v":"2025-05-04T23:34:22.270"}]
[null,null,"FORMULARIO\n INSCRIPCIÓN DE PROYECTOS DE GENERACIÓN"]
[null,null,"Información de contacto"]
[]
[null,null,"Razón social de la Empresa / Persona natural :",null,null,null,null,null,null,{"$f":"'1'!I5","v":"Escriba aquí"}]
[null,null,"Número de NIT / C.C. :",null,null,null,null,null,null,{"$f":"'1'!I6","v":"Escriba aquí"}]
[null,null,"Dirección :",null,null,null,null,null,null,{"$f":"'1'!I7","v":"Escriba aquí"}]
[null,null,null,null,null,null,null,null,null,{"$f":"'1'!I8","v":0}]
[]
[null,null,"Departamento :",null,null,null,null,null,null,{"$f":"'1'!I10","v":0}]
[]
[null,null,"Municipio :",null,null,null,null,null,null,{"$f":"'1'!I12","v":0}]
[]
[null,null,"Teléfono :",null,null,null,null,null,null,{"$f":"'1'!I14","v":"Escriba aquí"}]
[]
[null,null,"Representante legal:",null,null,null,"Nombres y apellidos:",null,null,{"$f":"'1'!I16","v":"Escriba aquí"}]
[null,null,null,null,null,null,"E-mail:",null,null,{"$f":"'1'!I17","v":"Escriba aquí"}]
[]
[null,null,"Quien registra:",null,null,null,"Nombres y apellidos:",null,null,{"$f":"'1'!I20","v":"Escriba aquí"}]
[null,null,"E-mail:",null,null,null,null,null,null,{"$f":"'1'!I21","v":"Escriba aquí"}]
[]
[null,null,"Información del proyecto"]
[null,null,null,"Nombre del proyecto:",null,null,null,null,null,{"$f":"'2'!H5","v":"Escriba aquí"}]
[]
[null,null,null,"Clase de proyecto:",null,null,null,null,null,{"$f":"'2'!H7","v":0}]
[]
[]
[null,null,"Fuente energética:",null,null,null,"Recurso:",null,null,{"$f":"'2'!H10","v":0}]
[]
[null,null,null,null,null,null,"Fuente:",null,null,{"$f":"'2'!H12","v":0}]
[]
[null,null,null,null,null,null,"Tecnología:",null,null,{"$f":"'2'!H14","v":0}]
[]
[]
[null,null,"Fase de inscripción de proyecto:",null,null,null,null,null,null,{"$f":"'2'!H17","v":0}]
[]
[]
[null,null,"¿El proyecto a ejecutar se superpone con áreas previamente asignadas a otros proyectos del sector minero-energético?",null,null,null,null,null,null,{"$f":"CHOOSE('2'!H20,\"Sí\",\"No\")","v":"Sí"}]
[]
[]
[null,null,"Ubicación:",null,null,"Departamento:",null,null,null,{"$f":"'2'!H22","v":0}]
[]
[null,null,null,null,null,"Municipio:",null,null,null,{"$f":"'2'!H24","v":0}]
[]
[]
[null,null,null,null,null,"Coordenadas:",null,null,null,{"$f":"'2'!H27","v":0},"E",null,{"$f":"'2'!J27","v":0},"N"]
[]
[null,null,null,null,null,null,"Pertenece a:",null,null,{"$f":"CHOOSE('2'!H29,\"SIN (Sistema Interconectado Nacional)\",\"ZNI (Zona No Interconectada)\")","v":"ZNI (Zona No Interconectada)"}]
[]
[null,null,"Información técnica y económica"]
[]
[null,null,null,"Capacidad estimada:",null,null,null,null,null,{"$f":"'3'!H5","v":0},null,{"$f":"CHOOSE('3'!J5,\"[Kw]\",\"[MW]\")","v":"[Kw]"}]
[null,null,null,"Posible punto de conexión a la red:",null,null,null,null,null,{"$f":"'3'!H7","v":"Escriba aquí"}]
[]
[null,null,null,"Nombre de la subestación eléctrica (S/E)",null,null,null,null,null,{"$f":"'3'!H10","v":0}]
[]
[null,null,null,"Nivel de tensión:",null,null,null,null,null,{"$f":"'3'!H12","v":0},null,null," [kV]"]
[]
[]
[null,null,"Costo total aproximado, incluidos los impuestos vigentes:",null,null,null,null,null,null,{"$f":"'3'!H15","v":0},null," [USD]"]
[]
[null,null,null,"Costo AOM fijo:",null,null,null,null,null,{"$f":"'3'!H17","v":0},null,"[USD/kW]"]
[]
[null,null,null,"Costo de generación:",null,null,null,null,null,{"$f":"'3'!H19","v":0},null,"[USD/MWh]"]
[]
[null,null,null," Costo AOM variable:",null,null,null,null,null,{"$f":"'3'!H21","v":0},null,"[USD/MWh]",{"$f":"IF(N68=TRUE, \"No aplica\", \"\")","v":""},{"$f":"'3'!L21","v":false}]
[]
[null,null,null,"Energía media estimada:",null,null,null,null,null,{"$f":"'3'!H23","v":0},null,{"$f":"CHOOSE('3'!J23,\"[kWh/año]\",\"[MWh/año]\",\"[GWh/año]\")","v":"[GWh/año]"}]
[]
[null,null,null,"Posible(s) mercado(s) a atender:",null,null,null,null,null,{"$f":"'3'!H25","v":"Escriba aquí"}]
[null,null,null,"Posibles fuentes de financiación:",null,null,null,null,null,{"$f":"'3'!H26","v":"Escriba aquí"}]
[]
[]
[null,null,"Fecha estimada de inicio de construcción [dd/mm/aaaa]",null,null,null,null,null,null,{"$f":"'3'!H29","v":"00:00:00"}]
[]
[null,null,"Fecha estimada de entrada en operación [dd/mm/aaaa]",null,null,null,null,null,null,{"$f":"'3'!H31","v":"00:00:00"}]
[]
[null,null,null,"Vida útil estimada [años]",null,null,null,null,null,{"$f":"'3'!H33","v":0}]

{"sheet":"Municipios y Dep","index":5,"n_rows":1124,"n_cols":73,"rows_kept":1124,"cut":false,"hidden":true,"merged":[]}
["REGION","DEPARTAMENTO","MUNICIPIO",null,"DEPARTAMENTOS",null,"REGIÓN",null,"SANTANDER",null,"BOGOTÁ_D.C.",null,"AMAZONAS",null,"ANTIOQUIA",null,"ARAUCA",null,"ARCHIPIÉLAGO_DE_SAN_ANDRÉS_PROVIDENCIA_Y_SANTA_CATALINA",null,"ATLÁNTICO",null,"BOLÍVAR",null,"BOYACÁ",null,"CALDAS",null,"CAQUETÁ ",null,"CASANARE",null,"CAUCA",null,"CESAR",null,"CHOCÓ",null,"CÓRDOBA",null,"CUNDINAMARCA",null,"GUAINÍA",null,"GUAVIARE",null,"HUILA",null,"GUAJIRA",null,"MAGDALENA",null,"META",null,"NARIÑO",null,"NORTE_DE_SANTANDER",null,"PUTUMAYO",null,"QUINDÍO",null,"RISARALDA",null,"SUCRE",null,"TOLIMA",null,"VALLE_DEL_CAUCA",null,"VAUPÉS",null,"VICHADA"]
["Región Centro Sur","Amazonas","Leticia",null,"AMAZONAS",null,"Región Centro Sur",null,"Aguada",null,"Bogotá D.C.",null,"El Encanto",null,"Abejorral",null,"Arauca",null,"Providencia",null,"Baranoa",null,"Achí",null,"Almeida",null,"Aguadas",null,"Albania",null,"Aguazul",null,"Almaguer",null,"Aguachica",null,"Acandí",null,"Ayapel",null,"Agua de Dios",null,"Barranco Minas",null,"Calamar",null,"Acevedo",null,"Albania",null,"Algarrobo",null,"Acacias",null,"Albán",null,"Abrego",null,"Colón",null,"Armenia",null,"Apía",null,"Buenavista",null,"Alpujarra",null,"Alcalá",null,"Carurú",null,"Cumaribo"]
["Región Centro Sur","Amazonas","El Encanto",null,"ANTIOQUIA",null,"Región Eje Cafetero - Antioquia",null,"Albania",null,null,null,"La Chorrera",null,"Abriaquí",null,"Arauquita",null,"San Andrés",null,"Barranquilla",null,"Altos del Rosario",null,"Aquitania",null,"Anserma",null,"Belén de Los Andaquies",null,"Chámeza",null,"Argelia",null,"Agustín Codazzi",null,"Alto Baudo",null,"Buenavista",null,"Albán",null,"Cacahual",null,"El Retorno",null,"Agrado",null,"Barrancas",null,"Aracataca",null,"Barranca de Upía",null,"Aldana",null,"Arboledas",null,"Leguízamo",null,"Buenavista",null,"Balboa",null,"Caimito",null,"Alvarado",null,"Andalucía",null,"Mitú",null,"La Primavera"]
["Región Centro Sur","Amazonas","La Chorrera",null,"ARAUCA",null,"Región Llano",null,"Aratoca",null,null,null,"La Pedrera",null,"Alejandría",null,"Cravo Norte",null,null,null,"Campo de La Cruz",null,"Arenal",null,"Arcabuco",null,"Aranzazu",null,"Cartagena del Chairá",null,"Hato Corozal",null,"Balboa",null,"Astrea",null,"Atrato",null,"Canalete",null,"Anapoima",null,"Inírida",null,"Miraflores",null,"Aipe",null,"Dibula",null,"Ariguaní",null,"Cabuyaro",null,"Ancuyá",null,"Bochalema",null,"Mocoa",null,"Calarcá",null,"Belén de Umbría",null,"Chalán",null,"Ambalema",null,"Ansermanuevo",null,"Pacoa",null,"Puerto Carreño"]
["Región Centro Sur","Amazonas","La Pedrera",null,"ARCHIPIÉLAGO_DE_SAN_ANDRÉS_PROVIDENCIA_Y_SANTA_CATALINA",null,"Región Caribe",null,"Barbosa",null,null,null,"La Victoria",null,"Amagá",null,"Fortul",null,null,null,"Candelaria",null,"Arjona",null,"Belén",null,"Belalcázar",null,"Curillo",null,"La Salina",null,"Bolívar",null,"Becerril",null,"Bagadó",null,"Cereté",null,"Anolaima",null,"La Guadalupe",null,"San José del Guaviare",null,"Algeciras",null,"Distracción",null,"Cerro San Antonio",null,"Castilla la Nueva",null,"Arboleda",null,"Bucarasica",null,"Orito",null,"Circasia",null,"Dosquebradas",null,"Coloso",null,"Anzoátegui",null,"Argelia",null,"Papunahua",null,"Santa Rosalía"]
["Región Centro Sur","Amazonas","La Victoria",null,"ATLÁNTICO",null,"Región Centro Oriente",null,"Barichara",null,null,null,"Leticia",null,"Amalfi",null,"Puerto Rondón",null,null,null,"Galapa",null,"Arroyohondo",null,"Berbeo",null,"Chinchiná",null,"El Doncello",null,"Maní",null,"Buenos Aires",null,"Bosconia",null,"Bahía Solano",null,"Chimá",null,"Apulo",null,"Mapiripana",null,null,null,"Altamira",null,"El Molino",null,"Chivolo",null,"Cubarral",null,"Barbacoas",null,"Cachirá",null,"Puerto Asís",null,"Córdoba",null,"Guática",null,"Corozal",null,"Armero",null,"Bolívar",null,"Taraira"]
["Región Centro Sur","Amazonas","Puerto Arica",null,"BOGOTÁ_D.C.",null,"Región Pacífico",null,"Barrancabermeja",null,null,null,"Miriti Paraná",null,"Andes",null,"Saravena",null,null,null,"Juan de Acosta",null,"Barranco de Loba",null,"Betéitiva",null,"Filadelfia",null,"El Paujil",null,"Monterrey",null,"Cajibío",null,"Chimichagua",null,"Bajo Baudó",null,"Chinú",null,"Arbeláez",null,"Morichal",null,null,null,"Baraya",null,"Fonseca",null,"Ciénaga",null,"Cumaral",null,"Belén",null,"Cácota",null,"Puerto Caicedo",null,"Filandia",null,"La Celia",null,"Coveñas",null,"Ataco",null,"Buenaventura",null,"Yavaraté"]
["Región Centro Sur","Amazonas","Puerto Nariño",null,"BOLÍVAR",null,null,null,"Betulia",null,null,null,"Puerto Alegría",null,"Angelópolis",null,"Tame",null,null,null,"Luruaco",null,"Calamar",null,"Boavita",null,"La Dorada",null,"Florencia",null,"Nunchía",null,"Caldono",null,"Chiriguaná",null,"Belén de Bajira",null,"Ciénaga de Oro",null,"Beltrán",null,"Pana Pana",null,null,null,"Campoalegre",null,"Hatonuevo",null,"Concordia",null,"El Calvario",null,"Buesaco",null,"Chinácota",null,"Puerto Guzmán",null,"Génova",null,"La Virginia",null,"El Roble",null,"Cajamarca",null,"Bugalagrande"]
["Región Centro Sur","Amazonas","Puerto Santander",null,"BOYACÁ",null,null,null,"Bolívar",null,null,null,"Puerto Arica",null,"Angostura",null,null,null,null,null,"Malambo",null,"Cantagallo",null,"Boyacá",null,"La Merced",null,"La Montañita",null,"Orocué",null,"Caloto",null,"Curumaní",null,"Bojaya",null,"Cotorra",null,"Bituima",null,"Puerto Colombia",null,null,null,"Colombia",null,"La Jagua del Pilar",null,"El Banco",null,"El Castillo",null,"Chachagüí",null,"Chitagá",null,"San Francisco",null,"La Tebaida",null,"Marsella",null,"Galeras",null,"Carmen de Apicala",null,"Caicedonia"]
["Región Centro Sur","Amazonas","Tarapacá",null,"CALDAS",null,null,null,"Bucaramanga",null,null,null,"Puerto Nariño",null,"Anorí",null,null,null,null,null,"Manatí",null,"Cartagena",null,"Briceño",null,"Manizales",null,"Milán",null,"Paz de Ariporo",null,"Corinto",null,"El Copey",null,"Carmen del Darien",null,"La Apartada",null,"Bojacá",null,"San Felipe",null,null,null,"Elías",null,"Maicao",null,"El Piñon",null,"El Dorado",null,"Colón",null,"Convención",null,"San Miguel",null,"Montenegro",null,"Mistrató",null,"Guaranda",null,"Casabianca",null,"Cali"]
["Región Centro Sur","Amazonas","Puerto Alegría",null,"CAQUETÁ",null,null,null,"Cabrera",null,null,null,"Puerto Santander",null,"Anza",null,null,null,null,null,"Palmar de Varela",null,"Cicuco",null,"Buena Vista",null,"Manzanares",null,"Morelia",null,"Pore",null,"El Tambo",null,"El Paso",null,"Cértegui",null,"Lorica",null,"Cabrera",null,null,null,null,null,"Garzón",null,"Manaure",null,"El Retén",null,"Fuente de Oro",null,"Consaca",null,"Cúcuta",null,"Santiago",null,"Pijao",null,"Pereira",null,"La Unión",null,"Chaparral",null,"Calima"]
["Región Centro Sur","Amazonas","Miriti Paraná",null,"CASANARE",null,null,null,"California",null,null,null,"Tarapacá",null,"Apartadó",null,null,null,null,null,"Piojó",null,"Clemencia",null,"Busbanzá",null,"Marmato",null,"Puerto Rico",null,"Recetor",null,"Florencia",null,"Gamarra",null,"Condoto",null,"Los Córdobas",null,"Cachipay",null,null,null,null,null,"Gigante",null,"Riohacha",null,"Fundación",null,"Granada",null,"Contadero",null,"Cucutilla",null,"Sibundoy",null,"Quimbaya",null,"Pueblo Rico",null,"Los Palmitos",null,"Coello",null,"Candelaria"]
["Región Eje Cafetero - Antioquia","Antioquia","Abejorral",null,"CAUCA",null,null,null,"Capitanejo",null,null,null,null,null,"Arboletes",null,null,null,null,null,"Polonuevo",null,"Córdoba",null,"Caldas",null,"Marulanda",null,"San José del Fragua",null,"Sabanalarga",null,"Guachené",null,"González",null,"El Cantón del San Pablo",null,"Momil",null,"Cajicá",null,null,null,null,null,"Guadalupe",null,"San Juan del Cesar",null,"Guamal",null,"Guamal",null,"Córdoba",null,"Durania",null,"Valle de Guamez",null,"Salento",null,"Quinchía",null,"Majagual",null,"Coyaima",null,"Cartago"]
["Región Eje Cafetero - Antioquia","Antioquia","Abriaquí",null,"CESAR",null,null,null,"Carcasí",null,null,null,null,null,"Argelia",null,null,null,null,null,"Ponedera",null,"El Carmen de Bolívar",null,"Campohermoso",null,"Neira",null,"San Vicente del Caguán",null,"Sácama",null,"Guapi",null,"La Gloria",null,"El Carmen de Atrato",null,"Moñitos",null,"Caparrapí",null,null,null,null,null,"Hobo",null,"Uribia",null,"Nueva Granada",null,"La Macarena",null,"Cuaspud",null,"El Carmen",null,"Villagarzón",null,null,null,"Santa Rosa de Cabal",null,"Morroa",null,"Cunday",null,"Dagua"]
["Región Eje Cafetero - Antioquia","Antioquia","Alejandría",null,"CHOCÓ",null,null,null,"Cepitá",null,null,null,null,null,"Armenia",null,null,null,null,null,"Puerto Colombia",null,"El Guamo",null,"Cerinza",null,"Norcasia",null,"Solano",null,"San Luis de Gaceno",null,"Inzá",null,"La Jagua de Ibirico",null,"El Litoral del San Juan",null,"Montelíbano",null,"Caqueza",null,null,null,null,null,"Iquira",null,"Urumita",null,"Pedraza",null,"Lejanías",null,"Cumbal",null,"El Tarra",null,null,null,null,null,"Santuario",null,"Ovejas",null,"Dolores",null,"El Águila"]
["Región Eje Cafetero - Antioquia","Antioquia","Amagá",null,"CÓRDOBA",null,null,null,"Cerrito",null,null,null,null,null,"Barbosa",null,null,null,null,null,"Repelón",null,"El Peñón",null,"Chinavita",null,"Pácora",null,"Solita",null,"Támara",null,"Jambaló",null,"La Paz",null,"Istmina",null,"Montería",null,"Carmen de Carupa",null,null,null,null,null,"Isnos",null,"Villanueva",null,"Pijiño del Carmen",null,"Mapiripán",null,"Cumbitara",null,"El Zulia",null,null,null,null,null,null,null,"Palmito",null,"Espinal",null,"El Cairo"]
["Región Eje Cafetero - Antioquia","Antioquia","Amalfi",null,"CUNDINAMARCA",null,null,null,"Charalá",null,null,null,null,null,"Bello",null,null,null,null,null,"Sabanagrande",null,"Hatillo de Loba",null,"Chiquinquirá",null,"Palestina",null,"Valparaíso",null,"Tauramena",null,"La Sierra",null,"Manaure",null,"Juradó",null,"Planeta Rica",null,"Chaguaní",null,null,null,null,null,"La Argentina",null,null,null,"Pivijay",null,"Mesetas",null,"El Charco",null,"Gramalote",null,null,null,null,null,null,null,"Sampués",null,"Falan",null,"El Cerrito"]
["Región Eje Cafetero - Antioquia","Antioquia","Andes",null,"GUAINÍA",null,null,null,"Charta",null,null,null,null,null,"Belmira",null,null,null,null,null,"Sabanalarga",null,"Magangué",null,"Chíquiza",null,"Pensilvania",null,null,null,"Trinidad",null,"La Vega",null,"Pailitas",null,"Lloró",null,"Pueblo Nuevo",null,"Chía",null,null,null,null,null,"La Plata",null,null,null,"Plato",null,"Puerto Concordia",null,"El Peñol",null,"Hacarí",null,null,null,null,null,null,null,"San Benito Abad",null,"Flandes",null,"El Dovio"]
["Región Eje Cafetero - Antioquia","Antioquia","Angelópolis",null,"GUAVIARE",null,null,null,"Chimá",null,null,null,null,null,"Betania",null,null,null,null,null,"Santa Lucía",null,"Mahates",null,"Chiscas",null,"Riosucio",null,null,null,"Villanueva",null,"López",null,"Pelaya",null,"Medio Atrato",null,"Puerto Escondido",null,"Chipaque",null,null,null,null,null,"Nátaga",null,null,null,"Pueblo Viejo",null,"Puerto Gaitán",null,"El Rosario",null,"Herrán",null,null,null,null,null,null,null,"San Juan de Betulia",null,"Fresno",null,"Florida"]
["Región Eje Cafetero - Antioquia","Antioquia","Angostura",null,"HUILA",null,null,null,"Chipatá",null,null,null,null,null,"Betulia",null,null,null,null,null,"Santo Tomás",null,"Margarita",null,"Chita",null,"Risaralda",null,null,null,"Yopal",null,"Mercaderes",null,"Pueblo Bello",null,"Medio Baudó",null,"Puerto Libertador",null,"Choachí",null,null,null,null,null,"Neiva",null,null,null,"Remolino",null,"Puerto Lleras",null,"El Tablón de Gómez",null,"La Esperanza",null,null,null,null,null,null,null,"San Luis de Sincé",null,"Guamo",null,"Ginebra"]
["Región Eje Cafetero - Antioquia","Antioquia","Anorí",null,"LA_GUAJIRA",null,null,null,"Cimitarra",null,null,null,null,null,"Briceño",null,null,null,null,null,"Soledad",null,"María la Baja",null,"Chitaraque",null,"Salamina",null,null,null,null,null,"Miranda",null,"Río de Oro",null,"Medio San Juan",null,"Purísima",null,"Chocontá",null,null,null,null,null,"Oporapa",null,null,null,"Sabanas de San Angel",null,"Puerto López",null,"El Tambo",null,"La Playa",null,null,null,null,null,null,null,"San Marcos",null,"Herveo",null,"Guacarí"]
["Región Eje Cafetero - Antioquia","Antioquia","Anza",null,"MAGDALENA",null,null,null,"Concepción",null,null,null,null,null,"Buriticá",null,null,null,null,null,"Suan",null,"Mompós",null,"Chivatá",null,"Samaná",null,null,null,null,null,"Morales",null,"San Alberto",null,"Nóvita",null,"Sahagún",null,"Cogua",null,null,null,null,null,"Paicol",null,null,null,"Salamina",null,"Puerto Rico",null,"Francisco Pizarro",null,"Labateca",null,null,null,null,null,null,null,"San Onofre",null,"Honda",null,"Guadalajara de Buga"]
["Región Eje Cafetero - Antioquia","Antioquia","Apartadó",null,"META",null,null,null,"Confines",null,null,null,null,null,"Cáceres",null,null,null,null,null,"Tubará",null,"Montecristo",null,"Chivor",null,"San José",null,null,null,null,null,"Padilla",null,"San Diego",null,"Nuquí",null,"San Andrés Sotavento",null,"Cota",null,null,null,null,null,"Palermo",null,null,null,"San Sebastián de Buenavista",null,"Restrepo",null,"Funes",null,"Los Patios",null,null,null,null,null,null,null,"San Pedro",null,"Ibagué",null,"Jamundí"]
["Región Eje Cafetero - Antioquia","Antioquia","Arboletes",null,"NARIÑO",null,null,null,"Contratación",null,null,null,null,null,"Caicedo",null,null,null,null,null,"Usiacurí",null,"Morales",null,"Ciénega",null,"Supía",null,null,null,null,null,"Páez",null,"San Martín",null,"Quibdó",null,"San Antero",null,"Cucunubá",null,null,null,null,null,"Palestina",null,null,null,"San Zenón",null,"San Carlos de Guaroa",null,"Guachucal",null,"Lourdes",null,null,null,null,null,null,null,"Santiago de Tolú",null,"Icononzo",null,"La Cumbre"]
["Región Eje Cafetero - Antioquia","Antioquia","Argelia",null,"NORTE_DE_SANTANDER",null,null,null,"Coromoro",null,null,null,null,null,"Caldas",null,null,null,null,null,null,null,"Norosí",null,"Cómbita",null,"Victoria",null,null,null,null,null,"Patía",null,"Tamalameque",null,"Río Iro",null,"San Bernardo del Viento",null,"El Colegio",null,null,null,null,null,"Pital",null,null,null,"Santa Ana",null,"San Juan de Arama",null,"Guaitarilla",null,"Mutiscua",null,null,null,null,null,null,null,"Sincelejo",null,"Lérida",null,"La Unión"]
["Región Eje Cafetero - Antioquia","Antioquia","Armenia",null,"PUTUMAYO",null,null,null,"Curití",null,null,null,null,null,"Campamento",null,null,null,null,null,null,null,"Pinillos",null,"Coper",null,"Villamaría",null,null,null,null,null,"Piamonte",null,"Valledupar",null,"Río Quito",null,"San Carlos",null,"El Peñón",null,null,null,null,null,"Pitalito",null,null,null,"Santa Bárbara de Pinto",null,"San Juanito",null,"Gualmatán",null,"Ocaña",null,null,null,null,null,null,null,"Sucre",null,"Líbano",null,"La Victoria"]
["Región Eje Cafetero - Antioquia","Antioquia","Barbosa",null,"QUINDÍO",null,null,null,"El Carmen de Chucurí",null,null,null,null,null,"Cañasgordas",null,null,null,null,null,null,null,"Regidor",null,"Corrales",null,"Viterbo",null,null,null,null,null,"Piendamó",null,null,null,"Riosucio",null,"San José de Uré",null,"El Rosal",null,null,null,null,null,"Rivera",null,null,null,"Santa Marta",null,"San Martín",null,"Iles",null,"Pamplona",null,null,null,null,null,null,null,"Tolú Viejo",null,"Mariquita",null,"Obando"]
["Región Eje Cafetero - Antioquia","Antioquia","Bello",null,"RISARALDA",null,null,null,"El Guacamayo",null,null,null,null,null,"Caracolí",null,null,null,null,null,null,null,"Río Viejo",null,"Covarachía",null,null,null,null,null,null,null,"Popayán",null,null,null,"San José del Palmar",null,"San Pelayo",null,"Facatativá",null,null,null,null,null,"Saladoblanco",null,null,null,"Sitionuevo",null,"Uribe",null,"Imués",null,"Pamplonita",null,null,null,null,null,null,null,null,null,"Melgar",null,"Palmira"]
["Región Eje Cafetero - Antioquia","Antioquia","Belmira",null,"SANTANDER",null,null,null,"El Peñón",null,null,null,null,null,"Caramanta",null,null,null,null,null,null,null,"San Cristóbal",null,"Cubará",null,null,null,null,null,null,null,"Puerto Tejada",null,null,null,"Sipí",null,"Tierralta",null,"Fomeque",null,null,null,null,null,"San Agustín",null,null,null,"Tenerife",null,"Villavicencio",null,"Ipiales",null,"Puerto Santander",null,null,null,null,null,null,null,null,null,"Murillo",null,"Pradera"]
["Región Eje Cafetero - Antioquia","Antioquia","Betania",null,"SUCRE",null,null,null,"El Playón",null,null,null,null,null,"Carepa",null,null,null,null,null,null,null,"San Estanislao",null,"Cucaita",null,null,null,null,null,null,null,"Puracé",null,null,null,"Tadó",null,"Tuchín",null,"Fosca",null,null,null,null,null,"Santa María",null,null,null,"Zapayán",null,"Vista Hermosa",null,"La Cruz",null,"Ragonvalia",null,null,null,null,null,null,null,null,null,"Natagaima",null,"Restrepo"]
["Región Eje Cafetero - Antioquia","Antioquia","Betulia",null,"TOLIMA",null,null,null,"Encino",null,null,null,null,null,"Carolina",null,null,null,null,null,null,null,"San Fernando",null,"Cuítiva",null,null,null,null,null,null,null,"Rosas",null,null,null,"Unguía",null,"Valencia",null,"Funza",null,null,null,null,null,"Suaza",null,null,null,"Zona Bananera",null,null,null,"La Florida",null,"Salazar",null,null,null,null,null,null,null,null,null,"Ortega",null,"Riofrío"]
["Región Eje Cafetero - Antioquia","Antioquia","Briceño",null,"VALLE_DEL_CAUCA",null,null,null,"Enciso",null,null,null,null,null,"Caucasia",null,null,null,null,null,null,null,"San Jacinto",null,"Duitama",null,null,null,null,null,null,null,"San Sebastián",null,null,null,"Unión Panamericana",null,null,null,"Fúquene",null,null,null,null,null,"Tarqui",null,null,null,null,null,null,null,"La Llanada",null,"San Calixto",null,null,null,null,null,null,null,null,null,"Palocabildo",null,"Roldanillo"]
["Región Eje Cafetero - Antioquia","Antioquia","Buriticá",null,"VAUPÉS",null,null,null,"Florián",null,null,null,null,null,"Chigorodó",null,null,null,null,null,null,null,"San Jacinto del Cauca",null,"El Cocuy",null,null,null,null,null,null,null,"Santa Rosa",null,null,null,null,null,null,null,"Fusagasugá",null,null,null,null,null,"Tello",null,null,null,null,null,null,null,"La Tola",null,"San Cayetano",null,null,null,null,null,null,null,null,null,"Piedras",null,"San Pedro"]
["Región Eje Cafetero - Antioquia","Antioquia","Cáceres",null,"VICHADA",null,null,null,"Floridablanca",null,null,null,null,null,"Cisneros",null,null,null,null,null,null,null,"San Juan Nepomuceno",null,"El Espino",null,null,null,null,null,null,null,"Santander de Quilichao",null,null,null,null,null,null,null,"Gachala",null,null,null,null,null,"Teruel",null,null,null,null,null,null,null,"La Unión",null,"Santiago",null,null,null,null,null,null,null,null,null,"Planadas",null,"Sevilla"]
["Región Eje Cafetero - Antioquia","Antioquia","Caicedo",null,null,null,null,null,"Galán",null,null,null,null,null,"Ciudad Bolívar",null,null,null,null,null,null,null,"San Martín de Loba",null,"Firavitoba",null,null,null,null,null,null,null,"Silvia",null,null,null,null,null,null,null,"Gachancipá",null,null,null,null,null,"Tesalia",null,null,null,null,null,null,null,"Leiva",null,"Sardinata",null,null,null,null,null,null,null,null,null,"Prado",null,"Toro"]
["Región Eje Cafetero - Antioquia","Antioquia","Caldas",null,null,null,null,null,"Gambita",null,null,null,null,null,"Cocorná",null,null,null,null,null,null,null,"San Pablo de Borbur",null,"Floresta",null,null,null,null,null,null,null,"Sotara",null,null,null,null,null,null,null,"Gachetá",null,null,null,null,null,"Timaná",null,null,null,null,null,null,null,"Linares",null,"Silos",null,null,null,null,null,null,null,null,null,"Purificación",null,"Trujillo"]
["Región Eje Cafetero - Antioquia","Antioquia","Campamento",null,null,null,null,null,"Girón",null,null,null,null,null,"Concepción",null,null,null,null,null,null,null,"Santa Catalina",null,"Gachantivá",null,null,null,null,null,null,null,"Suárez",null,null,null,null,null,null,null,"Gama",null,null,null,null,null,"Villavieja",null,null,null,null,null,null,null,"Los Andes",null,"Teorama",null,null,null,null,null,null,null,null,null,"Rio Blanco",null,"Tuluá"]
["Región Eje Cafetero - Antioquia","Antioquia","Cañasgordas",null,null,null,null,null,"Guaca",null,null,null,null,null,"Concordia",null,null,null,null,null,null,null,"Santa Rosa",null,"Gameza",null,null,null,null,null,null,null,"Sucre",null,null,null,null,null,null,null,"Girardot",null,null,null,null,null,"Yaguará",null,null,null,null,null,null,null,"Magüí",null,"Tibú",null,null,null,null,null,null,null,null,null,"Roncesvalles",null,"Ulloa"]
["Región Eje Cafetero - Antioquia","Antioquia","Caracolí",null,null,null,null,null,"Guadalupe",null,null,null,null,null,"Copacabana",null,null,null,null,null,null,null,"Santa Rosa del Sur",null,"Garagoa",null,null,null,null,null,null,null,"Timbío",null,null,null,null,null,null,null,"Granada",null,null,null,null,null,null,null,null,null,null,null,null,null,"Mallama",null,"Toledo",null,null,null,null,null,null,null,null,null,"Rovira",null,"Versalles"]
["Región Eje Cafetero - Antioquia","Antioquia","Caramanta",null,null,null,null,null,"Guapotá",null,null,null,null,null,"Dabeiba",null,null,null,null,null,null,null,"Simití",null,"Guacamayas",null,null,null,null,null,null,null,"Timbiquí",null,null,null,null,null,null,null,"Guachetá",null,null,null,null,null,null,null,null,null,null,null,null,null,"Mosquera",null,"Villa Caro",null,null,null,null,null,null,null,null,null,"Saldaña",null,"Vijes"]
["Región Eje Cafetero - Antioquia","Antioquia","Carepa",null,null,null,null,null,"Guavatá",null,null,null,null,null,"Don Matías",null,null,null,null,null,null,null,"Soplaviento",null,"Guateque",null,null,null,null,null,null,null,"Toribio",null,null,null,null,null,null,null,"Guaduas",null,null,null,null,null,null,null,null,null,null,null,null,null,"Nariño",null,"Villa del Rosario",null,null,null,null,null,null,null,null,null,"San Antonio",null,"Yotoco"]
["Región Eje Cafetero - Antioquia","Antioquia","Carolina",null,null,null,null,null,"Güepsa",null,null,null,null,null,"Ebéjico",null,null,null,null,null,null,null,"Talaigua Nuevo",null,"Guayatá",null,null,null,null,null,null,null,"Totoró",null,null,null,null,null,null,null,"Guasca",null,null,null,null,null,null,null,null,null,null,null,null,null,"Olaya Herrera",null,null,null,null,null,null,null,null,null,null,null,"San Luis",null,"Yumbo"]
["Región Eje Cafetero - Antioquia","Antioquia","Caucasia",null,null,null,null,null,"Hato",null,null,null,null,null,"El Bagre",null,null,null,null,null,null,null,"Tiquisio",null,"Güicán",null,null,null,null,null,null,null,"Villa Rica",null,null,null,null,null,null,null,"Guataquí",null,null,null,null,null,null,null,null,null,null,null,null,null,"Ospina",null,null,null,null,null,null,null,null,null,null,null,"Santa Isabel",null,"Zarzal"]
["Región Eje Cafetero - Antioquia","Antioquia","Chigorodó",null,null,null,null,null,"Jesús María",null,null,null,null,null,"El Carmen de Viboral",null,null,null,null,null,null,null,"Turbaco",null,"Iza",null,null,null,null,null,null,null,null,null,null,null,null,null,null,null,"Guatavita",null,null,null,null,null,null,null,null,null,null,null,null,null,"Pasto",null,null,null,null,null,null,null,null,null,null,null,"Suárez"]
["Región Eje Cafetero - Antioquia","Antioquia","Cisneros",null,null,null,null,null,"Jordán",null,null,null,null,null,"El Santuario",null,null,null,null,null,null,null,"Turbaná",null,"Jenesano",null,null,null,null,null,null,null,null,null,null,null,null,null,null,null,"Guayabal de Siquima",null,null,null,null,null,null,null,null,null,null,null,null,null,"Policarpa",null,null,null,null,null,null,null,null,null,null,null,"Valle de San Juan"]
["Región Eje Cafetero - Antioquia","Antioquia","Ciudad Bolívar",null,null,null,null,null,"La Belleza",null,null,null,null,null,"Entrerrios",null,null,null,null,null,null,null,"Villanueva",null,"Jericó",null,null,null,null,null,null,null,null,null,null,null,null,null,null,null,"Guayabetal",null,null,null,null,null,null,null,null,null,null,null,null,null,"Potosí",null,null,null,null,null,null,null,null,null,null,null,"Venadillo"]
["Región Eje Cafetero - Antioquia","Antioquia","Cocorná",null,null,null,null,null,"La Paz",null,null,null,null,null,"Envigado",null,null,null,null,null,null,null,"Zambrano",null,"La Capilla",null,null,null,null,null,null,null,null,null,null,null,null,null,null,null,"Gutiérrez",null,null,null,null,null,null,null,null,null,null,null,null,null,"Providencia",null,null,null,null,null,null,null,null,null,null,null,"Villahermosa"]
["Región Eje Cafetero - Antioquia","Antioquia","Concepción",null,null,null,null,null,"Landázuri",null,null,null,null,null,"Fredonia",null,null,null,null,null,null,null,null,null,"La Uvita",null,null,null,null,null,null,null,null,null,null,null,null,null,null,null,"Jerusalén",null,null,null,null,null,null,null,null,null,null,null,null,null,"Puerres",null,null,null,null,null,null,null,null,null,null,null,"Villarrica"]
["Región Eje Cafetero - Antioquia","Antioquia","Concordia",null,null,null,null,null,"Lebríja",null,null,null,null,null,"Frontino",null,null,null,null,null,null,null,null,null,"La Victoria",null,null,null,null,null,null,null,null,null,null,null,null,null,null,null,"Junín",null,null,null,null,null,null,null,null,null,null,null,null,null,"Pupiales"]
["Región Eje Cafetero - Antioquia","Antioquia","Copacabana",null,null,null,null,null,"Los Santos",null,null,null,null,null,"Giraldo",null,null,null,null,null,null,null,null,null,"Labranzagrande",null,null,null,null,null,null,null,null,null,null,null,null,null,null,null,"La Calera",null,null,null,null,null,null,null,null,null,null,null,null,null,"Ricaurte"]
["Región Eje Cafetero - Antioquia","Antioquia","Dabeiba",null,null,null,null,null,"Macaravita",null,null,null,null,null,"Girardota",null,null,null,null,null,null,null,null,null,"Macanal",null,null,null,null,null,null,null,null,null,null,null,null,null,null,null,"La Mesa",null,null,null,null,null,null,null,null,null,null,null,null,null,"Roberto Payán"]
["Región Eje Cafetero - Antioquia","Antioquia","Don Matías",null,null,null,null,null,"Málaga",null,null,null,null,null,"Gómez Plata",null,null,null,null,null,null,null,null,null,"Maripí",null,null,null,null,null,null,null,null,null,null,null,null,null,null,null,"La Palma",null,null,null,null,null,null,null,null,null,null,null,null,null,"Samaniego"]
["Región Eje Cafetero - Antioquia","Antioquia","Ebéjico",null,null,null,null,null,"Matanza",null,null,null,null,null,"Granada",null,null,null,null,null,null,null,null,null,"Miraflores",null,null,null,null,null,null,null,null,null,null,null,null,null,null,null,"La Peña",null,null,null,null,null,null,null,null,null,null,null,null,null,"San Andrés de Tumaco"]
["Región Eje Cafetero - Antioquia","Antioquia","El Bagre",null,null,null,null,null,"Mogotes",null,null,null,null,null,"Guadalupe",null,null,null,null,null,null,null,null,null,"Mongua",null,null,null,null,null,null,null,null,null,null,null,null,null,null,null,"La Vega",null,null,null,null,null,null,null,null,null,null,null,null,null,"San Bernardo"]
["Región Eje Cafetero - Antioquia","Antioquia","El Carmen de Viboral",null,null,null,null,null,"Molagavita",null,null,null,null,null,"Guarne",null,null,null,null,null,null,null,null,null,"Monguí",null,null,null,null,null,null,null,null,null,null,null,null,null,null,null,"Lenguazaque",null,null,null,null,null,null,null,null,null,null,null,null,null,"San Lorenzo"]
["Región Eje Cafetero - Antioquia","Antioquia","El Santuario",null,null,null,null,null,"Ocamonte",null,null,null,null,null,"Guatapé",null,null,null,null,null,null,null,null,null,"Moniquirá",null,null,null,null,null,null,null,null,null,null,null,null,null,null,null,"Macheta",null,null,null,null,null,null,null,null,null,null,null,null,null,"San Pablo"]
["Región Eje Cafetero - Antioquia","Antioquia","Entrerrios",null,null,null,null,null,"Oiba",null,null,null,null,null,"Heliconia",null,null,null,null,null,null,null,null,null,"Motavita",null,null,null,null,null,null,null,null,null,null,null,null,null,null,null,"Madrid",null,null,null,null,null,null,null,null,null,null,null,null,null,"San Pedro de Cartago"]
["Región Eje Cafetero - Antioquia","Antioquia","Envigado",null,null,null,null,null,"Onzaga",null,null,null,null,null,"Hispania",null,null,null,null,null,null,null,null,null,"Muzo",null,null,null,null,null,null,null,null,null,null,null,null,null,null,null,"Manta",null,null,null,null,null,null,null,null,null,null,null,null,null,"Sandoná"]
["Región Eje Cafetero - Antioquia","Antioquia","Fredonia",null,null,null,null,null,"Palmar",null,null,null,null,null,"Itagui",null,null,null,null,null,null,null,null,null,"Nobsa",null,null,null,null,null,null,null,null,null,null,null,null,null,null,null,"Medina",null,null,null,null,null,null,null,null,null,null,null,null,null,"Santa Bárbara"]
["Región Eje Cafetero - Antioquia","Antioquia","Frontino",null,null,null,null,null,"Palmas del Socorro",null,null,null,null,null,"Ituango",null,null,null,null,null,null,null,null,null,"Nuevo Colón",null,null,null,null,null,null,null,null,null,null,null,null,null,null,null,"Mosquera",null,null,null,null,null,null,null,null,null,null,null,null,null,"Santacruz"]
["Región Eje Cafetero - Antioquia","Antioquia","Giraldo",null,null,null,null,null,"Páramo",null,null,null,null,null,"Jardín",null,null,null,null,null,null,null,null,null,"Oicatá",null,null,null,null,null,null,null,null,null,null,null,null,null,null,null,"Nariño",null,null,null,null,null,null,null,null,null,null,null,null,null,"Sapuyes"]
["Región Eje Cafetero - Antioquia","Antioquia","Girardota",null,null,null,null,null,"Piedecuesta",null,null,null,null,null,"Jericó",null,null,null,null,null,null,null,null,null,"Otanche",null,null,null,null,null,null,null,null,null,null,null,null,null,null,null,"Nemocón",null,null,null,null,null,null,null,null,null,null,null,null,null,"Taminango"]
["Región Eje Cafetero - Antioquia","Antioquia","Gómez Plata",null,null,null,null,null,"Pinchote",null,null,null,null,null,"La Ceja",null,null,null,null,null,null,null,null,null,"Pachavita",null,null,null,null,null,null,null,null,null,null,null,null,null,null,null,"Nilo",null,null,null,null,null,null,null,null,null,null,null,null,null,"Tangua"]
["Región Eje Cafetero - Antioquia","Antioquia","Granada",null,null,null,null,null,"Puente Nacional",null,null,null,null,null,"La Estrella",null,null,null,null,null,null,null,null,null,"Páez",null,null,null,null,null,null,null,null,null,null,null,null,null,null,null,"Nimaima",null,null,null,null,null,null,null,null,null,null,null,null,null,"Túquerres"]
["Región Eje Cafetero - Antioquia","Antioquia","Guadalupe",null,null,null,null,null,"Puerto Parra",null,null,null,null,null,"La Pintada",null,null,null,null,null,null,null,null,null,"Paipa",null,null,null,null,null,null,null,null,null,null,null,null,null,null,null,"Nocaima",null,null,null,null,null,null,null,null,null,null,null,null,null,"Yacuanquer"]
["Región Eje Cafetero - Antioquia","Antioquia","Guarne",null,null,null,null,null,"Puerto Wilches",null,null,null,null,null,"La Unión",null,null,null,null,null,null,null,null,null,"Pajarito",null,null,null,null,null,null,null,null,null,null,null,null,null,null,null,"Pacho"]
["Región Eje Cafetero - Antioquia","Antioquia","Guatapé",null,null,null,null,null,"Rionegro",null,null,null,null,null,"Liborina",null,null,null,null,null,null,null,null,null,"Panqueba",null,null,null,null,null,null,null,null,null,null,null,null,null,null,null,"Paime"]
["Región Eje Cafetero - Antioquia","Antioquia","Heliconia",null,null,null,null,null,"Sabana de Torres",null,null,null,null,null,"Maceo",null,null,null,null,null,null,null,null,null,"Pauna",null,null,null,null,null,null,null,null,null,null,null,null,null,null,null,"Pandi"]
["Región Eje Cafetero - Antioquia","Antioquia","Hispania",null,null,null,null,null,"San Andrés",null,null,null,null,null,"Marinilla",null,null,null,null,null,null,null,null,null,"Paya",null,null,null,null,null,null,null,null,null,null,null,null,null,null,null,"Paratebueno"]
["Región Eje Cafetero - Antioquia","Antioquia","Itagui",null,null,null,null,null,"San Benito",null,null,null,null,null,"Medellín",null,null,null,null,null,null,null,null,null,"Paz de Río",null,null,null,null,null,null,null,null,null,null,null,null,null,null,null,"Pasca"]
["Región Eje Cafetero - Antioquia","Antioquia","Ituango",null,null,null,null,null,"San Gil",null,null,null,null,null,"Montebello",null,null,null,null,null,null,null,null,null,"Pesca",null,null,null,null,null,null,null,null,null,null,null,null,null,null,null,"Puerto Salgar"]
["Región Eje Cafetero - Antioquia","Antioquia","Jardín",null,null,null,null,null,"San Joaquín",null,null,null,null,null,"Murindó",null,null,null,null,null,null,null,null,null,"Pisba",null,null,null,null,null,null,null,null,null,null,null,null,null,null,null,"Pulí"]
["Región Eje Cafetero - Antioquia","Antioquia","Jericó",null,null,null,null,null,"San José de Miranda",null,null,null,null,null,"Mutatá",null,null,null,null,null,null,null,null,null,"Puerto Boyacá",null,null,null,null,null,null,null,null,null,null,null,null,null,null,null,"Quebradanegra"]
["Región Eje Cafetero - Antioquia","Antioquia","La Ceja",null,null,null,null,null,"San Miguel",null,null,null,null,null,"Nariño",null,null,null,null,null,null,null,null,null,"Quípama",null,null,null,null,null,null,null,null,null,null,null,null,null,null,null,"Quetame"]
["Región Eje Cafetero - Antioquia","Antioquia","La Estrella",null,null,null,null,null,"San Vicente de Chucurí",null,null,null,null,null,"Nechí",null,null,null,null,null,null,null,null,null,"Ramiriquí",null,null,null,null,null,null,null,null,null,null,null,null,null,null,null,"Quipile"]
["Región Eje Cafetero - Antioquia","Antioquia","La Pintada",null,null,null,null,null,"Santa Bárbara",null,null,null,null,null,"Necoclí",null,null,null,null,null,null,null,null,null,"Ráquira",null,null,null,null,null,null,null,null,null,null,null,null,null,null,null,"Ricaurte"]
["Región Eje Cafetero - Antioquia","Antioquia","La Unión",null,null,null,null,null,"Santa Helena del Opón",null,null,null,null,null,"Olaya",null,null,null,null,null,null,null,null,null,"Rondón",null,null,null,null,null,null,null,null,null,null,null,null,null,null,null,"San Antonio del Tequendama"]
["Región Eje Cafetero - Antioquia","Antioquia","Liborina",null,null,null,null,null,"Simacota",null,null,null,null,null,"Peñol",null,null,null,null,null,null,null,null,null,"Saboyá",null,null,null,null,null,null,null,null,null,null,null,null,null,null,null,"San Bernardo"]
["Región Eje Cafetero - Antioquia","Antioquia","Maceo",null,null,null,null,null,"Socorro",null,null,null,null,null,"Peque",null,null,null,null,null,null,null,null,null,"Sáchica",null,null,null,null,null,null,null,null,null,null,null,null,null,null,null,"San Cayetano"]
["Región Eje Cafetero - Antioquia","Antioquia","Marinilla",null,null,null,null,null,"Suaita",null,null,null,null,null,"Pueblorrico",null,null,null,null,null,null,null,null,null,"Samacá",null,null,null,null,null,null,null,null,null,null,null,null,null,null,null,"San Francisco"]
["Región Eje Cafetero - Antioquia","Antioquia","Medellín",null,null,null,null,null,"Sucre",null,null,null,null,null,"Puerto Berrío",null,null,null,null,null,null,null,null,null,"San Eduardo",null,null,null,null,null,null,null,null,null,null,null,null,null,null,null,"San Juan de Río Seco"]
["Región Eje Cafetero - Antioquia","Antioquia","Montebello",null,null,null,null,null,"Suratá",null,null,null,null,null,"Puerto Nare",null,null,null,null,null,null,null,null,null,"San José de Pare",null,null,null,null,null,null,null,null,null,null,null,null,null,null,null,"Sasaima"]
["Región Eje Cafetero - Antioquia","Antioquia","Murindó",null,null,null,null,null,"Tona",null,null,null,null,null,"Puerto Triunfo",null,null,null,null,null,null,null,null,null,"San Luis de Gaceno",null,null,null,null,null,null,null,null,null,null,null,null,null,null,null,"Sesquilé"]
["Región Eje Cafetero - Antioquia","Antioquia","Mutatá",null,null,null,null,null,"Valle de San José",null,null,null,null,null,"Remedios",null,null,null,null,null,null,null,null,null,"San Mateo",null,null,null,null,null,null,null,null,null,null,null,null,null,null,null,"Sibaté"]
["Región Eje Cafetero - Antioquia","Antioquia","Nariño",null,null,null,null,null,"Vélez",null,null,null,null,null,"Retiro",null,null,null,null,null,null,null,null,null,"San Miguel de Sema",null,null,null,null,null,null,null,null,null,null,null,null,null,null,null,"Silvania"]
["Región Eje Cafetero - Antioquia","Antioquia","Nechí",null,null,null,null,null,"Vetas",null,null,null,null,null,"Rionegro",null,null,null,null,null,null,null,null,null,"San Pablo de Borbur",null,null,null,null,null,null,null,null,null,null,null,null,null,null,null,"Simijaca"]
["Región Eje Cafetero - Antioquia","Antioquia","Necoclí",null,null,null,null,null,"Villanueva",null,null,null,null,null,"Sabanalarga",null,null,null,null,null,null,null,null,null,"Santa María",null,null,null,null,null,null,null,null,null,null,null,null,null,null,null,"Soacha"]
["Región Eje Cafetero - Antioquia","Antioquia","Olaya",null,null,null,null,null,"Zapatoca",null,null,null,null,null,"Sabaneta",null,null,null,null,null,null,null,null,null,"Santa Rosa de Viterbo",null,null,null,null,null,null,null,null,null,null,null,null,null,null,null,"Sopó"]
["Región Eje Cafetero - Antioquia","Antioquia","Peñol",null,null,null,null,null,null,null,null,null,null,null,"Salgar",null,null,null,null,null,null,null,null,null,"Santa Sofía",null,null,null,null,null,null,null,null,null,null,null,null,null,null,null,"Subachoque"]
["Región Eje Cafetero - Antioquia","Antioquia","Peque",null,null,null,null,null,null,null,null,null,null,null,"San Andrés de Cuerquía",null,null,null,null,null,null,null,null,null,"Santana",null,null,null,null,null,null,null,null,null,null,null,null,null,null,null,"Suesca"]
["Región Eje Cafetero - Antioquia","Antioquia","Pueblorrico",null,null,null,null,null,null,null,null,null,null,null,"San Carlos",null,null,null,null,null,null,null,null,null,"Sativanorte",null,null,null,null,null,null,null,null,null,null,null,null,null,null,null,"Supatá"]
["Región Eje Cafetero - Antioquia","Antioquia","Puerto Berrío",null,null,null,null,null,null,null,null,null,null,null,"San Francisco",null,null,null,null,null,null,null,null,null,"Sativasur",null,null,null,null,null,null,null,null,null,null,null,null,null,null,null,"Susa"]
["Región Eje Cafetero - Antioquia","Antioquia","Puerto Nare",null,null,null,null,null,null,null,null,null,null,null,"San Jerónimo",null,null,null,null,null,null,null,null,null,"Siachoque",null,null,null,null,null,null,null,null,null,null,null,null,null,null,null,"Sutatausa"]
["Región Eje Cafetero - Antioquia","Antioquia","Puerto Triunfo",null,null,null,null,null,null,null,null,null,null,null,"San José de La Montaña",null,null,null,null,null,null,null,null,null,"Soatá",null,null,null,null,null,null,null,null,null,null,null,null,null,null,null,"Tabio"]
["Región Eje Cafetero - Antioquia","Antioquia","Remedios",null,null,null,null,null,null,null,null,null,null,null,"San Juan de Urabá",null,null,null,null,null,null,null,null,null,"Socha",null,null,null,null,null,null,null,null,null,null,null,null,null,null,null,"Tausa"]
["Región Eje Cafetero - Antioquia","Antioquia","Retiro",null,null,null,null,null,null,null,null,null,null,null,"San Luis",null,null,null,null,null,null,null,null,null,"Socotá",null,null,null,null,null,null,null,null,null,null,null,null,null,null,null,"Tena"]
["Región Eje Cafetero - Antioquia","Antioquia","Rionegro",null,null,null,null,null,null,null,null,null,null,null,"San Pedro",null,null,null,null,null,null,null,null,null,"Sogamoso",null,null,null,null,null,null,null,null,null,null,null,null,null,null,null,"Tenjo"]
["Región Eje Cafetero - Antioquia","Antioquia","Sabanalarga",null,null,null,null,null,null,null,null,null,null,null,"San Pedro de Uraba",null,null,null,null,null,null,null,null,null,"Somondoco",null,null,null,null,null,null,null,null,null,null,null,null,null,null,null,"Tibacuy"]
["Región Eje Cafetero - Antioquia","Antioquia","Sabaneta",null,null,null,null,null,null,null,null,null,null,null,"San Rafael",null,null,null,null,null,null,null,null,null,"Sora",null,null,null,null,null,null,null,null,null,null,null,null,null,null,null,"Tibirita"]
["Región Eje Cafetero - Antioquia","Antioquia","Salgar",null,null,null,null,null,null,null,null,null,null,null,"San Roque",null,null,null,null,null,null,null,null,null,"Soracá",null,null,null,null,null,null,null,null,null,null,null,null,null,null,null,"Tocaima"]
["Región Eje Cafetero - Antioquia","Antioquia","San Andrés de Cuerquía",null,null,null,null,null,null,null,null,null,null,null,"San Vicente",null,null,null,null,null,null,null,null,null,"Sotaquirá",null,null,null,null,null,null,null,null,null,null,null,null,null,null,null,"Tocancipá"]
["Región Eje Cafetero - Antioquia","Antioquia","San Carlos",null,null,null,null,null,null,null,null,null,null,null,"Santa Bárbara",null,null,null,null,null,null,null,null,null,"Susacón",null,null,null,null,null,null,null,null,null,null,null,null,null,null,null,"Topaipí"]
["Región Eje Cafetero - Antioquia","Antioquia","San Francisco",null,null,null,null,null,null,null,null,null,null,null,"Santa Rosa de Osos",null,null,null,null,null,null,null,null,null,"Sutamarchán",null,null,null,null,null,null,null,null,null,null,null,null,null,null,null,"Ubalá"]
["Región Eje Cafetero - Antioquia","Antioquia","San Jerónimo",null,null,null,null,null,null,null,null,null,null,null,"Santafé de Antioquia",null,null,null,null,null,null,null,null,null,"Sutatenza",null,null,null,null,null,null,null,null,null,null,null,null,null,null,null,"Ubaque"]
["Región Eje Cafetero - Antioquia","Antioquia","San José de La Montaña",null,null,null,null,null,null,null,null,null,null,null,"Santo Domingo",null,null,null,null,null,null,null,null,null,"Tasco",null,null,null,null,null,null,null,null,null,null,null,null,null,null,null,"Une"]
["Región Eje Cafetero - Antioquia","Antioquia","San Juan de Urabá",null,null,null,null,null,null,null,null,null,null,null,"Segovia",null,null,null,null,null,null,null,null,null,"Tenza",null,null,null,null,null,null,null,null,null,null,null,null,null,null,null,"Útica"]
["Región Eje Cafetero - Antioquia","Antioquia","San Luis",null,null,null,null,null,null,null,null,null,null,null,"Sonsón",null,null,null,null,null,null,null,null,null,"Tibaná",null,null,null,null,null,null,null,null,null,null,null,null,null,null,null,"Venecia"]
["Región Eje Cafetero - Antioquia","Antioquia","San Pedro",null,null,null,null,null,null,null,null,null,null,null,"Sopetrán",null,null,null,null,null,null,null,null,null,"Tibasosa",null,null,null,null,null,null,null,null,null,null,null,null,null,null,null,"Vergara"]
["Región Eje Cafetero - Antioquia","Antioquia","San Pedro de Uraba",null,null,null,null,null,null,null,null,null,null,null,"Támesis",null,null,null,null,null,null,null,null,null,"Tinjacá",null,null,null,null,null,null,null,null,null,null,null,null,null,null,null,"Vianí"]
["Región Eje Cafetero - Antioquia","Antioquia","San Rafael",null,null,null,null,null,null,null,null,null,null,null,"Tarazá",null,null,null,null,null,null,null,null,null,"Tipacoque",null,null,null,null,null,null,null,null,null,null,null,null,null,null,null,"Villa de San Diego de Ubate"]
["Región Eje Cafetero - Antioquia","Antioquia","San Roque",null,null,null,null,null,null,null,null,null,null,null,"Tarso",null,null,null,null,null,null,null,null,null,"Toca",null,null,null,null,null,null,null,null,null,null,null,null,null,null,null,"Villagómez"]
["Región Eje Cafetero - Antioquia","Antioquia","San Vicente",null,null,null,null,null,null,null,null,null,null,null,"Titiribí",null,null,null,null,null,null,null,null,null,"Togüí",null,null,null,null,null,null,null,null,null,null,null,null,null,null,null,"Villapinzón"]
["Región Eje Cafetero - Antioquia","Antioquia","Santa Bárbara",null,null,null,null,null,null,null,null,null,null,null,"Toledo",null,null,null,null,null,null,null,null,null,"Tópaga",null,null,null,null,null,null,null,null,null,null,null,null,null,null,null,"Villeta"]
["Región Eje Cafetero - Antioquia","Antioquia","Santa Rosa de Osos",null,null,null,null,null,null,null,null,null,null,null,"Turbo",null,null,null,null,null,null,null,null,null,"Tota",null,null,null,null,null,null,null,null,null,null,null,null,null,null,null,"Viotá"]
["Región Eje Cafetero - Antioquia","Antioquia","Santafé de Antioquia",null,null,null,null,null,null,null,null,null,null,null,"Uramita",null,null,null,null,null,null,null,null,null,"Tunja",null,null,null,null,null,null,null,null,null,null,null,null,null,null,null,"Yacopí"]
["Región Eje Cafetero - Antioquia","Antioquia","Santo Domingo",null,null,null,null,null,null,null,null,null,null,null,"Urrao",null,null,null,null,null,null,null,null,null,"Tununguá",null,null,null,null,null,null,null,null,null,null,null,null,null,null,null,"Zipacón"]
["Región Eje Cafetero - Antioquia","Antioquia","Segovia",null,null,null,null,null,null,null,null,null,null,null,"Valdivia",null,null,null,null,null,null,null,null,null,"Turmequé",null,null,null,null,null,null,null,null,null,null,null,null,null,null,null,"Zipaquirá"]
["Región Eje Cafetero - Antioquia","Antioquia","Sonsón",null,null,null,null,null,null,null,null,null,null,null,"Valparaíso",null,null,null,null,null,null,null,null,null,"Tuta"]
["Región Eje Cafetero - Antioquia","Antioquia","Sopetrán",null,null,null,null,null,null,null,null,null,null,null,"Vegachí",null,null,null,null,null,null,null,null,null,"Tutazá"]
["Región Eje Cafetero - Antioquia","Antioquia","Támesis",null,null,null,null,null,null,null,null,null,null,null,"Venecia",null,null,null,null,null,null,null,null,null,"Umbita"]
["Región Eje Cafetero - Antioquia","Antioquia","Tarazá",null,null,null,null,null,null,null,null,null,null,null,"Vigía del Fuerte",null,null,null,null,null,null,null,null,null,"Ventaquemada"]
["Región Eje Cafetero - Antioquia","Antioquia","Tarso",null,null,null,null,null,null,null,null,null,null,null,"Yalí",null,null,null,null,null,null,null,null,null,"Villa de Leyva"]
["Región Eje Cafetero - Antioquia","Antioquia","Titiribí",null,null,null,null,null,null,null,null,null,null,null,"Yarumal",null,null,null,null,null,null,null,null,null,"Viracachá"]
["Región Eje Cafetero - Antioquia","Antioquia","Toledo",null,null,null,null,null,null,null,null,null,null,null,"Yolombó",null,null,null,null,null,null,null,null,null,"Zetaquira"]
["Región Eje Cafetero - Antioquia","Antioquia","Turbo",null,null,null,null,null,null,null,null,null,null,null,"Yondó"]
["Región Eje Cafetero - Antioquia","Antioquia","Uramita",null,null,null,null,null,null,null,null,null,null,null,"Zaragoza"]
["Región Eje Cafetero - Antioquia","Antioquia","Urrao"]
["Región Eje Cafetero - Antioquia","Antioquia","Valdivia"]
["Región Eje Cafetero - Antioquia","Antioquia","Valparaíso"]
["Región Eje Cafetero - Antioquia","Antioquia","Vegachí"]
["Región Eje Cafetero - Antioquia","Antioquia","Venecia"]
["Región Eje Cafetero - Antioquia","Antioquia","Vigía del Fuerte"]
["Región Eje Cafetero - Antioquia","Antioquia","Yalí"]
["Región Eje Cafetero - Antioquia","Antioquia","Yarumal"]
["Región Eje Cafetero - Antioquia","Antioquia","Yolombó"]
["Región Eje Cafetero - Antioquia","Antioquia","Yondó"]
["Región Eje Cafetero - Antioquia","Antioquia","Zaragoza"]
["Región Llano","Arauca","Arauquita"]
["Región Llano","Arauca","Cravo Norte"]
["Región Llano","Arauca","Fortul"]
["Región Llano","Arauca","Puerto Rondón"]
["Región Llano","Arauca","Saravena"]
["Región Llano","Arauca","Tame"]
["Región Llano","Arauca","Arauca"]
["Región Caribe","Archipiélago de San Andrés, Providencia y Santa Catalina","Providencia"]
["Región Caribe","Archipiélago de San Andrés, Providencia y Santa Catalina","San Andrés"]
["Región Caribe","Atlántico","Barranquilla"]
["Región Caribe","Atlántico","Baranoa"]
["Región Caribe","Atlántico","Candelaria"]
["Región Caribe","Atlántico","Galapa"]
["Región Caribe","Atlántico","Luruaco"]
["Región Caribe","Atlántico","Malambo"]
["Región Caribe","Atlántico","Manatí"]
["Región Caribe","Atlántico","Piojó"]
["Región Caribe","Atlántico","Polonuevo"]
["Región Caribe","Atlántico","Sabanagrande"]
["Región Caribe","Atlántico","Sabanalarga"]
["Región Caribe","Atlántico","Santa Lucía"]
["Región Caribe","Atlántico","Santo Tomás"]
["Región Caribe","Atlántico","Soledad"]
["Región Caribe","Atlántico","Suan"]
["Región Caribe","Atlántico","Tubará"]
["Región Caribe","Atlántico","Usiacurí"]
["Región Caribe","Atlántico","Juan de Acosta"]
["Región Caribe","Atlántico","Palmar de Varela"]
["Región Caribe","Atlántico","Campo de La Cruz"]
["Región Caribe","Atlántico","Repelón"]
["Región Caribe","Atlántico","Puerto Colombia"]
["Región Caribe","Atlántico","Ponedera"]
["Región Centro Oriente","Bogotá D.C.","Bogotá D.C.",null,null,null,null,null,null,null,"Bogotá D.C."]
["Región Caribe","Bolívar","Achí"]
["Región Caribe","Bolívar","Arenal"]
["Región Caribe","Bolívar","Arjona"]
["Región Caribe","Bolívar","Arroyohondo"]
["Región Caribe","Bolívar","Calamar"]
["Región Caribe","Bolívar","Cantagallo"]
["Región Caribe","Bolívar","Cicuco"]
["Región Caribe","Bolívar","Córdoba"]
["Región Caribe","Bolívar","Clemencia"]
["Región Caribe","Bolívar","El Guamo"]
["Región Caribe","Bolívar","Magangué"]
["Región Caribe","Bolívar","Mahates"]
["Región Caribe","Bolívar","Margarita"]
["Región Caribe","Bolívar","Montecristo"]
["Región Caribe","Bolívar","Mompós"]
["Región Caribe","Bolívar","Morales"]
["Región Caribe","Bolívar","Norosí"]
["Región Caribe","Bolívar","Pinillos"]
["Región Caribe","Bolívar","Regidor"]
["Región Caribe","Bolívar","Río Viejo"]
["Región Caribe","Bolívar","San Estanislao"]
["Región Caribe","Bolívar","San Fernando"]
["Región Caribe","Bolívar","San Juan Nepomuceno"]
["Región Caribe","Bolívar","Santa Catalina"]
["Región Caribe","Bolívar","Santa Rosa"]
["Región Caribe","Bolívar","Simití"]
["Región Caribe","Bolívar","Soplaviento"]
["Región Caribe","Bolívar","Talaigua Nuevo"]
["Región Caribe","Bolívar","Tiquisio"]
["Región Caribe","Bolívar","Turbaco"]
["Región Caribe","Bolívar","Turbaná"]
["Región Caribe","Bolívar","Villanueva"]
["Región Caribe","Bolívar","Barranco de Loba"]
["Región Caribe","Bolívar","Santa Rosa del Sur"]
["Región Caribe","Bolívar","Hatillo de Loba"]
["Región Caribe","Bolívar","El Carmen de Bolívar"]
["Región Caribe","Bolívar","San Martín de Loba"]
["Región Caribe","Bolívar","Altos del Rosario"]
["Región Caribe","Bolívar","San Jacinto del Cauca"]
["Región Caribe","Bolívar","San Pablo de Borbur"]
["Región Caribe","Bolívar","San Jacinto"]
["Región Caribe","Bolívar","El Peñón"]
["Región Caribe","Bolívar","Cartagena"]
["Región Caribe","Bolívar","María la Baja"]
["Región Caribe","Bolívar","San Cristóbal"]
["Región Caribe","Bolívar","Zambrano"]
["Región Centro Oriente","Boyacá","Tununguá"]
["Región Centro Oriente","Boyacá","Motavita"]
["Región Centro Oriente","Boyacá","Ciénega"]
["Región Centro Oriente","Boyacá","Tunja"]
["Región Centro Oriente","Boyacá","Almeida"]
["Región Centro Oriente","Boyacá","Aquitania"]
["Región Centro Oriente","Boyacá","Arcabuco"]
["Región Centro Oriente","Boyacá","Berbeo"]
["Región Centro Oriente","Boyacá","Betéitiva"]
["Región Centro Oriente","Boyacá","Boavita"]
["Región Centro Oriente","Boyacá","Boyacá"]
["Región Centro Oriente","Boyacá","Briceño"]
["Región Centro Oriente","Boyacá","Buena Vista"]
["Región Centro Oriente","Boyacá","Busbanzá"]
["Región Centro Oriente","Boyacá","Caldas"]
["Región Centro Oriente","Boyacá","Campohermoso"]
["Región Centro Oriente","Boyacá","Cerinza"]
["Región Centro Oriente","Boyacá","Chinavita"]
["Región Centro Oriente","Boyacá","Chiquinquirá"]
["Región Centro Oriente","Boyacá","Chiscas"]
["Región Centro Oriente","Boyacá","Chita"]
["Región Centro Oriente","Boyacá","Chitaraque"]
["Región Centro Oriente","Boyacá","Chivatá"]
["Región Centro Oriente","Boyacá","Cómbita"]
["Región Centro Oriente","Boyacá","Coper"]
["Región Centro Oriente","Boyacá","Corrales"]
["Región Centro Oriente","Boyacá","Covarachía"]
["Región Centro Oriente","Boyacá","Cubará"]
["Región Centro Oriente","Boyacá","Cucaita"]
["Región Centro Oriente","Boyacá","Cuítiva"]
["Región Centro Oriente","Boyacá","Chíquiza"]
["Región Centro Oriente","Boyacá","Chivor"]
["Región Centro Oriente","Boyacá","Duitama"]
["Región Centro Oriente","Boyacá","El Cocuy"]
["Región Centro Oriente","Boyacá","El Espino"]
["Región Centro Oriente","Boyacá","Firavitoba"]
["Región Centro Oriente","Boyacá","Floresta"]
["Región Centro Oriente","Boyacá","Gachantivá"]
["Región Centro Oriente","Boyacá","Gameza"]
["Región Centro Oriente","Boyacá","Garagoa"]
["Región Centro Oriente","Boyacá","Guacamayas"]
["Región Centro Oriente","Boyacá","Guateque"]
["Región Centro Oriente","Boyacá","Guayatá"]
["Región Centro Oriente","Boyacá","Güicán"]
["Región Centro Oriente","Boyacá","Iza"]
["Región Centro Oriente","Boyacá","Jenesano"]
["Región Centro Oriente","Boyacá","Jericó"]
["Región Centro Oriente","Boyacá","Labranzagrande"]
["Región Centro Oriente","Boyacá","La Capilla"]
["Región Centro Oriente","Boyacá","La Victoria"]
["Región Centro Oriente","Boyacá","Macanal"]
["Región Centro Oriente","Boyacá","Maripí"]
["Región Centro Oriente","Boyacá","Miraflores"]
["Región Centro Oriente","Boyacá","Mongua"]
["Región Centro Oriente","Boyacá","Monguí"]
["Región Centro Oriente","Boyacá","Moniquirá"]
["Región Centro Oriente","Boyacá","Muzo"]
["Región Centro Oriente","Boyacá","Nobsa"]
["Región Centro Oriente","Boyacá","Nuevo Colón"]
["Región Centro Oriente","Boyacá","Oicatá"]
["Región Centro Oriente","Boyacá","Otanche"]
["Región Centro Oriente","Boyacá","Pachavita"]
["Región Centro Oriente","Boyacá","Páez"]
["Región Centro Oriente","Boyacá","Paipa"]
["Región Centro Oriente","Boyacá","Pajarito"]
["Región Centro Oriente","Boyacá","Panqueba"]
["Región Centro Oriente","Boyacá","Pauna"]
["Región Centro Oriente","Boyacá","Paya"]
["Región Centro Oriente","Boyacá","Pesca"]
["Región Centro Oriente","Boyacá","Pisba"]
["Región Centro Oriente","Boyacá","Puerto Boyacá"]
["Región Centro Oriente","Boyacá","Quípama"]
["Región Centro Oriente","Boyacá","Ramiriquí"]
["Región Centro Oriente","Boyacá","Ráquira"]
["Región Centro Oriente","Boyacá","Rondón"]
["Región Centro Oriente","Boyacá","Saboyá"]
["Región Centro Oriente","Boyacá","Sáchica"]
["Región Centro Oriente","Boyacá","Samacá"]
["Región Centro Oriente","Boyacá","San Eduardo"]
["Región Centro Oriente","Boyacá","San Mateo"]
["Región Centro Oriente","Boyacá","Santana"]
["Región Centro Oriente","Boyacá","Santa María"]
["Región Centro Oriente","Boyacá","Santa Sofía"]
["Región Centro Oriente","Boyacá","Sativanorte"]
["Región Centro Oriente","Boyacá","Sativasur"]
["Región Centro Oriente","Boyacá","Siachoque"]
["Región Centro Oriente","Boyacá","Soatá"]
["Región Centro Oriente","Boyacá","Socotá"]
["Región Centro Oriente","Boyacá","Socha"]
["Región Centro Oriente","Boyacá","Sogamoso"]
["Región Centro Oriente","Boyacá","Somondoco"]
["Región Centro Oriente","Boyacá","Sora"]
["Región Centro Oriente","Boyacá","Sotaquirá"]
["Región Centro Oriente","Boyacá","Soracá"]
["Región Centro Oriente","Boyacá","Susacón"]
["Región Centro Oriente","Boyacá","Sutamarchán"]
["Región Centro Oriente","Boyacá","Sutatenza"]
["Región Centro Oriente","Boyacá","Tasco"]
["Región Centro Oriente","Boyacá","Tenza"]
["Región Centro Oriente","Boyacá","Tibaná"]
["Región Centro Oriente","Boyacá","Tinjacá"]
["Región Centro Oriente","Boyacá","Tipacoque"]
["Región Centro Oriente","Boyacá","Toca"]
["Región Centro Oriente","Boyacá","Tópaga"]
["Región Centro Oriente","Boyacá","Tota"]
["Región Centro Oriente","Boyacá","Turmequé"]
["Región Centro Oriente","Boyacá","Tutazá"]
["Región Centro Oriente","Boyacá","Umbita"]
["Región Centro Oriente","Boyacá","Ventaquemada"]
["Región Centro Oriente","Boyacá","Viracachá"]
["Región Centro Oriente","Boyacá","Zetaquira"]
["Región Centro Oriente","Boyacá","Togüí"]
["Región Centro Oriente","Boyacá","Villa de Leyva"]
["Región Centro Oriente","Boyacá","Paz de Río"]
["Región Centro Oriente","Boyacá","Santa Rosa de Viterbo"]
["Región Centro Oriente","Boyacá","San Pablo de Borbur"]
["Región Centro Oriente","Boyacá","San Luis de Gaceno"]
["Región Centro Oriente","Boyacá","San José de Pare"]
["Región Centro Oriente","Boyacá","San Miguel de Sema"]
["Región Centro Oriente","Boyacá","Tuta"]
["Región Centro Oriente","Boyacá","Tibasosa"]
["Región Centro Oriente","Boyacá","La Uvita"]
["Región Centro Oriente","Boyacá","Belén"]
["Región Eje Cafetero - Antioquia","Caldas","Manizales"]
["Región Eje Cafetero - Antioquia","Caldas","Aguadas"]
["Región Eje Cafetero - Antioquia","Caldas","Anserma"]
["Región Eje Cafetero - Antioquia","Caldas","Aranzazu"]
["Región Eje Cafetero - Antioquia","Caldas","Belalcázar"]
["Región Eje Cafetero - Antioquia","Caldas","Chinchiná"]
["Región Eje Cafetero - Antioquia","Caldas","Filadelfia"]
["Región Eje Cafetero - Antioquia","Caldas","La Dorada"]
["Región Eje Cafetero - Antioquia","Caldas","La Merced"]
["Región Eje Cafetero - Antioquia","Caldas","Manzanares"]
["Región Eje Cafetero - Antioquia","Caldas","Marmato"]
["Región Eje Cafetero - Antioquia","Caldas","Marulanda"]
["Región Eje Cafetero - Antioquia","Caldas","Neira"]
["Región Eje Cafetero - Antioquia","Caldas","Norcasia"]
["Región Eje Cafetero - Antioquia","Caldas","Pácora"]
["Región Eje Cafetero - Antioquia","Caldas","Palestina"]
["Región Eje Cafetero - Antioquia","Caldas","Pensilvania"]
["Región Eje Cafetero - Antioquia","Caldas","Riosucio"]
["Región Eje Cafetero - Antioquia","Caldas","Risaralda"]
["Región Eje Cafetero - Antioquia","Caldas","Salamina"]
["Región Eje Cafetero - Antioquia","Caldas","Samaná"]
["Región Eje Cafetero - Antioquia","Caldas","San José"]
["Región Eje Cafetero - Antioquia","Caldas","Supía"]
["Región Eje Cafetero - Antioquia","Caldas","Victoria"]
["Región Eje Cafetero - Antioquia","Caldas","Villamaría"]
["Región Eje Cafetero - Antioquia","Caldas","Viterbo"]
["Región Eje Cafetero - Antioquia","Caldas","Marquetalia"]
["Región Centro Sur","Caquetá","Florencia"]
["Región Centro Sur","Caquetá","Albania"]
["Región Centro Sur","Caquetá","Curillo"]
["Región Centro Sur","Caquetá","El Doncello"]
["Región Centro Sur","Caquetá","El Paujil"]
["Región Centro Sur","Caquetá","Morelia"]
["Región Centro Sur","Caquetá","Puerto Rico"]
["Región Centro Sur","Caquetá","Solano"]
["Región Centro Sur","Caquetá","Solita"]
["Región Centro Sur","Caquetá","Valparaíso"]
["Región Centro Sur","Caquetá","San José del Fragua"]
["Región Centro Sur","Caquetá","Belén de Los Andaquies"]
["Región Centro Sur","Caquetá","Cartagena del Chairá"]
["Región Centro Sur","Caquetá","Milán"]
["Región Centro Sur","Caquetá","La Montañita"]
["Región Centro Sur","Caquetá","San Vicente del Caguán"]
["Región Llano","Casanare","Yopal"]
["Región Llano","Casanare","Aguazul"]
["Región Llano","Casanare","Chámeza"]
["Región Llano","Casanare","Hato Corozal"]
["Región Llano","Casanare","La Salina"]
["Región Llano","Casanare","Monterrey"]
["Región Llano","Casanare","Pore"]
["Región Llano","Casanare","Recetor"]
["Región Llano","Casanare","Sabanalarga"]
["Región Llano","Casanare","Sácama"]
["Región Llano","Casanare","Tauramena"]
["Región Llano","Casanare","Trinidad"]
["Región Llano","Casanare","Villanueva"]
["Región Llano","Casanare","San Luis de Gaceno"]
["Región Llano","Casanare","Paz de Ariporo"]
["Región Llano","Casanare","Nunchía"]
["Región Llano","Casanare","Maní"]
["Región Llano","Casanare","Támara"]
["Región Llano","Casanare","Orocué"]
["Región Pacífico","Cauca","Almaguer"]
["Región Pacífico","Cauca","Argelia"]
["Región Pacífico","Cauca","Balboa"]
["Región Pacífico","Cauca","Bolívar"]
["Región Pacífico","Cauca","Buenos Aires"]
["Región Pacífico","Cauca","Cajibío"]
["Región Pacífico","Cauca","Caldono"]
["Región Pacífico","Cauca","Caloto"]
["Región Pacífico","Cauca","Corinto"]
["Región Pacífico","Cauca","El Tambo"]
["Región Pacífico","Cauca","Florencia"]
["Región Pacífico","Cauca","Guachené"]
["Región Pacífico","Cauca","Guapi"]
["Región Pacífico","Cauca","Inzá"]
["Región Pacífico","Cauca","Jambaló"]
["Región Pacífico","Cauca","La Sierra"]
["Región Pacífico","Cauca","La Vega"]
["Región Pacífico","Cauca","López"]
["Región Pacífico","Cauca","Mercaderes"]
["Región Pacífico","Cauca","Miranda"]
["Región Pacífico","Cauca","Morales"]
["Región Pacífico","Cauca","Padilla"]
["Región Pacífico","Cauca","Páez"]
["Región Pacífico","Cauca","Patía"]
["Región Pacífico","Cauca","Piamonte"]
["Región Pacífico","Cauca","Piendamó"]
["Región Pacífico","Cauca","Popayán"]
["Región Pacífico","Cauca","Puerto Tejada"]
["Región Pacífico","Cauca","Puracé"]
["Región Pacífico","Cauca","Rosas"]
["Región Pacífico","Cauca","San Sebastián"]
["Región Pacífico","Cauca","Santa Rosa"]
["Región Pacífico","Cauca","Santander de Quilichao"]
["Región Pacífico","Cauca","Silvia"]
["Región Pacífico","Cauca","Sotara"]
["Región Pacífico","Cauca","Suárez"]
["Región Pacífico","Cauca","Sucre"]
["Región Pacífico","Cauca","Timbío"]
["Región Pacífico","Cauca","Timbiquí"]
["Región Pacífico","Cauca","Toribio"]
["Región Pacífico","Cauca","Totoró"]
["Región Pacífico","Cauca","Villa Rica"]
["Región Caribe","Cesar","Valledupar"]
["Región Caribe","Cesar","Aguachica"]
["Región Caribe","Cesar","Agustín Codazzi"]
["Región Caribe","Cesar","Astrea"]
["Región Caribe","Cesar","Becerril"]
["Región Caribe","Cesar","Bosconia"]
["Región Caribe","Cesar","Chimichagua"]
["Región Caribe","Cesar","Chiriguaná"]
["Región Caribe","Cesar","Curumaní"]
["Región Caribe","Cesar","El Copey"]
["Región Caribe","Cesar","El Paso"]
["Región Caribe","Cesar","Gamarra"]
["Región Caribe","Cesar","González"]
["Región Caribe","Cesar","La Gloria"]
["Región Caribe","Cesar","Manaure"]
["Región Caribe","Cesar","Pailitas"]
["Región Caribe","Cesar","Pelaya"]
["Región Caribe","Cesar","Pueblo Bello"]
["Región Caribe","Cesar","La Paz"]
["Región Caribe","Cesar","San Alberto"]
["Región Caribe","Cesar","San Diego"]
["Región Caribe","Cesar","San Martín"]
["Región Caribe","Cesar","Tamalameque"]
["Región Caribe","Cesar","Río de Oro"]
["Región Caribe","Cesar","La Jagua de Ibirico"]
["Región Pacífico","Chocó","Istmina"]
["Región Pacífico","Chocó","Quibdó"]
["Región Pacífico","Chocó","Acandí"]
["Región Pacífico","Chocó","Alto Baudo"]
["Región Pacífico","Chocó","Atrato"]
["Región Pacífico","Chocó","Bagadó"]
["Región Pacífico","Chocó","Bahía Solano"]
["Región Pacífico","Chocó","Bajo Baudó"]
["Región Pacífico","Chocó","Bojaya"]
["Región Pacífico","Chocó","Cértegui"]
["Región Pacífico","Chocó","Condoto"]
["Región Pacífico","Chocó","Juradó"]
["Región Pacífico","Chocó","Lloró"]
["Región Pacífico","Chocó","Medio Atrato"]
["Región Pacífico","Chocó","Medio Baudó"]
["Región Pacífico","Chocó","Medio San Juan"]
["Región Pacífico","Chocó","Nóvita"]
["Región Pacífico","Chocó","Nuquí"]
["Región Pacífico","Chocó","Río Iro"]
["Región Pacífico","Chocó","Río Quito"]
["Región Pacífico","Chocó","Riosucio"]
["Región Pacífico","Chocó","Sipí"]
["Región Pacífico","Chocó","Unguía"]
["Región Pacífico","Chocó","El Litoral del San Juan"]
["Región Pacífico","Chocó","El Cantón del San Pablo"]
["Región Pacífico","Chocó","El Carmen de Atrato"]
["Región Pacífico","Chocó","San José del Palmar"]
["Región Pacífico","Chocó","Belén de Bajira"]
["Región Pacífico","Chocó","Carmen del Darien"]
["Región Pacífico","Chocó","Tadó"]
["Región Pacífico","Chocó","Unión Panamericana"]
["Región Caribe","Córdoba","San Bernardo del Viento"]
["Región Caribe","Córdoba","Montería"]
["Región Caribe","Córdoba","Ayapel"]
["Región Caribe","Córdoba","Buenavista"]
["Región Caribe","Córdoba","Canalete"]
["Región Caribe","Córdoba","Cereté"]
["Región Caribe","Córdoba","Chimá"]
["Región Caribe","Córdoba","Chinú"]
["Región Caribe","Córdoba","Cotorra"]
["Región Caribe","Córdoba","Lorica"]
["Región Caribe","Córdoba","Los Córdobas"]
["Región Caribe","Córdoba","Momil"]
["Región Caribe","Córdoba","Moñitos"]
["Región Caribe","Córdoba","Planeta Rica"]
["Región Caribe","Córdoba","Pueblo Nuevo"]
["Región Caribe","Córdoba","Puerto Escondido"]
["Región Caribe","Córdoba","Purísima"]
["Región Caribe","Córdoba","Sahagún"]
["Región Caribe","Córdoba","San Andrés Sotavento"]
["Región Caribe","Córdoba","San Antero"]
["Región Caribe","Córdoba","San Pelayo"]
["Región Caribe","Córdoba","Tierralta"]
["Región Caribe","Córdoba","Tuchín"]
["Región Caribe","Córdoba","Valencia"]
["Región Caribe","Córdoba","San José de Uré"]
["Región Caribe","Córdoba","Ciénaga de Oro"]
["Región Caribe","Córdoba","San Carlos"]
["Región Caribe","Córdoba","Montelíbano"]
["Región Caribe","Córdoba","La Apartada"]
["Región Caribe","Córdoba","Puerto Libertador"]
["Región Centro Oriente","Cundinamarca","Anapoima"]
["Región Centro Oriente","Cundinamarca","Arbeláez"]
["Región Centro Oriente","Cundinamarca","Beltrán"]
["Región Centro Oriente","Cundinamarca","Bituima"]
["Región Centro Oriente","Cundinamarca","Bojacá"]
["Región Centro Oriente","Cundinamarca","Cabrera"]
["Región Centro Oriente","Cundinamarca","Cachipay"]
["Región Centro Oriente","Cundinamarca","Cajicá"]
["Región Centro Oriente","Cundinamarca","Caparrapí"]
["Región Centro Oriente","Cundinamarca","Caqueza"]
["Región Centro Oriente","Cundinamarca","Chaguaní"]
["Región Centro Oriente","Cundinamarca","Chipaque"]
["Región Centro Oriente","Cundinamarca","Choachí"]
["Región Centro Oriente","Cundinamarca","Chocontá"]
["Región Centro Oriente","Cundinamarca","Cogua"]
["Región Centro Oriente","Cundinamarca","Cota"]
["Región Centro Oriente","Cundinamarca","Cucunubá"]
["Región Centro Oriente","Cundinamarca","El Colegio"]
["Región Centro Oriente","Cundinamarca","El Rosal"]
["Región Centro Oriente","Cundinamarca","Fomeque"]
["Región Centro Oriente","Cundinamarca","Fosca"]
["Región Centro Oriente","Cundinamarca","Funza"]
["Región Centro Oriente","Cundinamarca","Fúquene"]
["Región Centro Oriente","Cundinamarca","Gachala"]
["Región Centro Oriente","Cundinamarca","Gachancipá"]
["Región Centro Oriente","Cundinamarca","Gachetá"]
["Región Centro Oriente","Cundinamarca","Girardot"]
["Región Centro Oriente","Cundinamarca","Granada"]
["Región Centro Oriente","Cundinamarca","Guachetá"]
["Región Centro Oriente","Cundinamarca","Guaduas"]
["Región Centro Oriente","Cundinamarca","Guasca"]
["Región Centro Oriente","Cundinamarca","Guataquí"]
["Región Centro Oriente","Cundinamarca","Guatavita"]
["Región Centro Oriente","Cundinamarca","Guayabetal"]
["Región Centro Oriente","Cundinamarca","Gutiérrez"]
["Región Centro Oriente","Cundinamarca","Jerusalén"]
["Región Centro Oriente","Cundinamarca","Junín"]
["Región Centro Oriente","Cundinamarca","La Calera"]
["Región Centro Oriente","Cundinamarca","La Mesa"]
["Región Centro Oriente","Cundinamarca","La Palma"]
["Región Centro Oriente","Cundinamarca","La Peña"]
["Región Centro Oriente","Cundinamarca","La Vega"]
["Región Centro Oriente","Cundinamarca","Lenguazaque"]
["Región Centro Oriente","Cundinamarca","Macheta"]
["Región Centro Oriente","Cundinamarca","Madrid"]
["Región Centro Oriente","Cundinamarca","Manta"]
["Región Centro Oriente","Cundinamarca","Medina"]
["Región Centro Oriente","Cundinamarca","Mosquera"]
["Región Centro Oriente","Cundinamarca","Nariño"]
["Región Centro Oriente","Cundinamarca","Nemocón"]
["Región Centro Oriente","Cundinamarca","Nilo"]
["Región Centro Oriente","Cundinamarca","Nimaima"]
["Región Centro Oriente","Cundinamarca","Nocaima"]
["Región Centro Oriente","Cundinamarca","Venecia"]
["Región Centro Oriente","Cundinamarca","Pacho"]
["Región Centro Oriente","Cundinamarca","Paime"]
["Región Centro Oriente","Cundinamarca","Pandi"]
["Región Centro Oriente","Cundinamarca","Paratebueno"]
["Región Centro Oriente","Cundinamarca","Pasca"]
["Región Centro Oriente","Cundinamarca","Puerto Salgar"]
["Región Centro Oriente","Cundinamarca","Pulí"]
["Región Centro Oriente","Cundinamarca","Quebradanegra"]
["Región Centro Oriente","Cundinamarca","Quetame"]
["Región Centro Oriente","Cundinamarca","Quipile"]
["Región Centro Oriente","Cundinamarca","Apulo"]
["Región Centro Oriente","Cundinamarca","Ricaurte"]
["Región Centro Oriente","Cundinamarca","San Bernardo"]
["Región Centro Oriente","Cundinamarca","San Cayetano"]
["Región Centro Oriente","Cundinamarca","San Francisco"]
["Región Centro Oriente","Cundinamarca","Sesquilé"]
["Región Centro Oriente","Cundinamarca","Sibaté"]
["Región Centro Oriente","Cundinamarca","Silvania"]
["Región Centro Oriente","Cundinamarca","Simijaca"]
["Región Centro Oriente","Cundinamarca","Soacha"]
["Región Centro Oriente","Cundinamarca","Subachoque"]
["Región Centro Oriente","Cundinamarca","Suesca"]
["Región Centro Oriente","Cundinamarca","Supatá"]
["Región Centro Oriente","Cundinamarca","Susa"]
["Región Centro Oriente","Cundinamarca","Sutatausa"]
["Región Centro Oriente","Cundinamarca","Tabio"]
["Región Centro Oriente","Cundinamarca","Tausa"]
["Región Centro Oriente","Cundinamarca","Tena"]
["Región Centro Oriente","Cundinamarca","Tenjo"]
["Región Centro Oriente","Cundinamarca","Tibacuy"]
["Región Centro Oriente","Cundinamarca","Tibirita"]
["Región Centro Oriente","Cundinamarca","Tocaima"]
["Región Centro Oriente","Cundinamarca","Tocancipá"]
["Región Centro Oriente","Cundinamarca","Topaipí"]
["Región Centro Oriente","Cundinamarca","Ubalá"]
["Región Centro Oriente","Cundinamarca","Ubaque"]
["Región Centro Oriente","Cundinamarca","Une"]
["Región Centro Oriente","Cundinamarca","Útica"]
["Región Centro Oriente","Cundinamarca","Vianí"]
["Región Centro Oriente","Cundinamarca","Villagómez"]
["Región Centro Oriente","Cundinamarca","Villapinzón"]
["Región Centro Oriente","Cundinamarca","Villeta"]
["Región Centro Oriente","Cundinamarca","Viotá"]
["Región Centro Oriente","Cundinamarca","Zipacón"]
["Región Centro Oriente","Cundinamarca","San Juan de Río Seco"]
["Región Centro Oriente","Cundinamarca","Villa de San Diego de Ubate"]
["Región Centro Oriente","Cundinamarca","Guayabal de Siquima"]
["Región Centro Oriente","Cundinamarca","San Antonio del Tequendama"]
["Región Centro Oriente","Cundinamarca","Agua de Dios"]
["Región Centro Oriente","Cundinamarca","Carmen de Carupa"]
["Región Centro Oriente","Cundinamarca","Vergara"]
["Región Centro Oriente","Cundinamarca","Albán"]
["Región Centro Oriente","Cundinamarca","Anolaima"]
["Región Centro Oriente","Cundinamarca","Chía"]
["Región Centro Oriente","Cundinamarca","El Peñón"]
["Región Centro Oriente","Cundinamarca","Sopó"]
["Región Centro Oriente","Cundinamarca","Gama"]
["Región Centro Oriente","Cundinamarca","Sasaima"]
["Región Centro Oriente","Cundinamarca","Yacopí"]
["Región Centro Oriente","Cundinamarca","Fusagasugá"]
["Región Centro Oriente","Cundinamarca","Zipaquirá"]
["Región Centro Oriente","Cundinamarca","Facatativá"]
["Región Llano","Guainía","Inírida"]
["Región Llano","Guainía","Barranco Minas"]
["Región Llano","Guainía","Mapiripana"]
["Región Llano","Guainía","San Felipe"]
["Región Llano","Guainía","Puerto Colombia"]
["Región Llano","Guainía","La Guadalupe"]
["Región Llano","Guainía","Cacahual"]
["Región Llano","Guainía","Pana Pana"]
["Región Llano","Guainía","Morichal"]
["Región Llano","Guaviare","Calamar"]
["Región Llano","Guaviare","San José del Guaviare"]
["Región Llano","Guaviare","Miraflores"]
["Región Llano","Guaviare","El Retorno"]
["Región Centro Sur","Huila","Neiva"]
["Región Centro Sur","Huila","Acevedo"]
["Región Centro Sur","Huila","Agrado"]
["Región Centro Sur","Huila","Aipe"]
["Región Centro Sur","Huila","Algeciras"]
["Región Centro Sur","Huila","Altamira"]
["Región Centro Sur","Huila","Baraya"]
["Región Centro Sur","Huila","Campoalegre"]
["Región Centro Sur","Huila","Colombia"]
["Región Centro Sur","Huila","Elías"]
["Región Centro Sur","Huila","Garzón"]
["Región Centro Sur","Huila","Gigante"]
["Región Centro Sur","Huila","Guadalupe"]
["Región Centro Sur","Huila","Hobo"]
["Región Centro Sur","Huila","Iquira"]
["Región Centro Sur","Huila","Isnos"]
["Región Centro Sur","Huila","La Argentina"]
["Región Centro Sur","Huila","La Plata"]
["Región Centro Sur","Huila","Nátaga"]
["Región Centro Sur","Huila","Oporapa"]
["Región Centro Sur","Huila","Paicol"]
["Región Centro Sur","Huila","Palermo"]
["Región Centro Sur","Huila","Palestina"]
["Región Centro Sur","Huila","Pital"]
["Región Centro Sur","Huila","Pitalito"]
["Región Centro Sur","Huila","Rivera"]
["Región Centro Sur","Huila","Saladoblanco"]
["Región Centro Sur","Huila","Santa María"]
["Región Centro Sur","Huila","Suaza"]
["Región Centro Sur","Huila","Tarqui"]
["Región Centro Sur","Huila","Tesalia"]
["Región Centro Sur","Huila","Tello"]
["Región Centro Sur","Huila","Teruel"]
["Región Centro Sur","Huila","Timaná"]
["Región Centro Sur","Huila","Villavieja"]
["Región Centro Sur","Huila","Yaguará"]
["Región Centro Sur","Huila","San Agustín"]
["Región Caribe","La Guajira","Riohacha"]
["Región Caribe","La Guajira","Albania"]
["Región Caribe","La Guajira","Barrancas"]
["Región Caribe","La Guajira","Dibula"]
["Región Caribe","La Guajira","Distracción"]
["Región Caribe","La Guajira","El Molino"]
["Región Caribe","La Guajira","Fonseca"]
["Región Caribe","La Guajira","Hatonuevo"]
["Región Caribe","La Guajira","Maicao"]
["Región Caribe","La Guajira","Manaure"]
["Región Caribe","La Guajira","Uribia"]
["Región Caribe","La Guajira","Urumita"]
["Región Caribe","La Guajira","Villanueva"]
["Región Caribe","La Guajira","La Jagua del Pilar"]
["Región Caribe","La Guajira","San Juan del Cesar"]
["Región Caribe","Magdalena","Santa Marta"]
["Región Caribe","Magdalena","Algarrobo"]
["Región Caribe","Magdalena","Aracataca"]
["Región Caribe","Magdalena","Ariguaní"]
["Región Caribe","Magdalena","Cerro San Antonio"]
["Región Caribe","Magdalena","Chivolo"]
["Región Caribe","Magdalena","Concordia"]
["Región Caribe","Magdalena","El Banco"]
["Región Caribe","Magdalena","El Piñon"]
["Región Caribe","Magdalena","El Retén"]
["Región Caribe","Magdalena","Fundación"]
["Región Caribe","Magdalena","Guamal"]
["Región Caribe","Magdalena","Nueva Granada"]
["Región Caribe","Magdalena","Pedraza"]
["Región Caribe","Magdalena","Pivijay"]
["Región Caribe","Magdalena","Plato"]
["Región Caribe","Magdalena","Remolino"]
["Región Caribe","Magdalena","Salamina"]
["Región Caribe","Magdalena","San Zenón"]
["Región Caribe","Magdalena","Santa Ana"]
["Región Caribe","Magdalena","Sitionuevo"]
["Región Caribe","Magdalena","Tenerife"]
["Región Caribe","Magdalena","Zapayán"]
["Región Caribe","Magdalena","Zona Bananera"]
["Región Caribe","Magdalena","San Sebastián de Buenavista"]
["Región Caribe","Magdalena","Sabanas de San Angel"]
["Región Caribe","Magdalena","Pijiño del Carmen"]
["Región Caribe","Magdalena","Santa Bárbara de Pinto"]
["Región Caribe","Magdalena","Pueblo Viejo"]
["Región Caribe","Magdalena","Ciénaga"]
["Región Llano","Meta","Uribe"]
["Región Llano","Meta","Villavicencio"]
["Región Llano","Meta","Acacias"]
["Región Llano","Meta","Cabuyaro"]
["Región Llano","Meta","Cubarral"]
["Región Llano","Meta","Cumaral"]
["Región Llano","Meta","El Calvario"]
["Región Llano","Meta","El Castillo"]
["Región Llano","Meta","El Dorado"]
["Región Llano","Meta","Granada"]
["Región Llano","Meta","Guamal"]
["Región Llano","Meta","Mapiripán"]
["Región Llano","Meta","Mesetas"]
["Región Llano","Meta","La Macarena"]
["Región Llano","Meta","Lejanías"]
["Región Llano","Meta","Puerto Concordia"]
["Región Llano","Meta","Puerto Gaitán"]
["Región Llano","Meta","Puerto López"]
["Región Llano","Meta","Puerto Lleras"]
["Región Llano","Meta","Puerto Rico"]
["Región Llano","Meta","Restrepo"]
["Región Llano","Meta","San Juanito"]
["Región Llano","Meta","San Martín"]
["Región Llano","Meta","Vista Hermosa"]
["Región Llano","Meta","Barranca de Upía"]
["Región Llano","Meta","Fuente de Oro"]
["Región Llano","Meta","San Carlos de Guaroa"]
["Región Llano","Meta","San Juan de Arama"]
["Región Llano","Meta","Castilla la Nueva"]
["Región Pacífico","Nariño","Albán"]
["Región Pacífico","Nariño","Aldana"]
["Región Pacífico","Nariño","Ancuyá"]
["Región Pacífico","Nariño","Arboleda"]
["Región Pacífico","Nariño","Barbacoas"]
["Región Pacífico","Nariño","Belén"]
["Región Pacífico","Nariño","Buesaco"]
["Región Pacífico","Nariño","Chachagüí"]
["Región Pacífico","Nariño","Colón"]
["Región Pacífico","Nariño","Consaca"]
["Región Pacífico","Nariño","Contadero"]
["Región Pacífico","Nariño","Córdoba"]
["Región Pacífico","Nariño","Cuaspud"]
["Región Pacífico","Nariño","Cumbal"]
["Región Pacífico","Nariño","Cumbitara"]
["Región Pacífico","Nariño","El Charco"]
["Región Pacífico","Nariño","El Peñol"]
["Región Pacífico","Nariño","El Rosario"]
["Región Pacífico","Nariño","El Tablón de Gómez"]
["Región Pacífico","Nariño","El Tambo"]
["Región Pacífico","Nariño","Francisco Pizarro"]
["Región Pacífico","Nariño","Funes"]
["Región Pacífico","Nariño","Guachucal"]
["Región Pacífico","Nariño","Guaitarilla"]
["Región Pacífico","Nariño","Gualmatán"]
["Región Pacífico","Nariño","Iles"]
["Región Pacífico","Nariño","Imués"]
["Región Pacífico","Nariño","Ipiales"]
["Región Pacífico","Nariño","La Cruz"]
["Región Pacífico","Nariño","La Florida"]
["Región Pacífico","Nariño","La Llanada"]
["Región Pacífico","Nariño","La Tola"]
["Región Pacífico","Nariño","La Unión"]
["Región Pacífico","Nariño","Leiva"]
["Región Pacífico","Nariño","Linares"]
["Región Pacífico","Nariño","Los Andes"]
["Región Pacífico","Nariño","Magüí"]
["Región Pacífico","Nariño","Mallama"]
["Región Pacífico","Nariño","Mosquera"]
["Región Pacífico","Nariño","Nariño"]
["Región Pacífico","Nariño","Olaya Herrera"]
["Región Pacífico","Nariño","Ospina"]
["Región Pacífico","Nariño","Pasto"]
["Región Pacífico","Nariño","Policarpa"]
["Región Pacífico","Nariño","Potosí"]
["Región Pacífico","Nariño","Providencia"]
["Región Pacífico","Nariño","Puerres"]
["Región Pacífico","Nariño","Pupiales"]
["Región Pacífico","Nariño","Ricaurte"]
["Región Pacífico","Nariño","Roberto Payán"]
["Región Pacífico","Nariño","Samaniego"]
["Región Pacífico","Nariño","San Andrés de Tumaco"]
["Región Pacífico","Nariño","San Bernardo"]
["Región Pacífico","Nariño","San Lorenzo"]
["Región Pacífico","Nariño","San Pablo"]
["Región Pacífico","Nariño","San Pedro de Cartago"]
["Región Pacífico","Nariño","Sandoná"]
["Región Pacífico","Nariño","Santa Bárbara"]
["Región Pacífico","Nariño","Santacruz"]
["Región Pacífico","Nariño","Sapuyes"]
["Región Pacífico","Nariño","Taminango"]
["Región Pacífico","Nariño","Tangua"]
["Región Pacífico","Nariño","Túquerres"]
["Región Pacífico","Nariño","Yacuanquer"]
["Región Centro Oriente","Norte de Santander","Silos"]
["Región Centro Oriente","Norte de Santander","Cácota"]
["Región Centro Oriente","Norte de Santander","Toledo"]
["Región Centro Oriente","Norte de Santander","Mutiscua"]
["Región Centro Oriente","Norte de Santander","El Zulia"]
["Región Centro Oriente","Norte de Santander","Salazar"]
["Región Centro Oriente","Norte de Santander","Cucutilla"]
["Región Centro Oriente","Norte de Santander","Puerto Santander"]
["Región Centro Oriente","Norte de Santander","Gramalote"]
["Región Centro Oriente","Norte de Santander","El Tarra"]
["Región Centro Oriente","Norte de Santander","Teorama"]
["Región Centro Oriente","Norte de Santander","Arboledas"]
["Región Centro Oriente","Norte de Santander","Lourdes"]
["Región Centro Oriente","Norte de Santander","Bochalema"]
["Región Centro Oriente","Norte de Santander","Convención"]
["Región Centro Oriente","Norte de Santander","Hacarí"]
["Región Centro Oriente","Norte de Santander","Herrán"]
["Región Centro Oriente","Norte de Santander","Tibú"]
["Región Centro Oriente","Norte de Santander","San Cayetano"]
["Región Centro Oriente","Norte de Santander","San Calixto"]
["Región Centro Oriente","Norte de Santander","La Playa"]
["Región Centro Oriente","Norte de Santander","Chinácota"]
["Región Centro Oriente","Norte de Santander","Ragonvalia"]
["Región Centro Oriente","Norte de Santander","La Esperanza"]
["Región Centro Oriente","Norte de Santander","Villa del Rosario"]
["Región Centro Oriente","Norte de Santander","Chitagá"]
["Región Centro Oriente","Norte de Santander","Sardinata"]
["Región Centro Oriente","Norte de Santander","Abrego"]
["Región Centro Oriente","Norte de Santander","Los Patios"]
["Región Centro Oriente","Norte de Santander","Ocaña"]
["Región Centro Oriente","Norte de Santander","Bucarasica"]
["Región Centro Oriente","Norte de Santander","Santiago"]
["Región Centro Oriente","Norte de Santander","Labateca"]
["Región Centro Oriente","Norte de Santander","Cachirá"]
["Región Centro Oriente","Norte de Santander","Villa Caro"]
["Región Centro Oriente","Norte de Santander","Durania"]
["Región Centro Oriente","Norte de Santander","Pamplona"]
["Región Centro Oriente","Norte de Santander","Pamplonita"]
["Región Centro Oriente","Norte de Santander","Cúcuta"]
["Región Centro Oriente","Norte de Santander","El Carmen"]
["Región Centro Sur","Putumayo","Mocoa"]
["Región Centro Sur","Putumayo","Colón"]
["Región Centro Sur","Putumayo","Orito"]
["Región Centro Sur","Putumayo","Puerto Caicedo"]
["Región Centro Sur","Putumayo","Puerto Guzmán"]
["Región Centro Sur","Putumayo","Leguízamo"]
["Región Centro Sur","Putumayo","Sibundoy"]
["Región Centro Sur","Putumayo","San Francisco"]
["Región Centro Sur","Putumayo","San Miguel"]
["Región Centro Sur","Putumayo","Santiago"]
["Región Centro Sur","Putumayo","Valle de Guamez"]
["Región Centro Sur","Putumayo","Puerto Asís"]
["Región Centro Sur","Putumayo","Villagarzón"]
["Región Eje Cafetero - Antioquia","Quindío","Armenia"]
["Región Eje Cafetero - Antioquia","Quindío","Buenavista"]
["Región Eje Cafetero - Antioquia","Quindío","Circasia"]
["Región Eje Cafetero - Antioquia","Quindío","Córdoba"]
["Región Eje Cafetero - Antioquia","Quindío","Filandia"]
["Región Eje Cafetero - Antioquia","Quindío","La Tebaida"]
["Región Eje Cafetero - Antioquia","Quindío","Montenegro"]
["Región Eje Cafetero - Antioquia","Quindío","Pijao"]
["Región Eje Cafetero - Antioquia","Quindío","Quimbaya"]
["Región Eje Cafetero - Antioquia","Quindío","Salento"]
["Región Eje Cafetero - Antioquia","Quindío","Calarcá"]
["Región Eje Cafetero - Antioquia","Quindío","Génova"]
["Región Eje Cafetero - Antioquia","Risaralda","Pereira"]
["Región Eje Cafetero - Antioquia","Risaralda","Apía"]
["Región Eje Cafetero - Antioquia","Risaralda","Balboa"]
["Región Eje Cafetero - Antioquia","Risaralda","Dosquebradas"]
["Región Eje Cafetero - Antioquia","Risaralda","Guática"]
["Región Eje Cafetero - Antioquia","Risaralda","La Celia"]
["Región Eje Cafetero - Antioquia","Risaralda","La Virginia"]
["Región Eje Cafetero - Antioquia","Risaralda","Marsella"]
["Región Eje Cafetero - Antioquia","Risaralda","Mistrató"]
["Región Eje Cafetero - Antioquia","Risaralda","Pueblo Rico"]
["Región Eje Cafetero - Antioquia","Risaralda","Quinchía"]
["Región Eje Cafetero - Antioquia","Risaralda","Santuario"]
["Región Eje Cafetero - Antioquia","Risaralda","Santa Rosa de Cabal"]
["Región Eje Cafetero - Antioquia","Risaralda","Belén de Umbría"]
["Región Centro Oriente","Santander","Puerto Wilches"]
["Región Centro Oriente","Santander","Puerto Parra"]
["Región Centro Oriente","Santander","Bucaramanga"]
["Región Centro Oriente","Santander","Aguada"]
["Región Centro Oriente","Santander","Albania"]
["Región Centro Oriente","Santander","Aratoca"]
["Región Centro Oriente","Santander","Barbosa"]
["Región Centro Oriente","Santander","Barichara"]
["Región Centro Oriente","Santander","Barrancabermeja"]
["Región Centro Oriente","Santander","Betulia"]
["Región Centro Oriente","Santander","Bolívar"]
["Región Centro Oriente","Santander","Cabrera"]
["Región Centro Oriente","Santander","California"]
["Región Centro Oriente","Santander","Carcasí"]
["Región Centro Oriente","Santander","Cepitá"]
["Región Centro Oriente","Santander","Cerrito"]
["Región Centro Oriente","Santander","Charalá"]
["Región Centro Oriente","Santander","Charta"]
["Región Centro Oriente","Santander","Chipatá"]
["Región Centro Oriente","Santander","Cimitarra"]
["Región Centro Oriente","Santander","Concepción"]
["Región Centro Oriente","Santander","Confines"]
["Región Centro Oriente","Santander","Contratación"]
["Región Centro Oriente","Santander","Coromoro"]
["Región Centro Oriente","Santander","Curití"]
["Región Centro Oriente","Santander","El Guacamayo"]
["Región Centro Oriente","Santander","El Playón"]
["Región Centro Oriente","Santander","Encino"]
["Región Centro Oriente","Santander","Enciso"]
["Región Centro Oriente","Santander","Florián"]
["Región Centro Oriente","Santander","Floridablanca"]
["Región Centro Oriente","Santander","Galán"]
["Región Centro Oriente","Santander","Gambita"]
["Región Centro Oriente","Santander","Girón"]
["Región Centro Oriente","Santander","Guaca"]
["Región Centro Oriente","Santander","Guadalupe"]
["Región Centro Oriente","Santander","Guapotá"]
["Región Centro Oriente","Santander","Guavatá"]
["Región Centro Oriente","Santander","Güepsa"]
["Región Centro Oriente","Santander","Jesús María"]
["Región Centro Oriente","Santander","Jordán"]
["Región Centro Oriente","Santander","La Belleza"]
["Región Centro Oriente","Santander","Landázuri"]
["Región Centro Oriente","Santander","La Paz"]
["Región Centro Oriente","Santander","Lebríja"]
["Región Centro Oriente","Santander","Los Santos"]
["Región Centro Oriente","Santander","Macaravita"]
["Región Centro Oriente","Santander","Málaga"]
["Región Centro Oriente","Santander","Matanza"]
["Región Centro Oriente","Santander","Mogotes"]
["Región Centro Oriente","Santander","Molagavita"]
["Región Centro Oriente","Santander","Ocamonte"]
["Región Centro Oriente","Santander","Oiba"]
["Región Centro Oriente","Santander","Onzaga"]
["Región Centro Oriente","Santander","Palmar"]
["Región Centro Oriente","Santander","Páramo"]
["Región Centro Oriente","Santander","Piedecuesta"]
["Región Centro Oriente","Santander","Pinchote"]
["Región Centro Oriente","Santander","Puente Nacional"]
["Región Centro Oriente","Santander","Rionegro"]
["Región Centro Oriente","Santander","San Andrés"]
["Región Centro Oriente","Santander","San Gil"]
["Región Centro Oriente","Santander","San Joaquín"]
["Región Centro Oriente","Santander","San Miguel"]
["Región Centro Oriente","Santander","Santa Bárbara"]
["Región Centro Oriente","Santander","Simacota"]
["Región Centro Oriente","Santander","Socorro"]
["Región Centro Oriente","Santander","Suaita"]
["Región Centro Oriente","Santander","Sucre"]
["Región Centro Oriente","Santander","Suratá"]
["Región Centro Oriente","Santander","Tona"]
["Región Centro Oriente","Santander","Vélez"]
["Región Centro Oriente","Santander","Vetas"]
["Región Centro Oriente","Santander","Villanueva"]
["Región Centro Oriente","Santander","Zapatoca"]
["Región Centro Oriente","Santander","Palmas del Socorro"]
["Región Centro Oriente","Santander","San Vicente de Chucurí"]
["Región Centro Oriente","Santander","San José de Miranda"]
["Región Centro Oriente","Santander","Santa Helena del Opón"]
["Región Centro Oriente","Santander","Sabana de Torres"]
["Región Centro Oriente","Santander","El Carmen de Chucurí"]
["Región Centro Oriente","Santander","Valle de San José"]
["Región Centro Oriente","Santander","San Benito"]
["Región Centro Oriente","Santander","Hato"]
["Región Centro Oriente","Santander","Chimá"]
["Región Centro Oriente","Santander","Capitanejo"]
["Región Centro Oriente","Santander","El Peñón"]
["Región Caribe","Sucre","Sincelejo"]
["Región Caribe","Sucre","Buenavista"]
["Región Caribe","Sucre","Caimito"]
["Región Caribe","Sucre","Coloso"]
["Región Caribe","Sucre","Coveñas"]
["Región Caribe","Sucre","Chalán"]
["Región Caribe","Sucre","El Roble"]
["Región Caribe","Sucre","Galeras"]
["Región Caribe","Sucre","Guaranda"]
["Región Caribe","Sucre","La Unión"]
["Región Caribe","Sucre","Los Palmitos"]
["Región Caribe","Sucre","Majagual"]
["Región Caribe","Sucre","Morroa"]
["Región Caribe","Sucre","Ovejas"]
["Región Caribe","Sucre","Palmito"]
["Región Caribe","Sucre","San Benito Abad"]
["Región Caribe","Sucre","San Marcos"]
["Región Caribe","Sucre","San Onofre"]
["Región Caribe","Sucre","San Pedro"]
["Región Caribe","Sucre","Sucre"]
["Región Caribe","Sucre","Tolú Viejo"]
["Región Caribe","Sucre","San Luis de Sincé"]
["Región Caribe","Sucre","San Juan de Betulia"]
["Región Caribe","Sucre","Santiago de Tolú"]
["Región Caribe","Sucre","Sampués"]
["Región Caribe","Sucre","Corozal"]
["Región Centro Sur","Tolima","Alpujarra"]
["Región Centro Sur","Tolima","Alvarado"]
["Región Centro Sur","Tolima","Ambalema"]
["Región Centro Sur","Tolima","Armero"]
["Región Centro Sur","Tolima","Ataco"]
["Región Centro Sur","Tolima","Cajamarca"]
["Región Centro Sur","Tolima","Chaparral"]
["Región Centro Sur","Tolima","Coello"]
["Región Centro Sur","Tolima","Coyaima"]
["Región Centro Sur","Tolima","Cunday"]
["Región Centro Sur","Tolima","Dolores"]
["Región Centro Sur","Tolima","Espinal"]
["Región Centro Sur","Tolima","Falan"]
["Región Centro Sur","Tolima","Flandes"]
["Región Centro Sur","Tolima","Fresno"]
["Región Centro Sur","Tolima","Guamo"]
["Región Centro Sur","Tolima","Herveo"]
["Región Centro Sur","Tolima","Honda"]
["Región Centro Sur","Tolima","Icononzo"]
["Región Centro Sur","Tolima","Mariquita"]
["Región Centro Sur","Tolima","Melgar"]
["Región Centro Sur","Tolima","Murillo"]
["Región Centro Sur","Tolima","Natagaima"]
["Región Centro Sur","Tolima","Ortega"]
["Región Centro Sur","Tolima","Palocabildo"]
["Región Centro Sur","Tolima","Piedras"]
["Región Centro Sur","Tolima","Planadas"]
["Región Centro Sur","Tolima","Prado"]
["Región Centro Sur","Tolima","Purificación"]
["Región Centro Sur","Tolima","Rio Blanco"]
["Región Centro Sur","Tolima","Roncesvalles"]
["Región Centro Sur","Tolima","Rovira"]
["Región Centro Sur","Tolima","Saldaña"]
["Región Centro Sur","Tolima","Santa Isabel"]
["Región Centro Sur","Tolima","Venadillo"]
["Región Centro Sur","Tolima","Villahermosa"]
["Región Centro Sur","Tolima","Villarrica"]
["Región Centro Sur","Tolima","Valle de San Juan"]
["Región Centro Sur","Tolima","Carmen de Apicala"]
["Región Centro Sur","Tolima","San Luis"]
["Región Centro Sur","Tolima","San Antonio"]
["Región Centro Sur","Tolima","Casabianca"]
["Región Centro Sur","Tolima","Anzoátegui"]
["Región Centro Sur","Tolima","Ibagué"]
["Región Centro Sur","Tolima","Líbano"]
["Región Centro Sur","Tolima","Lérida"]
["Región Centro Sur","Tolima","Suárez"]
["Región Pacífico","Valle del Cauca","Alcalá"]
["Región Pacífico","Valle del Cauca","Andalucía"]
["Región Pacífico","Valle del Cauca","Ansermanuevo"]
["Región Pacífico","Valle del Cauca","Argelia"]
["Región Pacífico","Valle del Cauca","Bolívar"]
["Región Pacífico","Valle del Cauca","Buenaventura"]
["Región Pacífico","Valle del Cauca","Bugalagrande"]
["Región Pacífico","Valle del Cauca","Caicedonia"]
["Región Pacífico","Valle del Cauca","Cali"]
["Región Pacífico","Valle del Cauca","Calima"]
["Región Pacífico","Valle del Cauca","Candelaria"]
["Región Pacífico","Valle del Cauca","Cartago"]
["Región Pacífico","Valle del Cauca","Dagua"]
["Región Pacífico","Valle del Cauca","El Águila"]
["Región Pacífico","Valle del Cauca","El Cairo"]
["Región Pacífico","Valle del Cauca","El Cerrito"]
["Región Pacífico","Valle del Cauca","El Dovio"]
["Región Pacífico","Valle del Cauca","Florida"]
["Región Pacífico","Valle del Cauca","Ginebra"]
["Región Pacífico","Valle del Cauca","Guacarí"]
["Región Pacífico","Valle del Cauca","Guadalajara de Buga"]
["Región Pacífico","Valle del Cauca","Jamundí"]
["Región Pacífico","Valle del Cauca","La Cumbre"]
["Región Pacífico","Valle del Cauca","La Unión"]
["Región Pacífico","Valle del Cauca","La Victoria"]
["Región Pacífico","Valle del Cauca","Obando"]
["Región Pacífico","Valle del Cauca","Palmira"]
["Región Pacífico","Valle del Cauca","Pradera"]
["Región Pacífico","Valle del Cauca","Restrepo"]
["Región Pacífico","Valle del Cauca","Riofrío"]
["Región Pacífico","Valle del Cauca","Roldanillo"]
["Región Pacífico","Valle del Cauca","San Pedro"]
["Región Pacífico","Valle del Cauca","Sevilla"]
["Región Pacífico","Valle del Cauca","Toro"]
["Región Pacífico","Valle del Cauca","Trujillo"]
["Región Pacífico","Valle del Cauca","Tuluá"]
["Región Pacífico","Valle del Cauca","Ulloa"]
["Región Pacífico","Valle del Cauca","Versalles"]
["Región Pacífico","Valle del Cauca","Vijes"]
["Región Pacífico","Valle del Cauca","Yotoco"]
["Región Pacífico","Valle del Cauca","Yumbo"]
["Región Pacífico","Valle del Cauca","Zarzal"]
["Región Centro Sur","Vaupés","Mitú"]
["Región Centro Sur","Vaupés","Carurú"]
["Región Centro Sur","Vaupés","Taraira"]
["Región Centro Sur","Vaupés","Papunahua"]
["Región Centro Sur","Vaupés","Yavaraté"]
["Región Centro Sur","Vaupés","Pacoa"]
["Región Llano","Vichada","Puerto Carreño"]
["Región Llano","Vichada","La Primavera"]
["Región Llano","Vichada","Santa Rosalía"]
["Región Llano","Vichada","Cumaribo"]

{"sheet":"Lista de desplegables","index":6,"n_rows":1554,"n_cols":41,"rows_kept":1554,"cut":false,"hidden":true,"merged":[]}
["Clase de proyecto",null,"Recurso","Fuente","Tecnología",null,"Recurso",null,"Tipo_Otra_fuente",null,"Tecnología _Otro_tipo",null,"Tipo_Biomasa",null,"Tecnología_Bagazo",null,"Tipo_Eólico",null,"Tecnología_Viento",null,"Tipo_Geotérmico",null,"Tecnología_Vapor",null,"Tipo_Hidráulico",null,"Tecnología_Agua",null,"Tipo_Solar",null,"Tecnología_Sol",null,"Tipo_Térmico",null,"Tecnología_Bagazo",null,"Fases de inscripción del proyecto",null,"Nombre de la subestación eléctrica (S/E)",null,"Nivel de tensión  (kW)"]
[" Autogeneración",null,"Biomasa","Bagazo","Bioquímico",null,"Biomasa",null,"Otra_fuente",null,"Otra tecnología",null,"Bagazo",null,"Bioquímico",null,"Viento",null,"Costa adentro",null,"Vapor",null,"Flash simple",null,"Agua",null,"Embalse",null,"Radiación_solar",null,"Fotovoltaico",null,"Bagazo_",null,"Ciclo abierto",null,"Fase 1",null,"Abejorral",null,44]
[" Autogeneración Remota",null,"Biomasa","Bagazo","Ciclo abierto",null,"Eólico",null,null,null,null,null,"Biogás",null,"Ciclo abierto",null,null,null,"Costa afuera",null,null,null,"ORC Ranking",null,null,null,"Filo de agua",null,null,null,null,null,"Calor_residual",null,null,null,"Fase 2",null,"Acacias",null,13.2]
[" Cogeneración",null,"Biomasa","Bagazo","Cogeneración",null,"Geotérmico",null,null,null,null,null,"Cultivo_energético",null,"Cogeneración",null,null,null,null,null,null,null,"Otro",null,null,null,null,null,null,null,null,null,"Carbón",null,"Tecnología_Calor residual",null,"Fase 3",null,"Acerias Paz Del Rio",null,34.5]
[" Generación Distribuida",null,"Biomasa","Biogás","Ciclo abierto",null,"Hidráulico",null,null,null,null,null,"Residuos_agrícolas",null,"Otro",null,null,null,null,null,null,null,null,null,null,null,null,null,null,null,null,null,"Crudo_pesado",null,"Ciclo abierto",null,null,null,"Acevedo",null,115]
["Generación",null,"Biomasa","Biogás","Ciclo combinado",null,"Solar",null,null,null,null,null,"Residuos_sólidos_urbanos",null,null,null,null,null,null,null,null,null,null,null,null,null,null,null,null,null,null,null,"Diésel",null,"Cogeneración",null,null,null,"Acuarela 13.8 Kv",null,13.8]
[null,null,"Biomasa","Cultivo energético","Ciclo abierto",null,"Térmico",null,null,null,null,null,"Otra_fuente",null,"Tecnología_Biogás",null,null,null,null,null,null,null,null,null,null,null,null,null,null,null,null,null,"Fuel oil",null,null,null,null,null,"Acuarela 34.5 Kv",null,11.4]
[null,null,"Biomasa","Residuos agrícolas","Bioquímico",null,"Otro_recurso",null,null,null,null,null,null,null,"Ciclo abierto",null,null,null,null,null,null,null,null,null,null,null,null,null,null,null,null,null,"Gas_natural",null,"Tecnología_Carbón",null,null,null,"Aeronautic",null,33]
[null,null,"Biomasa","Residuos agrícolas","Ciclo abierto",null,null,null,null,null,null,null,null,null,"Ciclo combinado",null,null,null,null,null,null,null,null,null,null,null,null,null,null,null,null,null,"Pet_coke",null,"Ciclo abierto",null,null,null,"Aeropu_Tp",null,13.81]
[null,null,"Biomasa","Residuos agrícolas","Cogeneración",null,null,null,null,null,null,null,null,null,"Otro",null,null,null,null,null,null,null,null,null,null,null,null,null,null,null,null,null,"Vapor_",null,"Ciclo combinado",null,null,null,"Aeropuerto",null,230]
[null,null,"Biomasa","Residuos agrícolas","Termoquímico",null,null,null,null,null,null,null,null,null,null,null,null,null,null,null,null,null,null,null,null,null,null,null,null,null,null,null,"Otra_fuente",null,null,null,null,null,"Agrobetani",null,500]
[null,null,"Biomasa","Residuos sólidos urbanos","Ciclo abierto",null,null,null,null,null,null,null,null,null,null,null,null,null,null,null,null,null,null,null,null,null,null,null,null,null,null,null,null,null,"Tecnología_Crudo pesado",null,null,null,"Aguablanca",null,220]
[null,null,"Biomasa","Residuos sólidos urbanos","Ciclo combinado",null,null,null,null,null,null,null,null,null,"Tecnología_Cultivo energético",null,null,null,null,null,null,null,null,null,null,null,null,null,null,null,null,null,null,null,"Ciclo abierto",null,null,null,"Aguaclara 115 Kv",null,110]
[null,null,"Biomasa","Residuos sólidos urbanos","Termoquímico",null,null,null,null,null,null,null,null,null,"Ciclo abierto",null,null,null,null,null,null,null,null,null,null,null,null,null,null,null,null,null,null,null,null,null,null,null,"Aguadas",null,2]
[null,null,"Eólico","Viento","Costa adentro",null,null,null,null,null,null,null,null,null,"Otro",null,null,null,null,null,null,null,null,null,null,null,null,null,null,null,null,null,null,null,"Tecnología_Diésel",null,null,null,"Aguas Blancas",null,8]
[null,null,"Eólico","Viento","Costa afuera",null,null,null,null,null,null,null,null,null,null,null,null,null,null,null,null,null,null,null,null,null,null,null,null,null,null,null,null,null,"Ciclo abierto",null,null,null,"Aguas Claras"]
[null,null,"Geotérmico","Vapor","Flash simple",null,null,null,null,null,null,null,null,null,"Tecnología_Residuos agrícolas",null,null,null,null,null,null,null,null,null,null,null,null,null,null,null,null,null,null,null,"Termoquímico",null,null,null,"Aguazul 115 Kv"]
[null,null,"Hidráulico","Agua","Embalse",null,null,null,null,null,null,null,null,null,"Bioquímico",null,null,null,null,null,null,null,null,null,null,null,null,null,null,null,null,null,null,null,null,null,null,null,"Aipe"]
[null,null,"Hidráulico","Agua","Filo de agua",null,null,null,null,null,null,null,null,null,"Ciclo abierto",null,null,null,null,null,null,null,null,null,null,null,null,null,null,null,null,null,null,null,"Tecnología_Fuel oil",null,null,null,"Alban"]
[null,null,"Solar","Sol","Fotovoltaico",null,null,null,null,null,null,null,null,null,"Cogeneración",null,null,null,null,null,null,null,null,null,null,null,null,null,null,null,null,null,null,null,"Ciclo abierto",null,null,null,"Albania"]
[null,null,"Térmico","Bagazo","Ciclo abierto",null,null,null,null,null,null,null,null,null,"Termoquímico",null,null,null,null,null,null,null,null,null,null,null,null,null,null,null,null,null,null,null,"Ciclo combinado",null,null,null,"Alcala"]
[null,null,"Térmico","Calor residual","Ciclo abierto",null,null,null,null,null,null,null,null,null,"Otro",null,null,null,null,null,null,null,null,null,null,null,null,null,null,null,null,null,null,null,null,null,null,null,"Alemania"]
[null,null,"Térmico","Calor residual","Cogeneración",null,null,null,null,null,null,null,null,null,null,null,null,null,null,null,null,null,null,null,null,null,null,null,null,null,null,null,null,null,"Tecnología_Gas natural",null,null,null,"Alferez 1"]
[null,null,"Térmico","Carbón","Ciclo abierto",null,null,null,null,null,null,null,null,null,null,null,null,null,null,null,null,null,null,null,null,null,null,null,null,null,null,null,null,null,"Ciclo abierto",null,null,null,"Alferez 230"]
[null,null,"Térmico","Carbón","Ciclo combinado",null,null,null,null,null,null,null,null,null,"Tecnología_Residuos sólidos urbanos",null,null,null,null,null,null,null,null,null,null,null,null,null,null,null,null,null,null,null,"Ciclo combinado",null,null,null,"Alferez 500"]
[null,null,"Térmico","Crudo pesado","Ciclo abierto",null,null,null,null,null,null,null,null,null,"Ciclo abierto",null,null,null,null,null,null,null,null,null,null,null,null,null,null,null,null,null,null,null,"Termoquímico",null,null,null,"Alferez Ii"]
[null,null,"Térmico","Diésel","Ciclo abierto",null,null,null,null,null,null,null,null,null,"Ciclo combinado",null,null,null,null,null,null,null,null,null,null,null,null,null,null,null,null,null,null,null,null,null,null,null,"Algarrobo"]
[null,null,"Térmico","Diésel","Termoquímico",null,null,null,null,null,null,null,null,null,"Termoquímico",null,null,null,null,null,null,null,null,null,null,null,null,null,null,null,null,null,null,null,"Tecnología_Pet coke",null,null,null,"Algeciras"]
[null,null,"Térmico","Fuel oil","Ciclo abierto",null,null,null,null,null,null,null,null,null,"Otro",null,null,null,null,null,null,null,null,null,null,null,null,null,null,null,null,null,null,null,"Ciclo abierto",null,null,null,"Almeida"]
[null,null,"Térmico","Fuel oil","Ciclo combinado",null,null,null,null,null,null,null,null,null,null,null,null,null,null,null,null,null,null,null,null,null,null,null,null,null,null,null,null,null,null,null,null,null,"Alpujarra"]
[null,null,"Térmico","Gas natural","Ciclo abierto",null,null,null,null,null,null,null,null,null,null,null,null,null,null,null,null,null,null,null,null,null,null,null,null,null,null,null,null,null,"Tecnología_Vapor",null,null,null,"Alta Suiza"]
[null,null,"Térmico","Gas natural","Ciclo combinado",null,null,null,null,null,null,null,null,null,null,null,null,null,null,null,null,null,null,null,null,null,null,null,null,null,null,null,null,null,"Ciclo abierto",null,null,null,"Altagracia"]
[null,null,"Térmico","Gas natural","Termoquímico",null,null,null,null,null,null,null,null,null,null,null,null,null,null,null,null,null,null,null,null,null,null,null,null,null,null,null,null,null,null,null,null,null,"Altamar"]
[null,null,"Térmico","Pet coke","Ciclo abierto",null,null,null,null,null,null,null,null,null,null,null,null,null,null,null,null,null,null,null,null,null,null,null,null,null,null,null,null,null,null,null,null,null,"Altamira"]
[null,null,"Térmico","Vapor","Ciclo abierto",null,null,null,null,null,null,null,null,null,null,null,null,null,null,null,null,null,null,null,null,null,null,null,null,null,null,null,null,null,null,null,null,null,"Altamira 230"]
[null,null,null,null,null,null,null,null,null,null,null,null,null,null,null,null,null,null,null,null,null,null,null,null,null,null,null,null,null,null,null,null,null,null,null,null,null,null,"Altaquer"]
[null,null,null,null,null,null,null,null,null,null,null,null,null,null,null,null,null,null,null,null,null,null,null,null,null,null,null,null,null,null,null,null,null,null,null,null,null,null,"Alto Anchicaya"]
[null,null,null,null,null,null,null,null,null,null,null,null,null,null,null,null,null,null,null,null,null,null,null,null,null,null,null,null,null,null,null,null,null,null,null,null,null,null,"Alto Ricaurte"]
[null,null,null,null,null,null,null,null,null,null,null,null,null,null,null,null,null,null,null,null,null,null,null,null,null,null,null,null,null,null,null,null,null,null,null,null,null,null,"Alto_Trigo"]
[null,null,null,null,null,null,null,null,null,null,null,null,null,null,null,null,null,null,null,null,null,null,null,null,null,null,null,null,null,null,null,null,null,null,null,null,null,null,"Alvarado"]
[null,null,null,null,null,null,null,null,null,null,null,null,null,null,null,null,null,null,null,null,null,null,null,null,null,null,null,null,null,null,null,null,null,null,null,null,null,null,"Amaga"]
[null,null,null,null,null,null,null,null,null,null,null,null,null,null,null,null,null,null,null,null,null,null,null,null,null,null,null,null,null,null,null,null,null,null,null,null,null,null,"Amaime"]
[null,null,null,null,null,null,null,null,null,null,null,null,null,null,null,null,null,null,null,null,null,null,null,null,null,null,null,null,null,null,null,null,null,null,null,null,null,null,"Amalfi 110 Kv"]
[null,null,null,null,null,null,null,null,null,null,null,null,null,null,null,null,null,null,null,null,null,null,null,null,null,null,null,null,null,null,null,null,null,null,null,null,null,null,"Amalfi 44/13"]
[null,null,null,null,null,null,null,null,null,null,null,null,null,null,null,null,null,null,null,null,null,null,null,null,null,null,null,null,null,null,null,null,null,null,null,null,null,null,"Ambalema"]
[null,null,null,null,null,null,null,null,null,null,null,null,null,null,null,null,null,null,null,null,null,null,null,null,null,null,null,null,null,null,null,null,null,null,null,null,null,null,"Ancon Sur"]
[null,null,null,null,null,null,null,null,null,null,null,null,null,null,null,null,null,null,null,null,null,null,null,null,null,null,null,null,null,null,null,null,null,null,null,null,null,null,"Ancon Sur (Isa)"]
[null,null,null,null,null,null,null,null,null,null,null,null,null,null,null,null,null,null,null,null,null,null,null,null,null,null,null,null,null,null,null,null,null,null,null,null,null,null,"Ancuya"]
[null,null,null,null,null,null,null,null,null,null,null,null,null,null,null,null,null,null,null,null,null,null,null,null,null,null,null,null,null,null,null,null,null,null,null,null,null,null,"Andalucia"]
[null,null,null,null,null,null,null,null,null,null,null,null,null,null,null,null,null,null,null,null,null,null,null,null,null,null,null,null,null,null,null,null,null,null,null,null,null,null,"Andes"]
[null,null,null,null,null,null,null,null,null,null,null,null,null,null,null,null,null,null,null,null,null,null,null,null,null,null,null,null,null,null,null,null,null,null,null,null,null,null,"Angelopolis"]
[null,null,null,null,null,null,null,null,null,null,null,null,null,null,null,null,null,null,null,null,null,null,null,null,null,null,null,null,null,null,null,null,null,null,null,null,null,null,"Anima Baja"]
[null,null,null,null,null,null,null,null,null,null,null,null,null,null,null,null,null,null,null,null,null,null,null,null,null,null,null,null,null,null,null,null,null,null,null,null,null,null,"Animas Bajas"]
[null,null,null,null,null,null,null,null,null,null,null,null,null,null,null,null,null,null,null,null,null,null,null,null,null,null,null,null,null,null,null,null,null,null,null,null,null,null,"Anolaima"]
[null,null,null,null,null,null,null,null,null,null,null,null,null,null,null,null,null,null,null,null,null,null,null,null,null,null,null,null,null,null,null,null,null,null,null,null,null,null,"Anserma"]
[null,null,null,null,null,null,null,null,null,null,null,null,null,null,null,null,null,null,null,null,null,null,null,null,null,null,null,null,null,null,null,null,null,null,null,null,null,null,"Ansermanuevo"]
[null,null,null,null,null,null,null,null,null,null,null,null,null,null,null,null,null,null,null,null,null,null,null,null,null,null,null,null,null,null,null,null,null,null,null,null,null,null,"Antioquia"]
[null,null,null,null,null,null,null,null,null,null,null,null,null,null,null,null,null,null,null,null,null,null,null,null,null,null,null,null,null,null,null,null,null,null,null,null,null,null,"Apartado"]
[null,null,null,null,null,null,null,null,null,null,null,null,null,null,null,null,null,null,null,null,null,null,null,null,null,null,null,null,null,null,null,null,null,null,null,null,null,null,"Apiay"]
[null,null,null,null,null,null,null,null,null,null,null,null,null,null,null,null,null,null,null,null,null,null,null,null,null,null,null,null,null,null,null,null,null,null,null,null,null,null,"Aposentos"]
[null,null,null,null,null,null,null,null,null,null,null,null,null,null,null,null,null,null,null,null,null,null,null,null,null,null,null,null,null,null,null,null,null,null,null,null,null,null,"Apulo"]
[null,null,null,null,null,null,null,null,null,null,null,null,null,null,null,null,null,null,null,null,null,null,null,null,null,null,null,null,null,null,null,null,null,null,null,null,null,null,"Aquitania"]
[null,null,null,null,null,null,null,null,null,null,null,null,null,null,null,null,null,null,null,null,null,null,null,null,null,null,null,null,null,null,null,null,null,null,null,null,null,null,"Aracataca"]
[null,null,null,null,null,null,null,null,null,null,null,null,null,null,null,null,null,null,null,null,null,null,null,null,null,null,null,null,null,null,null,null,null,null,null,null,null,null,"Aranjuez"]
[null,null,null,null,null,null,null,null,null,null,null,null,null,null,null,null,null,null,null,null,null,null,null,null,null,null,null,null,null,null,null,null,null,null,null,null,null,null,"Aranzazu"]
[null,null,null,null,null,null,null,null,null,null,null,null,null,null,null,null,null,null,null,null,null,null,null,null,null,null,null,null,null,null,null,null,null,null,null,null,null,null,"Arauca"]
[null,null,null,null,null,null,null,null,null,null,null,null,null,null,null,null,null,null,null,null,null,null,null,null,null,null,null,null,null,null,null,null,null,null,null,null,null,null,"Arauquita"]
[null,null,null,null,null,null,null,null,null,null,null,null,null,null,null,null,null,null,null,null,null,null,null,null,null,null,null,null,null,null,null,null,null,null,null,null,null,null,"Arbelaez"]
[null,null,null,null,null,null,null,null,null,null,null,null,null,null,null,null,null,null,null,null,null,null,null,null,null,null,null,null,null,null,null,null,null,null,null,null,null,null,"Arboleda"]
[null,null,null,null,null,null,null,null,null,null,null,null,null,null,null,null,null,null,null,null,null,null,null,null,null,null,null,null,null,null,null,null,null,null,null,null,null,null,"Arboletes"]
[null,null,null,null,null,null,null,null,null,null,null,null,null,null,null,null,null,null,null,null,null,null,null,null,null,null,null,null,null,null,null,null,null,null,null,null,null,null,"Arcabuco"]
[null,null,null,null,null,null,null,null,null,null,null,null,null,null,null,null,null,null,null,null,null,null,null,null,null,null,null,null,null,null,null,null,null,null,null,null,null,null,"Argos"]
[null,null,null,null,null,null,null,null,null,null,null,null,null,null,null,null,null,null,null,null,null,null,null,null,null,null,null,null,null,null,null,null,null,null,null,null,null,null,"Ariguani"]
[null,null,null,null,null,null,null,null,null,null,null,null,null,null,null,null,null,null,null,null,null,null,null,null,null,null,null,null,null,null,null,null,null,null,null,null,null,null,"Arjona"]
[null,null,null,null,null,null,null,null,null,null,null,null,null,null,null,null,null,null,null,null,null,null,null,null,null,null,null,null,null,null,null,null,null,null,null,null,null,null,"Armenia"]
[null,null,null,null,null,null,null,null,null,null,null,null,null,null,null,null,null,null,null,null,null,null,null,null,null,null,null,null,null,null,null,null,null,null,null,null,null,null,"Armenia 230"]
[null,null,null,null,null,null,null,null,null,null,null,null,null,null,null,null,null,null,null,null,null,null,null,null,null,null,null,null,null,null,null,null,null,null,null,null,null,null,"Arreboles"]
[null,null,null,null,null,null,null,null,null,null,null,null,null,null,null,null,null,null,null,null,null,null,null,null,null,null,null,null,null,null,null,null,null,null,null,null,null,null,"Arrieros"]
[null,null,null,null,null,null,null,null,null,null,null,null,null,null,null,null,null,null,null,null,null,null,null,null,null,null,null,null,null,null,null,null,null,null,null,null,null,null,"Arroyo De Piedra"]
[null,null,null,null,null,null,null,null,null,null,null,null,null,null,null,null,null,null,null,null,null,null,null,null,null,null,null,null,null,null,null,null,null,null,null,null,null,null,"Asis Gama 1"]
[null,null,null,null,null,null,null,null,null,null,null,null,null,null,null,null,null,null,null,null,null,null,null,null,null,null,null,null,null,null,null,null,null,null,null,null,null,null,"Astrea"]
[null,null,null,null,null,null,null,null,null,null,null,null,null,null,null,null,null,null,null,null,null,null,null,null,null,null,null,null,null,null,null,null,null,null,null,null,null,null,"Ataco"]
[null,null,null,null,null,null,null,null,null,null,null,null,null,null,null,null,null,null,null,null,null,null,null,null,null,null,null,null,null,null,null,null,null,null,null,null,null,null,"Atalayas"]
[null,null,null,null,null,null,null,null,null,null,null,null,null,null,null,null,null,null,null,null,null,null,null,null,null,null,null,null,null,null,null,null,null,null,null,null,null,null,"Autopista"]
[null,null,null,null,null,null,null,null,null,null,null,null,null,null,null,null,null,null,null,null,null,null,null,null,null,null,null,null,null,null,null,null,null,null,null,null,null,null,"Av_Primera"]
[null,null,null,null,null,null,null,null,null,null,null,null,null,null,null,null,null,null,null,null,null,null,null,null,null,null,null,null,null,null,null,null,null,null,null,null,null,null,"Ayacucho"]
[null,null,null,null,null,null,null,null,null,null,null,null,null,null,null,null,null,null,null,null,null,null,null,null,null,null,null,null,null,null,null,null,null,null,null,null,null,null,"Ayapel"]
[null,null,null,null,null,null,null,null,null,null,null,null,null,null,null,null,null,null,null,null,null,null,null,null,null,null,null,null,null,null,null,null,null,null,null,null,null,null,"Ayura"]
[null,null,null,null,null,null,null,null,null,null,null,null,null,null,null,null,null,null,null,null,null,null,null,null,null,null,null,null,null,null,null,null,null,null,null,null,null,null,"Bacata"]
[null,null,null,null,null,null,null,null,null,null,null,null,null,null,null,null,null,null,null,null,null,null,null,null,null,null,null,null,null,null,null,null,null,null,null,null,null,null,"Bahia"]
[null,null,null,null,null,null,null,null,null,null,null,null,null,null,null,null,null,null,null,null,null,null,null,null,null,null,null,null,null,null,null,null,null,null,null,null,null,null,"Bajo Anchicaya"]
[null,null,null,null,null,null,null,null,null,null,null,null,null,null,null,null,null,null,null,null,null,null,null,null,null,null,null,null,null,null,null,null,null,null,null,null,null,null,"Bajo Simacota 13.8 Kv"]
[null,null,null,null,null,null,null,null,null,null,null,null,null,null,null,null,null,null,null,null,null,null,null,null,null,null,null,null,null,null,null,null,null,null,null,null,null,null,"Bajo Simacota 34.5 Kv"]
[null,null,null,null,null,null,null,null,null,null,null,null,null,null,null,null,null,null,null,null,null,null,null,null,null,null,null,null,null,null,null,null,null,null,null,null,null,null,"Balboa"]
[null,null,null,null,null,null,null,null,null,null,null,null,null,null,null,null,null,null,null,null,null,null,null,null,null,null,null,null,null,null,null,null,null,null,null,null,null,null,"Ballenas"]
[null,null,null,null,null,null,null,null,null,null,null,null,null,null,null,null,null,null,null,null,null,null,null,null,null,null,null,null,null,null,null,null,null,null,null,null,null,null,"Balmoral"]
[null,null,null,null,null,null,null,null,null,null,null,null,null,null,null,null,null,null,null,null,null,null,null,null,null,null,null,null,null,null,null,null,null,null,null,null,null,null,"Balneario-Tuluni"]
[null,null,null,null,null,null,null,null,null,null,null,null,null,null,null,null,null,null,null,null,null,null,null,null,null,null,null,null,null,null,null,null,null,null,null,null,null,null,"Balsillas"]
[null,null,null,null,null,null,null,null,null,null,null,null,null,null,null,null,null,null,null,null,null,null,null,null,null,null,null,null,null,null,null,null,null,null,null,null,null,null,"Balsillas 230"]
[null,null,null,null,null,null,null,null,null,null,null,null,null,null,null,null,null,null,null,null,null,null,null,null,null,null,null,null,null,null,null,null,null,null,null,null,null,null,"Banadia"]
[null,null,null,null,null,null,null,null,null,null,null,null,null,null,null,null,null,null,null,null,null,null,null,null,null,null,null,null,null,null,null,null,null,null,null,null,null,null,"Baranoa"]
[null,null,null,null,null,null,null,null,null,null,null,null,null,null,null,null,null,null,null,null,null,null,null,null,null,null,null,null,null,null,null,null,null,null,null,null,null,null,"Baraya"]
[null,null,null,null,null,null,null,null,null,null,null,null,null,null,null,null,null,null,null,null,null,null,null,null,null,null,null,null,null,null,null,null,null,null,null,null,null,null,"Barbacoas"]
[null,null,null,null,null,null,null,null,null,null,null,null,null,null,null,null,null,null,null,null,null,null,null,null,null,null,null,null,null,null,null,null,null,null,null,null,null,null,"Barbosa"]
[null,null,null,null,null,null,null,null,null,null,null,null,null,null,null,null,null,null,null,null,null,null,null,null,null,null,null,null,null,null,null,null,null,null,null,null,null,null,"Barbosa 115 Kv"]
[null,null,null,null,null,null,null,null,null,null,null,null,null,null,null,null,null,null,null,null,null,null,null,null,null,null,null,null,null,null,null,null,null,null,null,null,null,null,"Barbosa 13.8 Kv"]
[null,null,null,null,null,null,null,null,null,null,null,null,null,null,null,null,null,null,null,null,null,null,null,null,null,null,null,null,null,null,null,null,null,null,null,null,null,null,"Barbosa 34.5 Kv"]
[null,null,null,null,null,null,null,null,null,null,null,null,null,null,null,null,null,null,null,null,null,null,null,null,null,null,null,null,null,null,null,null,null,null,null,null,null,null,"Barranca 115 Kv"]
[null,null,null,null,null,null,null,null,null,null,null,null,null,null,null,null,null,null,null,null,null,null,null,null,null,null,null,null,null,null,null,null,null,null,null,null,null,null,"Barranca 230 Kv"]
[null,null,null,null,null,null,null,null,null,null,null,null,null,null,null,null,null,null,null,null,null,null,null,null,null,null,null,null,null,null,null,null,null,null,null,null,null,null,"Barranca 34.5 Kv"]
[null,null,null,null,null,null,null,null,null,null,null,null,null,null,null,null,null,null,null,null,null,null,null,null,null,null,null,null,null,null,null,null,null,null,null,null,null,null,"Barranca De Upia"]
[null,null,null,null,null,null,null,null,null,null,null,null,null,null,null,null,null,null,null,null,null,null,null,null,null,null,null,null,null,null,null,null,null,null,null,null,null,null,"Barrancas"]
[null,null,null,null,null,null,null,null,null,null,null,null,null,null,null,null,null,null,null,null,null,null,null,null,null,null,null,null,null,null,null,null,null,null,null,null,null,null,"Barranco De Loba"]
[null,null,null,null,null,null,null,null,null,null,null,null,null,null,null,null,null,null,null,null,null,null,null,null,null,null,null,null,null,null,null,null,null,null,null,null,null,null,"Barroso"]
[null,null,null,null,null,null,null,null,null,null,null,null,null,null,null,null,null,null,null,null,null,null,null,null,null,null,null,null,null,null,null,null,null,null,null,null,null,null,"Barzal"]
[null,null,null,null,null,null,null,null,null,null,null,null,null,null,null,null,null,null,null,null,null,null,null,null,null,null,null,null,null,null,null,null,null,null,null,null,null,null,"Barzalosa"]
[null,null,null,null,null,null,null,null,null,null,null,null,null,null,null,null,null,null,null,null,null,null,null,null,null,null,null,null,null,null,null,null,null,null,null,null,null,null,"Bavaria"]
[null,null,null,null,null,null,null,null,null,null,null,null,null,null,null,null,null,null,null,null,null,null,null,null,null,null,null,null,null,null,null,null,null,null,null,null,null,null,"Bayunca"]
[null,null,null,null,null,null,null,null,null,null,null,null,null,null,null,null,null,null,null,null,null,null,null,null,null,null,null,null,null,null,null,null,null,null,null,null,null,null,"Becerril"]
[null,null,null,null,null,null,null,null,null,null,null,null,null,null,null,null,null,null,null,null,null,null,null,null,null,null,null,null,null,null,null,null,null,null,null,null,null,null,"Belalcazar"]
[null,null,null,null,null,null,null,null,null,null,null,null,null,null,null,null,null,null,null,null,null,null,null,null,null,null,null,null,null,null,null,null,null,null,null,null,null,null,"Belen"]
[null,null,null,null,null,null,null,null,null,null,null,null,null,null,null,null,null,null,null,null,null,null,null,null,null,null,null,null,null,null,null,null,null,null,null,null,null,null,"Belen De Umbria"]
[null,null,null,null,null,null,null,null,null,null,null,null,null,null,null,null,null,null,null,null,null,null,null,null,null,null,null,null,null,null,null,null,null,null,null,null,null,null,"Belgrado"]
[null,null,null,null,null,null,null,null,null,null,null,null,null,null,null,null,null,null,null,null,null,null,null,null,null,null,null,null,null,null,null,null,null,null,null,null,null,null,"Bellavista"]
[null,null,null,null,null,null,null,null,null,null,null,null,null,null,null,null,null,null,null,null,null,null,null,null,null,null,null,null,null,null,null,null,null,null,null,null,null,null,"Bellavista 13.8 Kv"]
[null,null,null,null,null,null,null,null,null,null,null,null,null,null,null,null,null,null,null,null,null,null,null,null,null,null,null,null,null,null,null,null,null,null,null,null,null,null,"Bellavista 34.5 Kv"]
[null,null,null,null,null,null,null,null,null,null,null,null,null,null,null,null,null,null,null,null,null,null,null,null,null,null,null,null,null,null,null,null,null,null,null,null,null,null,"Bello"]
[null,null,null,null,null,null,null,null,null,null,null,null,null,null,null,null,null,null,null,null,null,null,null,null,null,null,null,null,null,null,null,null,null,null,null,null,null,null,"Bello Horizonte"]
[null,null,null,null,null,null,null,null,null,null,null,null,null,null,null,null,null,null,null,null,null,null,null,null,null,null,null,null,null,null,null,null,null,null,null,null,null,null,"Beltran"]
[null,null,null,null,null,null,null,null,null,null,null,null,null,null,null,null,null,null,null,null,null,null,null,null,null,null,null,null,null,null,null,null,null,null,null,null,null,null,"Berlin 13.8 Kv"]
[null,null,null,null,null,null,null,null,null,null,null,null,null,null,null,null,null,null,null,null,null,null,null,null,null,null,null,null,null,null,null,null,null,null,null,null,null,null,"Berlin 34.5 Kv"]
[null,null,null,null,null,null,null,null,null,null,null,null,null,null,null,null,null,null,null,null,null,null,null,null,null,null,null,null,null,null,null,null,null,null,null,null,null,null,"Berrugas"]
[null,null,null,null,null,null,null,null,null,null,null,null,null,null,null,null,null,null,null,null,null,null,null,null,null,null,null,null,null,null,null,null,null,null,null,null,null,null,"Betania 230"]
[null,null,null,null,null,null,null,null,null,null,null,null,null,null,null,null,null,null,null,null,null,null,null,null,null,null,null,null,null,null,null,null,null,null,null,null,null,null,"Betulia"]
[null,null,null,null,null,null,null,null,null,null,null,null,null,null,null,null,null,null,null,null,null,null,null,null,null,null,null,null,null,null,null,null,null,null,null,null,null,null,"Bitaco"]
[null,null,null,null,null,null,null,null,null,null,null,null,null,null,null,null,null,null,null,null,null,null,null,null,null,null,null,null,null,null,null,null,null,null,null,null,null,null,"Boavita"]
[null,null,null,null,null,null,null,null,null,null,null,null,null,null,null,null,null,null,null,null,null,null,null,null,null,null,null,null,null,null,null,null,null,null,null,null,null,null,"Boca De Ure"]
[null,null,null,null,null,null,null,null,null,null,null,null,null,null,null,null,null,null,null,null,null,null,null,null,null,null,null,null,null,null,null,null,null,null,null,null,null,null,"Bocagrande"]
[null,null,null,null,null,null,null,null,null,null,null,null,null,null,null,null,null,null,null,null,null,null,null,null,null,null,null,null,null,null,null,null,null,null,null,null,null,null,"Bocas De Banadia"]
[null,null,null,null,null,null,null,null,null,null,null,null,null,null,null,null,null,null,null,null,null,null,null,null,null,null,null,null,null,null,null,null,null,null,null,null,null,null,"Bocas De Pore"]
[null,null,null,null,null,null,null,null,null,null,null,null,null,null,null,null,null,null,null,null,null,null,null,null,null,null,null,null,null,null,null,null,null,null,null,null,null,null,"Bochica"]
[null,null,null,null,null,null,null,null,null,null,null,null,null,null,null,null,null,null,null,null,null,null,null,null,null,null,null,null,null,null,null,null,null,null,null,null,null,null,"Bolivar"]
[null,null,null,null,null,null,null,null,null,null,null,null,null,null,null,null,null,null,null,null,null,null,null,null,null,null,null,null,null,null,null,null,null,null,null,null,null,null,"Bolivia"]
[null,null,null,null,null,null,null,null,null,null,null,null,null,null,null,null,null,null,null,null,null,null,null,null,null,null,null,null,null,null,null,null,null,null,null,null,null,null,"Bolombolo"]
[null,null,null,null,null,null,null,null,null,null,null,null,null,null,null,null,null,null,null,null,null,null,null,null,null,null,null,null,null,null,null,null,null,null,null,null,null,null,"Bonda"]
[null,null,null,null,null,null,null,null,null,null,null,null,null,null,null,null,null,null,null,null,null,null,null,null,null,null,null,null,null,null,null,null,null,null,null,null,null,null,"Boqueron"]
[null,null,null,null,null,null,null,null,null,null,null,null,null,null,null,null,null,null,null,null,null,null,null,null,null,null,null,null,null,null,null,null,null,null,null,null,null,null,"Borbur"]
[null,null,null,null,null,null,null,null,null,null,null,null,null,null,null,null,null,null,null,null,null,null,null,null,null,null,null,null,null,null,null,null,null,null,null,null,null,null,"Bosa"]
[null,null,null,null,null,null,null,null,null,null,null,null,null,null,null,null,null,null,null,null,null,null,null,null,null,null,null,null,null,null,null,null,null,null,null,null,null,null,"Bosconia"]
[null,null,null,null,null,null,null,null,null,null,null,null,null,null,null,null,null,null,null,null,null,null,null,null,null,null,null,null,null,null,null,null,null,null,null,null,null,null,"Bosque 13.8 Kv"]
[null,null,null,null,null,null,null,null,null,null,null,null,null,null,null,null,null,null,null,null,null,null,null,null,null,null,null,null,null,null,null,null,null,null,null,null,null,null,"Bosque 34.5 Kv"]
[null,null,null,null,null,null,null,null,null,null,null,null,null,null,null,null,null,null,null,null,null,null,null,null,null,null,null,null,null,null,null,null,null,null,null,null,null,null,"Bosques De La Acuarela"]
[null,null,null,null,null,null,null,null,null,null,null,null,null,null,null,null,null,null,null,null,null,null,null,null,null,null,null,null,null,null,null,null,null,null,null,null,null,null,"Boston"]
[null,null,null,null,null,null,null,null,null,null,null,null,null,null,null,null,null,null,null,null,null,null,null,null,null,null,null,null,null,null,null,null,null,null,null,null,null,null,"Boyaca"]
[null,null,null,null,null,null,null,null,null,null,null,null,null,null,null,null,null,null,null,null,null,null,null,null,null,null,null,null,null,null,null,null,null,null,null,null,null,null,"Briceno"]
[null,null,null,null,null,null,null,null,null,null,null,null,null,null,null,null,null,null,null,null,null,null,null,null,null,null,null,null,null,null,null,null,null,null,null,null,null,null,"Brisas"]
[null,null,null,null,null,null,null,null,null,null,null,null,null,null,null,null,null,null,null,null,null,null,null,null,null,null,null,null,null,null,null,null,null,null,null,null,null,null,"Bucaramanga 115 Kv"]
[null,null,null,null,null,null,null,null,null,null,null,null,null,null,null,null,null,null,null,null,null,null,null,null,null,null,null,null,null,null,null,null,null,null,null,null,null,null,"Bucaramanga 230 Kv"]
[null,null,null,null,null,null,null,null,null,null,null,null,null,null,null,null,null,null,null,null,null,null,null,null,null,null,null,null,null,null,null,null,null,null,null,null,null,null,"Bucaramanga 34.5 Kv"]
[null,null,null,null,null,null,null,null,null,null,null,null,null,null,null,null,null,null,null,null,null,null,null,null,null,null,null,null,null,null,null,null,null,null,null,null,null,null,"Bucarica  34.5 Kv"]
[null,null,null,null,null,null,null,null,null,null,null,null,null,null,null,null,null,null,null,null,null,null,null,null,null,null,null,null,null,null,null,null,null,null,null,null,null,null,"Bucarica 13.8 Kv"]
[null,null,null,null,null,null,null,null,null,null,null,null,null,null,null,null,null,null,null,null,null,null,null,null,null,null,null,null,null,null,null,null,null,null,null,null,null,null,"Buchely"]
[null,null,null,null,null,null,null,null,null,null,null,null,null,null,null,null,null,null,null,null,null,null,null,null,null,null,null,null,null,null,null,null,null,null,null,null,null,null,"Buena Vista"]
[null,null,null,null,null,null,null,null,null,null,null,null,null,null,null,null,null,null,null,null,null,null,null,null,null,null,null,null,null,null,null,null,null,null,null,null,null,null,"Buena Vista 115 Kv"]
[null,null,null,null,null,null,null,null,null,null,null,null,null,null,null,null,null,null,null,null,null,null,null,null,null,null,null,null,null,null,null,null,null,null,null,null,null,null,"Buena Vista 13.8 Kv"]
[null,null,null,null,null,null,null,null,null,null,null,null,null,null,null,null,null,null,null,null,null,null,null,null,null,null,null,null,null,null,null,null,null,null,null,null,null,null,"Buena Vista 34.5 Kv"]
[null,null,null,null,null,null,null,null,null,null,null,null,null,null,null,null,null,null,null,null,null,null,null,null,null,null,null,null,null,null,null,null,null,null,null,null,null,null,"Buenavista"]
[null,null,null,null,null,null,null,null,null,null,null,null,null,null,null,null,null,null,null,null,null,null,null,null,null,null,null,null,null,null,null,null,null,null,null,null,null,null,"Buenos Aires 13.8 Kv"]
[null,null,null,null,null,null,null,null,null,null,null,null,null,null,null,null,null,null,null,null,null,null,null,null,null,null,null,null,null,null,null,null,null,null,null,null,null,null,"Buenos Aires 34.5 Kv"]
[null,null,null,null,null,null,null,null,null,null,null,null,null,null,null,null,null,null,null,null,null,null,null,null,null,null,null,null,null,null,null,null,null,null,null,null,null,null,"Buga"]
[null,null,null,null,null,null,null,null,null,null,null,null,null,null,null,null,null,null,null,null,null,null,null,null,null,null,null,null,null,null,null,null,null,null,null,null,null,null,"Bureche"]
[null,null,null,null,null,null,null,null,null,null,null,null,null,null,null,null,null,null,null,null,null,null,null,null,null,null,null,null,null,null,null,null,null,null,null,null,null,null,"Cabaña"]
[null,null,null,null,null,null,null,null,null,null,null,null,null,null,null,null,null,null,null,null,null,null,null,null,null,null,null,null,null,null,null,null,null,null,null,null,null,null,"Cabañas"]
[null,null,null,null,null,null,null,null,null,null,null,null,null,null,null,null,null,null,null,null,null,null,null,null,null,null,null,null,null,null,null,null,null,null,null,null,null,null,"Cabecera 13.8 Kv"]
[null,null,null,null,null,null,null,null,null,null,null,null,null,null,null,null,null,null,null,null,null,null,null,null,null,null,null,null,null,null,null,null,null,null,null,null,null,null,"Cabecera 34.5 Kv"]
[null,null,null,null,null,null,null,null,null,null,null,null,null,null,null,null,null,null,null,null,null,null,null,null,null,null,null,null,null,null,null,null,null,null,null,null,null,null,"Cabrera"]
[null,null,null,null,null,null,null,null,null,null,null,null,null,null,null,null,null,null,null,null,null,null,null,null,null,null,null,null,null,null,null,null,null,null,null,null,null,null,"Cabuyaro"]
[null,null,null,null,null,null,null,null,null,null,null,null,null,null,null,null,null,null,null,null,null,null,null,null,null,null,null,null,null,null,null,null,null,null,null,null,null,null,"Caceri"]
[null,null,null,null,null,null,null,null,null,null,null,null,null,null,null,null,null,null,null,null,null,null,null,null,null,null,null,null,null,null,null,null,null,null,null,null,null,null,"Cacique"]
[null,null,null,null,null,null,null,null,null,null,null,null,null,null,null,null,null,null,null,null,null,null,null,null,null,null,null,null,null,null,null,null,null,null,null,null,null,null,"Cafe Corriendo 13.8 Kv"]
[null,null,null,null,null,null,null,null,null,null,null,null,null,null,null,null,null,null,null,null,null,null,null,null,null,null,null,null,null,null,null,null,null,null,null,null,null,null,"Cafe Corriendo 34.5 Kv"]
[null,null,null,null,null,null,null,null,null,null,null,null,null,null,null,null,null,null,null,null,null,null,null,null,null,null,null,null,null,null,null,null,null,null,null,null,null,null,"Caicedo Gamma 2"]
[null,null,null,null,null,null,null,null,null,null,null,null,null,null,null,null,null,null,null,null,null,null,null,null,null,null,null,null,null,null,null,null,null,null,null,null,null,null,"Caicedonia"]
[null,null,null,null,null,null,null,null,null,null,null,null,null,null,null,null,null,null,null,null,null,null,null,null,null,null,null,null,null,null,null,null,null,null,null,null,null,null,"Caimo"]
[null,null,null,null,null,null,null,null,null,null,null,null,null,null,null,null,null,null,null,null,null,null,null,null,null,null,null,null,null,null,null,null,null,null,null,null,null,null,"Cajamarca"]
[null,null,null,null,null,null,null,null,null,null,null,null,null,null,null,null,null,null,null,null,null,null,null,null,null,null,null,null,null,null,null,null,null,null,null,null,null,null,"Cajica"]
[null,null,null,null,null,null,null,null,null,null,null,null,null,null,null,null,null,null,null,null,null,null,null,null,null,null,null,null,null,null,null,null,null,null,null,null,null,null,"Cajones (Angulo E)"]
[null,null,null,null,null,null,null,null,null,null,null,null,null,null,null,null,null,null,null,null,null,null,null,null,null,null,null,null,null,null,null,null,null,null,null,null,null,null,"Calamar"]
[null,null,null,null,null,null,null,null,null,null,null,null,null,null,null,null,null,null,null,null,null,null,null,null,null,null,null,null,null,null,null,null,null,null,null,null,null,null,"Calarca"]
[null,null,null,null,null,null,null,null,null,null,null,null,null,null,null,null,null,null,null,null,null,null,null,null,null,null,null,null,null,null,null,null,null,null,null,null,null,null,"Caldas"]
[null,null,null,null,null,null,null,null,null,null,null,null,null,null,null,null,null,null,null,null,null,null,null,null,null,null,null,null,null,null,null,null,null,null,null,null,null,null,"Caldas Viejo"]
[null,null,null,null,null,null,null,null,null,null,null,null,null,null,null,null,null,null,null,null,null,null,null,null,null,null,null,null,null,null,null,null,null,null,null,null,null,null,"Calderas"]
[null,null,null,null,null,null,null,null,null,null,null,null,null,null,null,null,null,null,null,null,null,null,null,null,null,null,null,null,null,null,null,null,null,null,null,null,null,null,"Calera"]
[null,null,null,null,null,null,null,null,null,null,null,null,null,null,null,null,null,null,null,null,null,null,null,null,null,null,null,null,null,null,null,null,null,null,null,null,null,null,"California 13.8 Kv"]
[null,null,null,null,null,null,null,null,null,null,null,null,null,null,null,null,null,null,null,null,null,null,null,null,null,null,null,null,null,null,null,null,null,null,null,null,null,null,"California 34.5 Kv"]
[null,null,null,null,null,null,null,null,null,null,null,null,null,null,null,null,null,null,null,null,null,null,null,null,null,null,null,null,null,null,null,null,null,null,null,null,null,null,"Calima"]
[null,null,null,null,null,null,null,null,null,null,null,null,null,null,null,null,null,null,null,null,null,null,null,null,null,null,null,null,null,null,null,null,null,null,null,null,null,null,"Calizas"]
[null,null,null,null,null,null,null,null,null,null,null,null,null,null,null,null,null,null,null,null,null,null,null,null,null,null,null,null,null,null,null,null,null,null,null,null,null,null,"Calle_51"]
[null,null,null,null,null,null,null,null,null,null,null,null,null,null,null,null,null,null,null,null,null,null,null,null,null,null,null,null,null,null,null,null,null,null,null,null,null,null,"Calle_67"]
[null,null,null,null,null,null,null,null,null,null,null,null,null,null,null,null,null,null,null,null,null,null,null,null,null,null,null,null,null,null,null,null,null,null,null,null,null,null,"Camarones"]
[null,null,null,null,null,null,null,null,null,null,null,null,null,null,null,null,null,null,null,null,null,null,null,null,null,null,null,null,null,null,null,null,null,null,null,null,null,null,"Campestre"]
[null,null,null,null,null,null,null,null,null,null,null,null,null,null,null,null,null,null,null,null,null,null,null,null,null,null,null,null,null,null,null,null,null,null,null,null,null,null,"Campo Alegre"]
[null,null,null,null,null,null,null,null,null,null,null,null,null,null,null,null,null,null,null,null,null,null,null,null,null,null,null,null,null,null,null,null,null,null,null,null,null,null,"Campo Bonito"]
[null,null,null,null,null,null,null,null,null,null,null,null,null,null,null,null,null,null,null,null,null,null,null,null,null,null,null,null,null,null,null,null,null,null,null,null,null,null,"Campo De La Cruz"]
[null,null,null,null,null,null,null,null,null,null,null,null,null,null,null,null,null,null,null,null,null,null,null,null,null,null,null,null,null,null,null,null,null,null,null,null,null,null,"Campoalegre"]
[null,null,null,null,null,null,null,null,null,null,null,null,null,null,null,null,null,null,null,null,null,null,null,null,null,null,null,null,null,null,null,null,null,null,null,null,null,null,"Canabral"]
[null,null,null,null,null,null,null,null,null,null,null,null,null,null,null,null,null,null,null,null,null,null,null,null,null,null,null,null,null,null,null,null,null,null,null,null,null,null,"Cañabraval"]
[null,null,null,null,null,null,null,null,null,null,null,null,null,null,null,null,null,null,null,null,null,null,null,null,null,null,null,null,null,null,null,null,null,null,null,null,null,null,"Canaima"]
[null,null,null,null,null,null,null,null,null,null,null,null,null,null,null,null,null,null,null,null,null,null,null,null,null,null,null,null,null,null,null,null,null,null,null,null,null,null,"Cañasgordas"]
[null,null,null,null,null,null,null,null,null,null,null,null,null,null,null,null,null,null,null,null,null,null,null,null,null,null,null,null,null,null,null,null,null,null,null,null,null,null,"Candelaria"]
[null,null,null,null,null,null,null,null,null,null,null,null,null,null,null,null,null,null,null,null,null,null,null,null,null,null,null,null,null,null,null,null,null,null,null,null,null,null,"Candelaria 220"]
[null,null,null,null,null,null,null,null,null,null,null,null,null,null,null,null,null,null,null,null,null,null,null,null,null,null,null,null,null,null,null,null,null,null,null,null,null,null,"Caneyes 13.8 Kv"]
[null,null,null,null,null,null,null,null,null,null,null,null,null,null,null,null,null,null,null,null,null,null,null,null,null,null,null,null,null,null,null,null,null,null,null,null,null,null,"Caneyes 34.5 Kv"]
[null,null,null,null,null,null,null,null,null,null,null,null,null,null,null,null,null,null,null,null,null,null,null,null,null,null,null,null,null,null,null,null,null,null,null,null,null,null,"Caño Limon"]
[null,null,null,null,null,null,null,null,null,null,null,null,null,null,null,null,null,null,null,null,null,null,null,null,null,null,null,null,null,null,null,null,null,null,null,null,null,null,"Caños Negros"]
[null,null,null,null,null,null,null,null,null,null,null,null,null,null,null,null,null,null,null,null,null,null,null,null,null,null,null,null,null,null,null,null,null,null,null,null,null,null,"Cantagallo 34.5 Kv"]
[null,null,null,null,null,null,null,null,null,null,null,null,null,null,null,null,null,null,null,null,null,null,null,null,null,null,null,null,null,null,null,null,null,null,null,null,null,null,"Cantagallo 4.16 Kv"]
[null,null,null,null,null,null,null,null,null,null,null,null,null,null,null,null,null,null,null,null,null,null,null,null,null,null,null,null,null,null,null,null,null,null,null,null,null,null,"Cantino"]
[null,null,null,null,null,null,null,null,null,null,null,null,null,null,null,null,null,null,null,null,null,null,null,null,null,null,null,null,null,null,null,null,null,null,null,null,null,null,"Caparrapi"]
[null,null,null,null,null,null,null,null,null,null,null,null,null,null,null,null,null,null,null,null,null,null,null,null,null,null,null,null,null,null,null,null,null,null,null,null,null,null,"Capellania"]
[null,null,null,null,null,null,null,null,null,null,null,null,null,null,null,null,null,null,null,null,null,null,null,null,null,null,null,null,null,null,null,null,null,null,null,null,null,null,"Capitanejo 13.8 Kv"]
[null,null,null,null,null,null,null,null,null,null,null,null,null,null,null,null,null,null,null,null,null,null,null,null,null,null,null,null,null,null,null,null,null,null,null,null,null,null,"Capitanejo 34.5 Kv"]
[null,null,null,null,null,null,null,null,null,null,null,null,null,null,null,null,null,null,null,null,null,null,null,null,null,null,null,null,null,null,null,null,null,null,null,null,null,null,"Capricho"]
[null,null,null,null,null,null,null,null,null,null,null,null,null,null,null,null,null,null,null,null,null,null,null,null,null,null,null,null,null,null,null,null,null,null,null,null,null,null,"Caqueza"]
[null,null,null,null,null,null,null,null,null,null,null,null,null,null,null,null,null,null,null,null,null,null,null,null,null,null,null,null,null,null,null,null,null,null,null,null,null,null,"Caracol"]
[null,null,null,null,null,null,null,null,null,null,null,null,null,null,null,null,null,null,null,null,null,null,null,null,null,null,null,null,null,null,null,null,null,null,null,null,null,null,"Caracoli"]
[null,null,null,null,null,null,null,null,null,null,null,null,null,null,null,null,null,null,null,null,null,null,null,null,null,null,null,null,null,null,null,null,null,null,null,null,null,null,"Carepa"]
[null,null,null,null,null,null,null,null,null,null,null,null,null,null,null,null,null,null,null,null,null,null,null,null,null,null,null,null,null,null,null,null,null,null,null,null,null,null,"Carmen De Apicala"]
[null,null,null,null,null,null,null,null,null,null,null,null,null,null,null,null,null,null,null,null,null,null,null,null,null,null,null,null,null,null,null,null,null,null,null,null,null,null,"Carrastol"]
[null,null,null,null,null,null,null,null,null,null,null,null,null,null,null,null,null,null,null,null,null,null,null,null,null,null,null,null,null,null,null,null,null,null,null,null,null,null,"Carreto"]
[null,null,null,null,null,null,null,null,null,null,null,null,null,null,null,null,null,null,null,null,null,null,null,null,null,null,null,null,null,null,null,null,null,null,null,null,null,null,"Carrieles"]
[null,null,null,null,null,null,null,null,null,null,null,null,null,null,null,null,null,null,null,null,null,null,null,null,null,null,null,null,null,null,null,null,null,null,null,null,null,null,"Cartagena"]
[null,null,null,null,null,null,null,null,null,null,null,null,null,null,null,null,null,null,null,null,null,null,null,null,null,null,null,null,null,null,null,null,null,null,null,null,null,null,"Cartagenit"]
[null,null,null,null,null,null,null,null,null,null,null,null,null,null,null,null,null,null,null,null,null,null,null,null,null,null,null,null,null,null,null,null,null,null,null,null,null,null,"Cartago"]
[null,null,null,null,null,null,null,null,null,null,null,null,null,null,null,null,null,null,null,null,null,null,null,null,null,null,null,null,null,null,null,null,null,null,null,null,null,null,"Casa De Zinc"]
[null,null,null,null,null,null,null,null,null,null,null,null,null,null,null,null,null,null,null,null,null,null,null,null,null,null,null,null,null,null,null,null,null,null,null,null,null,null,"Casa Fria"]
[null,null,null,null,null,null,null,null,null,null,null,null,null,null,null,null,null,null,null,null,null,null,null,null,null,null,null,null,null,null,null,null,null,null,null,null,null,null,"Casacara"]
[null,null,null,null,null,null,null,null,null,null,null,null,null,null,null,null,null,null,null,null,null,null,null,null,null,null,null,null,null,null,null,null,null,null,null,null,null,null,"Casetabla"]
[null,null,null,null,null,null,null,null,null,null,null,null,null,null,null,null,null,null,null,null,null,null,null,null,null,null,null,null,null,null,null,null,null,null,null,null,null,null,"Castalia"]
[null,null,null,null,null,null,null,null,null,null,null,null,null,null,null,null,null,null,null,null,null,null,null,null,null,null,null,null,null,null,null,null,null,null,null,null,null,null,"Castellana"]
[null,null,null,null,null,null,null,null,null,null,null,null,null,null,null,null,null,null,null,null,null,null,null,null,null,null,null,null,null,null,null,null,null,null,null,null,null,null,"Castilla"]
[null,null,null,null,null,null,null,null,null,null,null,null,null,null,null,null,null,null,null,null,null,null,null,null,null,null,null,null,null,null,null,null,null,null,null,null,null,null,"Castilla La Nueva"]
[null,null,null,null,null,null,null,null,null,null,null,null,null,null,null,null,null,null,null,null,null,null,null,null,null,null,null,null,null,null,null,null,null,null,null,null,null,null,"Catama"]
[null,null,null,null,null,null,null,null,null,null,null,null,null,null,null,null,null,null,null,null,null,null,null,null,null,null,null,null,null,null,null,null,null,null,null,null,null,null,"Catambuco"]
[null,null,null,null,null,null,null,null,null,null,null,null,null,null,null,null,null,null,null,null,null,null,null,null,null,null,null,null,null,null,null,null,null,null,null,null,null,null,"Caucasia"]
[null,null,null,null,null,null,null,null,null,null,null,null,null,null,null,null,null,null,null,null,null,null,null,null,null,null,null,null,null,null,null,null,null,null,null,null,null,null,"Caucheras"]
[null,null,null,null,null,null,null,null,null,null,null,null,null,null,null,null,null,null,null,null,null,null,null,null,null,null,null,null,null,null,null,null,null,null,null,null,null,null,"Cayunda"]
[null,null,null,null,null,null,null,null,null,null,null,null,null,null,null,null,null,null,null,null,null,null,null,null,null,null,null,null,null,null,null,null,null,null,null,null,null,null,"Cemex"]
[null,null,null,null,null,null,null,null,null,null,null,null,null,null,null,null,null,null,null,null,null,null,null,null,null,null,null,null,null,null,null,null,null,null,null,null,null,null,"Centauros"]
[null,null,null,null,null,null,null,null,null,null,null,null,null,null,null,null,null,null,null,null,null,null,null,null,null,null,null,null,null,null,null,null,null,null,null,null,null,null,"Centenario"]
[null,null,null,null,null,null,null,null,null,null,null,null,null,null,null,null,null,null,null,null,null,null,null,null,null,null,null,null,null,null,null,null,null,null,null,null,null,null,"Central"]
[null,null,null,null,null,null,null,null,null,null,null,null,null,null,null,null,null,null,null,null,null,null,null,null,null,null,null,null,null,null,null,null,null,null,null,null,null,null,"Central Hidro Amaime"]
[null,null,null,null,null,null,null,null,null,null,null,null,null,null,null,null,null,null,null,null,null,null,null,null,null,null,null,null,null,null,null,null,null,null,null,null,null,null,"Centro"]
[null,null,null,null,null,null,null,null,null,null,null,null,null,null,null,null,null,null,null,null,null,null,null,null,null,null,null,null,null,null,null,null,null,null,null,null,null,null,"Centro Alegre"]
[null,null,null,null,null,null,null,null,null,null,null,null,null,null,null,null,null,null,null,null,null,null,null,null,null,null,null,null,null,null,null,null,null,null,null,null,null,null,"Centrochia"]
[null,null,null,null,null,null,null,null,null,null,null,null,null,null,null,null,null,null,null,null,null,null,null,null,null,null,null,null,null,null,null,null,null,null,null,null,null,null,"Cerete"]
[null,null,null,null,null,null,null,null,null,null,null,null,null,null,null,null,null,null,null,null,null,null,null,null,null,null,null,null,null,null,null,null,null,null,null,null,null,null,"Cerete 110 Kv"]
[null,null,null,null,null,null,null,null,null,null,null,null,null,null,null,null,null,null,null,null,null,null,null,null,null,null,null,null,null,null,null,null,null,null,null,null,null,null,"Cerromatoso"]
[null,null,null,null,null,null,null,null,null,null,null,null,null,null,null,null,null,null,null,null,null,null,null,null,null,null,null,null,null,null,null,null,null,null,null,null,null,null,"Certegui"]
[null,null,null,null,null,null,null,null,null,null,null,null,null,null,null,null,null,null,null,null,null,null,null,null,null,null,null,null,null,null,null,null,null,null,null,null,null,null,"Ch Alto Tulua"]
[null,null,null,null,null,null,null,null,null,null,null,null,null,null,null,null,null,null,null,null,null,null,null,null,null,null,null,null,null,null,null,null,null,null,null,null,null,null,"Ch Bajo Tulua"]
[null,null,null,null,null,null,null,null,null,null,null,null,null,null,null,null,null,null,null,null,null,null,null,null,null,null,null,null,null,null,null,null,null,null,null,null,null,null,"Chachagüi"]
[null,null,null,null,null,null,null,null,null,null,null,null,null,null,null,null,null,null,null,null,null,null,null,null,null,null,null,null,null,null,null,null,null,null,null,null,null,null,"Chambacu"]
[null,null,null,null,null,null,null,null,null,null,null,null,null,null,null,null,null,null,null,null,null,null,null,null,null,null,null,null,null,null,null,null,null,null,null,null,null,null,"Chameza"]
[null,null,null,null,null,null,null,null,null,null,null,null,null,null,null,null,null,null,null,null,null,null,null,null,null,null,null,null,null,null,null,null,null,null,null,null,null,null,"Chapeton"]
[null,null,null,null,null,null,null,null,null,null,null,null,null,null,null,null,null,null,null,null,null,null,null,null,null,null,null,null,null,null,null,null,null,null,null,null,null,null,"Charala 13.8 Kv"]
[null,null,null,null,null,null,null,null,null,null,null,null,null,null,null,null,null,null,null,null,null,null,null,null,null,null,null,null,null,null,null,null,null,null,null,null,null,null,"Charala 34.5 Kv"]
[null,null,null,null,null,null,null,null,null,null,null,null,null,null,null,null,null,null,null,null,null,null,null,null,null,null,null,null,null,null,null,null,null,null,null,null,null,null,"Charquito"]
[null,null,null,null,null,null,null,null,null,null,null,null,null,null,null,null,null,null,null,null,null,null,null,null,null,null,null,null,null,null,null,null,null,null,null,null,null,null,"Charte"]
[null,null,null,null,null,null,null,null,null,null,null,null,null,null,null,null,null,null,null,null,null,null,null,null,null,null,null,null,null,null,null,null,null,null,null,null,null,null,"Chenche"]
[null,null,null,null,null,null,null,null,null,null,null,null,null,null,null,null,null,null,null,null,null,null,null,null,null,null,null,null,null,null,null,null,null,null,null,null,null,null,"Chia"]
[null,null,null,null,null,null,null,null,null,null,null,null,null,null,null,null,null,null,null,null,null,null,null,null,null,null,null,null,null,null,null,null,null,null,null,null,null,null,"Chicala"]
[null,null,null,null,null,null,null,null,null,null,null,null,null,null,null,null,null,null,null,null,null,null,null,null,null,null,null,null,null,null,null,null,null,null,null,null,null,null,"Chicamocha 13.8 Kv"]
[null,null,null,null,null,null,null,null,null,null,null,null,null,null,null,null,null,null,null,null,null,null,null,null,null,null,null,null,null,null,null,null,null,null,null,null,null,null,"Chicamocha 34.5 Kv"]
[null,null,null,null,null,null,null,null,null,null,null,null,null,null,null,null,null,null,null,null,null,null,null,null,null,null,null,null,null,null,null,null,null,null,null,null,null,null,"Chigorodo"]
[null,null,null,null,null,null,null,null,null,null,null,null,null,null,null,null,null,null,null,null,null,null,null,null,null,null,null,null,null,null,null,null,null,null,null,null,null,null,"Chinauta"]
[null,null,null,null,null,null,null,null,null,null,null,null,null,null,null,null,null,null,null,null,null,null,null,null,null,null,null,null,null,null,null,null,null,null,null,null,null,null,"Chinavita"]
[null,null,null,null,null,null,null,null,null,null,null,null,null,null,null,null,null,null,null,null,null,null,null,null,null,null,null,null,null,null,null,null,null,null,null,null,null,null,"Chinchina"]
[null,null,null,null,null,null,null,null,null,null,null,null,null,null,null,null,null,null,null,null,null,null,null,null,null,null,null,null,null,null,null,null,null,null,null,null,null,null,"Chinu"]
[null,null,null,null,null,null,null,null,null,null,null,null,null,null,null,null,null,null,null,null,null,null,null,null,null,null,null,null,null,null,null,null,null,null,null,null,null,null,"Chinú"]
[null,null,null,null,null,null,null,null,null,null,null,null,null,null,null,null,null,null,null,null,null,null,null,null,null,null,null,null,null,null,null,null,null,null,null,null,null,null,"Chinu Planta"]
[null,null,null,null,null,null,null,null,null,null,null,null,null,null,null,null,null,null,null,null,null,null,null,null,null,null,null,null,null,null,null,null,null,null,null,null,null,null,"Chipichape"]
[null,null,null,null,null,null,null,null,null,null,null,null,null,null,null,null,null,null,null,null,null,null,null,null,null,null,null,null,null,null,null,null,null,null,null,null,null,null,"Chipre"]
[null,null,null,null,null,null,null,null,null,null,null,null,null,null,null,null,null,null,null,null,null,null,null,null,null,null,null,null,null,null,null,null,null,null,null,null,null,null,"Chiquinquira"]
[null,null,null,null,null,null,null,null,null,null,null,null,null,null,null,null,null,null,null,null,null,null,null,null,null,null,null,null,null,null,null,null,null,null,null,null,null,null,"Chire"]
[null,null,null,null,null,null,null,null,null,null,null,null,null,null,null,null,null,null,null,null,null,null,null,null,null,null,null,null,null,null,null,null,null,null,null,null,null,null,"Chiriguana"]
[null,null,null,null,null,null,null,null,null,null,null,null,null,null,null,null,null,null,null,null,null,null,null,null,null,null,null,null,null,null,null,null,null,null,null,null,null,null,"Chita"]
[null,null,null,null,null,null,null,null,null,null,null,null,null,null,null,null,null,null,null,null,null,null,null,null,null,null,null,null,null,null,null,null,null,null,null,null,null,null,"Chitaraque"]
[null,null,null,null,null,null,null,null,null,null,null,null,null,null,null,null,null,null,null,null,null,null,null,null,null,null,null,null,null,null,null,null,null,null,null,null,null,null,"Chivor"]
[null,null,null,null,null,null,null,null,null,null,null,null,null,null,null,null,null,null,null,null,null,null,null,null,null,null,null,null,null,null,null,null,null,null,null,null,null,null,"Chivor Ii 230"]
[null,null,null,null,null,null,null,null,null,null,null,null,null,null,null,null,null,null,null,null,null,null,null,null,null,null,null,null,null,null,null,null,null,null,null,null,null,null,"Choachi"]
[null,null,null,null,null,null,null,null,null,null,null,null,null,null,null,null,null,null,null,null,null,null,null,null,null,null,null,null,null,null,null,null,null,null,null,null,null,null,"Choconta"]
[null,null,null,null,null,null,null,null,null,null,null,null,null,null,null,null,null,null,null,null,null,null,null,null,null,null,null,null,null,null,null,null,null,null,null,null,null,null,"Chorodo"]
[null,null,null,null,null,null,null,null,null,null,null,null,null,null,null,null,null,null,null,null,null,null,null,null,null,null,null,null,null,null,null,null,null,null,null,null,null,null,"Cienaga"]
[null,null,null,null,null,null,null,null,null,null,null,null,null,null,null,null,null,null,null,null,null,null,null,null,null,null,null,null,null,null,null,null,null,null,null,null,null,null,"Cienaga 13.8 Kv"]
[null,null,null,null,null,null,null,null,null,null,null,null,null,null,null,null,null,null,null,null,null,null,null,null,null,null,null,null,null,null,null,null,null,null,null,null,null,null,"Cienaga 34.5 Kv"]
[null,null,null,null,null,null,null,null,null,null,null,null,null,null,null,null,null,null,null,null,null,null,null,null,null,null,null,null,null,null,null,null,null,null,null,null,null,null,"Cienaga De Oro"]
[null,null,null,null,null,null,null,null,null,null,null,null,null,null,null,null,null,null,null,null,null,null,null,null,null,null,null,null,null,null,null,null,null,null,null,null,null,null,"Cimitarra 115 Kv"]
[null,null,null,null,null,null,null,null,null,null,null,null,null,null,null,null,null,null,null,null,null,null,null,null,null,null,null,null,null,null,null,null,null,null,null,null,null,null,"Cimitarra 13.8 Kv"]
[null,null,null,null,null,null,null,null,null,null,null,null,null,null,null,null,null,null,null,null,null,null,null,null,null,null,null,null,null,null,null,null,null,null,null,null,null,null,"Cimitarra 34.5 Kv"]
[null,null,null,null,null,null,null,null,null,null,null,null,null,null,null,null,null,null,null,null,null,null,null,null,null,null,null,null,null,null,null,null,null,null,null,null,null,null,"Circo"]
[null,null,null,null,null,null,null,null,null,null,null,null,null,null,null,null,null,null,null,null,null,null,null,null,null,null,null,null,null,null,null,null,null,null,null,null,null,null,"Circo 230"]
[null,null,null,null,null,null,null,null,null,null,null,null,null,null,null,null,null,null,null,null,null,null,null,null,null,null,null,null,null,null,null,null,null,null,null,null,null,null,"Cirilo"]
[null,null,null,null,null,null,null,null,null,null,null,null,null,null,null,null,null,null,null,null,null,null,null,null,null,null,null,null,null,null,null,null,null,null,null,null,null,null,"Ciudad Del Sur"]
[null,null,null,null,null,null,null,null,null,null,null,null,null,null,null,null,null,null,null,null,null,null,null,null,null,null,null,null,null,null,null,null,null,null,null,null,null,null,"Ciudadela"]
[null,null,null,null,null,null,null,null,null,null,null,null,null,null,null,null,null,null,null,null,null,null,null,null,null,null,null,null,null,null,null,null,null,null,null,null,null,null,"Ciudadela Artesanal"]
[null,null,null,null,null,null,null,null,null,null,null,null,null,null,null,null,null,null,null,null,null,null,null,null,null,null,null,null,null,null,null,null,null,null,null,null,null,null,"Cocorna Regional 219"]
[null,null,null,null,null,null,null,null,null,null,null,null,null,null,null,null,null,null,null,null,null,null,null,null,null,null,null,null,null,null,null,null,null,null,null,null,null,null,"Codazzi"]
[null,null,null,null,null,null,null,null,null,null,null,null,null,null,null,null,null,null,null,null,null,null,null,null,null,null,null,null,null,null,null,null,null,null,null,null,null,null,"Coello"]
[null,null,null,null,null,null,null,null,null,null,null,null,null,null,null,null,null,null,null,null,null,null,null,null,null,null,null,null,null,null,null,null,null,null,null,null,null,null,"Colectora 500"]
[null,null,null,null,null,null,null,null,null,null,null,null,null,null,null,null,null,null,null,null,null,null,null,null,null,null,null,null,null,null,null,null,null,null,null,null,null,null,"Colegio"]
[null,null,null,null,null,null,null,null,null,null,null,null,null,null,null,null,null,null,null,null,null,null,null,null,null,null,null,null,null,null,null,null,null,null,null,null,null,null,"Colombia"]
[null,null,null,null,null,null,null,null,null,null,null,null,null,null,null,null,null,null,null,null,null,null,null,null,null,null,null,null,null,null,null,null,null,null,null,null,null,null,"Colomboy"]
[null,null,null,null,null,null,null,null,null,null,null,null,null,null,null,null,null,null,null,null,null,null,null,null,null,null,null,null,null,null,null,null,null,null,null,null,null,null,"Colorado"]
[null,null,null,null,null,null,null,null,null,null,null,null,null,null,null,null,null,null,null,null,null,null,null,null,null,null,null,null,null,null,null,null,null,null,null,null,null,null,"Combita"]
[null,null,null,null,null,null,null,null,null,null,null,null,null,null,null,null,null,null,null,null,null,null,null,null,null,null,null,null,null,null,null,null,null,null,null,null,null,null,"Compartir"]
[null,null,null,null,null,null,null,null,null,null,null,null,null,null,null,null,null,null,null,null,null,null,null,null,null,null,null,null,null,null,null,null,null,null,null,null,null,null,"Comuneros"]
[null,null,null,null,null,null,null,null,null,null,null,null,null,null,null,null,null,null,null,null,null,null,null,null,null,null,null,null,null,null,null,null,null,null,null,null,null,null,"Concordia"]
[null,null,null,null,null,null,null,null,null,null,null,null,null,null,null,null,null,null,null,null,null,null,null,null,null,null,null,null,null,null,null,null,null,null,null,null,null,null,"Cond_Peñon"]
[null,null,null,null,null,null,null,null,null,null,null,null,null,null,null,null,null,null,null,null,null,null,null,null,null,null,null,null,null,null,null,null,null,null,null,null,null,null,"Conto"]
[null,null,null,null,null,null,null,null,null,null,null,null,null,null,null,null,null,null,null,null,null,null,null,null,null,null,null,null,null,null,null,null,null,null,null,null,null,null,"Contratacion 13.8 Kv"]
[null,null,null,null,null,null,null,null,null,null,null,null,null,null,null,null,null,null,null,null,null,null,null,null,null,null,null,null,null,null,null,null,null,null,null,null,null,null,"Contratacion 34.5 Kv"]
[null,null,null,null,null,null,null,null,null,null,null,null,null,null,null,null,null,null,null,null,null,null,null,null,null,null,null,null,null,null,null,null,null,null,null,null,null,null,"Conuco 115 Kv"]
[null,null,null,null,null,null,null,null,null,null,null,null,null,null,null,null,null,null,null,null,null,null,null,null,null,null,null,null,null,null,null,null,null,null,null,null,null,null,"Conuco 13.8 Kv"]
[null,null,null,null,null,null,null,null,null,null,null,null,null,null,null,null,null,null,null,null,null,null,null,null,null,null,null,null,null,null,null,null,null,null,null,null,null,null,"Conuco 34.5 Kv"]
[null,null,null,null,null,null,null,null,null,null,null,null,null,null,null,null,null,null,null,null,null,null,null,null,null,null,null,null,null,null,null,null,null,null,null,null,null,null,"Cordialidad"]
[null,null,null,null,null,null,null,null,null,null,null,null,null,null,null,null,null,null,null,null,null,null,null,null,null,null,null,null,null,null,null,null,null,null,null,null,null,null,"Cordoba"]
[null,null,null,null,null,null,null,null,null,null,null,null,null,null,null,null,null,null,null,null,null,null,null,null,null,null,null,null,null,null,null,null,null,null,null,null,null,null,"Corinto"]
[null,null,null,null,null,null,null,null,null,null,null,null,null,null,null,null,null,null,null,null,null,null,null,null,null,null,null,null,null,null,null,null,null,null,null,null,null,null,"Corozal"]
[null,null,null,null,null,null,null,null,null,null,null,null,null,null,null,null,null,null,null,null,null,null,null,null,null,null,null,null,null,null,null,null,null,null,null,null,null,null,"Corrales"]
[null,null,null,null,null,null,null,null,null,null,null,null,null,null,null,null,null,null,null,null,null,null,null,null,null,null,null,null,null,null,null,null,null,null,null,null,null,null,"Corzo"]
[null,null,null,null,null,null,null,null,null,null,null,null,null,null,null,null,null,null,null,null,null,null,null,null,null,null,null,null,null,null,null,null,null,null,null,null,null,null,"Cospique"]
[null,null,null,null,null,null,null,null,null,null,null,null,null,null,null,null,null,null,null,null,null,null,null,null,null,null,null,null,null,null,null,null,null,null,null,null,null,null,"Costa Rica"]
[null,null,null,null,null,null,null,null,null,null,null,null,null,null,null,null,null,null,null,null,null,null,null,null,null,null,null,null,null,null,null,null,null,null,null,null,null,null,"Cota"]
[null,null,null,null,null,null,null,null,null,null,null,null,null,null,null,null,null,null,null,null,null,null,null,null,null,null,null,null,null,null,null,null,null,null,null,null,null,null,"Cotorra"]
[null,null,null,null,null,null,null,null,null,null,null,null,null,null,null,null,null,null,null,null,null,null,null,null,null,null,null,null,null,null,null,null,null,null,null,null,null,null,"Coveñas"]
[null,null,null,null,null,null,null,null,null,null,null,null,null,null,null,null,null,null,null,null,null,null,null,null,null,null,null,null,null,null,null,null,null,null,null,null,null,null,"Coyaima"]
[null,null,null,null,null,null,null,null,null,null,null,null,null,null,null,null,null,null,null,null,null,null,null,null,null,null,null,null,null,null,null,null,null,null,null,null,null,null,"Cra_Quinta"]
[null,null,null,null,null,null,null,null,null,null,null,null,null,null,null,null,null,null,null,null,null,null,null,null,null,null,null,null,null,null,null,null,null,null,null,null,null,null,"Cravo Norte"]
[null,null,null,null,null,null,null,null,null,null,null,null,null,null,null,null,null,null,null,null,null,null,null,null,null,null,null,null,null,null,null,null,null,null,null,null,null,null,"Cristal"]
[null,null,null,null,null,null,null,null,null,null,null,null,null,null,null,null,null,null,null,null,null,null,null,null,null,null,null,null,null,null,null,null,null,null,null,null,null,null,"Cristalina"]
[null,null,null,null,null,null,null,null,null,null,null,null,null,null,null,null,null,null,null,null,null,null,null,null,null,null,null,null,null,null,null,null,null,null,null,null,null,null,"Cristalinas"]
[null,null,null,null,null,null,null,null,null,null,null,null,null,null,null,null,null,null,null,null,null,null,null,null,null,null,null,null,null,null,null,null,null,null,null,null,null,null,"Cuba"]
[null,null,null,null,null,null,null,null,null,null,null,null,null,null,null,null,null,null,null,null,null,null,null,null,null,null,null,null,null,null,null,null,null,null,null,null,null,null,"Cubarral"]
[null,null,null,null,null,null,null,null,null,null,null,null,null,null,null,null,null,null,null,null,null,null,null,null,null,null,null,null,null,null,null,null,null,null,null,null,null,null,"Cuchilla Del Ramo 13.8 Kv"]
[null,null,null,null,null,null,null,null,null,null,null,null,null,null,null,null,null,null,null,null,null,null,null,null,null,null,null,null,null,null,null,null,null,null,null,null,null,null,"Cuchilla Del Ramo 34.5 Kv"]
[null,null,null,null,null,null,null,null,null,null,null,null,null,null,null,null,null,null,null,null,null,null,null,null,null,null,null,null,null,null,null,null,null,null,null,null,null,null,"Cucunuba"]
[null,null,null,null,null,null,null,null,null,null,null,null,null,null,null,null,null,null,null,null,null,null,null,null,null,null,null,null,null,null,null,null,null,null,null,null,null,null,"Cuestecita"]
[null,null,null,null,null,null,null,null,null,null,null,null,null,null,null,null,null,null,null,null,null,null,null,null,null,null,null,null,null,null,null,null,null,null,null,null,null,null,"Cuestecitas"]
[null,null,null,null,null,null,null,null,null,null,null,null,null,null,null,null,null,null,null,null,null,null,null,null,null,null,null,null,null,null,null,null,null,null,null,null,null,null,"Cuestecitas (Isa)"]
[null,null,null,null,null,null,null,null,null,null,null,null,null,null,null,null,null,null,null,null,null,null,null,null,null,null,null,null,null,null,null,null,null,null,null,null,null,null,"Cuiva"]
[null,null,null,null,null,null,null,null,null,null,null,null,null,null,null,null,null,null,null,null,null,null,null,null,null,null,null,null,null,null,null,null,null,null,null,null,null,null,"Cumaral"]
[null,null,null,null,null,null,null,null,null,null,null,null,null,null,null,null,null,null,null,null,null,null,null,null,null,null,null,null,null,null,null,null,null,null,null,null,null,null,"Cumbal"]
[null,null,null,null,null,null,null,null,null,null,null,null,null,null,null,null,null,null,null,null,null,null,null,null,null,null,null,null,null,null,null,null,null,null,null,null,null,null,"Cunday"]
[null,null,null,null,null,null,null,null,null,null,null,null,null,null,null,null,null,null,null,null,null,null,null,null,null,null,null,null,null,null,null,null,null,null,null,null,null,null,"Cupiagua"]
[null,null,null,null,null,null,null,null,null,null,null,null,null,null,null,null,null,null,null,null,null,null,null,null,null,null,null,null,null,null,null,null,null,null,null,null,null,null,"Curumani"]
[null,null,null,null,null,null,null,null,null,null,null,null,null,null,null,null,null,null,null,null,null,null,null,null,null,null,null,null,null,null,null,null,null,null,null,null,null,null,"Cusagui"]
[null,null,null,null,null,null,null,null,null,null,null,null,null,null,null,null,null,null,null,null,null,null,null,null,null,null,null,null,null,null,null,null,null,null,null,null,null,null,"Cuturu"]
[null,null,null,null,null,null,null,null,null,null,null,null,null,null,null,null,null,null,null,null,null,null,null,null,null,null,null,null,null,null,null,null,null,null,null,null,null,null,"Dabeiba"]
[null,null,null,null,null,null,null,null,null,null,null,null,null,null,null,null,null,null,null,null,null,null,null,null,null,null,null,null,null,null,null,null,null,null,null,null,null,null,"Dagua"]
[null,null,null,null,null,null,null,null,null,null,null,null,null,null,null,null,null,null,null,null,null,null,null,null,null,null,null,null,null,null,null,null,null,null,null,null,null,null,"Delicias"]
[null,null,null,null,null,null,null,null,null,null,null,null,null,null,null,null,null,null,null,null,null,null,null,null,null,null,null,null,null,null,null,null,null,null,null,null,null,null,"Diaco"]
[null,null,null,null,null,null,null,null,null,null,null,null,null,null,null,null,null,null,null,null,null,null,null,null,null,null,null,null,null,null,null,null,null,null,null,null,null,null,"Diamante"]
[null,null,null,null,null,null,null,null,null,null,null,null,null,null,null,null,null,null,null,null,null,null,null,null,null,null,null,null,null,null,null,null,null,null,null,null,null,null,"Diamante La Linea"]
[null,null,null,null,null,null,null,null,null,null,null,null,null,null,null,null,null,null,null,null,null,null,null,null,null,null,null,null,null,null,null,null,null,null,null,null,null,null,"Diesel  1"]
[null,null,null,null,null,null,null,null,null,null,null,null,null,null,null,null,null,null,null,null,null,null,null,null,null,null,null,null,null,null,null,null,null,null,null,null,null,null,"Diesel  2"]
[null,null,null,null,null,null,null,null,null,null,null,null,null,null,null,null,null,null,null,null,null,null,null,null,null,null,null,null,null,null,null,null,null,null,null,null,null,null,"Dique Rio Bamba"]
[null,null,null,null,null,null,null,null,null,null,null,null,null,null,null,null,null,null,null,null,null,null,null,null,null,null,null,null,null,null,null,null,null,null,null,null,null,null,"Doima"]
[null,null,null,null,null,null,null,null,null,null,null,null,null,null,null,null,null,null,null,null,null,null,null,null,null,null,null,null,null,null,null,null,null,null,null,null,null,null,"Dolores"]
[null,null,null,null,null,null,null,null,null,null,null,null,null,null,null,null,null,null,null,null,null,null,null,null,null,null,null,null,null,null,null,null,null,null,null,null,null,null,"Donato"]
[null,null,null,null,null,null,null,null,null,null,null,null,null,null,null,null,null,null,null,null,null,null,null,null,null,null,null,null,null,null,null,null,null,null,null,null,null,null,"Doncello"]
[null,null,null,null,null,null,null,null,null,null,null,null,null,null,null,null,null,null,null,null,null,null,null,null,null,null,null,null,null,null,null,null,null,null,null,null,null,null,"Dorada Norte"]
[null,null,null,null,null,null,null,null,null,null,null,null,null,null,null,null,null,null,null,null,null,null,null,null,null,null,null,null,null,null,null,null,null,null,null,null,null,null,"Doradal"]
[null,null,null,null,null,null,null,null,null,null,null,null,null,null,null,null,null,null,null,null,null,null,null,null,null,null,null,null,null,null,null,null,null,null,null,null,null,null,"Dorado"]
[null,null,null,null,null,null,null,null,null,null,null,null,null,null,null,null,null,null,null,null,null,null,null,null,null,null,null,null,null,null,null,null,null,null,null,null,null,null,"Dosquebradas 115 Kv"]
[null,null,null,null,null,null,null,null,null,null,null,null,null,null,null,null,null,null,null,null,null,null,null,null,null,null,null,null,null,null,null,null,null,null,null,null,null,null,"Dosquebradas 33 Kv"]
[null,null,null,null,null,null,null,null,null,null,null,null,null,null,null,null,null,null,null,null,null,null,null,null,null,null,null,null,null,null,null,null,null,null,null,null,null,null,"Drummond"]
[null,null,null,null,null,null,null,null,null,null,null,null,null,null,null,null,null,null,null,null,null,null,null,null,null,null,null,null,null,null,null,null,null,null,null,null,null,null,"Ebejico"]
[null,null,null,null,null,null,null,null,null,null,null,null,null,null,null,null,null,null,null,null,null,null,null,null,null,null,null,null,null,null,null,null,null,null,null,null,null,null,"El Arenal"]
[null,null,null,null,null,null,null,null,null,null,null,null,null,null,null,null,null,null,null,null,null,null,null,null,null,null,null,null,null,null,null,null,null,null,null,null,null,null,"El Bagre"]
[null,null,null,null,null,null,null,null,null,null,null,null,null,null,null,null,null,null,null,null,null,null,null,null,null,null,null,null,null,null,null,null,null,null,null,null,null,null,"El Banco"]
[null,null,null,null,null,null,null,null,null,null,null,null,null,null,null,null,null,null,null,null,null,null,null,null,null,null,null,null,null,null,null,null,null,null,null,null,null,null,"El Bolo"]
[null,null,null,null,null,null,null,null,null,null,null,null,null,null,null,null,null,null,null,null,null,null,null,null,null,null,null,null,null,null,null,null,null,null,null,null,null,null,"El Bosque"]
[null,null,null,null,null,null,null,null,null,null,null,null,null,null,null,null,null,null,null,null,null,null,null,null,null,null,null,null,null,null,null,null,null,null,null,null,null,null,"El Bote"]
[null,null,null,null,null,null,null,null,null,null,null,null,null,null,null,null,null,null,null,null,null,null,null,null,null,null,null,null,null,null,null,null,null,null,null,null,null,null,"El Brillante"]
[null,null,null,null,null,null,null,null,null,null,null,null,null,null,null,null,null,null,null,null,null,null,null,null,null,null,null,null,null,null,null,null,null,null,null,null,null,null,"El Burro"]
[null,null,null,null,null,null,null,null,null,null,null,null,null,null,null,null,null,null,null,null,null,null,null,null,null,null,null,null,null,null,null,null,null,null,null,null,null,null,"El Carmelo"]
[null,null,null,null,null,null,null,null,null,null,null,null,null,null,null,null,null,null,null,null,null,null,null,null,null,null,null,null,null,null,null,null,null,null,null,null,null,null,"El Carmen"]
[null,null,null,null,null,null,null,null,null,null,null,null,null,null,null,null,null,null,null,null,null,null,null,null,null,null,null,null,null,null,null,null,null,null,null,null,null,null,"El Carmen 13.8 Kv"]
[null,null,null,null,null,null,null,null,null,null,null,null,null,null,null,null,null,null,null,null,null,null,null,null,null,null,null,null,null,null,null,null,null,null,null,null,null,null,"El Carmen 34.5 Kv"]
[null,null,null,null,null,null,null,null,null,null,null,null,null,null,null,null,null,null,null,null,null,null,null,null,null,null,null,null,null,null,null,null,null,null,null,null,null,null,"El Carmen De Viboral"]
[null,null,null,null,null,null,null,null,null,null,null,null,null,null,null,null,null,null,null,null,null,null,null,null,null,null,null,null,null,null,null,null,null,null,null,null,null,null,"El Castillo"]
[null,null,null,null,null,null,null,null,null,null,null,null,null,null,null,null,null,null,null,null,null,null,null,null,null,null,null,null,null,null,null,null,null,null,null,null,null,null,"El Caucho"]
[null,null,null,null,null,null,null,null,null,null,null,null,null,null,null,null,null,null,null,null,null,null,null,null,null,null,null,null,null,null,null,null,null,null,null,null,null,null,"El Cero 13.8 Kv"]
[null,null,null,null,null,null,null,null,null,null,null,null,null,null,null,null,null,null,null,null,null,null,null,null,null,null,null,null,null,null,null,null,null,null,null,null,null,null,"El Cero 34.5 Kv"]
[null,null,null,null,null,null,null,null,null,null,null,null,null,null,null,null,null,null,null,null,null,null,null,null,null,null,null,null,null,null,null,null,null,null,null,null,null,null,"El Cerrito"]
[null,null,null,null,null,null,null,null,null,null,null,null,null,null,null,null,null,null,null,null,null,null,null,null,null,null,null,null,null,null,null,null,null,null,null,null,null,null,"El Charco"]
[null,null,null,null,null,null,null,null,null,null,null,null,null,null,null,null,null,null,null,null,null,null,null,null,null,null,null,null,null,null,null,null,null,null,null,null,null,null,"El Copey"]
[null,null,null,null,null,null,null,null,null,null,null,null,null,null,null,null,null,null,null,null,null,null,null,null,null,null,null,null,null,null,null,null,null,null,null,null,null,null,"El Cortijo"]
[null,null,null,null,null,null,null,null,null,null,null,null,null,null,null,null,null,null,null,null,null,null,null,null,null,null,null,null,null,null,null,null,null,null,null,null,null,null,"El Crucero"]
[null,null,null,null,null,null,null,null,null,null,null,null,null,null,null,null,null,null,null,null,null,null,null,null,null,null,null,null,null,null,null,null,null,null,null,null,null,null,"El Darien"]
[null,null,null,null,null,null,null,null,null,null,null,null,null,null,null,null,null,null,null,null,null,null,null,null,null,null,null,null,null,null,null,null,null,null,null,null,null,null,"El Desastre"]
[null,null,null,null,null,null,null,null,null,null,null,null,null,null,null,null,null,null,null,null,null,null,null,null,null,null,null,null,null,null,null,null,null,null,null,null,null,null,"El Dificil"]
[null,null,null,null,null,null,null,null,null,null,null,null,null,null,null,null,null,null,null,null,null,null,null,null,null,null,null,null,null,null,null,null,null,null,null,null,null,null,"El Dorado"]
[null,null,null,null,null,null,null,null,null,null,null,null,null,null,null,null,null,null,null,null,null,null,null,null,null,null,null,null,null,null,null,null,null,null,null,null,null,null,"El Dovio"]
[null,null,null,null,null,null,null,null,null,null,null,null,null,null,null,null,null,null,null,null,null,null,null,null,null,null,null,null,null,null,null,null,null,null,null,null,null,null,"El Encano"]
[null,null,null,null,null,null,null,null,null,null,null,null,null,null,null,null,null,null,null,null,null,null,null,null,null,null,null,null,null,null,null,null,null,null,null,null,null,null,"El Guamal"]
[null,null,null,null,null,null,null,null,null,null,null,null,null,null,null,null,null,null,null,null,null,null,null,null,null,null,null,null,null,null,null,null,null,null,null,null,null,null,"El Huche"]
[null,null,null,null,null,null,null,null,null,null,null,null,null,null,null,null,null,null,null,null,null,null,null,null,null,null,null,null,null,null,null,null,null,null,null,null,null,null,"El Lago"]
[null,null,null,null,null,null,null,null,null,null,null,null,null,null,null,null,null,null,null,null,null,null,null,null,null,null,null,null,null,null,null,null,null,null,null,null,null,null,"El Limon"]
[null,null,null,null,null,null,null,null,null,null,null,null,null,null,null,null,null,null,null,null,null,null,null,null,null,null,null,null,null,null,null,null,null,null,null,null,null,null,"El Llano"]
[null,null,null,null,null,null,null,null,null,null,null,null,null,null,null,null,null,null,null,null,null,null,null,null,null,null,null,null,null,null,null,null,null,null,null,null,null,null,"El Maria"]
[null,null,null,null,null,null,null,null,null,null,null,null,null,null,null,null,null,null,null,null,null,null,null,null,null,null,null,null,null,null,null,null,null,null,null,null,null,null,"El Morro"]
[null,null,null,null,null,null,null,null,null,null,null,null,null,null,null,null,null,null,null,null,null,null,null,null,null,null,null,null,null,null,null,null,null,null,null,null,null,null,"El Muelle"]
[null,null,null,null,null,null,null,null,null,null,null,null,null,null,null,null,null,null,null,null,null,null,null,null,null,null,null,null,null,null,null,null,null,null,null,null,null,null,"El Muese"]
[null,null,null,null,null,null,null,null,null,null,null,null,null,null,null,null,null,null,null,null,null,null,null,null,null,null,null,null,null,null,null,null,null,null,null,null,null,null,"El Okal"]
[null,null,null,null,null,null,null,null,null,null,null,null,null,null,null,null,null,null,null,null,null,null,null,null,null,null,null,null,null,null,null,null,null,null,null,null,null,null,"El Ortigal"]
[null,null,null,null,null,null,null,null,null,null,null,null,null,null,null,null,null,null,null,null,null,null,null,null,null,null,null,null,null,null,null,null,null,null,null,null,null,null,"El Pailon"]
[null,null,null,null,null,null,null,null,null,null,null,null,null,null,null,null,null,null,null,null,null,null,null,null,null,null,null,null,null,null,null,null,null,null,null,null,null,null,"El Pando"]
[null,null,null,null,null,null,null,null,null,null,null,null,null,null,null,null,null,null,null,null,null,null,null,null,null,null,null,null,null,null,null,null,null,null,null,null,null,null,"El Paraiso"]
[null,null,null,null,null,null,null,null,null,null,null,null,null,null,null,null,null,null,null,null,null,null,null,null,null,null,null,null,null,null,null,null,null,null,null,null,null,null,"El Paso"]
[null,null,null,null,null,null,null,null,null,null,null,null,null,null,null,null,null,null,null,null,null,null,null,null,null,null,null,null,null,null,null,null,null,null,null,null,null,null,"El Pital"]
[null,null,null,null,null,null,null,null,null,null,null,null,null,null,null,null,null,null,null,null,null,null,null,null,null,null,null,null,null,null,null,null,null,null,null,null,null,null,"El Recreo"]
[null,null,null,null,null,null,null,null,null,null,null,null,null,null,null,null,null,null,null,null,null,null,null,null,null,null,null,null,null,null,null,null,null,null,null,null,null,null,"El Reten"]
[null,null,null,null,null,null,null,null,null,null,null,null,null,null,null,null,null,null,null,null,null,null,null,null,null,null,null,null,null,null,null,null,null,null,null,null,null,null,"El Rio"]
[null,null,null,null,null,null,null,null,null,null,null,null,null,null,null,null,null,null,null,null,null,null,null,null,null,null,null,null,null,null,null,null,null,null,null,null,null,null,"El Rodeo"]
[null,null,null,null,null,null,null,null,null,null,null,null,null,null,null,null,null,null,null,null,null,null,null,null,null,null,null,null,null,null,null,null,null,null,null,null,null,null,"El Rubi"]
[null,null,null,null,null,null,null,null,null,null,null,null,null,null,null,null,null,null,null,null,null,null,null,null,null,null,null,null,null,null,null,null,null,null,null,null,null,null,"El Salto I - Ii - Iii"]
[null,null,null,null,null,null,null,null,null,null,null,null,null,null,null,null,null,null,null,null,null,null,null,null,null,null,null,null,null,null,null,null,null,null,null,null,null,null,"El Salto Iv"]
[null,null,null,null,null,null,null,null,null,null,null,null,null,null,null,null,null,null,null,null,null,null,null,null,null,null,null,null,null,null,null,null,null,null,null,null,null,null,"El Secreto"]
[null,null,null,null,null,null,null,null,null,null,null,null,null,null,null,null,null,null,null,null,null,null,null,null,null,null,null,null,null,null,null,null,null,null,null,null,null,null,"El Sena"]
[null,null,null,null,null,null,null,null,null,null,null,null,null,null,null,null,null,null,null,null,null,null,null,null,null,null,null,null,null,null,null,null,null,null,null,null,null,null,"El Siete"]
[null,null,null,null,null,null,null,null,null,null,null,null,null,null,null,null,null,null,null,null,null,null,null,null,null,null,null,null,null,null,null,null,null,null,null,null,null,null,"El Tabor"]
[null,null,null,null,null,null,null,null,null,null,null,null,null,null,null,null,null,null,null,null,null,null,null,null,null,null,null,null,null,null,null,null,null,null,null,null,null,null,"El Tambo"]
[null,null,null,null,null,null,null,null,null,null,null,null,null,null,null,null,null,null,null,null,null,null,null,null,null,null,null,null,null,null,null,null,null,null,null,null,null,null,"El Tecal"]
[null,null,null,null,null,null,null,null,null,null,null,null,null,null,null,null,null,null,null,null,null,null,null,null,null,null,null,null,null,null,null,null,null,null,null,null,null,null,"El Tigre"]
[null,null,null,null,null,null,null,null,null,null,null,null,null,null,null,null,null,null,null,null,null,null,null,null,null,null,null,null,null,null,null,null,null,null,null,null,null,null,"El Tres Uraba"]
[null,null,null,null,null,null,null,null,null,null,null,null,null,null,null,null,null,null,null,null,null,null,null,null,null,null,null,null,null,null,null,null,null,null,null,null,null,null,"El Valle"]
[null,null,null,null,null,null,null,null,null,null,null,null,null,null,null,null,null,null,null,null,null,null,null,null,null,null,null,null,null,null,null,null,null,null,null,null,null,null,"El Viajano"]
[null,null,null,null,null,null,null,null,null,null,null,null,null,null,null,null,null,null,null,null,null,null,null,null,null,null,null,null,null,null,null,null,null,null,null,null,null,null,"El Vinculo"]
[null,null,null,null,null,null,null,null,null,null,null,null,null,null,null,null,null,null,null,null,null,null,null,null,null,null,null,null,null,null,null,null,null,null,null,null,null,null,"El_Bosque"]
[null,null,null,null,null,null,null,null,null,null,null,null,null,null,null,null,null,null,null,null,null,null,null,null,null,null,null,null,null,null,null,null,null,null,null,null,null,null,"El_Hato"]
[null,null,null,null,null,null,null,null,null,null,null,null,null,null,null,null,null,null,null,null,null,null,null,null,null,null,null,null,null,null,null,null,null,null,null,null,null,null,"El_Hobal"]
[null,null,null,null,null,null,null,null,null,null,null,null,null,null,null,null,null,null,null,null,null,null,null,null,null,null,null,null,null,null,null,null,null,null,null,null,null,null,"El_Palmar"]
[null,null,null,null,null,null,null,null,null,null,null,null,null,null,null,null,null,null,null,null,null,null,null,null,null,null,null,null,null,null,null,null,null,null,null,null,null,null,"El_Paraiso"]
[null,null,null,null,null,null,null,null,null,null,null,null,null,null,null,null,null,null,null,null,null,null,null,null,null,null,null,null,null,null,null,null,null,null,null,null,null,null,"El_Peñon"]
[null,null,null,null,null,null,null,null,null,null,null,null,null,null,null,null,null,null,null,null,null,null,null,null,null,null,null,null,null,null,null,null,null,null,null,null,null,null,"El_Ramal"]
[null,null,null,null,null,null,null,null,null,null,null,null,null,null,null,null,null,null,null,null,null,null,null,null,null,null,null,null,null,null,null,null,null,null,null,null,null,null,"El_Rosal"]
[null,null,null,null,null,null,null,null,null,null,null,null,null,null,null,null,null,null,null,null,null,null,null,null,null,null,null,null,null,null,null,null,null,null,null,null,null,null,"El_Sol"]
[null,null,null,null,null,null,null,null,null,null,null,null,null,null,null,null,null,null,null,null,null,null,null,null,null,null,null,null,null,null,null,null,null,null,null,null,null,null,"Envigado"]
[null,null,null,null,null,null,null,null,null,null,null,null,null,null,null,null,null,null,null,null,null,null,null,null,null,null,null,null,null,null,null,null,null,null,null,null,null,null,"Escobal"]
[null,null,null,null,null,null,null,null,null,null,null,null,null,null,null,null,null,null,null,null,null,null,null,null,null,null,null,null,null,null,null,null,null,null,null,null,null,null,"Esmeralda"]
[null,null,null,null,null,null,null,null,null,null,null,null,null,null,null,null,null,null,null,null,null,null,null,null,null,null,null,null,null,null,null,null,null,null,null,null,null,null,"Esmeralda Isa"]
[null,null,null,null,null,null,null,null,null,null,null,null,null,null,null,null,null,null,null,null,null,null,null,null,null,null,null,null,null,null,null,null,null,null,null,null,null,null,"Esperanza"]
[null,null,null,null,null,null,null,null,null,null,null,null,null,null,null,null,null,null,null,null,null,null,null,null,null,null,null,null,null,null,null,null,null,null,null,null,null,null,"Espinal"]
[null,null,null,null,null,null,null,null,null,null,null,null,null,null,null,null,null,null,null,null,null,null,null,null,null,null,null,null,null,null,null,null,null,null,null,null,null,null,"Estacion Cocorna R32"]
[null,null,null,null,null,null,null,null,null,null,null,null,null,null,null,null,null,null,null,null,null,null,null,null,null,null,null,null,null,null,null,null,null,null,null,null,null,null,"Estadio"]
[null,null,null,null,null,null,null,null,null,null,null,null,null,null,null,null,null,null,null,null,null,null,null,null,null,null,null,null,null,null,null,null,null,null,null,null,null,null,"Estambul"]
[null,null,null,null,null,null,null,null,null,null,null,null,null,null,null,null,null,null,null,null,null,null,null,null,null,null,null,null,null,null,null,null,null,null,null,null,null,null,"Faca"]
[null,null,null,null,null,null,null,null,null,null,null,null,null,null,null,null,null,null,null,null,null,null,null,null,null,null,null,null,null,null,null,null,null,null,null,null,null,null,"Farfan"]
[null,null,null,null,null,null,null,null,null,null,null,null,null,null,null,null,null,null,null,null,null,null,null,null,null,null,null,null,null,null,null,null,null,null,null,null,null,null,"Ferreria"]
[null,null,null,null,null,null,null,null,null,null,null,null,null,null,null,null,null,null,null,null,null,null,null,null,null,null,null,null,null,null,null,null,null,null,null,null,null,null,"Ferrocarril"]
[null,null,null,null,null,null,null,null,null,null,null,null,null,null,null,null,null,null,null,null,null,null,null,null,null,null,null,null,null,null,null,null,null,null,null,null,null,null,"Filadelfia"]
[null,null,null,null,null,null,null,null,null,null,null,null,null,null,null,null,null,null,null,null,null,null,null,null,null,null,null,null,null,null,null,null,null,null,null,null,null,null,"Firavitoba"]
[null,null,null,null,null,null,null,null,null,null,null,null,null,null,null,null,null,null,null,null,null,null,null,null,null,null,null,null,null,null,null,null,null,null,null,null,null,null,"Flandes"]
[null,null,null,null,null,null,null,null,null,null,null,null,null,null,null,null,null,null,null,null,null,null,null,null,null,null,null,null,null,null,null,null,null,null,null,null,null,null,"Florencia"]
[null,null,null,null,null,null,null,null,null,null,null,null,null,null,null,null,null,null,null,null,null,null,null,null,null,null,null,null,null,null,null,null,null,null,null,null,null,null,"Florida"]
[null,null,null,null,null,null,null,null,null,null,null,null,null,null,null,null,null,null,null,null,null,null,null,null,null,null,null,null,null,null,null,null,null,null,null,null,null,null,"Florida 115 Kv"]
[null,null,null,null,null,null,null,null,null,null,null,null,null,null,null,null,null,null,null,null,null,null,null,null,null,null,null,null,null,null,null,null,null,null,null,null,null,null,"Florida 13.8 Kv"]
[null,null,null,null,null,null,null,null,null,null,null,null,null,null,null,null,null,null,null,null,null,null,null,null,null,null,null,null,null,null,null,null,null,null,null,null,null,null,"Florida 34.5 Kv"]
[null,null,null,null,null,null,null,null,null,null,null,null,null,null,null,null,null,null,null,null,null,null,null,null,null,null,null,null,null,null,null,null,null,null,null,null,null,null,"Fomeque"]
[null,null,null,null,null,null,null,null,null,null,null,null,null,null,null,null,null,null,null,null,null,null,null,null,null,null,null,null,null,null,null,null,null,null,null,null,null,null,"Fonseca"]
[null,null,null,null,null,null,null,null,null,null,null,null,null,null,null,null,null,null,null,null,null,null,null,null,null,null,null,null,null,null,null,null,null,null,null,null,null,null,"Fontibon"]
[null,null,null,null,null,null,null,null,null,null,null,null,null,null,null,null,null,null,null,null,null,null,null,null,null,null,null,null,null,null,null,null,null,null,null,null,null,null,"Fortalecillas"]
[null,null,null,null,null,null,null,null,null,null,null,null,null,null,null,null,null,null,null,null,null,null,null,null,null,null,null,null,null,null,null,null,null,null,null,null,null,null,"Fortul"]
[null,null,null,null,null,null,null,null,null,null,null,null,null,null,null,null,null,null,null,null,null,null,null,null,null,null,null,null,null,null,null,null,null,null,null,null,null,null,"Francisco Pizarro"]
[null,null,null,null,null,null,null,null,null,null,null,null,null,null,null,null,null,null,null,null,null,null,null,null,null,null,null,null,null,null,null,null,null,null,null,null,null,null,"Fredonia"]
[null,null,null,null,null,null,null,null,null,null,null,null,null,null,null,null,null,null,null,null,null,null,null,null,null,null,null,null,null,null,null,null,null,null,null,null,null,null,"Fresno"]
[null,null,null,null,null,null,null,null,null,null,null,null,null,null,null,null,null,null,null,null,null,null,null,null,null,null,null,null,null,null,null,null,null,null,null,null,null,null,"Fuente De Oro"]
[null,null,null,null,null,null,null,null,null,null,null,null,null,null,null,null,null,null,null,null,null,null,null,null,null,null,null,null,null,null,null,null,null,null,null,null,null,null,"Fundacion"]
[null,null,null,null,null,null,null,null,null,null,null,null,null,null,null,null,null,null,null,null,null,null,null,null,null,null,null,null,null,null,null,null,null,null,null,null,null,null,"Gachancipa"]
[null,null,null,null,null,null,null,null,null,null,null,null,null,null,null,null,null,null,null,null,null,null,null,null,null,null,null,null,null,null,null,null,null,null,null,null,null,null,"Gachantiva"]
[null,null,null,null,null,null,null,null,null,null,null,null,null,null,null,null,null,null,null,null,null,null,null,null,null,null,null,null,null,null,null,null,null,null,null,null,null,null,"Gaira"]
[null,null,null,null,null,null,null,null,null,null,null,null,null,null,null,null,null,null,null,null,null,null,null,null,null,null,null,null,null,null,null,null,null,null,null,null,null,null,"Galapa"]
[null,null,null,null,null,null,null,null,null,null,null,null,null,null,null,null,null,null,null,null,null,null,null,null,null,null,null,null,null,null,null,null,null,null,null,null,null,null,"Galeras"]
[null,null,null,null,null,null,null,null,null,null,null,null,null,null,null,null,null,null,null,null,null,null,null,null,null,null,null,null,null,null,null,null,null,null,null,null,null,null,"Gallego"]
[null,null,null,null,null,null,null,null,null,null,null,null,null,null,null,null,null,null,null,null,null,null,null,null,null,null,null,null,null,null,null,null,null,null,null,null,null,null,"Gambote"]
[null,null,null,null,null,null,null,null,null,null,null,null,null,null,null,null,null,null,null,null,null,null,null,null,null,null,null,null,null,null,null,null,null,null,null,null,null,null,"Garagoa"]
[null,null,null,null,null,null,null,null,null,null,null,null,null,null,null,null,null,null,null,null,null,null,null,null,null,null,null,null,null,null,null,null,null,null,null,null,null,null,"Garavito"]
[null,null,null,null,null,null,null,null,null,null,null,null,null,null,null,null,null,null,null,null,null,null,null,null,null,null,null,null,null,null,null,null,null,null,null,null,null,null,"Garcia Rovira 13.8 Kv"]
[null,null,null,null,null,null,null,null,null,null,null,null,null,null,null,null,null,null,null,null,null,null,null,null,null,null,null,null,null,null,null,null,null,null,null,null,null,null,"Garcia Rovira 34.5 Kv"]
[null,null,null,null,null,null,null,null,null,null,null,null,null,null,null,null,null,null,null,null,null,null,null,null,null,null,null,null,null,null,null,null,null,null,null,null,null,null,"Garzon"]
[null,null,null,null,null,null,null,null,null,null,null,null,null,null,null,null,null,null,null,null,null,null,null,null,null,null,null,null,null,null,null,null,null,null,null,null,null,null,"Gecelca"]
[null,null,null,null,null,null,null,null,null,null,null,null,null,null,null,null,null,null,null,null,null,null,null,null,null,null,null,null,null,null,null,null,null,null,null,null,null,null,"Gemelos"]
[null,null,null,null,null,null,null,null,null,null,null,null,null,null,null,null,null,null,null,null,null,null,null,null,null,null,null,null,null,null,null,null,null,null,null,null,null,null,"Gigante"]
[null,null,null,null,null,null,null,null,null,null,null,null,null,null,null,null,null,null,null,null,null,null,null,null,null,null,null,null,null,null,null,null,null,null,null,null,null,null,"Ginebra"]
[null,null,null,null,null,null,null,null,null,null,null,null,null,null,null,null,null,null,null,null,null,null,null,null,null,null,null,null,null,null,null,null,null,null,null,null,null,null,"Girardota"]
[null,null,null,null,null,null,null,null,null,null,null,null,null,null,null,null,null,null,null,null,null,null,null,null,null,null,null,null,null,null,null,null,null,null,null,null,null,null,"Gis Chivor"]
[null,null,null,null,null,null,null,null,null,null,null,null,null,null,null,null,null,null,null,null,null,null,null,null,null,null,null,null,null,null,null,null,null,null,null,null,null,null,"Gorgonzola"]
[null,null,null,null,null,null,null,null,null,null,null,null,null,null,null,null,null,null,null,null,null,null,null,null,null,null,null,null,null,null,null,null,null,null,null,null,null,null,"Granada"]
[null,null,null,null,null,null,null,null,null,null,null,null,null,null,null,null,null,null,null,null,null,null,null,null,null,null,null,null,null,null,null,null,null,null,null,null,null,null,"Gransabana"]
[null,null,null,null,null,null,null,null,null,null,null,null,null,null,null,null,null,null,null,null,null,null,null,null,null,null,null,null,null,null,null,null,null,null,null,null,null,null,"Guabinas"]
[null,null,null,null,null,null,null,null,null,null,null,null,null,null,null,null,null,null,null,null,null,null,null,null,null,null,null,null,null,null,null,null,null,null,null,null,null,null,"Guacamayal"]
[null,null,null,null,null,null,null,null,null,null,null,null,null,null,null,null,null,null,null,null,null,null,null,null,null,null,null,null,null,null,null,null,null,null,null,null,null,null,"Guacamayas"]
[null,null,null,null,null,null,null,null,null,null,null,null,null,null,null,null,null,null,null,null,null,null,null,null,null,null,null,null,null,null,null,null,null,null,null,null,null,null,"Guacari"]
[null,null,null,null,null,null,null,null,null,null,null,null,null,null,null,null,null,null,null,null,null,null,null,null,null,null,null,null,null,null,null,null,null,null,null,null,null,null,"Guachal"]
[null,null,null,null,null,null,null,null,null,null,null,null,null,null,null,null,null,null,null,null,null,null,null,null,null,null,null,null,null,null,null,null,null,null,null,null,null,null,"Guachal 2"]
[null,null,null,null,null,null,null,null,null,null,null,null,null,null,null,null,null,null,null,null,null,null,null,null,null,null,null,null,null,null,null,null,null,null,null,null,null,null,"Guacheta"]
[null,null,null,null,null,null,null,null,null,null,null,null,null,null,null,null,null,null,null,null,null,null,null,null,null,null,null,null,null,null,null,null,null,null,null,null,null,null,"Guachicona"]
[null,null,null,null,null,null,null,null,null,null,null,null,null,null,null,null,null,null,null,null,null,null,null,null,null,null,null,null,null,null,null,null,null,null,null,null,null,null,"Guachiria"]
[null,null,null,null,null,null,null,null,null,null,null,null,null,null,null,null,null,null,null,null,null,null,null,null,null,null,null,null,null,null,null,null,null,null,null,null,null,null,"Guadalupe"]
[null,null,null,null,null,null,null,null,null,null,null,null,null,null,null,null,null,null,null,null,null,null,null,null,null,null,null,null,null,null,null,null,null,null,null,null,null,null,"Guadalupe Iv"]
[null,null,null,null,null,null,null,null,null,null,null,null,null,null,null,null,null,null,null,null,null,null,null,null,null,null,null,null,null,null,null,null,null,null,null,null,null,null,"Guaduas"]
[null,null,null,null,null,null,null,null,null,null,null,null,null,null,null,null,null,null,null,null,null,null,null,null,null,null,null,null,null,null,null,null,null,null,null,null,null,null,"Guaipa"]
[null,null,null,null,null,null,null,null,null,null,null,null,null,null,null,null,null,null,null,null,null,null,null,null,null,null,null,null,null,null,null,null,null,null,null,null,null,null,"Guajira"]
[null,null,null,null,null,null,null,null,null,null,null,null,null,null,null,null,null,null,null,null,null,null,null,null,null,null,null,null,null,null,null,null,null,null,null,null,null,null,"Gualanday"]
[null,null,null,null,null,null,null,null,null,null,null,null,null,null,null,null,null,null,null,null,null,null,null,null,null,null,null,null,null,null,null,null,null,null,null,null,null,null,"Guamal"]
[null,null,null,null,null,null,null,null,null,null,null,null,null,null,null,null,null,null,null,null,null,null,null,null,null,null,null,null,null,null,null,null,null,null,null,null,null,null,"Guamo"]
[null,null,null,null,null,null,null,null,null,null,null,null,null,null,null,null,null,null,null,null,null,null,null,null,null,null,null,null,null,null,null,null,null,null,null,null,null,null,"Guanares"]
[null,null,null,null,null,null,null,null,null,null,null,null,null,null,null,null,null,null,null,null,null,null,null,null,null,null,null,null,null,null,null,null,null,null,null,null,null,null,"Guapi"]
[null,null,null,null,null,null,null,null,null,null,null,null,null,null,null,null,null,null,null,null,null,null,null,null,null,null,null,null,null,null,null,null,null,null,null,null,null,null,"Guaranda"]
[null,null,null,null,null,null,null,null,null,null,null,null,null,null,null,null,null,null,null,null,null,null,null,null,null,null,null,null,null,null,null,null,null,null,null,null,null,null,"Guarato"]
[null,null,null,null,null,null,null,null,null,null,null,null,null,null,null,null,null,null,null,null,null,null,null,null,null,null,null,null,null,null,null,null,null,null,null,null,null,null,"Guarcama"]
[null,null,null,null,null,null,null,null,null,null,null,null,null,null,null,null,null,null,null,null,null,null,null,null,null,null,null,null,null,null,null,null,null,null,null,null,null,null,"Guarinocito"]
[null,null,null,null,null,null,null,null,null,null,null,null,null,null,null,null,null,null,null,null,null,null,null,null,null,null,null,null,null,null,null,null,null,null,null,null,null,null,"Guarne"]
[null,null,null,null,null,null,null,null,null,null,null,null,null,null,null,null,null,null,null,null,null,null,null,null,null,null,null,null,null,null,null,null,null,null,null,null,null,null,"Guarumo"]
[null,null,null,null,null,null,null,null,null,null,null,null,null,null,null,null,null,null,null,null,null,null,null,null,null,null,null,null,null,null,null,null,null,null,null,null,null,null,"Guatape"]
[null,null,null,null,null,null,null,null,null,null,null,null,null,null,null,null,null,null,null,null,null,null,null,null,null,null,null,null,null,null,null,null,null,null,null,null,null,null,"Guatapuri"]
[null,null,null,null,null,null,null,null,null,null,null,null,null,null,null,null,null,null,null,null,null,null,null,null,null,null,null,null,null,null,null,null,null,null,null,null,null,null,"Guataqui"]
[null,null,null,null,null,null,null,null,null,null,null,null,null,null,null,null,null,null,null,null,null,null,null,null,null,null,null,null,null,null,null,null,null,null,null,null,null,null,"Guateque"]
[null,null,null,null,null,null,null,null,null,null,null,null,null,null,null,null,null,null,null,null,null,null,null,null,null,null,null,null,null,null,null,null,null,null,null,null,null,null,"Guatiguara"]
[null,null,null,null,null,null,null,null,null,null,null,null,null,null,null,null,null,null,null,null,null,null,null,null,null,null,null,null,null,null,null,null,null,null,null,null,null,null,"Guavio"]
[null,null,null,null,null,null,null,null,null,null,null,null,null,null,null,null,null,null,null,null,null,null,null,null,null,null,null,null,null,null,null,null,null,null,null,null,null,null,"Guavio 230"]
[null,null,null,null,null,null,null,null,null,null,null,null,null,null,null,null,null,null,null,null,null,null,null,null,null,null,null,null,null,null,null,null,null,null,null,null,null,null,"Guayabal"]
[null,null,null,null,null,null,null,null,null,null,null,null,null,null,null,null,null,null,null,null,null,null,null,null,null,null,null,null,null,null,null,null,null,null,null,null,null,null,"Guayaque"]
[null,null,null,null,null,null,null,null,null,null,null,null,null,null,null,null,null,null,null,null,null,null,null,null,null,null,null,null,null,null,null,null,null,null,null,null,null,null,"Güepi"]
[null,null,null,null,null,null,null,null,null,null,null,null,null,null,null,null,null,null,null,null,null,null,null,null,null,null,null,null,null,null,null,null,null,null,null,null,null,null,"Haciendas De Potrerito"]
[null,null,null,null,null,null,null,null,null,null,null,null,null,null,null,null,null,null,null,null,null,null,null,null,null,null,null,null,null,null,null,null,null,null,null,null,null,null,"Hamacas 13.8 Kv"]
[null,null,null,null,null,null,null,null,null,null,null,null,null,null,null,null,null,null,null,null,null,null,null,null,null,null,null,null,null,null,null,null,null,null,null,null,null,null,"Hamacas 34.5 Kv"]
[null,null,null,null,null,null,null,null,null,null,null,null,null,null,null,null,null,null,null,null,null,null,null,null,null,null,null,null,null,null,null,null,null,null,null,null,null,null,"Hatillo De Loba"]
[null,null,null,null,null,null,null,null,null,null,null,null,null,null,null,null,null,null,null,null,null,null,null,null,null,null,null,null,null,null,null,null,null,null,null,null,null,null,"Hato Corozal"]
[null,null,null,null,null,null,null,null,null,null,null,null,null,null,null,null,null,null,null,null,null,null,null,null,null,null,null,null,null,null,null,null,null,null,null,null,null,null,"Hato Nuevo"]
[null,null,null,null,null,null,null,null,null,null,null,null,null,null,null,null,null,null,null,null,null,null,null,null,null,null,null,null,null,null,null,null,null,null,null,null,null,null,"Hato Viejo"]
[null,null,null,null,null,null,null,null,null,null,null,null,null,null,null,null,null,null,null,null,null,null,null,null,null,null,null,null,null,null,null,null,null,null,null,null,null,null,"Heroes"]
[null,null,null,null,null,null,null,null,null,null,null,null,null,null,null,null,null,null,null,null,null,null,null,null,null,null,null,null,null,null,null,null,null,null,null,null,null,null,"Herveo"]
[null,null,null,null,null,null,null,null,null,null,null,null,null,null,null,null,null,null,null,null,null,null,null,null,null,null,null,null,null,null,null,null,null,null,null,null,null,null,"Hidroprado"]
[null,null,null,null,null,null,null,null,null,null,null,null,null,null,null,null,null,null,null,null,null,null,null,null,null,null,null,null,null,null,null,null,null,null,null,null,null,null,"Higueras"]
[null,null,null,null,null,null,null,null,null,null,null,null,null,null,null,null,null,null,null,null,null,null,null,null,null,null,null,null,null,null,null,null,null,null,null,null,null,null,"Hilarco"]
[null,null,null,null,null,null,null,null,null,null,null,null,null,null,null,null,null,null,null,null,null,null,null,null,null,null,null,null,null,null,null,null,null,null,null,null,null,null,"Hispania"]
[null,null,null,null,null,null,null,null,null,null,null,null,null,null,null,null,null,null,null,null,null,null,null,null,null,null,null,null,null,null,null,null,null,null,null,null,null,null,"Hobo"]
[null,null,null,null,null,null,null,null,null,null,null,null,null,null,null,null,null,null,null,null,null,null,null,null,null,null,null,null,null,null,null,null,null,null,null,null,null,null,"Hobo 115"]
[null,null,null,null,null,null,null,null,null,null,null,null,null,null,null,null,null,null,null,null,null,null,null,null,null,null,null,null,null,null,null,null,null,null,null,null,null,null,"Holcim"]
[null,null,null,null,null,null,null,null,null,null,null,null,null,null,null,null,null,null,null,null,null,null,null,null,null,null,null,null,null,null,null,null,null,null,null,null,null,null,"Honda Guali"]
[null,null,null,null,null,null,null,null,null,null,null,null,null,null,null,null,null,null,null,null,null,null,null,null,null,null,null,null,null,null,null,null,null,null,null,null,null,null,"Honda Refugio"]
[null,null,null,null,null,null,null,null,null,null,null,null,null,null,null,null,null,null,null,null,null,null,null,null,null,null,null,null,null,null,null,null,null,null,null,null,null,null,"Horizonte"]
[null,null,null,null,null,null,null,null,null,null,null,null,null,null,null,null,null,null,null,null,null,null,null,null,null,null,null,null,null,null,null,null,null,null,null,null,null,null,"Hormiga Gamma 4"]
[null,null,null,null,null,null,null,null,null,null,null,null,null,null,null,null,null,null,null,null,null,null,null,null,null,null,null,null,null,null,null,null,null,null,null,null,null,null,"Huila 230 Kv"]
[null,null,null,null,null,null,null,null,null,null,null,null,null,null,null,null,null,null,null,null,null,null,null,null,null,null,null,null,null,null,null,null,null,null,null,null,null,null,"Hunza"]
[null,null,null,null,null,null,null,null,null,null,null,null,null,null,null,null,null,null,null,null,null,null,null,null,null,null,null,null,null,null,null,null,null,null,null,null,null,null,"Ibague"]
[null,null,null,null,null,null,null,null,null,null,null,null,null,null,null,null,null,null,null,null,null,null,null,null,null,null,null,null,null,null,null,null,null,null,null,null,null,null,"Icononzo"]
[null,null,null,null,null,null,null,null,null,null,null,null,null,null,null,null,null,null,null,null,null,null,null,null,null,null,null,null,null,null,null,null,null,null,null,null,null,null,"Idema"]
[null,null,null,null,null,null,null,null,null,null,null,null,null,null,null,null,null,null,null,null,null,null,null,null,null,null,null,null,null,null,null,null,null,null,null,null,null,null,"Iguamena"]
[null,null,null,null,null,null,null,null,null,null,null,null,null,null,null,null,null,null,null,null,null,null,null,null,null,null,null,null,null,null,null,null,null,null,null,null,null,null,"Imues"]
[null,null,null,null,null,null,null,null,null,null,null,null,null,null,null,null,null,null,null,null,null,null,null,null,null,null,null,null,null,null,null,null,null,null,null,null,null,null,"Independencia"]
[null,null,null,null,null,null,null,null,null,null,null,null,null,null,null,null,null,null,null,null,null,null,null,null,null,null,null,null,null,null,null,null,null,null,null,null,null,null,"Indumil"]
[null,null,null,null,null,null,null,null,null,null,null,null,null,null,null,null,null,null,null,null,null,null,null,null,null,null,null,null,null,null,null,null,null,null,null,null,null,null,"Industriales"]
[null,null,null,null,null,null,null,null,null,null,null,null,null,null,null,null,null,null,null,null,null,null,null,null,null,null,null,null,null,null,null,null,null,null,null,null,null,null,"Insula"]
[null,null,null,null,null,null,null,null,null,null,null,null,null,null,null,null,null,null,null,null,null,null,null,null,null,null,null,null,null,null,null,null,null,null,null,null,null,null,"Iquira I"]
[null,null,null,null,null,null,null,null,null,null,null,null,null,null,null,null,null,null,null,null,null,null,null,null,null,null,null,null,null,null,null,null,null,null,null,null,null,null,"Iquira Ii"]
[null,null,null,null,null,null,null,null,null,null,null,null,null,null,null,null,null,null,null,null,null,null,null,null,null,null,null,null,null,null,null,null,null,null,null,null,null,null,"Iraka"]
[null,null,null,null,null,null,null,null,null,null,null,null,null,null,null,null,null,null,null,null,null,null,null,null,null,null,null,null,null,null,null,null,null,null,null,null,null,null,"Irra"]
[null,null,null,null,null,null,null,null,null,null,null,null,null,null,null,null,null,null,null,null,null,null,null,null,null,null,null,null,null,null,null,null,null,null,null,null,null,null,"Iscuande"]
[null,null,null,null,null,null,null,null,null,null,null,null,null,null,null,null,null,null,null,null,null,null,null,null,null,null,null,null,null,null,null,null,null,null,null,null,null,null,"Isnos"]
[null,null,null,null,null,null,null,null,null,null,null,null,null,null,null,null,null,null,null,null,null,null,null,null,null,null,null,null,null,null,null,null,null,null,null,null,null,null,"Istmina"]
[null,null,null,null,null,null,null,null,null,null,null,null,null,null,null,null,null,null,null,null,null,null,null,null,null,null,null,null,null,null,null,null,null,null,null,null,null,null,"Itagui"]
[null,null,null,null,null,null,null,null,null,null,null,null,null,null,null,null,null,null,null,null,null,null,null,null,null,null,null,null,null,null,null,null,null,null,null,null,null,null,"Ituango"]
[null,null,null,null,null,null,null,null,null,null,null,null,null,null,null,null,null,null,null,null,null,null,null,null,null,null,null,null,null,null,null,null,null,null,null,null,null,null,"Jaguas"]
[null,null,null,null,null,null,null,null,null,null,null,null,null,null,null,null,null,null,null,null,null,null,null,null,null,null,null,null,null,null,null,null,null,null,null,null,null,null,"Jamondino"]
[null,null,null,null,null,null,null,null,null,null,null,null,null,null,null,null,null,null,null,null,null,null,null,null,null,null,null,null,null,null,null,null,null,null,null,null,null,null,"Jamundi"]
[null,null,null,null,null,null,null,null,null,null,null,null,null,null,null,null,null,null,null,null,null,null,null,null,null,null,null,null,null,null,null,null,null,null,null,null,null,null,"Japon"]
[null,null,null,null,null,null,null,null,null,null,null,null,null,null,null,null,null,null,null,null,null,null,null,null,null,null,null,null,null,null,null,null,null,null,null,null,null,null,"Jardin"]
[null,null,null,null,null,null,null,null,null,null,null,null,null,null,null,null,null,null,null,null,null,null,null,null,null,null,null,null,null,null,null,null,null,null,null,null,null,null,"Jardinera"]
[null,null,null,null,null,null,null,null,null,null,null,null,null,null,null,null,null,null,null,null,null,null,null,null,null,null,null,null,null,null,null,null,null,null,null,null,null,null,"Jenesano"]
[null,null,null,null,null,null,null,null,null,null,null,null,null,null,null,null,null,null,null,null,null,null,null,null,null,null,null,null,null,null,null,null,null,null,null,null,null,null,"Jerico"]
[null,null,null,null,null,null,null,null,null,null,null,null,null,null,null,null,null,null,null,null,null,null,null,null,null,null,null,null,null,null,null,null,null,null,null,null,null,null,"Jmcordoba"]
[null,null,null,null,null,null,null,null,null,null,null,null,null,null,null,null,null,null,null,null,null,null,null,null,null,null,null,null,null,null,null,null,null,null,null,null,null,null,"Juan De Acosta"]
[null,null,null,null,null,null,null,null,null,null,null,null,null,null,null,null,null,null,null,null,null,null,null,null,null,null,null,null,null,null,null,null,null,null,null,null,null,null,"Juan Mina"]
[null,null,null,null,null,null,null,null,null,null,null,null,null,null,null,null,null,null,null,null,null,null,null,null,null,null,null,null,null,null,null,null,null,null,null,null,null,null,"Juanchito"]
[null,null,null,null,null,null,null,null,null,null,null,null,null,null,null,null,null,null,null,null,null,null,null,null,null,null,null,null,null,null,null,null,null,null,null,null,null,null,"Juanchito 220"]
[null,null,null,null,null,null,null,null,null,null,null,null,null,null,null,null,null,null,null,null,null,null,null,null,null,null,null,null,null,null,null,null,null,null,null,null,null,null,"Juanchito 34.5"]
[null,null,null,null,null,null,null,null,null,null,null,null,null,null,null,null,null,null,null,null,null,null,null,null,null,null,null,null,null,null,null,null,null,null,null,null,null,null,"Juanes"]
[null,null,null,null,null,null,null,null,null,null,null,null,null,null,null,null,null,null,null,null,null,null,null,null,null,null,null,null,null,null,null,null,null,null,null,null,null,null,"Juncal"]
[null,null,null,null,null,null,null,null,null,null,null,null,null,null,null,null,null,null,null,null,null,null,null,null,null,null,null,null,null,null,null,null,null,null,null,null,null,null,"Junin"]
[null,null,null,null,null,null,null,null,null,null,null,null,null,null,null,null,null,null,null,null,null,null,null,null,null,null,null,null,null,null,null,null,null,null,null,null,null,null,"Junin- Mocoa"]
[null,null,null,null,null,null,null,null,null,null,null,null,null,null,null,null,null,null,null,null,null,null,null,null,null,null,null,null,null,null,null,null,null,null,null,null,null,null,"Juratena"]
[null,null,null,null,null,null,null,null,null,null,null,null,null,null,null,null,null,null,null,null,null,null,null,null,null,null,null,null,null,null,null,null,null,null,null,null,null,null,"Kappa"]
[null,null,null,null,null,null,null,null,null,null,null,null,null,null,null,null,null,null,null,null,null,null,null,null,null,null,null,null,null,null,null,null,null,null,null,null,null,null,"Km8 13.8 Kv"]
[null,null,null,null,null,null,null,null,null,null,null,null,null,null,null,null,null,null,null,null,null,null,null,null,null,null,null,null,null,null,null,null,null,null,null,null,null,null,"Km8 34.5 Kv"]
[null,null,null,null,null,null,null,null,null,null,null,null,null,null,null,null,null,null,null,null,null,null,null,null,null,null,null,null,null,null,null,null,null,null,null,null,null,null,"La Apartada"]
[null,null,null,null,null,null,null,null,null,null,null,null,null,null,null,null,null,null,null,null,null,null,null,null,null,null,null,null,null,null,null,null,null,null,null,null,null,null,"La Argelia"]
[null,null,null,null,null,null,null,null,null,null,null,null,null,null,null,null,null,null,null,null,null,null,null,null,null,null,null,null,null,null,null,null,null,null,null,null,null,null,"La Aurora"]
[null,null,null,null,null,null,null,null,null,null,null,null,null,null,null,null,null,null,null,null,null,null,null,null,null,null,null,null,null,null,null,null,null,null,null,null,null,null,"La Calceta"]
[null,null,null,null,null,null,null,null,null,null,null,null,null,null,null,null,null,null,null,null,null,null,null,null,null,null,null,null,null,null,null,null,null,null,null,null,null,null,"La Campiña"]
[null,null,null,null,null,null,null,null,null,null,null,null,null,null,null,null,null,null,null,null,null,null,null,null,null,null,null,null,null,null,null,null,null,null,null,null,null,null,"La Cascada 13.8 Kv"]
[null,null,null,null,null,null,null,null,null,null,null,null,null,null,null,null,null,null,null,null,null,null,null,null,null,null,null,null,null,null,null,null,null,null,null,null,null,null,"La Cascada 6.3 Kv"]
[null,null,null,null,null,null,null,null,null,null,null,null,null,null,null,null,null,null,null,null,null,null,null,null,null,null,null,null,null,null,null,null,null,null,null,null,null,null,"La Ceiba"]
[null,null,null,null,null,null,null,null,null,null,null,null,null,null,null,null,null,null,null,null,null,null,null,null,null,null,null,null,null,null,null,null,null,null,null,null,null,null,"La Ceja"]
[null,null,null,null,null,null,null,null,null,null,null,null,null,null,null,null,null,null,null,null,null,null,null,null,null,null,null,null,null,null,null,null,null,null,null,null,null,null,"La Cira Infantas"]
[null,null,null,null,null,null,null,null,null,null,null,null,null,null,null,null,null,null,null,null,null,null,null,null,null,null,null,null,null,null,null,null,null,null,null,null,null,null,"La Cortina"]
[null,null,null,null,null,null,null,null,null,null,null,null,null,null,null,null,null,null,null,null,null,null,null,null,null,null,null,null,null,null,null,null,null,null,null,null,null,null,"La Cruz"]
[null,null,null,null,null,null,null,null,null,null,null,null,null,null,null,null,null,null,null,null,null,null,null,null,null,null,null,null,null,null,null,null,null,null,null,null,null,null,"La Cruzada"]
[null,null,null,null,null,null,null,null,null,null,null,null,null,null,null,null,null,null,null,null,null,null,null,null,null,null,null,null,null,null,null,null,null,null,null,null,null,null,"La Dolores"]
[null,null,null,null,null,null,null,null,null,null,null,null,null,null,null,null,null,null,null,null,null,null,null,null,null,null,null,null,null,null,null,null,null,null,null,null,null,null,"La Dorada"]
[null,null,null,null,null,null,null,null,null,null,null,null,null,null,null,null,null,null,null,null,null,null,null,null,null,null,null,null,null,null,null,null,null,null,null,null,null,null,"La Enea"]
[null,null,null,null,null,null,null,null,null,null,null,null,null,null,null,null,null,null,null,null,null,null,null,null,null,null,null,null,null,null,null,null,null,null,null,null,null,null,"La Esmeralda"]
[null,null,null,null,null,null,null,null,null,null,null,null,null,null,null,null,null,null,null,null,null,null,null,null,null,null,null,null,null,null,null,null,null,null,null,null,null,null,"La Esperanza"]
[null,null,null,null,null,null,null,null,null,null,null,null,null,null,null,null,null,null,null,null,null,null,null,null,null,null,null,null,null,null,null,null,null,null,null,null,null,null,"La Esperanza 13.8 Kv"]
[null,null,null,null,null,null,null,null,null,null,null,null,null,null,null,null,null,null,null,null,null,null,null,null,null,null,null,null,null,null,null,null,null,null,null,null,null,null,"La Esperanza 34.5 Kv"]
[null,null,null,null,null,null,null,null,null,null,null,null,null,null,null,null,null,null,null,null,null,null,null,null,null,null,null,null,null,null,null,null,null,null,null,null,null,null,"La Europa"]
[null,null,null,null,null,null,null,null,null,null,null,null,null,null,null,null,null,null,null,null,null,null,null,null,null,null,null,null,null,null,null,null,null,null,null,null,null,null,"La Felisa"]
[null,null,null,null,null,null,null,null,null,null,null,null,null,null,null,null,null,null,null,null,null,null,null,null,null,null,null,null,null,null,null,null,null,null,null,null,null,null,"La Feria 13.8 Kv"]
[null,null,null,null,null,null,null,null,null,null,null,null,null,null,null,null,null,null,null,null,null,null,null,null,null,null,null,null,null,null,null,null,null,null,null,null,null,null,"La Feria 34.5 Kv"]
[null,null,null,null,null,null,null,null,null,null,null,null,null,null,null,null,null,null,null,null,null,null,null,null,null,null,null,null,null,null,null,null,null,null,null,null,null,null,"La Frontera"]
[null,null,null,null,null,null,null,null,null,null,null,null,null,null,null,null,null,null,null,null,null,null,null,null,null,null,null,null,null,null,null,null,null,null,null,null,null,null,"La Granja 13.8 Kv"]
[null,null,null,null,null,null,null,null,null,null,null,null,null,null,null,null,null,null,null,null,null,null,null,null,null,null,null,null,null,null,null,null,null,null,null,null,null,null,"La Granja 34.5 Kv"]
[null,null,null,null,null,null,null,null,null,null,null,null,null,null,null,null,null,null,null,null,null,null,null,null,null,null,null,null,null,null,null,null,null,null,null,null,null,null,"La Guaca 230"]
[null,null,null,null,null,null,null,null,null,null,null,null,null,null,null,null,null,null,null,null,null,null,null,null,null,null,null,null,null,null,null,null,null,null,null,null,null,null,"La Hermosa"]
[null,null,null,null,null,null,null,null,null,null,null,null,null,null,null,null,null,null,null,null,null,null,null,null,null,null,null,null,null,null,null,null,null,null,null,null,null,null,"La Jagua"]
[null,null,null,null,null,null,null,null,null,null,null,null,null,null,null,null,null,null,null,null,null,null,null,null,null,null,null,null,null,null,null,null,null,null,null,null,null,null,"La Loma"]
[null,null,null,null,null,null,null,null,null,null,null,null,null,null,null,null,null,null,null,null,null,null,null,null,null,null,null,null,null,null,null,null,null,null,null,null,null,null,"La Loma 110"]
[null,null,null,null,null,null,null,null,null,null,null,null,null,null,null,null,null,null,null,null,null,null,null,null,null,null,null,null,null,null,null,null,null,null,null,null,null,null,"La Loma 500"]
[null,null,null,null,null,null,null,null,null,null,null,null,null,null,null,null,null,null,null,null,null,null,null,null,null,null,null,null,null,null,null,null,null,null,null,null,null,null,"La Manuela"]
[null,null,null,null,null,null,null,null,null,null,null,null,null,null,null,null,null,null,null,null,null,null,null,null,null,null,null,null,null,null,null,null,null,null,null,null,null,null,"La Margarita"]
[null,null,null,null,null,null,null,null,null,null,null,null,null,null,null,null,null,null,null,null,null,null,null,null,null,null,null,null,null,null,null,null,null,null,null,null,null,null,"La Mariela"]
[null,null,null,null,null,null,null,null,null,null,null,null,null,null,null,null,null,null,null,null,null,null,null,null,null,null,null,null,null,null,null,null,null,null,null,null,null,null,"La Marina"]
[null,null,null,null,null,null,null,null,null,null,null,null,null,null,null,null,null,null,null,null,null,null,null,null,null,null,null,null,null,null,null,null,null,null,null,null,null,null,"La Mata"]
[null,null,null,null,null,null,null,null,null,null,null,null,null,null,null,null,null,null,null,null,null,null,null,null,null,null,null,null,null,null,null,null,null,null,null,null,null,null,"La Merced"]
[null,null,null,null,null,null,null,null,null,null,null,null,null,null,null,null,null,null,null,null,null,null,null,null,null,null,null,null,null,null,null,null,null,null,null,null,null,null,"La Mesa"]
[null,null,null,null,null,null,null,null,null,null,null,null,null,null,null,null,null,null,null,null,null,null,null,null,null,null,null,null,null,null,null,null,null,null,null,null,null,null,"La Miel (Bodegas Logicas)"]
[null,null,null,null,null,null,null,null,null,null,null,null,null,null,null,null,null,null,null,null,null,null,null,null,null,null,null,null,null,null,null,null,null,null,null,null,null,null,"La Mojana"]
[null,null,null,null,null,null,null,null,null,null,null,null,null,null,null,null,null,null,null,null,null,null,null,null,null,null,null,null,null,null,null,null,null,null,null,null,null,null,"La Nevera"]
[null,null,null,null,null,null,null,null,null,null,null,null,null,null,null,null,null,null,null,null,null,null,null,null,null,null,null,null,null,null,null,null,null,null,null,null,null,null,"La Paila"]
[null,null,null,null,null,null,null,null,null,null,null,null,null,null,null,null,null,null,null,null,null,null,null,null,null,null,null,null,null,null,null,null,null,null,null,null,null,null,"La Palmera"]
[null,null,null,null,null,null,null,null,null,null,null,null,null,null,null,null,null,null,null,null,null,null,null,null,null,null,null,null,null,null,null,null,null,null,null,null,null,null,"La Patria"]
[null,null,null,null,null,null,null,null,null,null,null,null,null,null,null,null,null,null,null,null,null,null,null,null,null,null,null,null,null,null,null,null,null,null,null,null,null,null,"La Paz"]
[null,null,null,null,null,null,null,null,null,null,null,null,null,null,null,null,null,null,null,null,null,null,null,null,null,null,null,null,null,null,null,null,null,null,null,null,null,null,"La Perla"]
[null,null,null,null,null,null,null,null,null,null,null,null,null,null,null,null,null,null,null,null,null,null,null,null,null,null,null,null,null,null,null,null,null,null,null,null,null,null,"La Pesquera"]
[null,null,null,null,null,null,null,null,null,null,null,null,null,null,null,null,null,null,null,null,null,null,null,null,null,null,null,null,null,null,null,null,null,null,null,null,null,null,"La Pita"]
[null,null,null,null,null,null,null,null,null,null,null,null,null,null,null,null,null,null,null,null,null,null,null,null,null,null,null,null,null,null,null,null,null,null,null,null,null,null,"La Plata"]
[null,null,null,null,null,null,null,null,null,null,null,null,null,null,null,null,null,null,null,null,null,null,null,null,null,null,null,null,null,null,null,null,null,null,null,null,null,null,"La Ramada"]
[null,null,null,null,null,null,null,null,null,null,null,null,null,null,null,null,null,null,null,null,null,null,null,null,null,null,null,null,null,null,null,null,null,null,null,null,null,null,"La Reforma"]
[null,null,null,null,null,null,null,null,null,null,null,null,null,null,null,null,null,null,null,null,null,null,null,null,null,null,null,null,null,null,null,null,null,null,null,null,null,null,"La Retirada"]
[null,null,null,null,null,null,null,null,null,null,null,null,null,null,null,null,null,null,null,null,null,null,null,null,null,null,null,null,null,null,null,null,null,null,null,null,null,null,"La Rosa"]
[null,null,null,null,null,null,null,null,null,null,null,null,null,null,null,null,null,null,null,null,null,null,null,null,null,null,null,null,null,null,null,null,null,null,null,null,null,null,"La Salina"]
[null,null,null,null,null,null,null,null,null,null,null,null,null,null,null,null,null,null,null,null,null,null,null,null,null,null,null,null,null,null,null,null,null,null,null,null,null,null,"La Salvacion"]
[null,null,null,null,null,null,null,null,null,null,null,null,null,null,null,null,null,null,null,null,null,null,null,null,null,null,null,null,null,null,null,null,null,null,null,null,null,null,"La Sierra"]
[null,null,null,null,null,null,null,null,null,null,null,null,null,null,null,null,null,null,null,null,null,null,null,null,null,null,null,null,null,null,null,null,null,null,null,null,null,null,"La Sierra (Antioquia)"]
[null,null,null,null,null,null,null,null,null,null,null,null,null,null,null,null,null,null,null,null,null,null,null,null,null,null,null,null,null,null,null,null,null,null,null,null,null,null,"La Tola"]
[null,null,null,null,null,null,null,null,null,null,null,null,null,null,null,null,null,null,null,null,null,null,null,null,null,null,null,null,null,null,null,null,null,null,null,null,null,null,"La Toyosa"]
[null,null,null,null,null,null,null,null,null,null,null,null,null,null,null,null,null,null,null,null,null,null,null,null,null,null,null,null,null,null,null,null,null,null,null,null,null,null,"La Tulia"]
[null,null,null,null,null,null,null,null,null,null,null,null,null,null,null,null,null,null,null,null,null,null,null,null,null,null,null,null,null,null,null,null,null,null,null,null,null,null,"La Turua"]
[null,null,null,null,null,null,null,null,null,null,null,null,null,null,null,null,null,null,null,null,null,null,null,null,null,null,null,null,null,null,null,null,null,null,null,null,null,null,"La Union"]
[null,null,null,null,null,null,null,null,null,null,null,null,null,null,null,null,null,null,null,null,null,null,null,null,null,null,null,null,null,null,null,null,null,null,null,null,null,null,"La Union (Sucre)"]
[null,null,null,null,null,null,null,null,null,null,null,null,null,null,null,null,null,null,null,null,null,null,null,null,null,null,null,null,null,null,null,null,null,null,null,null,null,null,"La Union 115 Kv."]
[null,null,null,null,null,null,null,null,null,null,null,null,null,null,null,null,null,null,null,null,null,null,null,null,null,null,null,null,null,null,null,null,null,null,null,null,null,null,"La Uribe"]
[null,null,null,null,null,null,null,null,null,null,null,null,null,null,null,null,null,null,null,null,null,null,null,null,null,null,null,null,null,null,null,null,null,null,null,null,null,null,"La Variante"]
[null,null,null,null,null,null,null,null,null,null,null,null,null,null,null,null,null,null,null,null,null,null,null,null,null,null,null,null,null,null,null,null,null,null,null,null,null,null,"La Victoria"]
[null,null,null,null,null,null,null,null,null,null,null,null,null,null,null,null,null,null,null,null,null,null,null,null,null,null,null,null,null,null,null,null,null,null,null,null,null,null,"La Virginia"]
[null,null,null,null,null,null,null,null,null,null,null,null,null,null,null,null,null,null,null,null,null,null,null,null,null,null,null,null,null,null,null,null,null,null,null,null,null,null,"La Y San Pedro"]
[null,null,null,null,null,null,null,null,null,null,null,null,null,null,null,null,null,null,null,null,null,null,null,null,null,null,null,null,null,null,null,null,null,null,null,null,null,null,"La Ye"]
[null,null,null,null,null,null,null,null,null,null,null,null,null,null,null,null,null,null,null,null,null,null,null,null,null,null,null,null,null,null,null,null,null,null,null,null,null,null,"La_Dorada"]
[null,null,null,null,null,null,null,null,null,null,null,null,null,null,null,null,null,null,null,null,null,null,null,null,null,null,null,null,null,null,null,null,null,null,null,null,null,null,"La_Guaca"]
[null,null,null,null,null,null,null,null,null,null,null,null,null,null,null,null,null,null,null,null,null,null,null,null,null,null,null,null,null,null,null,null,null,null,null,null,null,null,"La_Isla"]
[null,null,null,null,null,null,null,null,null,null,null,null,null,null,null,null,null,null,null,null,null,null,null,null,null,null,null,null,null,null,null,null,null,null,null,null,null,null,"La_Palma"]
[null,null,null,null,null,null,null,null,null,null,null,null,null,null,null,null,null,null,null,null,null,null,null,null,null,null,null,null,null,null,null,null,null,null,null,null,null,null,"La_Paz"]
[null,null,null,null,null,null,null,null,null,null,null,null,null,null,null,null,null,null,null,null,null,null,null,null,null,null,null,null,null,null,null,null,null,null,null,null,null,null,"La_Pitala"]
[null,null,null,null,null,null,null,null,null,null,null,null,null,null,null,null,null,null,null,null,null,null,null,null,null,null,null,null,null,null,null,null,null,null,null,null,null,null,"La_Punta"]
[null,null,null,null,null,null,null,null,null,null,null,null,null,null,null,null,null,null,null,null,null,null,null,null,null,null,null,null,null,null,null,null,null,null,null,null,null,null,"La_Salada"]
[null,null,null,null,null,null,null,null,null,null,null,null,null,null,null,null,null,null,null,null,null,null,null,null,null,null,null,null,null,null,null,null,null,null,null,null,null,null,"La_Union"]
[null,null,null,null,null,null,null,null,null,null,null,null,null,null,null,null,null,null,null,null,null,null,null,null,null,null,null,null,null,null,null,null,null,null,null,null,null,null,"La_Virgen"]
[null,null,null,null,null,null,null,null,null,null,null,null,null,null,null,null,null,null,null,null,null,null,null,null,null,null,null,null,null,null,null,null,null,null,null,null,null,null,"Labranza Grande"]
[null,null,null,null,null,null,null,null,null,null,null,null,null,null,null,null,null,null,null,null,null,null,null,null,null,null,null,null,null,null,null,null,null,null,null,null,null,null,"Ladera"]
[null,null,null,null,null,null,null,null,null,null,null,null,null,null,null,null,null,null,null,null,null,null,null,null,null,null,null,null,null,null,null,null,null,null,null,null,null,null,"Ladera 115"]
[null,null,null,null,null,null,null,null,null,null,null,null,null,null,null,null,null,null,null,null,null,null,null,null,null,null,null,null,null,null,null,null,null,null,null,null,null,null,"Laguna 13.8 Kv"]
[null,null,null,null,null,null,null,null,null,null,null,null,null,null,null,null,null,null,null,null,null,null,null,null,null,null,null,null,null,null,null,null,null,null,null,null,null,null,"Laguna 34.5 Kv"]
[null,null,null,null,null,null,null,null,null,null,null,null,null,null,null,null,null,null,null,null,null,null,null,null,null,null,null,null,null,null,null,null,null,null,null,null,null,null,"Lagunas"]
[null,null,null,null,null,null,null,null,null,null,null,null,null,null,null,null,null,null,null,null,null,null,null,null,null,null,null,null,null,null,null,null,null,null,null,null,null,null,"Laguneta"]
[null,null,null,null,null,null,null,null,null,null,null,null,null,null,null,null,null,null,null,null,null,null,null,null,null,null,null,null,null,null,null,null,null,null,null,null,null,null,"Lanceros"]
[null,null,null,null,null,null,null,null,null,null,null,null,null,null,null,null,null,null,null,null,null,null,null,null,null,null,null,null,null,null,null,null,null,null,null,null,null,null,"Landazuri 13.8 Kv"]
[null,null,null,null,null,null,null,null,null,null,null,null,null,null,null,null,null,null,null,null,null,null,null,null,null,null,null,null,null,null,null,null,null,null,null,null,null,null,"Landazuri 34.5 Kv"]
[null,null,null,null,null,null,null,null,null,null,null,null,null,null,null,null,null,null,null,null,null,null,null,null,null,null,null,null,null,null,null,null,null,null,null,null,null,null,"Las Brisas"]
[null,null,null,null,null,null,null,null,null,null,null,null,null,null,null,null,null,null,null,null,null,null,null,null,null,null,null,null,null,null,null,null,null,null,null,null,null,null,"Las Coles"]
[null,null,null,null,null,null,null,null,null,null,null,null,null,null,null,null,null,null,null,null,null,null,null,null,null,null,null,null,null,null,null,null,null,null,null,null,null,null,"Las Cruces"]
[null,null,null,null,null,null,null,null,null,null,null,null,null,null,null,null,null,null,null,null,null,null,null,null,null,null,null,null,null,null,null,null,null,null,null,null,null,null,"Las Delicias"]
[null,null,null,null,null,null,null,null,null,null,null,null,null,null,null,null,null,null,null,null,null,null,null,null,null,null,null,null,null,null,null,null,null,null,null,null,null,null,"Las Flores"]
[null,null,null,null,null,null,null,null,null,null,null,null,null,null,null,null,null,null,null,null,null,null,null,null,null,null,null,null,null,null,null,null,null,null,null,null,null,null,"Las Hojas"]
[null,null,null,null,null,null,null,null,null,null,null,null,null,null,null,null,null,null,null,null,null,null,null,null,null,null,null,null,null,null,null,null,null,null,null,null,null,null,"Las Palmas"]
[null,null,null,null,null,null,null,null,null,null,null,null,null,null,null,null,null,null,null,null,null,null,null,null,null,null,null,null,null,null,null,null,null,null,null,null,null,null,"Las Palomas"]
[null,null,null,null,null,null,null,null,null,null,null,null,null,null,null,null,null,null,null,null,null,null,null,null,null,null,null,null,null,null,null,null,null,null,null,null,null,null,"Las Villas 13.8 Kv"]
[null,null,null,null,null,null,null,null,null,null,null,null,null,null,null,null,null,null,null,null,null,null,null,null,null,null,null,null,null,null,null,null,null,null,null,null,null,null,"Las Villas 34.5 Kv"]
[null,null,null,null,null,null,null,null,null,null,null,null,null,null,null,null,null,null,null,null,null,null,null,null,null,null,null,null,null,null,null,null,null,null,null,null,null,null,"Lebrija 13.8 Kv"]
[null,null,null,null,null,null,null,null,null,null,null,null,null,null,null,null,null,null,null,null,null,null,null,null,null,null,null,null,null,null,null,null,null,null,null,null,null,null,"Lebrija 34.5 Kv"]
[null,null,null,null,null,null,null,null,null,null,null,null,null,null,null,null,null,null,null,null,null,null,null,null,null,null,null,null,null,null,null,null,null,null,null,null,null,null,"Lerida"]
[null,null,null,null,null,null,null,null,null,null,null,null,null,null,null,null,null,null,null,null,null,null,null,null,null,null,null,null,null,null,null,null,null,null,null,null,null,null,"Letras"]
[null,null,null,null,null,null,null,null,null,null,null,null,null,null,null,null,null,null,null,null,null,null,null,null,null,null,null,null,null,null,null,null,null,null,null,null,null,null,"Libano"]
[null,null,null,null,null,null,null,null,null,null,null,null,null,null,null,null,null,null,null,null,null,null,null,null,null,null,null,null,null,null,null,null,null,null,null,null,null,null,"Liberia"]
[null,null,null,null,null,null,null,null,null,null,null,null,null,null,null,null,null,null,null,null,null,null,null,null,null,null,null,null,null,null,null,null,null,null,null,null,null,null,"Libertador"]
[null,null,null,null,null,null,null,null,null,null,null,null,null,null,null,null,null,null,null,null,null,null,null,null,null,null,null,null,null,null,null,null,null,null,null,null,null,null,"Liborina"]
[null,null,null,null,null,null,null,null,null,null,null,null,null,null,null,null,null,null,null,null,null,null,null,null,null,null,null,null,null,null,null,null,null,null,null,null,null,null,"Lizama 115 Kv"]
[null,null,null,null,null,null,null,null,null,null,null,null,null,null,null,null,null,null,null,null,null,null,null,null,null,null,null,null,null,null,null,null,null,null,null,null,null,null,"Lizama 13.8 Kv"]
[null,null,null,null,null,null,null,null,null,null,null,null,null,null,null,null,null,null,null,null,null,null,null,null,null,null,null,null,null,null,null,null,null,null,null,null,null,null,"Lizama 34.5 Kv"]
[null,null,null,null,null,null,null,null,null,null,null,null,null,null,null,null,null,null,null,null,null,null,null,null,null,null,null,null,null,null,null,null,null,null,null,null,null,null,"Llanito 13.8 Kv"]
[null,null,null,null,null,null,null,null,null,null,null,null,null,null,null,null,null,null,null,null,null,null,null,null,null,null,null,null,null,null,null,null,null,null,null,null,null,null,"Llanito 34.5 Kv"]
[null,null,null,null,null,null,null,null,null,null,null,null,null,null,null,null,null,null,null,null,null,null,null,null,null,null,null,null,null,null,null,null,null,null,null,null,null,null,"Llano De Alarcon"]
[null,null,null,null,null,null,null,null,null,null,null,null,null,null,null,null,null,null,null,null,null,null,null,null,null,null,null,null,null,null,null,null,null,null,null,null,null,null,"Llano Grande 13.8 Kv"]
[null,null,null,null,null,null,null,null,null,null,null,null,null,null,null,null,null,null,null,null,null,null,null,null,null,null,null,null,null,null,null,null,null,null,null,null,null,null,"Llano Grande 34.5 Kv"]
[null,null,null,null,null,null,null,null,null,null,null,null,null,null,null,null,null,null,null,null,null,null,null,null,null,null,null,null,null,null,null,null,null,null,null,null,null,null,"Llanos"]
[null,null,null,null,null,null,null,null,null,null,null,null,null,null,null,null,null,null,null,null,null,null,null,null,null,null,null,null,null,null,null,null,null,null,null,null,null,null,"Llanos 58-4"]
[null,null,null,null,null,null,null,null,null,null,null,null,null,null,null,null,null,null,null,null,null,null,null,null,null,null,null,null,null,null,null,null,null,null,null,null,null,null,"Llerasca"]
[null,null,null,null,null,null,null,null,null,null,null,null,null,null,null,null,null,null,null,null,null,null,null,null,null,null,null,null,null,null,null,null,null,null,null,null,null,null,"Llorente"]
[null,null,null,null,null,null,null,null,null,null,null,null,null,null,null,null,null,null,null,null,null,null,null,null,null,null,null,null,null,null,null,null,null,null,null,null,null,null,"Loboguerrero"]
[null,null,null,null,null,null,null,null,null,null,null,null,null,null,null,null,null,null,null,null,null,null,null,null,null,null,null,null,null,null,null,null,null,null,null,null,null,null,"Loma Del Balsamo"]
[null,null,null,null,null,null,null,null,null,null,null,null,null,null,null,null,null,null,null,null,null,null,null,null,null,null,null,null,null,null,null,null,null,null,null,null,null,null,"Lopez De Micay"]
[null,null,null,null,null,null,null,null,null,null,null,null,null,null,null,null,null,null,null,null,null,null,null,null,null,null,null,null,null,null,null,null,null,null,null,null,null,null,"Lorica"]
[null,null,null,null,null,null,null,null,null,null,null,null,null,null,null,null,null,null,null,null,null,null,null,null,null,null,null,null,null,null,null,null,null,null,null,null,null,null,"Los Cocos 13.8 Kv"]
[null,null,null,null,null,null,null,null,null,null,null,null,null,null,null,null,null,null,null,null,null,null,null,null,null,null,null,null,null,null,null,null,null,null,null,null,null,null,"Los Cocos 34.5 Kv"]
[null,null,null,null,null,null,null,null,null,null,null,null,null,null,null,null,null,null,null,null,null,null,null,null,null,null,null,null,null,null,null,null,null,null,null,null,null,null,"Los Cordobas"]
[null,null,null,null,null,null,null,null,null,null,null,null,null,null,null,null,null,null,null,null,null,null,null,null,null,null,null,null,null,null,null,null,null,null,null,null,null,null,"Los Medios"]
[null,null,null,null,null,null,null,null,null,null,null,null,null,null,null,null,null,null,null,null,null,null,null,null,null,null,null,null,null,null,null,null,null,null,null,null,null,null,"Los Palos 115 Kv"]
[null,null,null,null,null,null,null,null,null,null,null,null,null,null,null,null,null,null,null,null,null,null,null,null,null,null,null,null,null,null,null,null,null,null,null,null,null,null,"Los Palos 13.8 Kv"]
[null,null,null,null,null,null,null,null,null,null,null,null,null,null,null,null,null,null,null,null,null,null,null,null,null,null,null,null,null,null,null,null,null,null,null,null,null,null,"Los Palos 230 Kv"]
[null,null,null,null,null,null,null,null,null,null,null,null,null,null,null,null,null,null,null,null,null,null,null,null,null,null,null,null,null,null,null,null,null,null,null,null,null,null,"Los Palos 34.5 Kv"]
[null,null,null,null,null,null,null,null,null,null,null,null,null,null,null,null,null,null,null,null,null,null,null,null,null,null,null,null,null,null,null,null,null,null,null,null,null,null,"Los Pinos"]
[null,null,null,null,null,null,null,null,null,null,null,null,null,null,null,null,null,null,null,null,null,null,null,null,null,null,null,null,null,null,null,null,null,null,null,null,null,null,"Macanal"]
[null,null,null,null,null,null,null,null,null,null,null,null,null,null,null,null,null,null,null,null,null,null,null,null,null,null,null,null,null,null,null,null,null,null,null,null,null,null,"Macarena"]
[null,null,null,null,null,null,null,null,null,null,null,null,null,null,null,null,null,null,null,null,null,null,null,null,null,null,null,null,null,null,null,null,null,null,null,null,null,null,"Maceo"]
[null,null,null,null,null,null,null,null,null,null,null,null,null,null,null,null,null,null,null,null,null,null,null,null,null,null,null,null,null,null,null,null,null,null,null,null,null,null,"Maderos"]
[null,null,null,null,null,null,null,null,null,null,null,null,null,null,null,null,null,null,null,null,null,null,null,null,null,null,null,null,null,null,null,null,null,null,null,null,null,null,"Magangue"]
[null,null,null,null,null,null,null,null,null,null,null,null,null,null,null,null,null,null,null,null,null,null,null,null,null,null,null,null,null,null,null,null,null,null,null,null,null,null,"Maicao"]
[null,null,null,null,null,null,null,null,null,null,null,null,null,null,null,null,null,null,null,null,null,null,null,null,null,null,null,null,null,null,null,null,null,null,null,null,null,null,"Majagual"]
[null,null,null,null,null,null,null,null,null,null,null,null,null,null,null,null,null,null,null,null,null,null,null,null,null,null,null,null,null,null,null,null,null,null,null,null,null,null,"Malaga"]
[null,null,null,null,null,null,null,null,null,null,null,null,null,null,null,null,null,null,null,null,null,null,null,null,null,null,null,null,null,null,null,null,null,null,null,null,null,null,"Malambo"]
[null,null,null,null,null,null,null,null,null,null,null,null,null,null,null,null,null,null,null,null,null,null,null,null,null,null,null,null,null,null,null,null,null,null,null,null,null,null,"Malena"]
[null,null,null,null,null,null,null,null,null,null,null,null,null,null,null,null,null,null,null,null,null,null,null,null,null,null,null,null,null,null,null,null,null,null,null,null,null,null,"Mambita"]
[null,null,null,null,null,null,null,null,null,null,null,null,null,null,null,null,null,null,null,null,null,null,null,null,null,null,null,null,null,null,null,null,null,null,null,null,null,null,"Mamonal"]
[null,null,null,null,null,null,null,null,null,null,null,null,null,null,null,null,null,null,null,null,null,null,null,null,null,null,null,null,null,null,null,null,null,null,null,null,null,null,"Manacacias"]
[null,null,null,null,null,null,null,null,null,null,null,null,null,null,null,null,null,null,null,null,null,null,null,null,null,null,null,null,null,null,null,null,null,null,null,null,null,null,"Manati"]
[null,null,null,null,null,null,null,null,null,null,null,null,null,null,null,null,null,null,null,null,null,null,null,null,null,null,null,null,null,null,null,null,null,null,null,null,null,null,"Manaure"]
[null,null,null,null,null,null,null,null,null,null,null,null,null,null,null,null,null,null,null,null,null,null,null,null,null,null,null,null,null,null,null,null,null,null,null,null,null,null,"Manaure Balcon Del Cesar"]
[null,null,null,null,null,null,null,null,null,null,null,null,null,null,null,null,null,null,null,null,null,null,null,null,null,null,null,null,null,null,null,null,null,null,null,null,null,null,"Mandinguilla"]
[null,null,null,null,null,null,null,null,null,null,null,null,null,null,null,null,null,null,null,null,null,null,null,null,null,null,null,null,null,null,null,null,null,null,null,null,null,null,"Mangos"]
[null,null,null,null,null,null,null,null,null,null,null,null,null,null,null,null,null,null,null,null,null,null,null,null,null,null,null,null,null,null,null,null,null,null,null,null,null,null,"Mani"]
[null,null,null,null,null,null,null,null,null,null,null,null,null,null,null,null,null,null,null,null,null,null,null,null,null,null,null,null,null,null,null,null,null,null,null,null,null,null,"Manizales"]
[null,null,null,null,null,null,null,null,null,null,null,null,null,null,null,null,null,null,null,null,null,null,null,null,null,null,null,null,null,null,null,null,null,null,null,null,null,null,"Manzanares"]
[null,null,null,null,null,null,null,null,null,null,null,null,null,null,null,null,null,null,null,null,null,null,null,null,null,null,null,null,null,null,null,null,null,null,null,null,null,null,"Manzanillo"]
[null,null,null,null,null,null,null,null,null,null,null,null,null,null,null,null,null,null,null,null,null,null,null,null,null,null,null,null,null,null,null,null,null,null,null,null,null,null,"Maporillal"]
[null,null,null,null,null,null,null,null,null,null,null,null,null,null,null,null,null,null,null,null,null,null,null,null,null,null,null,null,null,null,null,null,null,null,null,null,null,null,"Maracayo"]
[null,null,null,null,null,null,null,null,null,null,null,null,null,null,null,null,null,null,null,null,null,null,null,null,null,null,null,null,null,null,null,null,null,null,null,null,null,null,"Maranta"]
[null,null,null,null,null,null,null,null,null,null,null,null,null,null,null,null,null,null,null,null,null,null,null,null,null,null,null,null,null,null,null,null,null,null,null,null,null,null,"Maraure"]
[null,null,null,null,null,null,null,null,null,null,null,null,null,null,null,null,null,null,null,null,null,null,null,null,null,null,null,null,null,null,null,null,null,null,null,null,null,null,"Margento"]
[null,null,null,null,null,null,null,null,null,null,null,null,null,null,null,null,null,null,null,null,null,null,null,null,null,null,null,null,null,null,null,null,null,null,null,null,null,null,"Maria La Baja"]
[null,null,null,null,null,null,null,null,null,null,null,null,null,null,null,null,null,null,null,null,null,null,null,null,null,null,null,null,null,null,null,null,null,null,null,null,null,null,"Mariangola"]
[null,null,null,null,null,null,null,null,null,null,null,null,null,null,null,null,null,null,null,null,null,null,null,null,null,null,null,null,null,null,null,null,null,null,null,null,null,null,"Marinilla"]
[null,null,null,null,null,null,null,null,null,null,null,null,null,null,null,null,null,null,null,null,null,null,null,null,null,null,null,null,null,null,null,null,null,null,null,null,null,null,"Mariquita"]
[null,null,null,null,null,null,null,null,null,null,null,null,null,null,null,null,null,null,null,null,null,null,null,null,null,null,null,null,null,null,null,null,null,null,null,null,null,null,"Marmato"]
[null,null,null,null,null,null,null,null,null,null,null,null,null,null,null,null,null,null,null,null,null,null,null,null,null,null,null,null,null,null,null,null,null,null,null,null,null,null,"Marquetalia"]
[null,null,null,null,null,null,null,null,null,null,null,null,null,null,null,null,null,null,null,null,null,null,null,null,null,null,null,null,null,null,null,null,null,null,null,null,null,null,"Marsella"]
[null,null,null,null,null,null,null,null,null,null,null,null,null,null,null,null,null,null,null,null,null,null,null,null,null,null,null,null,null,null,null,null,null,null,null,null,null,null,"Mata De Caña"]
[null,null,null,null,null,null,null,null,null,null,null,null,null,null,null,null,null,null,null,null,null,null,null,null,null,null,null,null,null,null,null,null,null,null,null,null,null,null,"Matanza 11.4 Kv"]
[null,null,null,null,null,null,null,null,null,null,null,null,null,null,null,null,null,null,null,null,null,null,null,null,null,null,null,null,null,null,null,null,null,null,null,null,null,null,"Matanza 34.5 Kv"]
[null,null,null,null,null,null,null,null,null,null,null,null,null,null,null,null,null,null,null,null,null,null,null,null,null,null,null,null,null,null,null,null,null,null,null,null,null,null,"Maxiabasto"]
[null,null,null,null,null,null,null,null,null,null,null,null,null,null,null,null,null,null,null,null,null,null,null,null,null,null,null,null,null,null,null,null,null,null,null,null,null,null,"Medellin"]
[null,null,null,null,null,null,null,null,null,null,null,null,null,null,null,null,null,null,null,null,null,null,null,null,null,null,null,null,null,null,null,null,null,null,null,null,null,null,"Medellin Del Ariari"]
[null,null,null,null,null,null,null,null,null,null,null,null,null,null,null,null,null,null,null,null,null,null,null,null,null,null,null,null,null,null,null,null,null,null,null,null,null,null,"Medina"]
[null,null,null,null,null,null,null,null,null,null,null,null,null,null,null,null,null,null,null,null,null,null,null,null,null,null,null,null,null,null,null,null,null,null,null,null,null,null,"Megua"]
[null,null,null,null,null,null,null,null,null,null,null,null,null,null,null,null,null,null,null,null,null,null,null,null,null,null,null,null,null,null,null,null,null,null,null,null,null,null,"Melendez"]
[null,null,null,null,null,null,null,null,null,null,null,null,null,null,null,null,null,null,null,null,null,null,null,null,null,null,null,null,null,null,null,null,null,null,null,null,null,null,"Melgar"]
[null,null,null,null,null,null,null,null,null,null,null,null,null,null,null,null,null,null,null,null,null,null,null,null,null,null,null,null,null,null,null,null,null,null,null,null,null,null,"Membrillal"]
[null,null,null,null,null,null,null,null,null,null,null,null,null,null,null,null,null,null,null,null,null,null,null,null,null,null,null,null,null,null,null,null,null,null,null,null,null,null,"Menga"]
[null,null,null,null,null,null,null,null,null,null,null,null,null,null,null,null,null,null,null,null,null,null,null,null,null,null,null,null,null,null,null,null,null,null,null,null,null,null,"Mercaneiva"]
[null,null,null,null,null,null,null,null,null,null,null,null,null,null,null,null,null,null,null,null,null,null,null,null,null,null,null,null,null,null,null,null,null,null,null,null,null,null,"Mesa"]
[null,null,null,null,null,null,null,null,null,null,null,null,null,null,null,null,null,null,null,null,null,null,null,null,null,null,null,null,null,null,null,null,null,null,null,null,null,null,"Mesa De Los Santos 13.8 Kv"]
[null,null,null,null,null,null,null,null,null,null,null,null,null,null,null,null,null,null,null,null,null,null,null,null,null,null,null,null,null,null,null,null,null,null,null,null,null,null,"Mesa De Los Santos 34.5 Kv"]
[null,null,null,null,null,null,null,null,null,null,null,null,null,null,null,null,null,null,null,null,null,null,null,null,null,null,null,null,null,null,null,null,null,null,null,null,null,null,"Mesa Del Sol 115 Kv"]
[null,null,null,null,null,null,null,null,null,null,null,null,null,null,null,null,null,null,null,null,null,null,null,null,null,null,null,null,null,null,null,null,null,null,null,null,null,null,"Mesa Del Sol 34.5 Kv"]
[null,null,null,null,null,null,null,null,null,null,null,null,null,null,null,null,null,null,null,null,null,null,null,null,null,null,null,null,null,null,null,null,null,null,null,null,null,null,"Mesetas"]
[null,null,null,null,null,null,null,null,null,null,null,null,null,null,null,null,null,null,null,null,null,null,null,null,null,null,null,null,null,null,null,null,null,null,null,null,null,null,"Mesitas"]
[null,null,null,null,null,null,null,null,null,null,null,null,null,null,null,null,null,null,null,null,null,null,null,null,null,null,null,null,null,null,null,null,null,null,null,null,null,null,"Miel I"]
[null,null,null,null,null,null,null,null,null,null,null,null,null,null,null,null,null,null,null,null,null,null,null,null,null,null,null,null,null,null,null,null,null,null,null,null,null,null,"Minas Blancas"]
[null,null,null,null,null,null,null,null,null,null,null,null,null,null,null,null,null,null,null,null,null,null,null,null,null,null,null,null,null,null,null,null,null,null,null,null,null,null,"Minas Del Vapor"]
[null,null,null,null,null,null,null,null,null,null,null,null,null,null,null,null,null,null,null,null,null,null,null,null,null,null,null,null,null,null,null,null,null,null,null,null,null,null,"Miraflores"]
[null,null,null,null,null,null,null,null,null,null,null,null,null,null,null,null,null,null,null,null,null,null,null,null,null,null,null,null,null,null,null,null,null,null,null,null,null,null,"Miralindo"]
[null,null,null,null,null,null,null,null,null,null,null,null,null,null,null,null,null,null,null,null,null,null,null,null,null,null,null,null,null,null,null,null,null,null,null,null,null,null,"Mirolindo"]
[null,null,null,null,null,null,null,null,null,null,null,null,null,null,null,null,null,null,null,null,null,null,null,null,null,null,null,null,null,null,null,null,null,null,null,null,null,null,"Mistrato"]
[null,null,null,null,null,null,null,null,null,null,null,null,null,null,null,null,null,null,null,null,null,null,null,null,null,null,null,null,null,null,null,null,null,null,null,null,null,null,"Mogotes 13.8 Kv"]
[null,null,null,null,null,null,null,null,null,null,null,null,null,null,null,null,null,null,null,null,null,null,null,null,null,null,null,null,null,null,null,null,null,null,null,null,null,null,"Mogotes 34.5 Kv"]
[null,null,null,null,null,null,null,null,null,null,null,null,null,null,null,null,null,null,null,null,null,null,null,null,null,null,null,null,null,null,null,null,null,null,null,null,null,null,"Molinos"]
[null,null,null,null,null,null,null,null,null,null,null,null,null,null,null,null,null,null,null,null,null,null,null,null,null,null,null,null,null,null,null,null,null,null,null,null,null,null,"Momil"]
[null,null,null,null,null,null,null,null,null,null,null,null,null,null,null,null,null,null,null,null,null,null,null,null,null,null,null,null,null,null,null,null,null,null,null,null,null,null,"Mompox"]
[null,null,null,null,null,null,null,null,null,null,null,null,null,null,null,null,null,null,null,null,null,null,null,null,null,null,null,null,null,null,null,null,null,null,null,null,null,null,"Moniquira"]
[null,null,null,null,null,null,null,null,null,null,null,null,null,null,null,null,null,null,null,null,null,null,null,null,null,null,null,null,null,null,null,null,null,null,null,null,null,null,"Moñitos"]
[null,null,null,null,null,null,null,null,null,null,null,null,null,null,null,null,null,null,null,null,null,null,null,null,null,null,null,null,null,null,null,null,null,null,null,null,null,null,"Montañita"]
[null,null,null,null,null,null,null,null,null,null,null,null,null,null,null,null,null,null,null,null,null,null,null,null,null,null,null,null,null,null,null,null,null,null,null,null,null,null,"Montelibano"]
[null,null,null,null,null,null,null,null,null,null,null,null,null,null,null,null,null,null,null,null,null,null,null,null,null,null,null,null,null,null,null,null,null,null,null,null,null,null,"Montenegro"]
[null,null,null,null,null,null,null,null,null,null,null,null,null,null,null,null,null,null,null,null,null,null,null,null,null,null,null,null,null,null,null,null,null,null,null,null,null,null,"Monteria"]
[null,null,null,null,null,null,null,null,null,null,null,null,null,null,null,null,null,null,null,null,null,null,null,null,null,null,null,null,null,null,null,null,null,null,null,null,null,null,"Monterralo"]
[null,null,null,null,null,null,null,null,null,null,null,null,null,null,null,null,null,null,null,null,null,null,null,null,null,null,null,null,null,null,null,null,null,null,null,null,null,null,"Monterrey"]
[null,null,null,null,null,null,null,null,null,null,null,null,null,null,null,null,null,null,null,null,null,null,null,null,null,null,null,null,null,null,null,null,null,null,null,null,null,null,"Montevideo"]
[null,null,null,null,null,null,null,null,null,null,null,null,null,null,null,null,null,null,null,null,null,null,null,null,null,null,null,null,null,null,null,null,null,null,null,null,null,null,"Morato"]
[null,null,null,null,null,null,null,null,null,null,null,null,null,null,null,null,null,null,null,null,null,null,null,null,null,null,null,null,null,null,null,null,null,null,null,null,null,null,"Morelia"]
[null,null,null,null,null,null,null,null,null,null,null,null,null,null,null,null,null,null,null,null,null,null,null,null,null,null,null,null,null,null,null,null,null,null,null,null,null,null,"Morichal"]
[null,null,null,null,null,null,null,null,null,null,null,null,null,null,null,null,null,null,null,null,null,null,null,null,null,null,null,null,null,null,null,null,null,null,null,null,null,null,"Morro 115 Kv"]
[null,null,null,null,null,null,null,null,null,null,null,null,null,null,null,null,null,null,null,null,null,null,null,null,null,null,null,null,null,null,null,null,null,null,null,null,null,null,"Mosquera"]
[null,null,null,null,null,null,null,null,null,null,null,null,null,null,null,null,null,null,null,null,null,null,null,null,null,null,null,null,null,null,null,null,null,null,null,null,null,null,"Movil_Fusa"]
[null,null,null,null,null,null,null,null,null,null,null,null,null,null,null,null,null,null,null,null,null,null,null,null,null,null,null,null,null,null,null,null,null,null,null,null,null,null,"Muiscas"]
[null,null,null,null,null,null,null,null,null,null,null,null,null,null,null,null,null,null,null,null,null,null,null,null,null,null,null,null,null,null,null,null,null,null,null,null,null,null,"Mulalo"]
[null,null,null,null,null,null,null,null,null,null,null,null,null,null,null,null,null,null,null,null,null,null,null,null,null,null,null,null,null,null,null,null,null,null,null,null,null,null,"Muña"]
[null,null,null,null,null,null,null,null,null,null,null,null,null,null,null,null,null,null,null,null,null,null,null,null,null,null,null,null,null,null,null,null,null,null,null,null,null,null,"Muña_Iii"]
[null,null,null,null,null,null,null,null,null,null,null,null,null,null,null,null,null,null,null,null,null,null,null,null,null,null,null,null,null,null,null,null,null,null,null,null,null,null,"Muriba"]
[null,null,null,null,null,null,null,null,null,null,null,null,null,null,null,null,null,null,null,null,null,null,null,null,null,null,null,null,null,null,null,null,null,null,null,null,null,null,"Muzo"]
[null,null,null,null,null,null,null,null,null,null,null,null,null,null,null,null,null,null,null,null,null,null,null,null,null,null,null,null,null,null,null,null,null,null,null,null,null,null,"Muzu"]
[null,null,null,null,null,null,null,null,null,null,null,null,null,null,null,null,null,null,null,null,null,null,null,null,null,null,null,null,null,null,null,null,null,null,null,null,null,null,"Namay"]
[null,null,null,null,null,null,null,null,null,null,null,null,null,null,null,null,null,null,null,null,null,null,null,null,null,null,null,null,null,null,null,null,null,null,null,null,null,null,"Naranjito"]
[null,null,null,null,null,null,null,null,null,null,null,null,null,null,null,null,null,null,null,null,null,null,null,null,null,null,null,null,null,null,null,null,null,null,null,null,null,null,"Narino"]
[null,null,null,null,null,null,null,null,null,null,null,null,null,null,null,null,null,null,null,null,null,null,null,null,null,null,null,null,null,null,null,null,null,null,null,null,null,null,"Nariño"]
[null,null,null,null,null,null,null,null,null,null,null,null,null,null,null,null,null,null,null,null,null,null,null,null,null,null,null,null,null,null,null,null,null,null,null,null,null,null,"Natagaima"]
[null,null,null,null,null,null,null,null,null,null,null,null,null,null,null,null,null,null,null,null,null,null,null,null,null,null,null,null,null,null,null,null,null,null,null,null,null,null,"Nechi"]
[null,null,null,null,null,null,null,null,null,null,null,null,null,null,null,null,null,null,null,null,null,null,null,null,null,null,null,null,null,null,null,null,null,null,null,null,null,null,"Necocli"]
[null,null,null,null,null,null,null,null,null,null,null,null,null,null,null,null,null,null,null,null,null,null,null,null,null,null,null,null,null,null,null,null,null,null,null,null,null,null,"Neira"]
[null,null,null,null,null,null,null,null,null,null,null,null,null,null,null,null,null,null,null,null,null,null,null,null,null,null,null,null,null,null,null,null,null,null,null,null,null,null,"Nel_Alonso"]
[null,null,null,null,null,null,null,null,null,null,null,null,null,null,null,null,null,null,null,null,null,null,null,null,null,null,null,null,null,null,null,null,null,null,null,null,null,null,"Nemocon"]
[null,null,null,null,null,null,null,null,null,null,null,null,null,null,null,null,null,null,null,null,null,null,null,null,null,null,null,null,null,null,null,null,null,null,null,null,null,null,"Nesperanza"]
[null,null,null,null,null,null,null,null,null,null,null,null,null,null,null,null,null,null,null,null,null,null,null,null,null,null,null,null,null,null,null,null,null,null,null,null,null,null,"Nestle"]
[null,null,null,null,null,null,null,null,null,null,null,null,null,null,null,null,null,null,null,null,null,null,null,null,null,null,null,null,null,null,null,null,null,null,null,null,null,null,"Niata"]
[null,null,null,null,null,null,null,null,null,null,null,null,null,null,null,null,null,null,null,null,null,null,null,null,null,null,null,null,null,null,null,null,null,null,null,null,null,null,"Nima 1"]
[null,null,null,null,null,null,null,null,null,null,null,null,null,null,null,null,null,null,null,null,null,null,null,null,null,null,null,null,null,null,null,null,null,null,null,null,null,null,"Norcasia"]
[null,null,null,null,null,null,null,null,null,null,null,null,null,null,null,null,null,null,null,null,null,null,null,null,null,null,null,null,null,null,null,null,null,null,null,null,null,null,"Noroeste"]
[null,null,null,null,null,null,null,null,null,null,null,null,null,null,null,null,null,null,null,null,null,null,null,null,null,null,null,null,null,null,null,null,null,null,null,null,null,null,"Noroeste 230"]
[null,null,null,null,null,null,null,null,null,null,null,null,null,null,null,null,null,null,null,null,null,null,null,null,null,null,null,null,null,null,null,null,null,null,null,null,null,null,"Norte"]
[null,null,null,null,null,null,null,null,null,null,null,null,null,null,null,null,null,null,null,null,null,null,null,null,null,null,null,null,null,null,null,null,null,null,null,null,null,null,"Norte 13.8 Kv"]
[null,null,null,null,null,null,null,null,null,null,null,null,null,null,null,null,null,null,null,null,null,null,null,null,null,null,null,null,null,null,null,null,null,null,null,null,null,null,"Norte 230"]
[null,null,null,null,null,null,null,null,null,null,null,null,null,null,null,null,null,null,null,null,null,null,null,null,null,null,null,null,null,null,null,null,null,null,null,null,null,null,"Norte 230 Kv"]
[null,null,null,null,null,null,null,null,null,null,null,null,null,null,null,null,null,null,null,null,null,null,null,null,null,null,null,null,null,null,null,null,null,null,null,null,null,null,"Norte 34.5 Kv"]
[null,null,null,null,null,null,null,null,null,null,null,null,null,null,null,null,null,null,null,null,null,null,null,null,null,null,null,null,null,null,null,null,null,null,null,null,null,null,"Norte 500"]
[null,null,null,null,null,null,null,null,null,null,null,null,null,null,null,null,null,null,null,null,null,null,null,null,null,null,null,null,null,null,null,null,null,null,null,null,null,null,"Nueva Barranquilla"]
[null,null,null,null,null,null,null,null,null,null,null,null,null,null,null,null,null,null,null,null,null,null,null,null,null,null,null,null,null,null,null,null,null,null,null,null,null,null,"Nueva Cajamarca"]
[null,null,null,null,null,null,null,null,null,null,null,null,null,null,null,null,null,null,null,null,null,null,null,null,null,null,null,null,null,null,null,null,null,null,null,null,null,null,"Nueva Colonia"]
[null,null,null,null,null,null,null,null,null,null,null,null,null,null,null,null,null,null,null,null,null,null,null,null,null,null,null,null,null,null,null,null,null,null,null,null,null,null,"Nueva Cospique"]
[null,null,null,null,null,null,null,null,null,null,null,null,null,null,null,null,null,null,null,null,null,null,null,null,null,null,null,null,null,null,null,null,null,null,null,null,null,null,"Nueva Cuestecitas"]
[null,null,null,null,null,null,null,null,null,null,null,null,null,null,null,null,null,null,null,null,null,null,null,null,null,null,null,null,null,null,null,null,null,null,null,null,null,null,"Nueva Esperanza"]
[null,null,null,null,null,null,null,null,null,null,null,null,null,null,null,null,null,null,null,null,null,null,null,null,null,null,null,null,null,null,null,null,null,null,null,null,null,null,"Nueva Espinal"]
[null,null,null,null,null,null,null,null,null,null,null,null,null,null,null,null,null,null,null,null,null,null,null,null,null,null,null,null,null,null,null,null,null,null,null,null,null,null,"Nueva Granada"]
[null,null,null,null,null,null,null,null,null,null,null,null,null,null,null,null,null,null,null,null,null,null,null,null,null,null,null,null,null,null,null,null,null,null,null,null,null,null,"Nueva Granada (Magdalena)"]
[null,null,null,null,null,null,null,null,null,null,null,null,null,null,null,null,null,null,null,null,null,null,null,null,null,null,null,null,null,null,null,null,null,null,null,null,null,null,"Nueva Guatapuri"]
[null,null,null,null,null,null,null,null,null,null,null,null,null,null,null,null,null,null,null,null,null,null,null,null,null,null,null,null,null,null,null,null,null,null,null,null,null,null,"Nueva Jenesano 115 Kv"]
[null,null,null,null,null,null,null,null,null,null,null,null,null,null,null,null,null,null,null,null,null,null,null,null,null,null,null,null,null,null,null,null,null,null,null,null,null,null,"Nueva La Loma"]
[null,null,null,null,null,null,null,null,null,null,null,null,null,null,null,null,null,null,null,null,null,null,null,null,null,null,null,null,null,null,null,null,null,null,null,null,null,null,"Nueva Monteria"]
[null,null,null,null,null,null,null,null,null,null,null,null,null,null,null,null,null,null,null,null,null,null,null,null,null,null,null,null,null,null,null,null,null,null,null,null,null,null,"Nueva Rio Magdalena"]
[null,null,null,null,null,null,null,null,null,null,null,null,null,null,null,null,null,null,null,null,null,null,null,null,null,null,null,null,null,null,null,null,null,null,null,null,null,null,"Nueva San Juan"]
[null,null,null,null,null,null,null,null,null,null,null,null,null,null,null,null,null,null,null,null,null,null,null,null,null,null,null,null,null,null,null,null,null,null,null,null,null,null,"Nueva Santa Rosa"]
[null,null,null,null,null,null,null,null,null,null,null,null,null,null,null,null,null,null,null,null,null,null,null,null,null,null,null,null,null,null,null,null,null,null,null,null,null,null,"Nueva Toluviejo"]
[null,null,null,null,null,null,null,null,null,null,null,null,null,null,null,null,null,null,null,null,null,null,null,null,null,null,null,null,null,null,null,null,null,null,null,null,null,null,"Nuevo Penol"]
[null,null,null,null,null,null,null,null,null,null,null,null,null,null,null,null,null,null,null,null,null,null,null,null,null,null,null,null,null,null,null,null,null,null,null,null,null,null,"Nunchia"]
[null,null,null,null,null,null,null,null,null,null,null,null,null,null,null,null,null,null,null,null,null,null,null,null,null,null,null,null,null,null,null,null,null,null,null,null,null,null,"Oasis"]
[null,null,null,null,null,null,null,null,null,null,null,null,null,null,null,null,null,null,null,null,null,null,null,null,null,null,null,null,null,null,null,null,null,null,null,null,null,null,"Ocaña"]
[null,null,null,null,null,null,null,null,null,null,null,null,null,null,null,null,null,null,null,null,null,null,null,null,null,null,null,null,null,null,null,null,null,null,null,null,null,null,"Occidente"]
[null,null,null,null,null,null,null,null,null,null,null,null,null,null,null,null,null,null,null,null,null,null,null,null,null,null,null,null,null,null,null,null,null,null,null,null,null,null,"Ocoa"]
[null,null,null,null,null,null,null,null,null,null,null,null,null,null,null,null,null,null,null,null,null,null,null,null,null,null,null,null,null,null,null,null,null,null,null,null,null,null,"Oiba 115 Kv"]
[null,null,null,null,null,null,null,null,null,null,null,null,null,null,null,null,null,null,null,null,null,null,null,null,null,null,null,null,null,null,null,null,null,null,null,null,null,null,"Oiba 13.8 Kv"]
[null,null,null,null,null,null,null,null,null,null,null,null,null,null,null,null,null,null,null,null,null,null,null,null,null,null,null,null,null,null,null,null,null,null,null,null,null,null,"Oiba 34.5 Kv"]
[null,null,null,null,null,null,null,null,null,null,null,null,null,null,null,null,null,null,null,null,null,null,null,null,null,null,null,null,null,null,null,null,null,null,null,null,null,null,"Olaya Herrera"]
[null,null,null,null,null,null,null,null,null,null,null,null,null,null,null,null,null,null,null,null,null,null,null,null,null,null,null,null,null,null,null,null,null,null,null,null,null,null,"Oporapa"]
[null,null,null,null,null,null,null,null,null,null,null,null,null,null,null,null,null,null,null,null,null,null,null,null,null,null,null,null,null,null,null,null,null,null,null,null,null,null,"Oriente"]
[null,null,null,null,null,null,null,null,null,null,null,null,null,null,null,null,null,null,null,null,null,null,null,null,null,null,null,null,null,null,null,null,null,null,null,null,null,null,"Oriente 115Kv"]
[null,null,null,null,null,null,null,null,null,null,null,null,null,null,null,null,null,null,null,null,null,null,null,null,null,null,null,null,null,null,null,null,null,null,null,null,null,null,"Orocue"]
[null,null,null,null,null,null,null,null,null,null,null,null,null,null,null,null,null,null,null,null,null,null,null,null,null,null,null,null,null,null,null,null,null,null,null,null,null,null,"Ortega"]
[null,null,null,null,null,null,null,null,null,null,null,null,null,null,null,null,null,null,null,null,null,null,null,null,null,null,null,null,null,null,null,null,null,null,null,null,null,null,"Otanche"]
[null,null,null,null,null,null,null,null,null,null,null,null,null,null,null,null,null,null,null,null,null,null,null,null,null,null,null,null,null,null,null,null,null,null,null,null,null,null,"Otu"]
[null,null,null,null,null,null,null,null,null,null,null,null,null,null,null,null,null,null,null,null,null,null,null,null,null,null,null,null,null,null,null,null,null,null,null,null,null,null,"Ovejas"]
[null,null,null,null,null,null,null,null,null,null,null,null,null,null,null,null,null,null,null,null,null,null,null,null,null,null,null,null,null,null,null,null,null,null,null,null,null,null,"P.Cafe"]
[null,null,null,null,null,null,null,null,null,null,null,null,null,null,null,null,null,null,null,null,null,null,null,null,null,null,null,null,null,null,null,null,null,null,null,null,null,null,"P.Espejo"]
[null,null,null,null,null,null,null,null,null,null,null,null,null,null,null,null,null,null,null,null,null,null,null,null,null,null,null,null,null,null,null,null,null,null,null,null,null,null,"P.Solar Remolino (Genli)"]
[null,null,null,null,null,null,null,null,null,null,null,null,null,null,null,null,null,null,null,null,null,null,null,null,null,null,null,null,null,null,null,null,null,null,null,null,null,null,"Pacifico"]
[null,null,null,null,null,null,null,null,null,null,null,null,null,null,null,null,null,null,null,null,null,null,null,null,null,null,null,null,null,null,null,null,null,null,null,null,null,null,"Pacoli"]
[null,null,null,null,null,null,null,null,null,null,null,null,null,null,null,null,null,null,null,null,null,null,null,null,null,null,null,null,null,null,null,null,null,null,null,null,null,null,"Pacora"]
[null,null,null,null,null,null,null,null,null,null,null,null,null,null,null,null,null,null,null,null,null,null,null,null,null,null,null,null,null,null,null,null,null,null,null,null,null,null,"Padua"]
[null,null,null,null,null,null,null,null,null,null,null,null,null,null,null,null,null,null,null,null,null,null,null,null,null,null,null,null,null,null,null,null,null,null,null,null,null,null,"Paez"]
[null,null,null,null,null,null,null,null,null,null,null,null,null,null,null,null,null,null,null,null,null,null,null,null,null,null,null,null,null,null,null,null,null,null,null,null,null,null,"Paicol"]
[null,null,null,null,null,null,null,null,null,null,null,null,null,null,null,null,null,null,null,null,null,null,null,null,null,null,null,null,null,null,null,null,null,null,null,null,null,null,"Pailitas"]
[null,null,null,null,null,null,null,null,null,null,null,null,null,null,null,null,null,null,null,null,null,null,null,null,null,null,null,null,null,null,null,null,null,null,null,null,null,null,"Paipa"]
[null,null,null,null,null,null,null,null,null,null,null,null,null,null,null,null,null,null,null,null,null,null,null,null,null,null,null,null,null,null,null,null,null,null,null,null,null,null,"Palenque 115 Kv"]
[null,null,null,null,null,null,null,null,null,null,null,null,null,null,null,null,null,null,null,null,null,null,null,null,null,null,null,null,null,null,null,null,null,null,null,null,null,null,"Palenque 13.8 Kv"]
[null,null,null,null,null,null,null,null,null,null,null,null,null,null,null,null,null,null,null,null,null,null,null,null,null,null,null,null,null,null,null,null,null,null,null,null,null,null,"Palenque 34.5 Kv"]
[null,null,null,null,null,null,null,null,null,null,null,null,null,null,null,null,null,null,null,null,null,null,null,null,null,null,null,null,null,null,null,null,null,null,null,null,null,null,"Palermo"]
[null,null,null,null,null,null,null,null,null,null,null,null,null,null,null,null,null,null,null,null,null,null,null,null,null,null,null,null,null,null,null,null,null,null,null,null,null,null,"Palestina"]
[null,null,null,null,null,null,null,null,null,null,null,null,null,null,null,null,null,null,null,null,null,null,null,null,null,null,null,null,null,null,null,null,null,null,null,null,null,null,"Palmas 13.8 Kv"]
[null,null,null,null,null,null,null,null,null,null,null,null,null,null,null,null,null,null,null,null,null,null,null,null,null,null,null,null,null,null,null,null,null,null,null,null,null,null,"Palmas 34.5 Kv"]
[null,null,null,null,null,null,null,null,null,null,null,null,null,null,null,null,null,null,null,null,null,null,null,null,null,null,null,null,null,null,null,null,null,null,null,null,null,null,"Palmaseca"]
[null,null,null,null,null,null,null,null,null,null,null,null,null,null,null,null,null,null,null,null,null,null,null,null,null,null,null,null,null,null,null,null,null,null,null,null,null,null,"Paloblanco"]
[null,null,null,null,null,null,null,null,null,null,null,null,null,null,null,null,null,null,null,null,null,null,null,null,null,null,null,null,null,null,null,null,null,null,null,null,null,null,"Palocabildo"]
[null,null,null,null,null,null,null,null,null,null,null,null,null,null,null,null,null,null,null,null,null,null,null,null,null,null,null,null,null,null,null,null,null,null,null,null,null,null,"Palosantal"]
[null,null,null,null,null,null,null,null,null,null,null,null,null,null,null,null,null,null,null,null,null,null,null,null,null,null,null,null,null,null,null,null,null,null,null,null,null,null,"Palosolo"]
[null,null,null,null,null,null,null,null,null,null,null,null,null,null,null,null,null,null,null,null,null,null,null,null,null,null,null,null,null,null,null,null,null,null,null,null,null,null,"Panagua"]
[null,null,null,null,null,null,null,null,null,null,null,null,null,null,null,null,null,null,null,null,null,null,null,null,null,null,null,null,null,null,null,null,null,null,null,null,null,null,"Panama De Arauca"]
[null,null,null,null,null,null,null,null,null,null,null,null,null,null,null,null,null,null,null,null,null,null,null,null,null,null,null,null,null,null,null,null,null,null,null,null,null,null,"Panamericana"]
[null,null,null,null,null,null,null,null,null,null,null,null,null,null,null,null,null,null,null,null,null,null,null,null,null,null,null,null,null,null,null,null,null,null,null,null,null,null,"Pance"]
[null,null,null,null,null,null,null,null,null,null,null,null,null,null,null,null,null,null,null,null,null,null,null,null,null,null,null,null,null,null,null,null,null,null,null,null,null,null,"Panceguitas"]
[null,null,null,null,null,null,null,null,null,null,null,null,null,null,null,null,null,null,null,null,null,null,null,null,null,null,null,null,null,null,null,null,null,null,null,null,null,null,"Panorama"]
[null,null,null,null,null,null,null,null,null,null,null,null,null,null,null,null,null,null,null,null,null,null,null,null,null,null,null,null,null,null,null,null,null,null,null,null,null,null,"Pantanillo La Fe"]
[null,null,null,null,null,null,null,null,null,null,null,null,null,null,null,null,null,null,null,null,null,null,null,null,null,null,null,null,null,null,null,null,null,null,null,null,null,null,"Papayo"]
[null,null,null,null,null,null,null,null,null,null,null,null,null,null,null,null,null,null,null,null,null,null,null,null,null,null,null,null,null,null,null,null,null,null,null,null,null,null,"Papel Cauca"]
[null,null,null,null,null,null,null,null,null,null,null,null,null,null,null,null,null,null,null,null,null,null,null,null,null,null,null,null,null,null,null,null,null,null,null,null,null,null,"Paraguaicito"]
[null,null,null,null,null,null,null,null,null,null,null,null,null,null,null,null,null,null,null,null,null,null,null,null,null,null,null,null,null,null,null,null,null,null,null,null,null,null,"Paraiso 230"]
[null,null,null,null,null,null,null,null,null,null,null,null,null,null,null,null,null,null,null,null,null,null,null,null,null,null,null,null,null,null,null,null,null,null,null,null,null,null,"Paramo"]
[null,null,null,null,null,null,null,null,null,null,null,null,null,null,null,null,null,null,null,null,null,null,null,null,null,null,null,null,null,null,null,null,null,null,null,null,null,null,"Paratebuen"]
[null,null,null,null,null,null,null,null,null,null,null,null,null,null,null,null,null,null,null,null,null,null,null,null,null,null,null,null,null,null,null,null,null,null,null,null,null,null,"Parnaso 13.8 Kv"]
[null,null,null,null,null,null,null,null,null,null,null,null,null,null,null,null,null,null,null,null,null,null,null,null,null,null,null,null,null,null,null,null,null,null,null,null,null,null,"Parnaso 34.5 Kv"]
[null,null,null,null,null,null,null,null,null,null,null,null,null,null,null,null,null,null,null,null,null,null,null,null,null,null,null,null,null,null,null,null,null,null,null,null,null,null,"Parque Industrial Palermo"]
[null,null,null,null,null,null,null,null,null,null,null,null,null,null,null,null,null,null,null,null,null,null,null,null,null,null,null,null,null,null,null,null,null,null,null,null,null,null,"Parque Logistico"]
[null,null,null,null,null,null,null,null,null,null,null,null,null,null,null,null,null,null,null,null,null,null,null,null,null,null,null,null,null,null,null,null,null,null,null,null,null,null,"Pasacaballos"]
[null,null,null,null,null,null,null,null,null,null,null,null,null,null,null,null,null,null,null,null,null,null,null,null,null,null,null,null,null,null,null,null,null,null,null,null,null,null,"Paso Ancho"]
[null,null,null,null,null,null,null,null,null,null,null,null,null,null,null,null,null,null,null,null,null,null,null,null,null,null,null,null,null,null,null,null,null,null,null,null,null,null,"Pasto"]
[null,null,null,null,null,null,null,null,null,null,null,null,null,null,null,null,null,null,null,null,null,null,null,null,null,null,null,null,null,null,null,null,null,null,null,null,null,null,"Pata"]
[null,null,null,null,null,null,null,null,null,null,null,null,null,null,null,null,null,null,null,null,null,null,null,null,null,null,null,null,null,null,null,null,null,null,null,null,null,null,"Patimena"]
[null,null,null,null,null,null,null,null,null,null,null,null,null,null,null,null,null,null,null,null,null,null,null,null,null,null,null,null,null,null,null,null,null,null,null,null,null,null,"Patios - La Peral"]
[null,null,null,null,null,null,null,null,null,null,null,null,null,null,null,null,null,null,null,null,null,null,null,null,null,null,null,null,null,null,null,null,null,null,null,null,null,null,"Patriotas"]
[null,null,null,null,null,null,null,null,null,null,null,null,null,null,null,null,null,null,null,null,null,null,null,null,null,null,null,null,null,null,null,null,null,null,null,null,null,null,"Paujil"]
[null,null,null,null,null,null,null,null,null,null,null,null,null,null,null,null,null,null,null,null,null,null,null,null,null,null,null,null,null,null,null,null,null,null,null,null,null,null,"Pauna"]
[null,null,null,null,null,null,null,null,null,null,null,null,null,null,null,null,null,null,null,null,null,null,null,null,null,null,null,null,null,null,null,null,null,null,null,null,null,null,"Paunita"]
[null,null,null,null,null,null,null,null,null,null,null,null,null,null,null,null,null,null,null,null,null,null,null,null,null,null,null,null,null,null,null,null,null,null,null,null,null,null,"Pavas"]
[null,null,null,null,null,null,null,null,null,null,null,null,null,null,null,null,null,null,null,null,null,null,null,null,null,null,null,null,null,null,null,null,null,null,null,null,null,null,"Pavitas"]
[null,null,null,null,null,null,null,null,null,null,null,null,null,null,null,null,null,null,null,null,null,null,null,null,null,null,null,null,null,null,null,null,null,null,null,null,null,null,"Paya"]
[null,null,null,null,null,null,null,null,null,null,null,null,null,null,null,null,null,null,null,null,null,null,null,null,null,null,null,null,null,null,null,null,null,null,null,null,null,null,"Payande"]
[null,null,null,null,null,null,null,null,null,null,null,null,null,null,null,null,null,null,null,null,null,null,null,null,null,null,null,null,null,null,null,null,null,null,null,null,null,null,"Paz De Ariporo"]
[null,null,null,null,null,null,null,null,null,null,null,null,null,null,null,null,null,null,null,null,null,null,null,null,null,null,null,null,null,null,null,null,null,null,null,null,null,null,"Paz De Rio"]
[null,null,null,null,null,null,null,null,null,null,null,null,null,null,null,null,null,null,null,null,null,null,null,null,null,null,null,null,null,null,null,null,null,null,null,null,null,null,"Pch Julio Bravo"]
[null,null,null,null,null,null,null,null,null,null,null,null,null,null,null,null,null,null,null,null,null,null,null,null,null,null,null,null,null,null,null,null,null,null,null,null,null,null,"Pelaya"]
[null,null,null,null,null,null,null,null,null,null,null,null,null,null,null,null,null,null,null,null,null,null,null,null,null,null,null,null,null,null,null,null,null,null,null,null,null,null,"Penalisa"]
[null,null,null,null,null,null,null,null,null,null,null,null,null,null,null,null,null,null,null,null,null,null,null,null,null,null,null,null,null,null,null,null,null,null,null,null,null,null,"Peñas Blancas"]
[null,null,null,null,null,null,null,null,null,null,null,null,null,null,null,null,null,null,null,null,null,null,null,null,null,null,null,null,null,null,null,null,null,null,null,null,null,null,"Pensilvania"]
[null,null,null,null,null,null,null,null,null,null,null,null,null,null,null,null,null,null,null,null,null,null,null,null,null,null,null,null,null,null,null,null,null,null,null,null,null,null,"Peralonso"]
[null,null,null,null,null,null,null,null,null,null,null,null,null,null,null,null,null,null,null,null,null,null,null,null,null,null,null,null,null,null,null,null,null,null,null,null,null,null,"Picaleña"]
[null,null,null,null,null,null,null,null,null,null,null,null,null,null,null,null,null,null,null,null,null,null,null,null,null,null,null,null,null,null,null,null,null,null,null,null,null,null,"Piedecuesta 115 Kv"]
[null,null,null,null,null,null,null,null,null,null,null,null,null,null,null,null,null,null,null,null,null,null,null,null,null,null,null,null,null,null,null,null,null,null,null,null,null,null,"Piedecuesta 230 Kv"]
[null,null,null,null,null,null,null,null,null,null,null,null,null,null,null,null,null,null,null,null,null,null,null,null,null,null,null,null,null,null,null,null,null,null,null,null,null,null,"Piedecuesta 34.5 Kv"]
[null,null,null,null,null,null,null,null,null,null,null,null,null,null,null,null,null,null,null,null,null,null,null,null,null,null,null,null,null,null,null,null,null,null,null,null,null,null,"Piedra Gorda"]
[null,null,null,null,null,null,null,null,null,null,null,null,null,null,null,null,null,null,null,null,null,null,null,null,null,null,null,null,null,null,null,null,null,null,null,null,null,null,"Piedrancha"]
[null,null,null,null,null,null,null,null,null,null,null,null,null,null,null,null,null,null,null,null,null,null,null,null,null,null,null,null,null,null,null,null,null,null,null,null,null,null,"Piedras Blancas"]
[null,null,null,null,null,null,null,null,null,null,null,null,null,null,null,null,null,null,null,null,null,null,null,null,null,null,null,null,null,null,null,null,null,null,null,null,null,null,"Piñalito"]
[null,null,null,null,null,null,null,null,null,null,null,null,null,null,null,null,null,null,null,null,null,null,null,null,null,null,null,null,null,null,null,null,null,null,null,null,null,null,"Pintada"]
[null,null,null,null,null,null,null,null,null,null,null,null,null,null,null,null,null,null,null,null,null,null,null,null,null,null,null,null,null,null,null,null,null,null,null,null,null,null,"Pirichigua"]
[null,null,null,null,null,null,null,null,null,null,null,null,null,null,null,null,null,null,null,null,null,null,null,null,null,null,null,null,null,null,null,null,null,null,null,null,null,null,"Pisba"]
[null,null,null,null,null,null,null,null,null,null,null,null,null,null,null,null,null,null,null,null,null,null,null,null,null,null,null,null,null,null,null,null,null,null,null,null,null,null,"Pitalito"]
[null,null,null,null,null,null,null,null,null,null,null,null,null,null,null,null,null,null,null,null,null,null,null,null,null,null,null,null,null,null,null,null,null,null,null,null,null,null,"Pitalito 115**"]
[null,null,null,null,null,null,null,null,null,null,null,null,null,null,null,null,null,null,null,null,null,null,null,null,null,null,null,null,null,null,null,null,null,null,null,null,null,null,"Pivijay"]
[null,null,null,null,null,null,null,null,null,null,null,null,null,null,null,null,null,null,null,null,null,null,null,null,null,null,null,null,null,null,null,null,null,null,null,null,null,null,"Planadas"]
[null,null,null,null,null,null,null,null,null,null,null,null,null,null,null,null,null,null,null,null,null,null,null,null,null,null,null,null,null,null,null,null,null,null,null,null,null,null,"Planas"]
[null,null,null,null,null,null,null,null,null,null,null,null,null,null,null,null,null,null,null,null,null,null,null,null,null,null,null,null,null,null,null,null,null,null,null,null,null,null,"Planeta Rica"]
[null,null,null,null,null,null,null,null,null,null,null,null,null,null,null,null,null,null,null,null,null,null,null,null,null,null,null,null,null,null,null,null,null,null,null,null,null,null,"Planta Diesel"]
[null,null,null,null,null,null,null,null,null,null,null,null,null,null,null,null,null,null,null,null,null,null,null,null,null,null,null,null,null,null,null,null,null,null,null,null,null,null,"Plato"]
[null,null,null,null,null,null,null,null,null,null,null,null,null,null,null,null,null,null,null,null,null,null,null,null,null,null,null,null,null,null,null,null,null,null,null,null,null,null,"Playas"]
[null,null,null,null,null,null,null,null,null,null,null,null,null,null,null,null,null,null,null,null,null,null,null,null,null,null,null,null,null,null,null,null,null,null,null,null,null,null,"Playitas"]
[null,null,null,null,null,null,null,null,null,null,null,null,null,null,null,null,null,null,null,null,null,null,null,null,null,null,null,null,null,null,null,null,null,null,null,null,null,null,"Playon"]
[null,null,null,null,null,null,null,null,null,null,null,null,null,null,null,null,null,null,null,null,null,null,null,null,null,null,null,null,null,null,null,null,null,null,null,null,null,null,"Poblado"]
[null,null,null,null,null,null,null,null,null,null,null,null,null,null,null,null,null,null,null,null,null,null,null,null,null,null,null,null,null,null,null,null,null,null,null,null,null,null,"Policarpa"]
[null,null,null,null,null,null,null,null,null,null,null,null,null,null,null,null,null,null,null,null,null,null,null,null,null,null,null,null,null,null,null,null,null,null,null,null,null,null,"Ponedera"]
[null,null,null,null,null,null,null,null,null,null,null,null,null,null,null,null,null,null,null,null,null,null,null,null,null,null,null,null,null,null,null,null,null,null,null,null,null,null,"Porce Ii"]
[null,null,null,null,null,null,null,null,null,null,null,null,null,null,null,null,null,null,null,null,null,null,null,null,null,null,null,null,null,null,null,null,null,null,null,null,null,null,"Porce Ii R57"]
[null,null,null,null,null,null,null,null,null,null,null,null,null,null,null,null,null,null,null,null,null,null,null,null,null,null,null,null,null,null,null,null,null,null,null,null,null,null,"Porce Iii"]
[null,null,null,null,null,null,null,null,null,null,null,null,null,null,null,null,null,null,null,null,null,null,null,null,null,null,null,null,null,null,null,null,null,null,null,null,null,null,"Porcecito 101"]
[null,null,null,null,null,null,null,null,null,null,null,null,null,null,null,null,null,null,null,null,null,null,null,null,null,null,null,null,null,null,null,null,null,null,null,null,null,null,"Pore"]
[null,null,null,null,null,null,null,null,null,null,null,null,null,null,null,null,null,null,null,null,null,null,null,null,null,null,null,null,null,null,null,null,null,null,null,null,null,null,"Portones"]
[null,null,null,null,null,null,null,null,null,null,null,null,null,null,null,null,null,null,null,null,null,null,null,null,null,null,null,null,null,null,null,null,null,null,null,null,null,null,"Portugal"]
[null,null,null,null,null,null,null,null,null,null,null,null,null,null,null,null,null,null,null,null,null,null,null,null,null,null,null,null,null,null,null,null,null,null,null,null,null,null,"Porvenir"]
[null,null,null,null,null,null,null,null,null,null,null,null,null,null,null,null,null,null,null,null,null,null,null,null,null,null,null,null,null,null,null,null,null,null,null,null,null,null,"Potrerillos"]
[null,null,null,null,null,null,null,null,null,null,null,null,null,null,null,null,null,null,null,null,null,null,null,null,null,null,null,null,null,null,null,null,null,null,null,null,null,null,"Pozo Azul"]
[null,null,null,null,null,null,null,null,null,null,null,null,null,null,null,null,null,null,null,null,null,null,null,null,null,null,null,null,null,null,null,null,null,null,null,null,null,null,"Pozo Nutria 13.8 Kv"]
[null,null,null,null,null,null,null,null,null,null,null,null,null,null,null,null,null,null,null,null,null,null,null,null,null,null,null,null,null,null,null,null,null,null,null,null,null,null,"Pozo Nutria 34.5 Kv"]
[null,null,null,null,null,null,null,null,null,null,null,null,null,null,null,null,null,null,null,null,null,null,null,null,null,null,null,null,null,null,null,null,null,null,null,null,null,null,"Pradera"]
[null,null,null,null,null,null,null,null,null,null,null,null,null,null,null,null,null,null,null,null,null,null,null,null,null,null,null,null,null,null,null,null,null,null,null,null,null,null,"Prado Distribucion"]
[null,null,null,null,null,null,null,null,null,null,null,null,null,null,null,null,null,null,null,null,null,null,null,null,null,null,null,null,null,null,null,null,null,null,null,null,null,null,"Praga"]
[null,null,null,null,null,null,null,null,null,null,null,null,null,null,null,null,null,null,null,null,null,null,null,null,null,null,null,null,null,null,null,null,null,null,null,null,null,null,"Presentado"]
[null,null,null,null,null,null,null,null,null,null,null,null,null,null,null,null,null,null,null,null,null,null,null,null,null,null,null,null,null,null,null,null,null,null,null,null,null,null,"Primavera"]
[null,null,null,null,null,null,null,null,null,null,null,null,null,null,null,null,null,null,null,null,null,null,null,null,null,null,null,null,null,null,null,null,null,null,null,null,null,null,"Principal 115 Kv"]
[null,null,null,null,null,null,null,null,null,null,null,null,null,null,null,null,null,null,null,null,null,null,null,null,null,null,null,null,null,null,null,null,null,null,null,null,null,null,"Principal 13.8 Kv"]
[null,null,null,null,null,null,null,null,null,null,null,null,null,null,null,null,null,null,null,null,null,null,null,null,null,null,null,null,null,null,null,null,null,null,null,null,null,null,"Principal 34.5 Kv"]
[null,null,null,null,null,null,null,null,null,null,null,null,null,null,null,null,null,null,null,null,null,null,null,null,null,null,null,null,null,null,null,null,null,null,null,null,null,null,"Proelectrica"]
[null,null,null,null,null,null,null,null,null,null,null,null,null,null,null,null,null,null,null,null,null,null,null,null,null,null,null,null,null,null,null,null,null,null,null,null,null,null,"Ps Las Marias"]
[null,null,null,null,null,null,null,null,null,null,null,null,null,null,null,null,null,null,null,null,null,null,null,null,null,null,null,null,null,null,null,null,null,null,null,null,null,null,"Pto_Salgar"]
[null,null,null,null,null,null,null,null,null,null,null,null,null,null,null,null,null,null,null,null,null,null,null,null,null,null,null,null,null,null,null,null,null,null,null,null,null,null,"Pueblo Bello"]
[null,null,null,null,null,null,null,null,null,null,null,null,null,null,null,null,null,null,null,null,null,null,null,null,null,null,null,null,null,null,null,null,null,null,null,null,null,null,"Pueblo Nuevo"]
[null,null,null,null,null,null,null,null,null,null,null,null,null,null,null,null,null,null,null,null,null,null,null,null,null,null,null,null,null,null,null,null,null,null,null,null,null,null,"Pueblo Nuevo (Magdalena)"]
[null,null,null,null,null,null,null,null,null,null,null,null,null,null,null,null,null,null,null,null,null,null,null,null,null,null,null,null,null,null,null,null,null,null,null,null,null,null,"Pueblo Rico"]
[null,null,null,null,null,null,null,null,null,null,null,null,null,null,null,null,null,null,null,null,null,null,null,null,null,null,null,null,null,null,null,null,null,null,null,null,null,null,"Puente Arimena"]
[null,null,null,null,null,null,null,null,null,null,null,null,null,null,null,null,null,null,null,null,null,null,null,null,null,null,null,null,null,null,null,null,null,null,null,null,null,null,"Puente De Boyaca"]
[null,null,null,null,null,null,null,null,null,null,null,null,null,null,null,null,null,null,null,null,null,null,null,null,null,null,null,null,null,null,null,null,null,null,null,null,null,null,"Puente Siza"]
[null,null,null,null,null,null,null,null,null,null,null,null,null,null,null,null,null,null,null,null,null,null,null,null,null,null,null,null,null,null,null,null,null,null,null,null,null,null,"Puente Sogamoso 13.8 Kv"]
[null,null,null,null,null,null,null,null,null,null,null,null,null,null,null,null,null,null,null,null,null,null,null,null,null,null,null,null,null,null,null,null,null,null,null,null,null,null,"Puente Sogamoso 34.5 Kv"]
[null,null,null,null,null,null,null,null,null,null,null,null,null,null,null,null,null,null,null,null,null,null,null,null,null,null,null,null,null,null,null,null,null,null,null,null,null,null,"Puerta De Oro"]
[null,null,null,null,null,null,null,null,null,null,null,null,null,null,null,null,null,null,null,null,null,null,null,null,null,null,null,null,null,null,null,null,null,null,null,null,null,null,"Puerto Araujo 13.8 Kv"]
[null,null,null,null,null,null,null,null,null,null,null,null,null,null,null,null,null,null,null,null,null,null,null,null,null,null,null,null,null,null,null,null,null,null,null,null,null,null,"Puerto Araujo 34.5 Kv"]
[null,null,null,null,null,null,null,null,null,null,null,null,null,null,null,null,null,null,null,null,null,null,null,null,null,null,null,null,null,null,null,null,null,null,null,null,null,null,"Puerto Badel"]
[null,null,null,null,null,null,null,null,null,null,null,null,null,null,null,null,null,null,null,null,null,null,null,null,null,null,null,null,null,null,null,null,null,null,null,null,null,null,"Puerto Boyaca"]
[null,null,null,null,null,null,null,null,null,null,null,null,null,null,null,null,null,null,null,null,null,null,null,null,null,null,null,null,null,null,null,null,null,null,null,null,null,null,"Puerto Escondido"]
[null,null,null,null,null,null,null,null,null,null,null,null,null,null,null,null,null,null,null,null,null,null,null,null,null,null,null,null,null,null,null,null,null,null,null,null,null,null,"Puerto Gaitan (Altillanura)"]
[null,null,null,null,null,null,null,null,null,null,null,null,null,null,null,null,null,null,null,null,null,null,null,null,null,null,null,null,null,null,null,null,null,null,null,null,null,null,"Puerto Guzman"]
[null,null,null,null,null,null,null,null,null,null,null,null,null,null,null,null,null,null,null,null,null,null,null,null,null,null,null,null,null,null,null,null,null,null,null,null,null,null,"Puerto Jordan"]
[null,null,null,null,null,null,null,null,null,null,null,null,null,null,null,null,null,null,null,null,null,null,null,null,null,null,null,null,null,null,null,null,null,null,null,null,null,null,"Puerto Libertador"]
[null,null,null,null,null,null,null,null,null,null,null,null,null,null,null,null,null,null,null,null,null,null,null,null,null,null,null,null,null,null,null,null,null,null,null,null,null,null,"Puerto Limon"]
[null,null,null,null,null,null,null,null,null,null,null,null,null,null,null,null,null,null,null,null,null,null,null,null,null,null,null,null,null,null,null,null,null,null,null,null,null,null,"Puerto Lleras"]
[null,null,null,null,null,null,null,null,null,null,null,null,null,null,null,null,null,null,null,null,null,null,null,null,null,null,null,null,null,null,null,null,null,null,null,null,null,null,"Puerto Lopez"]
[null,null,null,null,null,null,null,null,null,null,null,null,null,null,null,null,null,null,null,null,null,null,null,null,null,null,null,null,null,null,null,null,null,null,null,null,null,null,"Puerto Nare"]
[null,null,null,null,null,null,null,null,null,null,null,null,null,null,null,null,null,null,null,null,null,null,null,null,null,null,null,null,null,null,null,null,null,null,null,null,null,null,"Puerto Nidia"]
[null,null,null,null,null,null,null,null,null,null,null,null,null,null,null,null,null,null,null,null,null,null,null,null,null,null,null,null,null,null,null,null,null,null,null,null,null,null,"Puerto Rico"]
[null,null,null,null,null,null,null,null,null,null,null,null,null,null,null,null,null,null,null,null,null,null,null,null,null,null,null,null,null,null,null,null,null,null,null,null,null,null,"Puerto Rondon"]
[null,null,null,null,null,null,null,null,null,null,null,null,null,null,null,null,null,null,null,null,null,null,null,null,null,null,null,null,null,null,null,null,null,null,null,null,null,null,"Puerto Serviez"]
[null,null,null,null,null,null,null,null,null,null,null,null,null,null,null,null,null,null,null,null,null,null,null,null,null,null,null,null,null,null,null,null,null,null,null,null,null,null,"Puerto Tejada"]
[null,null,null,null,null,null,null,null,null,null,null,null,null,null,null,null,null,null,null,null,null,null,null,null,null,null,null,null,null,null,null,null,null,null,null,null,null,null,"Puerto Toledo"]
[null,null,null,null,null,null,null,null,null,null,null,null,null,null,null,null,null,null,null,null,null,null,null,null,null,null,null,null,null,null,null,null,null,null,null,null,null,null,"Puerto Triunfo"]
[null,null,null,null,null,null,null,null,null,null,null,null,null,null,null,null,null,null,null,null,null,null,null,null,null,null,null,null,null,null,null,null,null,null,null,null,null,null,"Puerto Viejo"]
[null,null,null,null,null,null,null,null,null,null,null,null,null,null,null,null,null,null,null,null,null,null,null,null,null,null,null,null,null,null,null,null,null,null,null,null,null,null,"Puerto Wilches 115 Kv"]
[null,null,null,null,null,null,null,null,null,null,null,null,null,null,null,null,null,null,null,null,null,null,null,null,null,null,null,null,null,null,null,null,null,null,null,null,null,null,"Puerto Wilches 34.5 Kv"]
[null,null,null,null,null,null,null,null,null,null,null,null,null,null,null,null,null,null,null,null,null,null,null,null,null,null,null,null,null,null,null,null,null,null,null,null,null,null,"Pupiales"]
[null,null,null,null,null,null,null,null,null,null,null,null,null,null,null,null,null,null,null,null,null,null,null,null,null,null,null,null,null,null,null,null,null,null,null,null,null,null,"Purificacion"]
[null,null,null,null,null,null,null,null,null,null,null,null,null,null,null,null,null,null,null,null,null,null,null,null,null,null,null,null,null,null,null,null,null,null,null,null,null,null,"Purnio"]
[null,null,null,null,null,null,null,null,null,null,null,null,null,null,null,null,null,null,null,null,null,null,null,null,null,null,null,null,null,null,null,null,null,null,null,null,null,null,"Purnio (230)"]
[null,null,null,null,null,null,null,null,null,null,null,null,null,null,null,null,null,null,null,null,null,null,null,null,null,null,null,null,null,null,null,null,null,null,null,null,null,null,"Quebrada Seca"]
[null,null,null,null,null,null,null,null,null,null,null,null,null,null,null,null,null,null,null,null,null,null,null,null,null,null,null,null,null,null,null,null,null,null,null,null,null,null,"Quetame"]
[null,null,null,null,null,null,null,null,null,null,null,null,null,null,null,null,null,null,null,null,null,null,null,null,null,null,null,null,null,null,null,null,null,null,null,null,null,null,"Quibdo"]
[null,null,null,null,null,null,null,null,null,null,null,null,null,null,null,null,null,null,null,null,null,null,null,null,null,null,null,null,null,null,null,null,null,null,null,null,null,null,"Quimbaya"]
[null,null,null,null,null,null,null,null,null,null,null,null,null,null,null,null,null,null,null,null,null,null,null,null,null,null,null,null,null,null,null,null,null,null,null,null,null,null,"Quin_Perez"]
[null,null,null,null,null,null,null,null,null,null,null,null,null,null,null,null,null,null,null,null,null,null,null,null,null,null,null,null,null,null,null,null,null,null,null,null,null,null,"Quinchia"]
[null,null,null,null,null,null,null,null,null,null,null,null,null,null,null,null,null,null,null,null,null,null,null,null,null,null,null,null,null,null,null,null,null,null,null,null,null,null,"Quipile"]
[null,null,null,null,null,null,null,null,null,null,null,null,null,null,null,null,null,null,null,null,null,null,null,null,null,null,null,null,null,null,null,null,null,null,null,null,null,null,"Quirinal"]
[null,null,null,null,null,null,null,null,null,null,null,null,null,null,null,null,null,null,null,null,null,null,null,null,null,null,null,null,null,null,null,null,null,null,null,null,null,null,"Rabanal"]
[null,null,null,null,null,null,null,null,null,null,null,null,null,null,null,null,null,null,null,null,null,null,null,null,null,null,null,null,null,null,null,null,null,null,null,null,null,null,"Raizal"]
[null,null,null,null,null,null,null,null,null,null,null,null,null,null,null,null,null,null,null,null,null,null,null,null,null,null,null,null,null,null,null,null,null,null,null,null,null,null,"Ramiriqui"]
[null,null,null,null,null,null,null,null,null,null,null,null,null,null,null,null,null,null,null,null,null,null,null,null,null,null,null,null,null,null,null,null,null,null,null,null,null,null,"Rancho Grande"]
[null,null,null,null,null,null,null,null,null,null,null,null,null,null,null,null,null,null,null,null,null,null,null,null,null,null,null,null,null,null,null,null,null,null,null,null,null,null,"Real De Minas 115 Kv"]
[null,null,null,null,null,null,null,null,null,null,null,null,null,null,null,null,null,null,null,null,null,null,null,null,null,null,null,null,null,null,null,null,null,null,null,null,null,null,"Real De Minas 13.8 Kv"]
[null,null,null,null,null,null,null,null,null,null,null,null,null,null,null,null,null,null,null,null,null,null,null,null,null,null,null,null,null,null,null,null,null,null,null,null,null,null,"Real De Minas 34.5 Kv"]
[null,null,null,null,null,null,null,null,null,null,null,null,null,null,null,null,null,null,null,null,null,null,null,null,null,null,null,null,null,null,null,null,null,null,null,null,null,null,"Real Del Obispo"]
[null,null,null,null,null,null,null,null,null,null,null,null,null,null,null,null,null,null,null,null,null,null,null,null,null,null,null,null,null,null,null,null,null,null,null,null,null,null,"Recetor"]
[null,null,null,null,null,null,null,null,null,null,null,null,null,null,null,null,null,null,null,null,null,null,null,null,null,null,null,null,null,null,null,null,null,null,null,null,null,null,"Reforma"]
[null,null,null,null,null,null,null,null,null,null,null,null,null,null,null,null,null,null,null,null,null,null,null,null,null,null,null,null,null,null,null,null,null,null,null,null,null,null,"Regivit"]
[null,null,null,null,null,null,null,null,null,null,null,null,null,null,null,null,null,null,null,null,null,null,null,null,null,null,null,null,null,null,null,null,null,null,null,null,null,null,"Remolino"]
[null,null,null,null,null,null,null,null,null,null,null,null,null,null,null,null,null,null,null,null,null,null,null,null,null,null,null,null,null,null,null,null,null,null,null,null,null,null,"Renacer 230"]
[null,null,null,null,null,null,null,null,null,null,null,null,null,null,null,null,null,null,null,null,null,null,null,null,null,null,null,null,null,null,null,null,null,null,null,null,null,null,"Renacer Mocoa"]
[null,null,null,null,null,null,null,null,null,null,null,null,null,null,null,null,null,null,null,null,null,null,null,null,null,null,null,null,null,null,null,null,null,null,null,null,null,null,"Resguardo"]
[null,null,null,null,null,null,null,null,null,null,null,null,null,null,null,null,null,null,null,null,null,null,null,null,null,null,null,null,null,null,null,null,null,null,null,null,null,null,"Restrepo"]
[null,null,null,null,null,null,null,null,null,null,null,null,null,null,null,null,null,null,null,null,null,null,null,null,null,null,null,null,null,null,null,null,null,null,null,null,null,null,"Retorno"]
[null,null,null,null,null,null,null,null,null,null,null,null,null,null,null,null,null,null,null,null,null,null,null,null,null,null,null,null,null,null,null,null,null,null,null,null,null,null,"Ricaurte"]
[null,null,null,null,null,null,null,null,null,null,null,null,null,null,null,null,null,null,null,null,null,null,null,null,null,null,null,null,null,null,null,null,null,null,null,null,null,null,"Rincon Hondo"]
[null,null,null,null,null,null,null,null,null,null,null,null,null,null,null,null,null,null,null,null,null,null,null,null,null,null,null,null,null,null,null,null,null,null,null,null,null,null,"Rio"]
[null,null,null,null,null,null,null,null,null,null,null,null,null,null,null,null,null,null,null,null,null,null,null,null,null,null,null,null,null,null,null,null,null,null,null,null,null,null,"Rio Blanco"]
[null,null,null,null,null,null,null,null,null,null,null,null,null,null,null,null,null,null,null,null,null,null,null,null,null,null,null,null,null,null,null,null,null,null,null,null,null,null,"Rio Bobo"]
[null,null,null,null,null,null,null,null,null,null,null,null,null,null,null,null,null,null,null,null,null,null,null,null,null,null,null,null,null,null,null,null,null,null,null,null,null,null,"Rio Bravo"]
[null,null,null,null,null,null,null,null,null,null,null,null,null,null,null,null,null,null,null,null,null,null,null,null,null,null,null,null,null,null,null,null,null,null,null,null,null,null,"Rio Chiquito"]
[null,null,null,null,null,null,null,null,null,null,null,null,null,null,null,null,null,null,null,null,null,null,null,null,null,null,null,null,null,null,null,null,null,null,null,null,null,null,"Rio Claro"]
[null,null,null,null,null,null,null,null,null,null,null,null,null,null,null,null,null,null,null,null,null,null,null,null,null,null,null,null,null,null,null,null,null,null,null,null,null,null,"Rio Cordoba"]
[null,null,null,null,null,null,null,null,null,null,null,null,null,null,null,null,null,null,null,null,null,null,null,null,null,null,null,null,null,null,null,null,null,null,null,null,null,null,"Rio Cordoba 220"]
[null,null,null,null,null,null,null,null,null,null,null,null,null,null,null,null,null,null,null,null,null,null,null,null,null,null,null,null,null,null,null,null,null,null,null,null,null,null,"Rio De Piedras"]
[null,null,null,null,null,null,null,null,null,null,null,null,null,null,null,null,null,null,null,null,null,null,null,null,null,null,null,null,null,null,null,null,null,null,null,null,null,null,"Rio Frio 115 Kv"]
[null,null,null,null,null,null,null,null,null,null,null,null,null,null,null,null,null,null,null,null,null,null,null,null,null,null,null,null,null,null,null,null,null,null,null,null,null,null,"Rio Frio 34.5 Kv"]
[null,null,null,null,null,null,null,null,null,null,null,null,null,null,null,null,null,null,null,null,null,null,null,null,null,null,null,null,null,null,null,null,null,null,null,null,null,null,"Rio Jamundi"]
[null,null,null,null,null,null,null,null,null,null,null,null,null,null,null,null,null,null,null,null,null,null,null,null,null,null,null,null,null,null,null,null,null,null,null,null,null,null,"Rio Magdalena"]
[null,null,null,null,null,null,null,null,null,null,null,null,null,null,null,null,null,null,null,null,null,null,null,null,null,null,null,null,null,null,null,null,null,null,null,null,null,null,"Rio Mayo"]
[null,null,null,null,null,null,null,null,null,null,null,null,null,null,null,null,null,null,null,null,null,null,null,null,null,null,null,null,null,null,null,null,null,null,null,null,null,null,"Rio Negro"]
[null,null,null,null,null,null,null,null,null,null,null,null,null,null,null,null,null,null,null,null,null,null,null,null,null,null,null,null,null,null,null,null,null,null,null,null,null,null,"Rio Recio"]
[null,null,null,null,null,null,null,null,null,null,null,null,null,null,null,null,null,null,null,null,null,null,null,null,null,null,null,null,null,null,null,null,null,null,null,null,null,null,"Rio Sinu"]
[null,null,null,null,null,null,null,null,null,null,null,null,null,null,null,null,null,null,null,null,null,null,null,null,null,null,null,null,null,null,null,null,null,null,null,null,null,null,"Rio Tulua"]
[null,null,null,null,null,null,null,null,null,null,null,null,null,null,null,null,null,null,null,null,null,null,null,null,null,null,null,null,null,null,null,null,null,null,null,null,null,null,"Rio Viejo"]
[null,null,null,null,null,null,null,null,null,null,null,null,null,null,null,null,null,null,null,null,null,null,null,null,null,null,null,null,null,null,null,null,null,null,null,null,null,null,"Rioabajo"]
[null,null,null,null,null,null,null,null,null,null,null,null,null,null,null,null,null,null,null,null,null,null,null,null,null,null,null,null,null,null,null,null,null,null,null,null,null,null,"Riofrio 1"]
[null,null,null,null,null,null,null,null,null,null,null,null,null,null,null,null,null,null,null,null,null,null,null,null,null,null,null,null,null,null,null,null,null,null,null,null,null,null,"Riogrande"]
[null,null,null,null,null,null,null,null,null,null,null,null,null,null,null,null,null,null,null,null,null,null,null,null,null,null,null,null,null,null,null,null,null,null,null,null,null,null,"Riohacha"]
[null,null,null,null,null,null,null,null,null,null,null,null,null,null,null,null,null,null,null,null,null,null,null,null,null,null,null,null,null,null,null,null,null,null,null,null,null,null,"Riomar"]
[null,null,null,null,null,null,null,null,null,null,null,null,null,null,null,null,null,null,null,null,null,null,null,null,null,null,null,null,null,null,null,null,null,null,null,null,null,null,"Rionegrito"]
[null,null,null,null,null,null,null,null,null,null,null,null,null,null,null,null,null,null,null,null,null,null,null,null,null,null,null,null,null,null,null,null,null,null,null,null,null,null,"Rionegro"]
[null,null,null,null,null,null,null,null,null,null,null,null,null,null,null,null,null,null,null,null,null,null,null,null,null,null,null,null,null,null,null,null,null,null,null,null,null,null,"Rionegro 13.8 Kv"]
[null,null,null,null,null,null,null,null,null,null,null,null,null,null,null,null,null,null,null,null,null,null,null,null,null,null,null,null,null,null,null,null,null,null,null,null,null,null,"Rionegro 34.5 Kv"]
[null,null,null,null,null,null,null,null,null,null,null,null,null,null,null,null,null,null,null,null,null,null,null,null,null,null,null,null,null,null,null,null,null,null,null,null,null,null,"Riosucio"]
[null,null,null,null,null,null,null,null,null,null,null,null,null,null,null,null,null,null,null,null,null,null,null,null,null,null,null,null,null,null,null,null,null,null,null,null,null,null,"Risaralda"]
[null,null,null,null,null,null,null,null,null,null,null,null,null,null,null,null,null,null,null,null,null,null,null,null,null,null,null,null,null,null,null,null,null,null,null,null,null,null,"Rivera"]
[null,null,null,null,null,null,null,null,null,null,null,null,null,null,null,null,null,null,null,null,null,null,null,null,null,null,null,null,null,null,null,null,null,null,null,null,null,null,"Robles"]
[null,null,null,null,null,null,null,null,null,null,null,null,null,null,null,null,null,null,null,null,null,null,null,null,null,null,null,null,null,null,null,null,null,null,null,null,null,null,"Roldanillo"]
[null,null,null,null,null,null,null,null,null,null,null,null,null,null,null,null,null,null,null,null,null,null,null,null,null,null,null,null,null,null,null,null,null,null,null,null,null,null,"Rosa Florida"]
[null,null,null,null,null,null,null,null,null,null,null,null,null,null,null,null,null,null,null,null,null,null,null,null,null,null,null,null,null,null,null,null,null,null,null,null,null,null,"Rosario"]
[null,null,null,null,null,null,null,null,null,null,null,null,null,null,null,null,null,null,null,null,null,null,null,null,null,null,null,null,null,null,null,null,null,null,null,null,null,null,"Rotinet"]
[null,null,null,null,null,null,null,null,null,null,null,null,null,null,null,null,null,null,null,null,null,null,null,null,null,null,null,null,null,null,null,null,null,null,null,null,null,null,"Rovira"]
[null,null,null,null,null,null,null,null,null,null,null,null,null,null,null,null,null,null,null,null,null,null,null,null,null,null,null,null,null,null,null,null,null,null,null,null,null,null,"Rozo"]
[null,null,null,null,null,null,null,null,null,null,null,null,null,null,null,null,null,null,null,null,null,null,null,null,null,null,null,null,null,null,null,null,null,null,null,null,null,null,"Rrio Frio 13"]
[null,null,null,null,null,null,null,null,null,null,null,null,null,null,null,null,null,null,null,null,null,null,null,null,null,null,null,null,null,null,null,null,null,null,null,null,null,null,"Rubiales"]
[null,null,null,null,null,null,null,null,null,null,null,null,null,null,null,null,null,null,null,null,null,null,null,null,null,null,null,null,null,null,null,null,null,null,null,null,null,null,"S_Cayetano"]
[null,null,null,null,null,null,null,null,null,null,null,null,null,null,null,null,null,null,null,null,null,null,null,null,null,null,null,null,null,null,null,null,null,null,null,null,null,null,"Sabana De Torres 115 Kv"]
[null,null,null,null,null,null,null,null,null,null,null,null,null,null,null,null,null,null,null,null,null,null,null,null,null,null,null,null,null,null,null,null,null,null,null,null,null,null,"Sabana De Torres 13.8 Kv"]
[null,null,null,null,null,null,null,null,null,null,null,null,null,null,null,null,null,null,null,null,null,null,null,null,null,null,null,null,null,null,null,null,null,null,null,null,null,null,"Sabana De Torres 34.5 Kv"]
[null,null,null,null,null,null,null,null,null,null,null,null,null,null,null,null,null,null,null,null,null,null,null,null,null,null,null,null,null,null,null,null,null,null,null,null,null,null,"Sabanagrande"]
[null,null,null,null,null,null,null,null,null,null,null,null,null,null,null,null,null,null,null,null,null,null,null,null,null,null,null,null,null,null,null,null,null,null,null,null,null,null,"Sabanalarga"]
[null,null,null,null,null,null,null,null,null,null,null,null,null,null,null,null,null,null,null,null,null,null,null,null,null,null,null,null,null,null,null,null,null,null,null,null,null,null,"Sabanilla"]
[null,null,null,null,null,null,null,null,null,null,null,null,null,null,null,null,null,null,null,null,null,null,null,null,null,null,null,null,null,null,null,null,null,null,null,null,null,null,"Saboya"]
[null,null,null,null,null,null,null,null,null,null,null,null,null,null,null,null,null,null,null,null,null,null,null,null,null,null,null,null,null,null,null,null,null,null,null,null,null,null,"Sacama"]
[null,null,null,null,null,null,null,null,null,null,null,null,null,null,null,null,null,null,null,null,null,null,null,null,null,null,null,null,null,null,null,null,null,null,null,null,null,null,"Sachica"]
[null,null,null,null,null,null,null,null,null,null,null,null,null,null,null,null,null,null,null,null,null,null,null,null,null,null,null,null,null,null,null,null,null,null,null,null,null,null,"Sahagun"]
[null,null,null,null,null,null,null,null,null,null,null,null,null,null,null,null,null,null,null,null,null,null,null,null,null,null,null,null,null,null,null,null,null,null,null,null,null,null,"Salado"]
[null,null,null,null,null,null,null,null,null,null,null,null,null,null,null,null,null,null,null,null,null,null,null,null,null,null,null,null,null,null,null,null,null,null,null,null,null,null,"Salamina"]
[null,null,null,null,null,null,null,null,null,null,null,null,null,null,null,null,null,null,null,null,null,null,null,null,null,null,null,null,null,null,null,null,null,null,null,null,null,null,"Saldaña"]
[null,null,null,null,null,null,null,null,null,null,null,null,null,null,null,null,null,null,null,null,null,null,null,null,null,null,null,null,null,null,null,null,null,null,null,null,null,null,"Salgar"]
[null,null,null,null,null,null,null,null,null,null,null,null,null,null,null,null,null,null,null,null,null,null,null,null,null,null,null,null,null,null,null,null,null,null,null,null,null,null,"Salguero"]
[null,null,null,null,null,null,null,null,null,null,null,null,null,null,null,null,null,null,null,null,null,null,null,null,null,null,null,null,null,null,null,null,null,null,null,null,null,null,"Salitre"]
[null,null,null,null,null,null,null,null,null,null,null,null,null,null,null,null,null,null,null,null,null,null,null,null,null,null,null,null,null,null,null,null,null,null,null,null,null,null,"Salto_I"]
[null,null,null,null,null,null,null,null,null,null,null,null,null,null,null,null,null,null,null,null,null,null,null,null,null,null,null,null,null,null,null,null,null,null,null,null,null,null,"Salto_Ii"]
[null,null,null,null,null,null,null,null,null,null,null,null,null,null,null,null,null,null,null,null,null,null,null,null,null,null,null,null,null,null,null,null,null,null,null,null,null,null,"Salvajina"]
[null,null,null,null,null,null,null,null,null,null,null,null,null,null,null,null,null,null,null,null,null,null,null,null,null,null,null,null,null,null,null,null,null,null,null,null,null,null,"Samaca"]
[null,null,null,null,null,null,null,null,null,null,null,null,null,null,null,null,null,null,null,null,null,null,null,null,null,null,null,null,null,null,null,null,null,null,null,null,null,null,"Samaca Old"]
[null,null,null,null,null,null,null,null,null,null,null,null,null,null,null,null,null,null,null,null,null,null,null,null,null,null,null,null,null,null,null,null,null,null,null,null,null,null,"Samana"]
[null,null,null,null,null,null,null,null,null,null,null,null,null,null,null,null,null,null,null,null,null,null,null,null,null,null,null,null,null,null,null,null,null,null,null,null,null,null,"Samaniego"]
[null,null,null,null,null,null,null,null,null,null,null,null,null,null,null,null,null,null,null,null,null,null,null,null,null,null,null,null,null,null,null,null,null,null,null,null,null,null,"Samore"]
[null,null,null,null,null,null,null,null,null,null,null,null,null,null,null,null,null,null,null,null,null,null,null,null,null,null,null,null,null,null,null,null,null,null,null,null,null,null,"Sampues"]
[null,null,null,null,null,null,null,null,null,null,null,null,null,null,null,null,null,null,null,null,null,null,null,null,null,null,null,null,null,null,null,null,null,null,null,null,null,null,"San Agustin"]
[null,null,null,null,null,null,null,null,null,null,null,null,null,null,null,null,null,null,null,null,null,null,null,null,null,null,null,null,null,null,null,null,null,null,null,null,null,null,"San Alberto 115 Kv"]
[null,null,null,null,null,null,null,null,null,null,null,null,null,null,null,null,null,null,null,null,null,null,null,null,null,null,null,null,null,null,null,null,null,null,null,null,null,null,"San Alberto 13.8 Kv"]
[null,null,null,null,null,null,null,null,null,null,null,null,null,null,null,null,null,null,null,null,null,null,null,null,null,null,null,null,null,null,null,null,null,null,null,null,null,null,"San Alberto 34.5 Kv"]
[null,null,null,null,null,null,null,null,null,null,null,null,null,null,null,null,null,null,null,null,null,null,null,null,null,null,null,null,null,null,null,null,null,null,null,null,null,null,"San Andres 13.8 Kv"]
[null,null,null,null,null,null,null,null,null,null,null,null,null,null,null,null,null,null,null,null,null,null,null,null,null,null,null,null,null,null,null,null,null,null,null,null,null,null,"San Andres 34.5 Kv"]
[null,null,null,null,null,null,null,null,null,null,null,null,null,null,null,null,null,null,null,null,null,null,null,null,null,null,null,null,null,null,null,null,null,null,null,null,null,null,"San Andres De Sotavento"]
[null,null,null,null,null,null,null,null,null,null,null,null,null,null,null,null,null,null,null,null,null,null,null,null,null,null,null,null,null,null,null,null,null,null,null,null,null,null,"San Antero"]
[null,null,null,null,null,null,null,null,null,null,null,null,null,null,null,null,null,null,null,null,null,null,null,null,null,null,null,null,null,null,null,null,null,null,null,null,null,null,"San Antonio"]
[null,null,null,null,null,null,null,null,null,null,null,null,null,null,null,null,null,null,null,null,null,null,null,null,null,null,null,null,null,null,null,null,null,null,null,null,null,null,"San Antonio De Prado"]
[null,null,null,null,null,null,null,null,null,null,null,null,null,null,null,null,null,null,null,null,null,null,null,null,null,null,null,null,null,null,null,null,null,null,null,null,null,null,"San Antonio Del Chami"]
[null,null,null,null,null,null,null,null,null,null,null,null,null,null,null,null,null,null,null,null,null,null,null,null,null,null,null,null,null,null,null,null,null,null,null,null,null,null,"San Antonio- El Taladro"]
[null,null,null,null,null,null,null,null,null,null,null,null,null,null,null,null,null,null,null,null,null,null,null,null,null,null,null,null,null,null,null,null,null,null,null,null,null,null,"San Benito"]
[null,null,null,null,null,null,null,null,null,null,null,null,null,null,null,null,null,null,null,null,null,null,null,null,null,null,null,null,null,null,null,null,null,null,null,null,null,null,"San Benito De Abad"]
[null,null,null,null,null,null,null,null,null,null,null,null,null,null,null,null,null,null,null,null,null,null,null,null,null,null,null,null,null,null,null,null,null,null,null,null,null,null,"San Bernardino"]
[null,null,null,null,null,null,null,null,null,null,null,null,null,null,null,null,null,null,null,null,null,null,null,null,null,null,null,null,null,null,null,null,null,null,null,null,null,null,"San Bernardo Del Viento"]
[null,null,null,null,null,null,null,null,null,null,null,null,null,null,null,null,null,null,null,null,null,null,null,null,null,null,null,null,null,null,null,null,null,null,null,null,null,null,"San Carlos"]
[null,null,null,null,null,null,null,null,null,null,null,null,null,null,null,null,null,null,null,null,null,null,null,null,null,null,null,null,null,null,null,null,null,null,null,null,null,null,"San Cristobal"]
[null,null,null,null,null,null,null,null,null,null,null,null,null,null,null,null,null,null,null,null,null,null,null,null,null,null,null,null,null,null,null,null,null,null,null,null,null,null,"San Cristobal 13.8 Kv"]
[null,null,null,null,null,null,null,null,null,null,null,null,null,null,null,null,null,null,null,null,null,null,null,null,null,null,null,null,null,null,null,null,null,null,null,null,null,null,"San Cristobal 34.5 Kv"]
[null,null,null,null,null,null,null,null,null,null,null,null,null,null,null,null,null,null,null,null,null,null,null,null,null,null,null,null,null,null,null,null,null,null,null,null,null,null,"San Diego"]
[null,null,null,null,null,null,null,null,null,null,null,null,null,null,null,null,null,null,null,null,null,null,null,null,null,null,null,null,null,null,null,null,null,null,null,null,null,null,"San Estanislao"]
[null,null,null,null,null,null,null,null,null,null,null,null,null,null,null,null,null,null,null,null,null,null,null,null,null,null,null,null,null,null,null,null,null,null,null,null,null,null,"San Felipe"]
[null,null,null,null,null,null,null,null,null,null,null,null,null,null,null,null,null,null,null,null,null,null,null,null,null,null,null,null,null,null,null,null,null,null,null,null,null,null,"San Gil 115 Kv"]
[null,null,null,null,null,null,null,null,null,null,null,null,null,null,null,null,null,null,null,null,null,null,null,null,null,null,null,null,null,null,null,null,null,null,null,null,null,null,"San Gil 13.8 Kv"]
[null,null,null,null,null,null,null,null,null,null,null,null,null,null,null,null,null,null,null,null,null,null,null,null,null,null,null,null,null,null,null,null,null,null,null,null,null,null,"San Gil 34.5 Kv"]
[null,null,null,null,null,null,null,null,null,null,null,null,null,null,null,null,null,null,null,null,null,null,null,null,null,null,null,null,null,null,null,null,null,null,null,null,null,null,"San Isidro"]
[null,null,null,null,null,null,null,null,null,null,null,null,null,null,null,null,null,null,null,null,null,null,null,null,null,null,null,null,null,null,null,null,null,null,null,null,null,null,"San Jacinto"]
[null,null,null,null,null,null,null,null,null,null,null,null,null,null,null,null,null,null,null,null,null,null,null,null,null,null,null,null,null,null,null,null,null,null,null,null,null,null,"San Jeronimo"]
[null,null,null,null,null,null,null,null,null,null,null,null,null,null,null,null,null,null,null,null,null,null,null,null,null,null,null,null,null,null,null,null,null,null,null,null,null,null,"San Jorge"]
[null,null,null,null,null,null,null,null,null,null,null,null,null,null,null,null,null,null,null,null,null,null,null,null,null,null,null,null,null,null,null,null,null,null,null,null,null,null,"San Jose"]
[null,null,null,null,null,null,null,null,null,null,null,null,null,null,null,null,null,null,null,null,null,null,null,null,null,null,null,null,null,null,null,null,null,null,null,null,null,null,"San Jose De Bubuy"]
[null,null,null,null,null,null,null,null,null,null,null,null,null,null,null,null,null,null,null,null,null,null,null,null,null,null,null,null,null,null,null,null,null,null,null,null,null,null,"San Jose De Pare"]
[null,null,null,null,null,null,null,null,null,null,null,null,null,null,null,null,null,null,null,null,null,null,null,null,null,null,null,null,null,null,null,null,null,null,null,null,null,null,"San Jose Del Nus"]
[null,null,null,null,null,null,null,null,null,null,null,null,null,null,null,null,null,null,null,null,null,null,null,null,null,null,null,null,null,null,null,null,null,null,null,null,null,null,"San Juan"]
[null,null,null,null,null,null,null,null,null,null,null,null,null,null,null,null,null,null,null,null,null,null,null,null,null,null,null,null,null,null,null,null,null,null,null,null,null,null,"San Juan 220 Kv"]
[null,null,null,null,null,null,null,null,null,null,null,null,null,null,null,null,null,null,null,null,null,null,null,null,null,null,null,null,null,null,null,null,null,null,null,null,null,null,"San Juan De Arama"]
[null,null,null,null,null,null,null,null,null,null,null,null,null,null,null,null,null,null,null,null,null,null,null,null,null,null,null,null,null,null,null,null,null,null,null,null,null,null,"San Juan Nepomuceno"]
[null,null,null,null,null,null,null,null,null,null,null,null,null,null,null,null,null,null,null,null,null,null,null,null,null,null,null,null,null,null,null,null,null,null,null,null,null,null,"San Lazaro"]
[null,null,null,null,null,null,null,null,null,null,null,null,null,null,null,null,null,null,null,null,null,null,null,null,null,null,null,null,null,null,null,null,null,null,null,null,null,null,"San Lorenzo"]
[null,null,null,null,null,null,null,null,null,null,null,null,null,null,null,null,null,null,null,null,null,null,null,null,null,null,null,null,null,null,null,null,null,null,null,null,null,null,"San Lorenzo Ii"]
[null,null,null,null,null,null,null,null,null,null,null,null,null,null,null,null,null,null,null,null,null,null,null,null,null,null,null,null,null,null,null,null,null,null,null,null,null,null,"San Luis"]
[null,null,null,null,null,null,null,null,null,null,null,null,null,null,null,null,null,null,null,null,null,null,null,null,null,null,null,null,null,null,null,null,null,null,null,null,null,null,"San Luis De Gaceno"]
[null,null,null,null,null,null,null,null,null,null,null,null,null,null,null,null,null,null,null,null,null,null,null,null,null,null,null,null,null,null,null,null,null,null,null,null,null,null,"San Luis De Palenque"]
[null,null,null,null,null,null,null,null,null,null,null,null,null,null,null,null,null,null,null,null,null,null,null,null,null,null,null,null,null,null,null,null,null,null,null,null,null,null,"San Marcos"]
[null,null,null,null,null,null,null,null,null,null,null,null,null,null,null,null,null,null,null,null,null,null,null,null,null,null,null,null,null,null,null,null,null,null,null,null,null,null,"San Martin"]
[null,null,null,null,null,null,null,null,null,null,null,null,null,null,null,null,null,null,null,null,null,null,null,null,null,null,null,null,null,null,null,null,null,null,null,null,null,null,"San Martin 13.8 Kv"]
[null,null,null,null,null,null,null,null,null,null,null,null,null,null,null,null,null,null,null,null,null,null,null,null,null,null,null,null,null,null,null,null,null,null,null,null,null,null,"San Martin 34.5 Kv"]
[null,null,null,null,null,null,null,null,null,null,null,null,null,null,null,null,null,null,null,null,null,null,null,null,null,null,null,null,null,null,null,null,null,null,null,null,null,null,"San Martin De Loba"]
[null,null,null,null,null,null,null,null,null,null,null,null,null,null,null,null,null,null,null,null,null,null,null,null,null,null,null,null,null,null,null,null,null,null,null,null,null,null,"San Mateo (Cucuta)"]
[null,null,null,null,null,null,null,null,null,null,null,null,null,null,null,null,null,null,null,null,null,null,null,null,null,null,null,null,null,null,null,null,null,null,null,null,null,null,"San Mateo 230"]
[null,null,null,null,null,null,null,null,null,null,null,null,null,null,null,null,null,null,null,null,null,null,null,null,null,null,null,null,null,null,null,null,null,null,null,null,null,null,"San Miguel"]
[null,null,null,null,null,null,null,null,null,null,null,null,null,null,null,null,null,null,null,null,null,null,null,null,null,null,null,null,null,null,null,null,null,null,null,null,null,null,"San Onofre"]
[null,null,null,null,null,null,null,null,null,null,null,null,null,null,null,null,null,null,null,null,null,null,null,null,null,null,null,null,null,null,null,null,null,null,null,null,null,null,"San Pablo (Santander)"]
[null,null,null,null,null,null,null,null,null,null,null,null,null,null,null,null,null,null,null,null,null,null,null,null,null,null,null,null,null,null,null,null,null,null,null,null,null,null,"San Pablo 115 Kv"]
[null,null,null,null,null,null,null,null,null,null,null,null,null,null,null,null,null,null,null,null,null,null,null,null,null,null,null,null,null,null,null,null,null,null,null,null,null,null,"San Pablo 13.8 Kv"]
[null,null,null,null,null,null,null,null,null,null,null,null,null,null,null,null,null,null,null,null,null,null,null,null,null,null,null,null,null,null,null,null,null,null,null,null,null,null,"San Pablo 34.5 Kv"]
[null,null,null,null,null,null,null,null,null,null,null,null,null,null,null,null,null,null,null,null,null,null,null,null,null,null,null,null,null,null,null,null,null,null,null,null,null,null,"San Pedro"]
[null,null,null,null,null,null,null,null,null,null,null,null,null,null,null,null,null,null,null,null,null,null,null,null,null,null,null,null,null,null,null,null,null,null,null,null,null,null,"San Pedro De Uraba"]
[null,null,null,null,null,null,null,null,null,null,null,null,null,null,null,null,null,null,null,null,null,null,null,null,null,null,null,null,null,null,null,null,null,null,null,null,null,null,"San Pelayo"]
[null,null,null,null,null,null,null,null,null,null,null,null,null,null,null,null,null,null,null,null,null,null,null,null,null,null,null,null,null,null,null,null,null,null,null,null,null,null,"San Rafael 13.8 Kv"]
[null,null,null,null,null,null,null,null,null,null,null,null,null,null,null,null,null,null,null,null,null,null,null,null,null,null,null,null,null,null,null,null,null,null,null,null,null,null,"San Rafael 34.5 Kv"]
[null,null,null,null,null,null,null,null,null,null,null,null,null,null,null,null,null,null,null,null,null,null,null,null,null,null,null,null,null,null,null,null,null,null,null,null,null,null,"San Roque"]
[null,null,null,null,null,null,null,null,null,null,null,null,null,null,null,null,null,null,null,null,null,null,null,null,null,null,null,null,null,null,null,null,null,null,null,null,null,null,"San Silvestre 115 Kv"]
[null,null,null,null,null,null,null,null,null,null,null,null,null,null,null,null,null,null,null,null,null,null,null,null,null,null,null,null,null,null,null,null,null,null,null,null,null,null,"San Silvestre 13.8 Kv"]
[null,null,null,null,null,null,null,null,null,null,null,null,null,null,null,null,null,null,null,null,null,null,null,null,null,null,null,null,null,null,null,null,null,null,null,null,null,null,"San Silvestre 34.5 Kv"]
[null,null,null,null,null,null,null,null,null,null,null,null,null,null,null,null,null,null,null,null,null,null,null,null,null,null,null,null,null,null,null,null,null,null,null,null,null,null,"San Vicente"]
[null,null,null,null,null,null,null,null,null,null,null,null,null,null,null,null,null,null,null,null,null,null,null,null,null,null,null,null,null,null,null,null,null,null,null,null,null,null,"San Vicente 13.8 Kv"]
[null,null,null,null,null,null,null,null,null,null,null,null,null,null,null,null,null,null,null,null,null,null,null,null,null,null,null,null,null,null,null,null,null,null,null,null,null,null,"San Vicente 34.5 Kv"]
[null,null,null,null,null,null,null,null,null,null,null,null,null,null,null,null,null,null,null,null,null,null,null,null,null,null,null,null,null,null,null,null,null,null,null,null,null,null,"San_Carlos"]
[null,null,null,null,null,null,null,null,null,null,null,null,null,null,null,null,null,null,null,null,null,null,null,null,null,null,null,null,null,null,null,null,null,null,null,null,null,null,"San_Facon"]
[null,null,null,null,null,null,null,null,null,null,null,null,null,null,null,null,null,null,null,null,null,null,null,null,null,null,null,null,null,null,null,null,null,null,null,null,null,null,"San_Jorge"]
[null,null,null,null,null,null,null,null,null,null,null,null,null,null,null,null,null,null,null,null,null,null,null,null,null,null,null,null,null,null,null,null,null,null,null,null,null,null,"San_Jose"]
[null,null,null,null,null,null,null,null,null,null,null,null,null,null,null,null,null,null,null,null,null,null,null,null,null,null,null,null,null,null,null,null,null,null,null,null,null,null,"San_Mateo"]
[null,null,null,null,null,null,null,null,null,null,null,null,null,null,null,null,null,null,null,null,null,null,null,null,null,null,null,null,null,null,null,null,null,null,null,null,null,null,"Sandona"]
[null,null,null,null,null,null,null,null,null,null,null,null,null,null,null,null,null,null,null,null,null,null,null,null,null,null,null,null,null,null,null,null,null,null,null,null,null,null,"Santa Barbara"]
[null,null,null,null,null,null,null,null,null,null,null,null,null,null,null,null,null,null,null,null,null,null,null,null,null,null,null,null,null,null,null,null,null,null,null,null,null,null,"Santa Catalina 13.8 Kv"]
[null,null,null,null,null,null,null,null,null,null,null,null,null,null,null,null,null,null,null,null,null,null,null,null,null,null,null,null,null,null,null,null,null,null,null,null,null,null,"Santa Catalina 34.5 Kv"]
[null,null,null,null,null,null,null,null,null,null,null,null,null,null,null,null,null,null,null,null,null,null,null,null,null,null,null,null,null,null,null,null,null,null,null,null,null,null,"Santa Cecilia"]
[null,null,null,null,null,null,null,null,null,null,null,null,null,null,null,null,null,null,null,null,null,null,null,null,null,null,null,null,null,null,null,null,null,null,null,null,null,null,"Santa Elena"]
[null,null,null,null,null,null,null,null,null,null,null,null,null,null,null,null,null,null,null,null,null,null,null,null,null,null,null,null,null,null,null,null,null,null,null,null,null,null,"Santa Fe De Antioquia"]
[null,null,null,null,null,null,null,null,null,null,null,null,null,null,null,null,null,null,null,null,null,null,null,null,null,null,null,null,null,null,null,null,null,null,null,null,null,null,"Santa Helena"]
[null,null,null,null,null,null,null,null,null,null,null,null,null,null,null,null,null,null,null,null,null,null,null,null,null,null,null,null,null,null,null,null,null,null,null,null,null,null,"Santa Ines"]
[null,null,null,null,null,null,null,null,null,null,null,null,null,null,null,null,null,null,null,null,null,null,null,null,null,null,null,null,null,null,null,null,null,null,null,null,null,null,"Santa Isabel"]
[null,null,null,null,null,null,null,null,null,null,null,null,null,null,null,null,null,null,null,null,null,null,null,null,null,null,null,null,null,null,null,null,null,null,null,null,null,null,"Santa Lucia"]
[null,null,null,null,null,null,null,null,null,null,null,null,null,null,null,null,null,null,null,null,null,null,null,null,null,null,null,null,null,null,null,null,null,null,null,null,null,null,"Santa Lucia  (Cordoba)"]
[null,null,null,null,null,null,null,null,null,null,null,null,null,null,null,null,null,null,null,null,null,null,null,null,null,null,null,null,null,null,null,null,null,null,null,null,null,null,"Santa Lucia (Cordoba)"]
[null,null,null,null,null,null,null,null,null,null,null,null,null,null,null,null,null,null,null,null,null,null,null,null,null,null,null,null,null,null,null,null,null,null,null,null,null,null,"Santa Maria"]
[null,null,null,null,null,null,null,null,null,null,null,null,null,null,null,null,null,null,null,null,null,null,null,null,null,null,null,null,null,null,null,null,null,null,null,null,null,null,"Santa Marta"]
[null,null,null,null,null,null,null,null,null,null,null,null,null,null,null,null,null,null,null,null,null,null,null,null,null,null,null,null,null,null,null,null,null,null,null,null,null,null,"Santa Martha"]
[null,null,null,null,null,null,null,null,null,null,null,null,null,null,null,null,null,null,null,null,null,null,null,null,null,null,null,null,null,null,null,null,null,null,null,null,null,null,"Santa Rosa"]
[null,null,null,null,null,null,null,null,null,null,null,null,null,null,null,null,null,null,null,null,null,null,null,null,null,null,null,null,null,null,null,null,null,null,null,null,null,null,"Santa Rosa Del Sur"]
[null,null,null,null,null,null,null,null,null,null,null,null,null,null,null,null,null,null,null,null,null,null,null,null,null,null,null,null,null,null,null,null,null,null,null,null,null,null,"Santa Sofia"]
[null,null,null,null,null,null,null,null,null,null,null,null,null,null,null,null,null,null,null,null,null,null,null,null,null,null,null,null,null,null,null,null,null,null,null,null,null,null,"Santa Teresa"]
[null,null,null,null,null,null,null,null,null,null,null,null,null,null,null,null,null,null,null,null,null,null,null,null,null,null,null,null,null,null,null,null,null,null,null,null,null,null,"Santa Veronica"]
[null,null,null,null,null,null,null,null,null,null,null,null,null,null,null,null,null,null,null,null,null,null,null,null,null,null,null,null,null,null,null,null,null,null,null,null,null,null,"Santa_Rosa"]
[null,null,null,null,null,null,null,null,null,null,null,null,null,null,null,null,null,null,null,null,null,null,null,null,null,null,null,null,null,null,null,null,null,null,null,null,null,null,"Santana"]
[null,null,null,null,null,null,null,null,null,null,null,null,null,null,null,null,null,null,null,null,null,null,null,null,null,null,null,null,null,null,null,null,null,null,null,null,null,null,"Santiago Perez"]
[null,null,null,null,null,null,null,null,null,null,null,null,null,null,null,null,null,null,null,null,null,null,null,null,null,null,null,null,null,null,null,null,null,null,null,null,null,null,"Santuario"]
[null,null,null,null,null,null,null,null,null,null,null,null,null,null,null,null,null,null,null,null,null,null,null,null,null,null,null,null,null,null,null,null,null,null,null,null,null,null,"Sapuyes"]
[null,null,null,null,null,null,null,null,null,null,null,null,null,null,null,null,null,null,null,null,null,null,null,null,null,null,null,null,null,null,null,null,null,null,null,null,null,null,"Saravana"]
[null,null,null,null,null,null,null,null,null,null,null,null,null,null,null,null,null,null,null,null,null,null,null,null,null,null,null,null,null,null,null,null,null,null,null,null,null,null,"Satelite"]
[null,null,null,null,null,null,null,null,null,null,null,null,null,null,null,null,null,null,null,null,null,null,null,null,null,null,null,null,null,null,null,null,null,null,null,null,null,null,"Sauces"]
[null,null,null,null,null,null,null,null,null,null,null,null,null,null,null,null,null,null,null,null,null,null,null,null,null,null,null,null,null,null,null,null,null,null,null,null,null,null,"Se_Almaguer"]
[null,null,null,null,null,null,null,null,null,null,null,null,null,null,null,null,null,null,null,null,null,null,null,null,null,null,null,null,null,null,null,null,null,null,null,null,null,null,"Se_Argelia"]
[null,null,null,null,null,null,null,null,null,null,null,null,null,null,null,null,null,null,null,null,null,null,null,null,null,null,null,null,null,null,null,null,null,null,null,null,null,null,"Se_Bolivar"]
[null,null,null,null,null,null,null,null,null,null,null,null,null,null,null,null,null,null,null,null,null,null,null,null,null,null,null,null,null,null,null,null,null,null,null,null,null,null,"Se_Bordo"]
[null,null,null,null,null,null,null,null,null,null,null,null,null,null,null,null,null,null,null,null,null,null,null,null,null,null,null,null,null,null,null,null,null,null,null,null,null,null,"Se_Buenos Aires"]
[null,null,null,null,null,null,null,null,null,null,null,null,null,null,null,null,null,null,null,null,null,null,null,null,null,null,null,null,null,null,null,null,null,null,null,null,null,null,"Se_Cabaña"]
[null,null,null,null,null,null,null,null,null,null,null,null,null,null,null,null,null,null,null,null,null,null,null,null,null,null,null,null,null,null,null,null,null,null,null,null,null,null,"Se_Cajibio"]
[null,null,null,null,null,null,null,null,null,null,null,null,null,null,null,null,null,null,null,null,null,null,null,null,null,null,null,null,null,null,null,null,null,null,null,null,null,null,"Se_Caldono"]
[null,null,null,null,null,null,null,null,null,null,null,null,null,null,null,null,null,null,null,null,null,null,null,null,null,null,null,null,null,null,null,null,null,null,null,null,null,null,"Se_Centro"]
[null,null,null,null,null,null,null,null,null,null,null,null,null,null,null,null,null,null,null,null,null,null,null,null,null,null,null,null,null,null,null,null,null,null,null,null,null,null,"Se_Corinto"]
[null,null,null,null,null,null,null,null,null,null,null,null,null,null,null,null,null,null,null,null,null,null,null,null,null,null,null,null,null,null,null,null,null,null,null,null,null,null,"Se_El Estrecho"]
[null,null,null,null,null,null,null,null,null,null,null,null,null,null,null,null,null,null,null,null,null,null,null,null,null,null,null,null,null,null,null,null,null,null,null,null,null,null,"Se_El Zaque 34.5/13.8"]
[null,null,null,null,null,null,null,null,null,null,null,null,null,null,null,null,null,null,null,null,null,null,null,null,null,null,null,null,null,null,null,null,null,null,null,null,null,null,"Se_Guachene"]
[null,null,null,null,null,null,null,null,null,null,null,null,null,null,null,null,null,null,null,null,null,null,null,null,null,null,null,null,null,null,null,null,null,null,null,null,null,null,"Se_Guadualejo"]
[null,null,null,null,null,null,null,null,null,null,null,null,null,null,null,null,null,null,null,null,null,null,null,null,null,null,null,null,null,null,null,null,null,null,null,null,null,null,"Se_Isabela"]
[null,null,null,null,null,null,null,null,null,null,null,null,null,null,null,null,null,null,null,null,null,null,null,null,null,null,null,null,null,null,null,null,null,null,null,null,null,null,"Se_Japio"]
[null,null,null,null,null,null,null,null,null,null,null,null,null,null,null,null,null,null,null,null,null,null,null,null,null,null,null,null,null,null,null,null,null,null,null,null,null,null,"Se_La Sierra"]
[null,null,null,null,null,null,null,null,null,null,null,null,null,null,null,null,null,null,null,null,null,null,null,null,null,null,null,null,null,null,null,null,null,null,null,null,null,null,"Se_Los Andes"]
[null,null,null,null,null,null,null,null,null,null,null,null,null,null,null,null,null,null,null,null,null,null,null,null,null,null,null,null,null,null,null,null,null,null,null,null,null,null,"Se_Mercaderes"]
[null,null,null,null,null,null,null,null,null,null,null,null,null,null,null,null,null,null,null,null,null,null,null,null,null,null,null,null,null,null,null,null,null,null,null,null,null,null,"Se_Miranda"]
[null,null,null,null,null,null,null,null,null,null,null,null,null,null,null,null,null,null,null,null,null,null,null,null,null,null,null,null,null,null,null,null,null,null,null,null,null,null,"Se_Mondomo"]
[null,null,null,null,null,null,null,null,null,null,null,null,null,null,null,null,null,null,null,null,null,null,null,null,null,null,null,null,null,null,null,null,null,null,null,null,null,null,"Se_Morales"]
[null,null,null,null,null,null,null,null,null,null,null,null,null,null,null,null,null,null,null,null,null,null,null,null,null,null,null,null,null,null,null,null,null,null,null,null,null,null,"Se_Munchique"]
[null,null,null,null,null,null,null,null,null,null,null,null,null,null,null,null,null,null,null,null,null,null,null,null,null,null,null,null,null,null,null,null,null,null,null,null,null,null,"Se_Norte"]
[null,null,null,null,null,null,null,null,null,null,null,null,null,null,null,null,null,null,null,null,null,null,null,null,null,null,null,null,null,null,null,null,null,null,null,null,null,null,"Se_Pescador"]
[null,null,null,null,null,null,null,null,null,null,null,null,null,null,null,null,null,null,null,null,null,null,null,null,null,null,null,null,null,null,null,null,null,null,null,null,null,null,"Se_Piendamo"]
[null,null,null,null,null,null,null,null,null,null,null,null,null,null,null,null,null,null,null,null,null,null,null,null,null,null,null,null,null,null,null,null,null,null,null,null,null,null,"Se_Plateado"]
[null,null,null,null,null,null,null,null,null,null,null,null,null,null,null,null,null,null,null,null,null,null,null,null,null,null,null,null,null,null,null,null,null,null,null,null,null,null,"Se_Popayan"]
[null,null,null,null,null,null,null,null,null,null,null,null,null,null,null,null,null,null,null,null,null,null,null,null,null,null,null,null,null,null,null,null,null,null,null,null,null,null,"Se_Puerto Tejada"]
[null,null,null,null,null,null,null,null,null,null,null,null,null,null,null,null,null,null,null,null,null,null,null,null,null,null,null,null,null,null,null,null,null,null,null,null,null,null,"Se_Purace"]
[null,null,null,null,null,null,null,null,null,null,null,null,null,null,null,null,null,null,null,null,null,null,null,null,null,null,null,null,null,null,null,null,null,null,null,null,null,null,"Se_Rosas"]
[null,null,null,null,null,null,null,null,null,null,null,null,null,null,null,null,null,null,null,null,null,null,null,null,null,null,null,null,null,null,null,null,null,null,null,null,null,null,"Se_Sajandi"]
[null,null,null,null,null,null,null,null,null,null,null,null,null,null,null,null,null,null,null,null,null,null,null,null,null,null,null,null,null,null,null,null,null,null,null,null,null,null,"Se_San Alfonso"]
[null,null,null,null,null,null,null,null,null,null,null,null,null,null,null,null,null,null,null,null,null,null,null,null,null,null,null,null,null,null,null,null,null,null,null,null,null,null,"Se_San Bernardino"]
[null,null,null,null,null,null,null,null,null,null,null,null,null,null,null,null,null,null,null,null,null,null,null,null,null,null,null,null,null,null,null,null,null,null,null,null,null,null,"Se_Santander"]
[null,null,null,null,null,null,null,null,null,null,null,null,null,null,null,null,null,null,null,null,null,null,null,null,null,null,null,null,null,null,null,null,null,null,null,null,null,null,"Se_Santiago"]
[null,null,null,null,null,null,null,null,null,null,null,null,null,null,null,null,null,null,null,null,null,null,null,null,null,null,null,null,null,null,null,null,null,null,null,null,null,null,"Se_Silvia"]
[null,null,null,null,null,null,null,null,null,null,null,null,null,null,null,null,null,null,null,null,null,null,null,null,null,null,null,null,null,null,null,null,null,null,null,null,null,null,"Se_Suarez"]
[null,null,null,null,null,null,null,null,null,null,null,null,null,null,null,null,null,null,null,null,null,null,null,null,null,null,null,null,null,null,null,null,null,null,null,null,null,null,"Se_Tacueyo"]
[null,null,null,null,null,null,null,null,null,null,null,null,null,null,null,null,null,null,null,null,null,null,null,null,null,null,null,null,null,null,null,null,null,null,null,null,null,null,"Se_Tambo"]
[null,null,null,null,null,null,null,null,null,null,null,null,null,null,null,null,null,null,null,null,null,null,null,null,null,null,null,null,null,null,null,null,null,null,null,null,null,null,"Se_Timbio"]
[null,null,null,null,null,null,null,null,null,null,null,null,null,null,null,null,null,null,null,null,null,null,null,null,null,null,null,null,null,null,null,null,null,null,null,null,null,null,"Se_Totoro"]
[null,null,null,null,null,null,null,null,null,null,null,null,null,null,null,null,null,null,null,null,null,null,null,null,null,null,null,null,null,null,null,null,null,null,null,null,null,null,"Se_Villalobos"]
[null,null,null,null,null,null,null,null,null,null,null,null,null,null,null,null,null,null,null,null,null,null,null,null,null,null,null,null,null,null,null,null,null,null,null,null,null,null,"Se_Zaque"]
[null,null,null,null,null,null,null,null,null,null,null,null,null,null,null,null,null,null,null,null,null,null,null,null,null,null,null,null,null,null,null,null,null,null,null,null,null,null,"Seboruco"]
[null,null,null,null,null,null,null,null,null,null,null,null,null,null,null,null,null,null,null,null,null,null,null,null,null,null,null,null,null,null,null,null,null,null,null,null,null,null,"Segovianas"]
[null,null,null,null,null,null,null,null,null,null,null,null,null,null,null,null,null,null,null,null,null,null,null,null,null,null,null,null,null,null,null,null,null,null,null,null,null,null,"Sena"]
[null,null,null,null,null,null,null,null,null,null,null,null,null,null,null,null,null,null,null,null,null,null,null,null,null,null,null,null,null,null,null,null,null,null,null,null,null,null,"Serrania"]
[null,null,null,null,null,null,null,null,null,null,null,null,null,null,null,null,null,null,null,null,null,null,null,null,null,null,null,null,null,null,null,null,null,null,null,null,null,null,"Sesquile"]
[null,null,null,null,null,null,null,null,null,null,null,null,null,null,null,null,null,null,null,null,null,null,null,null,null,null,null,null,null,null,null,null,null,null,null,null,null,null,"Sevilla"]
[null,null,null,null,null,null,null,null,null,null,null,null,null,null,null,null,null,null,null,null,null,null,null,null,null,null,null,null,null,null,null,null,null,null,null,null,null,null,"Sfrancisco"]
[null,null,null,null,null,null,null,null,null,null,null,null,null,null,null,null,null,null,null,null,null,null,null,null,null,null,null,null,null,null,null,null,null,null,null,null,null,null,"Sgabriel"]
[null,null,null,null,null,null,null,null,null,null,null,null,null,null,null,null,null,null,null,null,null,null,null,null,null,null,null,null,null,null,null,null,null,null,null,null,null,null,"Siberia"]
[null,null,null,null,null,null,null,null,null,null,null,null,null,null,null,null,null,null,null,null,null,null,null,null,null,null,null,null,null,null,null,null,null,null,null,null,null,null,"Sibundoy"]
[null,null,null,null,null,null,null,null,null,null,null,null,null,null,null,null,null,null,null,null,null,null,null,null,null,null,null,null,null,null,null,null,null,null,null,null,null,null,"Sierra Flor"]
[null,null,null,null,null,null,null,null,null,null,null,null,null,null,null,null,null,null,null,null,null,null,null,null,null,null,null,null,null,null,null,null,null,null,null,null,null,null,"Silencio"]
[null,null,null,null,null,null,null,null,null,null,null,null,null,null,null,null,null,null,null,null,null,null,null,null,null,null,null,null,null,null,null,null,null,null,null,null,null,null,"Simaña"]
[null,null,null,null,null,null,null,null,null,null,null,null,null,null,null,null,null,null,null,null,null,null,null,null,null,null,null,null,null,null,null,null,null,null,null,null,null,null,"Simijaca"]
[null,null,null,null,null,null,null,null,null,null,null,null,null,null,null,null,null,null,null,null,null,null,null,null,null,null,null,null,null,null,null,null,null,null,null,null,null,null,"Simiti"]
[null,null,null,null,null,null,null,null,null,null,null,null,null,null,null,null,null,null,null,null,null,null,null,null,null,null,null,null,null,null,null,null,null,null,null,null,null,null,"Simon Bolivar"]
[null,null,null,null,null,null,null,null,null,null,null,null,null,null,null,null,null,null,null,null,null,null,null,null,null,null,null,null,null,null,null,null,null,null,null,null,null,null,"Since"]
[null,null,null,null,null,null,null,null,null,null,null,null,null,null,null,null,null,null,null,null,null,null,null,null,null,null,null,null,null,null,null,null,null,null,null,null,null,null,"Sincelejo Planta"]
[null,null,null,null,null,null,null,null,null,null,null,null,null,null,null,null,null,null,null,null,null,null,null,null,null,null,null,null,null,null,null,null,null,null,null,null,null,null,"Sindamanoy"]
[null,null,null,null,null,null,null,null,null,null,null,null,null,null,null,null,null,null,null,null,null,null,null,null,null,null,null,null,null,null,null,null,null,null,null,null,null,null,"Sirata"]
[null,null,null,null,null,null,null,null,null,null,null,null,null,null,null,null,null,null,null,null,null,null,null,null,null,null,null,null,null,null,null,null,null,null,null,null,null,null,"Soata"]
[null,null,null,null,null,null,null,null,null,null,null,null,null,null,null,null,null,null,null,null,null,null,null,null,null,null,null,null,null,null,null,null,null,null,null,null,null,null,"Socha"]
[null,null,null,null,null,null,null,null,null,null,null,null,null,null,null,null,null,null,null,null,null,null,null,null,null,null,null,null,null,null,null,null,null,null,null,null,null,null,"Sochagota"]
[null,null,null,null,null,null,null,null,null,null,null,null,null,null,null,null,null,null,null,null,null,null,null,null,null,null,null,null,null,null,null,null,null,null,null,null,null,null,"Socorro 13.8 Kv"]
[null,null,null,null,null,null,null,null,null,null,null,null,null,null,null,null,null,null,null,null,null,null,null,null,null,null,null,null,null,null,null,null,null,null,null,null,null,null,"Socorro 34.5 Kv"]
[null,null,null,null,null,null,null,null,null,null,null,null,null,null,null,null,null,null,null,null,null,null,null,null,null,null,null,null,null,null,null,null,null,null,null,null,null,null,"Socota"]
[null,null,null,null,null,null,null,null,null,null,null,null,null,null,null,null,null,null,null,null,null,null,null,null,null,null,null,null,null,null,null,null,null,null,null,null,null,null,"Sogamoso"]
[null,null,null,null,null,null,null,null,null,null,null,null,null,null,null,null,null,null,null,null,null,null,null,null,null,null,null,null,null,null,null,null,null,null,null,null,null,null,"Solano"]
[null,null,null,null,null,null,null,null,null,null,null,null,null,null,null,null,null,null,null,null,null,null,null,null,null,null,null,null,null,null,null,null,null,null,null,null,null,null,"Solarte"]
[null,null,null,null,null,null,null,null,null,null,null,null,null,null,null,null,null,null,null,null,null,null,null,null,null,null,null,null,null,null,null,null,null,null,null,null,null,null,"Solita"]
[null,null,null,null,null,null,null,null,null,null,null,null,null,null,null,null,null,null,null,null,null,null,null,null,null,null,null,null,null,null,null,null,null,null,null,null,null,null,"Sonson"]
[null,null,null,null,null,null,null,null,null,null,null,null,null,null,null,null,null,null,null,null,null,null,null,null,null,null,null,null,null,null,null,null,null,null,null,null,null,null,"Sopo"]
[null,null,null,null,null,null,null,null,null,null,null,null,null,null,null,null,null,null,null,null,null,null,null,null,null,null,null,null,null,null,null,null,null,null,null,null,null,null,"Stndercito"]
[null,null,null,null,null,null,null,null,null,null,null,null,null,null,null,null,null,null,null,null,null,null,null,null,null,null,null,null,null,null,null,null,null,null,null,null,null,null,"Suaita 115 Kv"]
[null,null,null,null,null,null,null,null,null,null,null,null,null,null,null,null,null,null,null,null,null,null,null,null,null,null,null,null,null,null,null,null,null,null,null,null,null,null,"Suamox"]
[null,null,null,null,null,null,null,null,null,null,null,null,null,null,null,null,null,null,null,null,null,null,null,null,null,null,null,null,null,null,null,null,null,null,null,null,null,null,"Suarez"]
[null,null,null,null,null,null,null,null,null,null,null,null,null,null,null,null,null,null,null,null,null,null,null,null,null,null,null,null,null,null,null,null,null,null,null,null,null,null,"Suba"]
[null,null,null,null,null,null,null,null,null,null,null,null,null,null,null,null,null,null,null,null,null,null,null,null,null,null,null,null,null,null,null,null,null,null,null,null,null,null,"Subachoque"]
[null,null,null,null,null,null,null,null,null,null,null,null,null,null,null,null,null,null,null,null,null,null,null,null,null,null,null,null,null,null,null,null,null,null,null,null,null,null,"Subestacion Abrego"]
[null,null,null,null,null,null,null,null,null,null,null,null,null,null,null,null,null,null,null,null,null,null,null,null,null,null,null,null,null,null,null,null,null,null,null,null,null,null,"Subestacion Aguachica"]
[null,null,null,null,null,null,null,null,null,null,null,null,null,null,null,null,null,null,null,null,null,null,null,null,null,null,null,null,null,null,null,null,null,null,null,null,null,null,"Subestacion Alto Del Pozo"]
[null,null,null,null,null,null,null,null,null,null,null,null,null,null,null,null,null,null,null,null,null,null,null,null,null,null,null,null,null,null,null,null,null,null,null,null,null,null,"Subestacion Angalia"]
[null,null,null,null,null,null,null,null,null,null,null,null,null,null,null,null,null,null,null,null,null,null,null,null,null,null,null,null,null,null,null,null,null,null,null,null,null,null,"Subestacion Astilleros"]
[null,null,null,null,null,null,null,null,null,null,null,null,null,null,null,null,null,null,null,null,null,null,null,null,null,null,null,null,null,null,null,null,null,null,null,null,null,null,"Subestacion Atalaya"]
[null,null,null,null,null,null,null,null,null,null,null,null,null,null,null,null,null,null,null,null,null,null,null,null,null,null,null,null,null,null,null,null,null,null,null,null,null,null,"Subestacion Ayacucho"]
[null,null,null,null,null,null,null,null,null,null,null,null,null,null,null,null,null,null,null,null,null,null,null,null,null,null,null,null,null,null,null,null,null,null,null,null,null,null,"Subestacion Belen"]
[null,null,null,null,null,null,null,null,null,null,null,null,null,null,null,null,null,null,null,null,null,null,null,null,null,null,null,null,null,null,null,null,null,null,null,null,null,null,"Subestacion Buturama"]
[null,null,null,null,null,null,null,null,null,null,null,null,null,null,null,null,null,null,null,null,null,null,null,null,null,null,null,null,null,null,null,null,null,null,null,null,null,null,"Subestacion Cachira"]
[null,null,null,null,null,null,null,null,null,null,null,null,null,null,null,null,null,null,null,null,null,null,null,null,null,null,null,null,null,null,null,null,null,null,null,null,null,null,"Subestacion Campo Alicia"]
[null,null,null,null,null,null,null,null,null,null,null,null,null,null,null,null,null,null,null,null,null,null,null,null,null,null,null,null,null,null,null,null,null,null,null,null,null,null,"Subestacion Campo Dos"]
[null,null,null,null,null,null,null,null,null,null,null,null,null,null,null,null,null,null,null,null,null,null,null,null,null,null,null,null,null,null,null,null,null,null,null,null,null,null,"Subestacion Cedros"]
[null,null,null,null,null,null,null,null,null,null,null,null,null,null,null,null,null,null,null,null,null,null,null,null,null,null,null,null,null,null,null,null,null,null,null,null,null,null,"Subestacion Centro"]
[null,null,null,null,null,null,null,null,null,null,null,null,null,null,null,null,null,null,null,null,null,null,null,null,null,null,null,null,null,null,null,null,null,null,null,null,null,null,"Subestacion Chaparral"]
[null,null,null,null,null,null,null,null,null,null,null,null,null,null,null,null,null,null,null,null,null,null,null,null,null,null,null,null,null,null,null,null,null,null,null,null,null,null,"Subestacion Chitaga"]
[null,null,null,null,null,null,null,null,null,null,null,null,null,null,null,null,null,null,null,null,null,null,null,null,null,null,null,null,null,null,null,null,null,null,null,null,null,null,"Subestacion Convencion"]
[null,null,null,null,null,null,null,null,null,null,null,null,null,null,null,null,null,null,null,null,null,null,null,null,null,null,null,null,null,null,null,null,null,null,null,null,null,null,"Subestacion Cornejo"]
[null,null,null,null,null,null,null,null,null,null,null,null,null,null,null,null,null,null,null,null,null,null,null,null,null,null,null,null,null,null,null,null,null,null,null,null,null,null,"Subestacion Cucutilla"]
[null,null,null,null,null,null,null,null,null,null,null,null,null,null,null,null,null,null,null,null,null,null,null,null,null,null,null,null,null,null,null,null,null,null,null,null,null,null,"Subestacion Culebra"]
[null,null,null,null,null,null,null,null,null,null,null,null,null,null,null,null,null,null,null,null,null,null,null,null,null,null,null,null,null,null,null,null,null,null,null,null,null,null,"Subestacion Don Juana 115 Kv"]
[null,null,null,null,null,null,null,null,null,null,null,null,null,null,null,null,null,null,null,null,null,null,null,null,null,null,null,null,null,null,null,null,null,null,null,null,null,null,"Subestacion Don Juana 34.5 Kv"]
[null,null,null,null,null,null,null,null,null,null,null,null,null,null,null,null,null,null,null,null,null,null,null,null,null,null,null,null,null,null,null,null,null,null,null,null,null,null,"Subestacion El Molino"]
[null,null,null,null,null,null,null,null,null,null,null,null,null,null,null,null,null,null,null,null,null,null,null,null,null,null,null,null,null,null,null,null,null,null,null,null,null,null,"Subestacion El Tarra"]
[null,null,null,null,null,null,null,null,null,null,null,null,null,null,null,null,null,null,null,null,null,null,null,null,null,null,null,null,null,null,null,null,null,null,null,null,null,null,"Subestacion El Zulia"]
[null,null,null,null,null,null,null,null,null,null,null,null,null,null,null,null,null,null,null,null,null,null,null,null,null,null,null,null,null,null,null,null,null,null,null,null,null,null,"Subestacion Escobal"]
[null,null,null,null,null,null,null,null,null,null,null,null,null,null,null,null,null,null,null,null,null,null,null,null,null,null,null,null,null,null,null,null,null,null,null,null,null,null,"Subestacion Gamarra"]
[null,null,null,null,null,null,null,null,null,null,null,null,null,null,null,null,null,null,null,null,null,null,null,null,null,null,null,null,null,null,null,null,null,null,null,null,null,null,"Subestacion Guaduas"]
[null,null,null,null,null,null,null,null,null,null,null,null,null,null,null,null,null,null,null,null,null,null,null,null,null,null,null,null,null,null,null,null,null,null,null,null,null,null,"Subestacion Guamalito"]
[null,null,null,null,null,null,null,null,null,null,null,null,null,null,null,null,null,null,null,null,null,null,null,null,null,null,null,null,null,null,null,null,null,null,null,null,null,null,"Subestacion Insula"]
[null,null,null,null,null,null,null,null,null,null,null,null,null,null,null,null,null,null,null,null,null,null,null,null,null,null,null,null,null,null,null,null,null,null,null,null,null,null,"Subestacion La Gabarra"]
[null,null,null,null,null,null,null,null,null,null,null,null,null,null,null,null,null,null,null,null,null,null,null,null,null,null,null,null,null,null,null,null,null,null,null,null,null,null,"Subestacion La Mata"]
[null,null,null,null,null,null,null,null,null,null,null,null,null,null,null,null,null,null,null,null,null,null,null,null,null,null,null,null,null,null,null,null,null,null,null,null,null,null,"Subestacion La Miel"]
[null,null,null,null,null,null,null,null,null,null,null,null,null,null,null,null,null,null,null,null,null,null,null,null,null,null,null,null,null,null,null,null,null,null,null,null,null,null,"Subestacion La Playa"]
[null,null,null,null,null,null,null,null,null,null,null,null,null,null,null,null,null,null,null,null,null,null,null,null,null,null,null,null,null,null,null,null,null,null,null,null,null,null,"Subestacion Los Alpes"]
[null,null,null,null,null,null,null,null,null,null,null,null,null,null,null,null,null,null,null,null,null,null,null,null,null,null,null,null,null,null,null,null,null,null,null,null,null,null,"Subestacion Los Mangos"]
[null,null,null,null,null,null,null,null,null,null,null,null,null,null,null,null,null,null,null,null,null,null,null,null,null,null,null,null,null,null,null,null,null,null,null,null,null,null,"Subestacion Montesitos"]
[null,null,null,null,null,null,null,null,null,null,null,null,null,null,null,null,null,null,null,null,null,null,null,null,null,null,null,null,null,null,null,null,null,null,null,null,null,null,"Subestacion Morales"]
[null,null,null,null,null,null,null,null,null,null,null,null,null,null,null,null,null,null,null,null,null,null,null,null,null,null,null,null,null,null,null,null,null,null,null,null,null,null,"Subestacion Norte"]
[null,null,null,null,null,null,null,null,null,null,null,null,null,null,null,null,null,null,null,null,null,null,null,null,null,null,null,null,null,null,null,null,null,null,null,null,null,null,"Subestacion Nueva Gramalote"]
[null,null,null,null,null,null,null,null,null,null,null,null,null,null,null,null,null,null,null,null,null,null,null,null,null,null,null,null,null,null,null,null,null,null,null,null,null,null,"Subestacion Ocaña"]
[null,null,null,null,null,null,null,null,null,null,null,null,null,null,null,null,null,null,null,null,null,null,null,null,null,null,null,null,null,null,null,null,null,null,null,null,null,null,"Subestacion Oru"]
[null,null,null,null,null,null,null,null,null,null,null,null,null,null,null,null,null,null,null,null,null,null,null,null,null,null,null,null,null,null,null,null,null,null,null,null,null,null,"Subestacion Palenque 230 Kv"]
[null,null,null,null,null,null,null,null,null,null,null,null,null,null,null,null,null,null,null,null,null,null,null,null,null,null,null,null,null,null,null,null,null,null,null,null,null,null,"Subestacion Palermo"]
[null,null,null,null,null,null,null,null,null,null,null,null,null,null,null,null,null,null,null,null,null,null,null,null,null,null,null,null,null,null,null,null,null,null,null,null,null,null,"Subestacion Pamplona"]
[null,null,null,null,null,null,null,null,null,null,null,null,null,null,null,null,null,null,null,null,null,null,null,null,null,null,null,null,null,null,null,null,null,null,null,null,null,null,"Subestacion Patios"]
[null,null,null,null,null,null,null,null,null,null,null,null,null,null,null,null,null,null,null,null,null,null,null,null,null,null,null,null,null,null,null,null,null,null,null,null,null,null,"Subestacion Pelaya"]
[null,null,null,null,null,null,null,null,null,null,null,null,null,null,null,null,null,null,null,null,null,null,null,null,null,null,null,null,null,null,null,null,null,null,null,null,null,null,"Subestacion Planta Diesel"]
[null,null,null,null,null,null,null,null,null,null,null,null,null,null,null,null,null,null,null,null,null,null,null,null,null,null,null,null,null,null,null,null,null,null,null,null,null,null,"Subestacion Planta Tibu"]
[null,null,null,null,null,null,null,null,null,null,null,null,null,null,null,null,null,null,null,null,null,null,null,null,null,null,null,null,null,null,null,null,null,null,null,null,null,null,"Subestacion Planta Zulia"]
[null,null,null,null,null,null,null,null,null,null,null,null,null,null,null,null,null,null,null,null,null,null,null,null,null,null,null,null,null,null,null,null,null,null,null,null,null,null,"Subestacion Planta Zulia 34.5 Kv"]
[null,null,null,null,null,null,null,null,null,null,null,null,null,null,null,null,null,null,null,null,null,null,null,null,null,null,null,null,null,null,null,null,null,null,null,null,null,null,"Subestacion Prados"]
[null,null,null,null,null,null,null,null,null,null,null,null,null,null,null,null,null,null,null,null,null,null,null,null,null,null,null,null,null,null,null,null,null,null,null,null,null,null,"Subestacion Puerto Santander"]
[null,null,null,null,null,null,null,null,null,null,null,null,null,null,null,null,null,null,null,null,null,null,null,null,null,null,null,null,null,null,null,null,null,null,null,null,null,null,"Subestacion Salazar"]
[null,null,null,null,null,null,null,null,null,null,null,null,null,null,null,null,null,null,null,null,null,null,null,null,null,null,null,null,null,null,null,null,null,null,null,null,null,null,"Subestacion Saman"]
[null,null,null,null,null,null,null,null,null,null,null,null,null,null,null,null,null,null,null,null,null,null,null,null,null,null,null,null,null,null,null,null,null,null,null,null,null,null,"Subestacion Samore"]
[null,null,null,null,null,null,null,null,null,null,null,null,null,null,null,null,null,null,null,null,null,null,null,null,null,null,null,null,null,null,null,null,null,null,null,null,null,null,"Subestacion San Antonio"]
[null,null,null,null,null,null,null,null,null,null,null,null,null,null,null,null,null,null,null,null,null,null,null,null,null,null,null,null,null,null,null,null,null,null,null,null,null,null,"Subestacion San Faustino"]
[null,null,null,null,null,null,null,null,null,null,null,null,null,null,null,null,null,null,null,null,null,null,null,null,null,null,null,null,null,null,null,null,null,null,null,null,null,null,"Subestacion San Mateo"]
[null,null,null,null,null,null,null,null,null,null,null,null,null,null,null,null,null,null,null,null,null,null,null,null,null,null,null,null,null,null,null,null,null,null,null,null,null,null,"Subestacion San Pablo"]
[null,null,null,null,null,null,null,null,null,null,null,null,null,null,null,null,null,null,null,null,null,null,null,null,null,null,null,null,null,null,null,null,null,null,null,null,null,null,"Subestacion San Roque"]
[null,null,null,null,null,null,null,null,null,null,null,null,null,null,null,null,null,null,null,null,null,null,null,null,null,null,null,null,null,null,null,null,null,null,null,null,null,null,"Subestacion Santa Maria"]
[null,null,null,null,null,null,null,null,null,null,null,null,null,null,null,null,null,null,null,null,null,null,null,null,null,null,null,null,null,null,null,null,null,null,null,null,null,null,"Subestacion Sardinata"]
[null,null,null,null,null,null,null,null,null,null,null,null,null,null,null,null,null,null,null,null,null,null,null,null,null,null,null,null,null,null,null,null,null,null,null,null,null,null,"Subestacion Sevilla"]
[null,null,null,null,null,null,null,null,null,null,null,null,null,null,null,null,null,null,null,null,null,null,null,null,null,null,null,null,null,null,null,null,null,null,null,null,null,null,"Subestacion Sevilla 34.5 Kv"]
[null,null,null,null,null,null,null,null,null,null,null,null,null,null,null,null,null,null,null,null,null,null,null,null,null,null,null,null,null,null,null,null,null,null,null,null,null,null,"Subestacion Suria 230 Kv"]
[null,null,null,null,null,null,null,null,null,null,null,null,null,null,null,null,null,null,null,null,null,null,null,null,null,null,null,null,null,null,null,null,null,null,null,null,null,null,"Subestacion Switcheo Cons65_1_San Pablo"]
[null,null,null,null,null,null,null,null,null,null,null,null,null,null,null,null,null,null,null,null,null,null,null,null,null,null,null,null,null,null,null,null,null,null,null,null,null,null,"Subestacion Switcheo La Legia"]
[null,null,null,null,null,null,null,null,null,null,null,null,null,null,null,null,null,null,null,null,null,null,null,null,null,null,null,null,null,null,null,null,null,null,null,null,null,null,"Subestacion Teorama"]
[null,null,null,null,null,null,null,null,null,null,null,null,null,null,null,null,null,null,null,null,null,null,null,null,null,null,null,null,null,null,null,null,null,null,null,null,null,null,"Subestacion Toledo"]
[null,null,null,null,null,null,null,null,null,null,null,null,null,null,null,null,null,null,null,null,null,null,null,null,null,null,null,null,null,null,null,null,null,null,null,null,null,null,"Subestacion Tonchala 115 Kv"]
[null,null,null,null,null,null,null,null,null,null,null,null,null,null,null,null,null,null,null,null,null,null,null,null,null,null,null,null,null,null,null,null,null,null,null,null,null,null,"Subestacion Tonchala 34.5 Kv"]
[null,null,null,null,null,null,null,null,null,null,null,null,null,null,null,null,null,null,null,null,null,null,null,null,null,null,null,null,null,null,null,null,null,null,null,null,null,null,"Subestacion Torcoroma"]
[null,null,null,null,null,null,null,null,null,null,null,null,null,null,null,null,null,null,null,null,null,null,null,null,null,null,null,null,null,null,null,null,null,null,null,null,null,null,"Sucre"]
[null,null,null,null,null,null,null,null,null,null,null,null,null,null,null,null,null,null,null,null,null,null,null,null,null,null,null,null,null,null,null,null,null,null,null,null,null,null,"Sucre 13.8 Kv"]
[null,null,null,null,null,null,null,null,null,null,null,null,null,null,null,null,null,null,null,null,null,null,null,null,null,null,null,null,null,null,null,null,null,null,null,null,null,null,"Sucre 34.5 Kv"]
[null,null,null,null,null,null,null,null,null,null,null,null,null,null,null,null,null,null,null,null,null,null,null,null,null,null,null,null,null,null,null,null,null,null,null,null,null,null,"Sucromiles"]
[null,null,null,null,null,null,null,null,null,null,null,null,null,null,null,null,null,null,null,null,null,null,null,null,null,null,null,null,null,null,null,null,null,null,null,null,null,null,"Suesca"]
[null,null,null,null,null,null,null,null,null,null,null,null,null,null,null,null,null,null,null,null,null,null,null,null,null,null,null,null,null,null,null,null,null,null,null,null,null,null,"Supia"]
[null,null,null,null,null,null,null,null,null,null,null,null,null,null,null,null,null,null,null,null,null,null,null,null,null,null,null,null,null,null,null,null,null,null,null,null,null,null,"Sur"]
[null,null,null,null,null,null,null,null,null,null,null,null,null,null,null,null,null,null,null,null,null,null,null,null,null,null,null,null,null,null,null,null,null,null,null,null,null,null,"Sur 115"]
[null,null,null,null,null,null,null,null,null,null,null,null,null,null,null,null,null,null,null,null,null,null,null,null,null,null,null,null,null,null,null,null,null,null,null,null,null,null,"Sur 13.8 Kv"]
[null,null,null,null,null,null,null,null,null,null,null,null,null,null,null,null,null,null,null,null,null,null,null,null,null,null,null,null,null,null,null,null,null,null,null,null,null,null,"Sur 34.5 Kv"]
[null,null,null,null,null,null,null,null,null,null,null,null,null,null,null,null,null,null,null,null,null,null,null,null,null,null,null,null,null,null,null,null,null,null,null,null,null,null,"Surabastos*"]
[null,null,null,null,null,null,null,null,null,null,null,null,null,null,null,null,null,null,null,null,null,null,null,null,null,null,null,null,null,null,null,null,null,null,null,null,null,null,"Suria"]
[null,null,null,null,null,null,null,null,null,null,null,null,null,null,null,null,null,null,null,null,null,null,null,null,null,null,null,null,null,null,null,null,null,null,null,null,null,null,"Surimena"]
[null,null,null,null,null,null,null,null,null,null,null,null,null,null,null,null,null,null,null,null,null,null,null,null,null,null,null,null,null,null,null,null,null,null,null,null,null,null,"Sutamarchan"]
[null,null,null,null,null,null,null,null,null,null,null,null,null,null,null,null,null,null,null,null,null,null,null,null,null,null,null,null,null,null,null,null,null,null,null,null,null,null,"Sutatenza"]
[null,null,null,null,null,null,null,null,null,null,null,null,null,null,null,null,null,null,null,null,null,null,null,null,null,null,null,null,null,null,null,null,null,null,null,null,null,null,"T_Esquinas"]
[null,null,null,null,null,null,null,null,null,null,null,null,null,null,null,null,null,null,null,null,null,null,null,null,null,null,null,null,null,null,null,null,null,null,null,null,null,null,"Tabacal"]
[null,null,null,null,null,null,null,null,null,null,null,null,null,null,null,null,null,null,null,null,null,null,null,null,null,null,null,null,null,null,null,null,null,null,null,null,null,null,"Tabio"]
[null,null,null,null,null,null,null,null,null,null,null,null,null,null,null,null,null,null,null,null,null,null,null,null,null,null,null,null,null,null,null,null,null,null,null,null,null,null,"Tablon De Tamara"]
[null,null,null,null,null,null,null,null,null,null,null,null,null,null,null,null,null,null,null,null,null,null,null,null,null,null,null,null,null,null,null,null,null,null,null,null,null,null,"Talaigua Nuevo"]
[null,null,null,null,null,null,null,null,null,null,null,null,null,null,null,null,null,null,null,null,null,null,null,null,null,null,null,null,null,null,null,null,null,null,null,null,null,null,"Tamalameque"]
[null,null,null,null,null,null,null,null,null,null,null,null,null,null,null,null,null,null,null,null,null,null,null,null,null,null,null,null,null,null,null,null,null,null,null,null,null,null,"Tamara"]
[null,null,null,null,null,null,null,null,null,null,null,null,null,null,null,null,null,null,null,null,null,null,null,null,null,null,null,null,null,null,null,null,null,null,null,null,null,null,"Tamarindo"]
[null,null,null,null,null,null,null,null,null,null,null,null,null,null,null,null,null,null,null,null,null,null,null,null,null,null,null,null,null,null,null,null,null,null,null,null,null,null,"Tame"]
[null,null,null,null,null,null,null,null,null,null,null,null,null,null,null,null,null,null,null,null,null,null,null,null,null,null,null,null,null,null,null,null,null,null,null,null,null,null,"Tamesis"]
[null,null,null,null,null,null,null,null,null,null,null,null,null,null,null,null,null,null,null,null,null,null,null,null,null,null,null,null,null,null,null,null,null,null,null,null,null,null,"Taminango"]
[null,null,null,null,null,null,null,null,null,null,null,null,null,null,null,null,null,null,null,null,null,null,null,null,null,null,null,null,null,null,null,null,null,null,null,null,null,null,"Tangarial"]
[null,null,null,null,null,null,null,null,null,null,null,null,null,null,null,null,null,null,null,null,null,null,null,null,null,null,null,null,null,null,null,null,null,null,null,null,null,null,"Tangua"]
[null,null,null,null,null,null,null,null,null,null,null,null,null,null,null,null,null,null,null,null,null,null,null,null,null,null,null,null,null,null,null,null,null,null,null,null,null,null,"Taparto"]
[null,null,null,null,null,null,null,null,null,null,null,null,null,null,null,null,null,null,null,null,null,null,null,null,null,null,null,null,null,null,null,null,null,null,null,null,null,null,"Tapias"]
[null,null,null,null,null,null,null,null,null,null,null,null,null,null,null,null,null,null,null,null,null,null,null,null,null,null,null,null,null,null,null,null,null,null,null,null,null,null,"Taraza"]
[null,null,null,null,null,null,null,null,null,null,null,null,null,null,null,null,null,null,null,null,null,null,null,null,null,null,null,null,null,null,null,null,null,null,null,null,null,null,"Tarqui"]
[null,null,null,null,null,null,null,null,null,null,null,null,null,null,null,null,null,null,null,null,null,null,null,null,null,null,null,null,null,null,null,null,null,null,null,null,null,null,"Tarso"]
[null,null,null,null,null,null,null,null,null,null,null,null,null,null,null,null,null,null,null,null,null,null,null,null,null,null,null,null,null,null,null,null,null,null,null,null,null,null,"Tasajera"]
[null,null,null,null,null,null,null,null,null,null,null,null,null,null,null,null,null,null,null,null,null,null,null,null,null,null,null,null,null,null,null,null,null,null,null,null,null,null,"Tasajero 230 Kv"]
[null,null,null,null,null,null,null,null,null,null,null,null,null,null,null,null,null,null,null,null,null,null,null,null,null,null,null,null,null,null,null,null,null,null,null,null,null,null,"Tasco"]
[null,null,null,null,null,null,null,null,null,null,null,null,null,null,null,null,null,null,null,null,null,null,null,null,null,null,null,null,null,null,null,null,null,null,null,null,null,null,"Tauramena"]
[null,null,null,null,null,null,null,null,null,null,null,null,null,null,null,null,null,null,null,null,null,null,null,null,null,null,null,null,null,null,null,null,null,null,null,null,null,null,"Tausa"]
[null,null,null,null,null,null,null,null,null,null,null,null,null,null,null,null,null,null,null,null,null,null,null,null,null,null,null,null,null,null,null,null,null,null,null,null,null,null,"Tebaida"]
[null,null,null,null,null,null,null,null,null,null,null,null,null,null,null,null,null,null,null,null,null,null,null,null,null,null,null,null,null,null,null,null,null,null,null,null,null,null,"Tebsa"]
[null,null,null,null,null,null,null,null,null,null,null,null,null,null,null,null,null,null,null,null,null,null,null,null,null,null,null,null,null,null,null,null,null,null,null,null,null,null,"Tebsa Ii"]
[null,null,null,null,null,null,null,null,null,null,null,null,null,null,null,null,null,null,null,null,null,null,null,null,null,null,null,null,null,null,null,null,null,null,null,null,null,null,"Techo"]
[null,null,null,null,null,null,null,null,null,null,null,null,null,null,null,null,null,null,null,null,null,null,null,null,null,null,null,null,null,null,null,null,null,null,null,null,null,null,"Tenjo"]
[null,null,null,null,null,null,null,null,null,null,null,null,null,null,null,null,null,null,null,null,null,null,null,null,null,null,null,null,null,null,null,null,null,null,null,null,null,null,"Tenza"]
[null,null,null,null,null,null,null,null,null,null,null,null,null,null,null,null,null,null,null,null,null,null,null,null,null,null,null,null,null,null,null,null,null,null,null,null,null,null,"Terminal"]
[null,null,null,null,null,null,null,null,null,null,null,null,null,null,null,null,null,null,null,null,null,null,null,null,null,null,null,null,null,null,null,null,null,null,null,null,null,null,"Termocandelaria"]
[null,null,null,null,null,null,null,null,null,null,null,null,null,null,null,null,null,null,null,null,null,null,null,null,null,null,null,null,null,null,null,null,null,null,null,null,null,null,"Termocol"]
[null,null,null,null,null,null,null,null,null,null,null,null,null,null,null,null,null,null,null,null,null,null,null,null,null,null,null,null,null,null,null,null,null,null,null,null,null,null,"Termoflores"]
[null,null,null,null,null,null,null,null,null,null,null,null,null,null,null,null,null,null,null,null,null,null,null,null,null,null,null,null,null,null,null,null,null,null,null,null,null,null,"Termoguajira"]
[null,null,null,null,null,null,null,null,null,null,null,null,null,null,null,null,null,null,null,null,null,null,null,null,null,null,null,null,null,null,null,null,null,null,null,null,null,null,"Termoyumbo"]
[null,null,null,null,null,null,null,null,null,null,null,null,null,null,null,null,null,null,null,null,null,null,null,null,null,null,null,null,null,null,null,null,null,null,null,null,null,null,"Termoyumbo 2"]
[null,null,null,null,null,null,null,null,null,null,null,null,null,null,null,null,null,null,null,null,null,null,null,null,null,null,null,null,null,null,null,null,null,null,null,null,null,null,"Termozipa"]
[null,null,null,null,null,null,null,null,null,null,null,null,null,null,null,null,null,null,null,null,null,null,null,null,null,null,null,null,null,null,null,null,null,null,null,null,null,null,"Ternera"]
[null,null,null,null,null,null,null,null,null,null,null,null,null,null,null,null,null,null,null,null,null,null,null,null,null,null,null,null,null,null,null,null,null,null,null,null,null,null,"Terrazas"]
[null,null,null,null,null,null,null,null,null,null,null,null,null,null,null,null,null,null,null,null,null,null,null,null,null,null,null,null,null,null,null,null,null,null,null,null,null,null,"Tesalia"]
[null,null,null,null,null,null,null,null,null,null,null,null,null,null,null,null,null,null,null,null,null,null,null,null,null,null,null,null,null,null,null,null,null,null,null,null,null,null,"Tesalia 230"]
[null,null,null,null,null,null,null,null,null,null,null,null,null,null,null,null,null,null,null,null,null,null,null,null,null,null,null,null,null,null,null,null,null,null,null,null,null,null,"Tibabuyes"]
[null,null,null,null,null,null,null,null,null,null,null,null,null,null,null,null,null,null,null,null,null,null,null,null,null,null,null,null,null,null,null,null,null,null,null,null,null,null,"Tibana"]
[null,null,null,null,null,null,null,null,null,null,null,null,null,null,null,null,null,null,null,null,null,null,null,null,null,null,null,null,null,null,null,null,null,null,null,null,null,null,"Tierra Alta"]
[null,null,null,null,null,null,null,null,null,null,null,null,null,null,null,null,null,null,null,null,null,null,null,null,null,null,null,null,null,null,null,null,null,null,null,null,null,null,"Tillava"]
[null,null,null,null,null,null,null,null,null,null,null,null,null,null,null,null,null,null,null,null,null,null,null,null,null,null,null,null,null,null,null,null,null,null,null,null,null,null,"Tilodiran"]
[null,null,null,null,null,null,null,null,null,null,null,null,null,null,null,null,null,null,null,null,null,null,null,null,null,null,null,null,null,null,null,null,null,null,null,null,null,null,"Timana"]
[null,null,null,null,null,null,null,null,null,null,null,null,null,null,null,null,null,null,null,null,null,null,null,null,null,null,null,null,null,null,null,null,null,null,null,null,null,null,"Timbiqui"]
[null,null,null,null,null,null,null,null,null,null,null,null,null,null,null,null,null,null,null,null,null,null,null,null,null,null,null,null,null,null,null,null,null,null,null,null,null,null,"Tipacoque"]
[null,null,null,null,null,null,null,null,null,null,null,null,null,null,null,null,null,null,null,null,null,null,null,null,null,null,null,null,null,null,null,null,null,null,null,null,null,null,"Titiribi"]
[null,null,null,null,null,null,null,null,null,null,null,null,null,null,null,null,null,null,null,null,null,null,null,null,null,null,null,null,null,null,null,null,null,null,null,null,null,null,"Tocaima"]
[null,null,null,null,null,null,null,null,null,null,null,null,null,null,null,null,null,null,null,null,null,null,null,null,null,null,null,null,null,null,null,null,null,null,null,null,null,null,"Tocancipa"]
[null,null,null,null,null,null,null,null,null,null,null,null,null,null,null,null,null,null,null,null,null,null,null,null,null,null,null,null,null,null,null,null,null,null,null,null,null,null,"Tocaria"]
[null,null,null,null,null,null,null,null,null,null,null,null,null,null,null,null,null,null,null,null,null,null,null,null,null,null,null,null,null,null,null,null,null,null,null,null,null,null,"Todos Los Santos"]
[null,null,null,null,null,null,null,null,null,null,null,null,null,null,null,null,null,null,null,null,null,null,null,null,null,null,null,null,null,null,null,null,null,null,null,null,null,null,"Togui"]
[null,null,null,null,null,null,null,null,null,null,null,null,null,null,null,null,null,null,null,null,null,null,null,null,null,null,null,null,null,null,null,null,null,null,null,null,null,null,"Toledo"]
[null,null,null,null,null,null,null,null,null,null,null,null,null,null,null,null,null,null,null,null,null,null,null,null,null,null,null,null,null,null,null,null,null,null,null,null,null,null,"Tolemaida"]
[null,null,null,null,null,null,null,null,null,null,null,null,null,null,null,null,null,null,null,null,null,null,null,null,null,null,null,null,null,null,null,null,null,null,null,null,null,null,"Tolu"]
[null,null,null,null,null,null,null,null,null,null,null,null,null,null,null,null,null,null,null,null,null,null,null,null,null,null,null,null,null,null,null,null,null,null,null,null,null,null,"Toluviejo"]
[null,null,null,null,null,null,null,null,null,null,null,null,null,null,null,null,null,null,null,null,null,null,null,null,null,null,null,null,null,null,null,null,null,null,null,null,null,null,"Topaga"]
[null,null,null,null,null,null,null,null,null,null,null,null,null,null,null,null,null,null,null,null,null,null,null,null,null,null,null,null,null,null,null,null,null,null,null,null,null,null,"Toquilla"]
[null,null,null,null,null,null,null,null,null,null,null,null,null,null,null,null,null,null,null,null,null,null,null,null,null,null,null,null,null,null,null,null,null,null,null,null,null,null,"Torca"]
[null,null,null,null,null,null,null,null,null,null,null,null,null,null,null,null,null,null,null,null,null,null,null,null,null,null,null,null,null,null,null,null,null,null,null,null,null,null,"Toriba"]
[null,null,null,null,null,null,null,null,null,null,null,null,null,null,null,null,null,null,null,null,null,null,null,null,null,null,null,null,null,null,null,null,null,null,null,null,null,null,"Tren Occidente"]
[null,null,null,null,null,null,null,null,null,null,null,null,null,null,null,null,null,null,null,null,null,null,null,null,null,null,null,null,null,null,null,null,null,null,null,null,null,null,"Tres Esquinas"]
[null,null,null,null,null,null,null,null,null,null,null,null,null,null,null,null,null,null,null,null,null,null,null,null,null,null,null,null,null,null,null,null,null,null,null,null,null,null,"Tres Palmas"]
[null,null,null,null,null,null,null,null,null,null,null,null,null,null,null,null,null,null,null,null,null,null,null,null,null,null,null,null,null,null,null,null,null,null,null,null,null,null,"Trincheras 13.8 Kv"]
[null,null,null,null,null,null,null,null,null,null,null,null,null,null,null,null,null,null,null,null,null,null,null,null,null,null,null,null,null,null,null,null,null,null,null,null,null,null,"Trincheras 34.5 Kv"]
[null,null,null,null,null,null,null,null,null,null,null,null,null,null,null,null,null,null,null,null,null,null,null,null,null,null,null,null,null,null,null,null,null,null,null,null,null,null,"Trinidad"]
[null,null,null,null,null,null,null,null,null,null,null,null,null,null,null,null,null,null,null,null,null,null,null,null,null,null,null,null,null,null,null,null,null,null,null,null,null,null,"Tropezon"]
[null,null,null,null,null,null,null,null,null,null,null,null,null,null,null,null,null,null,null,null,null,null,null,null,null,null,null,null,null,null,null,null,null,null,null,null,null,null,"Tulua"]
[null,null,null,null,null,null,null,null,null,null,null,null,null,null,null,null,null,null,null,null,null,null,null,null,null,null,null,null,null,null,null,null,null,null,null,null,null,null,"Tuluni"]
[null,null,null,null,null,null,null,null,null,null,null,null,null,null,null,null,null,null,null,null,null,null,null,null,null,null,null,null,null,null,null,null,null,null,null,null,null,null,"Tuluni 230"]
[null,null,null,null,null,null,null,null,null,null,null,null,null,null,null,null,null,null,null,null,null,null,null,null,null,null,null,null,null,null,null,null,null,null,null,null,null,null,"Tumaco"]
[null,null,null,null,null,null,null,null,null,null,null,null,null,null,null,null,null,null,null,null,null,null,null,null,null,null,null,null,null,null,null,null,null,null,null,null,null,null,"Tunal"]
[null,null,null,null,null,null,null,null,null,null,null,null,null,null,null,null,null,null,null,null,null,null,null,null,null,null,null,null,null,null,null,null,null,null,null,null,null,null,"Tunal 230"]
[null,null,null,null,null,null,null,null,null,null,null,null,null,null,null,null,null,null,null,null,null,null,null,null,null,null,null,null,null,null,null,null,null,null,null,null,null,null,"Tundama"]
[null,null,null,null,null,null,null,null,null,null,null,null,null,null,null,null,null,null,null,null,null,null,null,null,null,null,null,null,null,null,null,null,null,null,null,null,null,null,"Tunjita"]
[null,null,null,null,null,null,null,null,null,null,null,null,null,null,null,null,null,null,null,null,null,null,null,null,null,null,null,null,null,null,null,null,null,null,null,null,null,null,"Tuquerres"]
[null,null,null,null,null,null,null,null,null,null,null,null,null,null,null,null,null,null,null,null,null,null,null,null,null,null,null,null,null,null,null,null,null,null,null,null,null,null,"Turbaco"]
[null,null,null,null,null,null,null,null,null,null,null,null,null,null,null,null,null,null,null,null,null,null,null,null,null,null,null,null,null,null,null,null,null,null,null,null,null,null,"Turbo"]
[null,null,null,null,null,null,null,null,null,null,null,null,null,null,null,null,null,null,null,null,null,null,null,null,null,null,null,null,null,null,null,null,null,null,null,null,null,null,"Ubala"]
[null,null,null,null,null,null,null,null,null,null,null,null,null,null,null,null,null,null,null,null,null,null,null,null,null,null,null,null,null,null,null,null,null,null,null,null,null,null,"Ubate"]
[null,null,null,null,null,null,null,null,null,null,null,null,null,null,null,null,null,null,null,null,null,null,null,null,null,null,null,null,null,null,null,null,null,null,null,null,null,null,"Umbita"]
[null,null,null,null,null,null,null,null,null,null,null,null,null,null,null,null,null,null,null,null,null,null,null,null,null,null,null,null,null,null,null,null,null,null,null,null,null,null,"Unete"]
[null,null,null,null,null,null,null,null,null,null,null,null,null,null,null,null,null,null,null,null,null,null,null,null,null,null,null,null,null,null,null,null,null,null,null,null,null,null,"Upamena - La Colina"]
[null,null,null,null,null,null,null,null,null,null,null,null,null,null,null,null,null,null,null,null,null,null,null,null,null,null,null,null,null,null,null,null,null,null,null,null,null,null,"Uraba"]
[null,null,null,null,null,null,null,null,null,null,null,null,null,null,null,null,null,null,null,null,null,null,null,null,null,null,null,null,null,null,null,null,null,null,null,null,null,null,"Urbanizacion Pereira"]
[null,null,null,null,null,null,null,null,null,null,null,null,null,null,null,null,null,null,null,null,null,null,null,null,null,null,null,null,null,null,null,null,null,null,null,null,null,null,"Urdaneta"]
[null,null,null,null,null,null,null,null,null,null,null,null,null,null,null,null,null,null,null,null,null,null,null,null,null,null,null,null,null,null,null,null,null,null,null,null,null,null,"Uribe"]
[null,null,null,null,null,null,null,null,null,null,null,null,null,null,null,null,null,null,null,null,null,null,null,null,null,null,null,null,null,null,null,null,null,null,null,null,null,null,"Uribia"]
[null,null,null,null,null,null,null,null,null,null,null,null,null,null,null,null,null,null,null,null,null,null,null,null,null,null,null,null,null,null,null,null,null,null,null,null,null,null,"Urra"]
[null,null,null,null,null,null,null,null,null,null,null,null,null,null,null,null,null,null,null,null,null,null,null,null,null,null,null,null,null,null,null,null,null,null,null,null,null,null,"Urrao"]
[null,null,null,null,null,null,null,null,null,null,null,null,null,null,null,null,null,null,null,null,null,null,null,null,null,null,null,null,null,null,null,null,null,null,null,null,null,null,"Usaquen"]
[null,null,null,null,null,null,null,null,null,null,null,null,null,null,null,null,null,null,null,null,null,null,null,null,null,null,null,null,null,null,null,null,null,null,null,null,null,null,"Usme"]
[null,null,null,null,null,null,null,null,null,null,null,null,null,null,null,null,null,null,null,null,null,null,null,null,null,null,null,null,null,null,null,null,null,null,null,null,null,null,"Utica"]
[null,null,null,null,null,null,null,null,null,null,null,null,null,null,null,null,null,null,null,null,null,null,null,null,null,null,null,null,null,null,null,null,null,null,null,null,null,null,"Vado Real 13.8 Kv"]
[null,null,null,null,null,null,null,null,null,null,null,null,null,null,null,null,null,null,null,null,null,null,null,null,null,null,null,null,null,null,null,null,null,null,null,null,null,null,"Vado Real 34.5 Kv"]
[null,null,null,null,null,null,null,null,null,null,null,null,null,null,null,null,null,null,null,null,null,null,null,null,null,null,null,null,null,null,null,null,null,null,null,null,null,null,"Valdivia"]
[null,null,null,null,null,null,null,null,null,null,null,null,null,null,null,null,null,null,null,null,null,null,null,null,null,null,null,null,null,null,null,null,null,null,null,null,null,null,"Valencia"]
[null,null,null,null,null,null,null,null,null,null,null,null,null,null,null,null,null,null,null,null,null,null,null,null,null,null,null,null,null,null,null,null,null,null,null,null,null,null,"Valencia (Cordoba)"]
[null,null,null,null,null,null,null,null,null,null,null,null,null,null,null,null,null,null,null,null,null,null,null,null,null,null,null,null,null,null,null,null,null,null,null,null,null,null,"Valledupar"]
[null,null,null,null,null,null,null,null,null,null,null,null,null,null,null,null,null,null,null,null,null,null,null,null,null,null,null,null,null,null,null,null,null,null,null,null,null,null,"Valparaiso"]
[null,null,null,null,null,null,null,null,null,null,null,null,null,null,null,null,null,null,null,null,null,null,null,null,null,null,null,null,null,null,null,null,null,null,null,null,null,null,"Vegachi"]
[null,null,null,null,null,null,null,null,null,null,null,null,null,null,null,null,null,null,null,null,null,null,null,null,null,null,null,null,null,null,null,null,null,null,null,null,null,null,"Vegalarga"]
[null,null,null,null,null,null,null,null,null,null,null,null,null,null,null,null,null,null,null,null,null,null,null,null,null,null,null,null,null,null,null,null,null,null,null,null,null,null,"Veinte De Julio"]
[null,null,null,null,null,null,null,null,null,null,null,null,null,null,null,null,null,null,null,null,null,null,null,null,null,null,null,null,null,null,null,null,null,null,null,null,null,null,"Velazquez"]
[null,null,null,null,null,null,null,null,null,null,null,null,null,null,null,null,null,null,null,null,null,null,null,null,null,null,null,null,null,null,null,null,null,null,null,null,null,null,"Velez 13.8 Kv"]
[null,null,null,null,null,null,null,null,null,null,null,null,null,null,null,null,null,null,null,null,null,null,null,null,null,null,null,null,null,null,null,null,null,null,null,null,null,null,"Velez 34.5 Kv"]
[null,null,null,null,null,null,null,null,null,null,null,null,null,null,null,null,null,null,null,null,null,null,null,null,null,null,null,null,null,null,null,null,null,null,null,null,null,null,"Venadillo"]
[null,null,null,null,null,null,null,null,null,null,null,null,null,null,null,null,null,null,null,null,null,null,null,null,null,null,null,null,null,null,null,null,null,null,null,null,null,null,"Ventana"]
[null,null,null,null,null,null,null,null,null,null,null,null,null,null,null,null,null,null,null,null,null,null,null,null,null,null,null,null,null,null,null,null,null,null,null,null,null,null,"Ventaquemada"]
[null,null,null,null,null,null,null,null,null,null,null,null,null,null,null,null,null,null,null,null,null,null,null,null,null,null,null,null,null,null,null,null,null,null,null,null,null,null,"Ventorrillo"]
[null,null,null,null,null,null,null,null,null,null,null,null,null,null,null,null,null,null,null,null,null,null,null,null,null,null,null,null,null,null,null,null,null,null,null,null,null,null,"Veraguas"]
[null,null,null,null,null,null,null,null,null,null,null,null,null,null,null,null,null,null,null,null,null,null,null,null,null,null,null,null,null,null,null,null,null,null,null,null,null,null,"Vergel"]
[null,null,null,null,null,null,null,null,null,null,null,null,null,null,null,null,null,null,null,null,null,null,null,null,null,null,null,null,null,null,null,null,null,null,null,null,null,null,"Viani"]
[null,null,null,null,null,null,null,null,null,null,null,null,null,null,null,null,null,null,null,null,null,null,null,null,null,null,null,null,null,null,null,null,null,null,null,null,null,null,"Victoria"]
[null,null,null,null,null,null,null,null,null,null,null,null,null,null,null,null,null,null,null,null,null,null,null,null,null,null,null,null,null,null,null,null,null,null,null,null,null,null,"Vijagual 13.8 Kv"]
[null,null,null,null,null,null,null,null,null,null,null,null,null,null,null,null,null,null,null,null,null,null,null,null,null,null,null,null,null,null,null,null,null,null,null,null,null,null,"Vijagual 34.5 Kv"]
[null,null,null,null,null,null,null,null,null,null,null,null,null,null,null,null,null,null,null,null,null,null,null,null,null,null,null,null,null,null,null,null,null,null,null,null,null,null,"Vijes"]
[null,null,null,null,null,null,null,null,null,null,null,null,null,null,null,null,null,null,null,null,null,null,null,null,null,null,null,null,null,null,null,null,null,null,null,null,null,null,"Vijes 115"]
[null,null,null,null,null,null,null,null,null,null,null,null,null,null,null,null,null,null,null,null,null,null,null,null,null,null,null,null,null,null,null,null,null,null,null,null,null,null,"Villa De Leyva"]
[null,null,null,null,null,null,null,null,null,null,null,null,null,null,null,null,null,null,null,null,null,null,null,null,null,null,null,null,null,null,null,null,null,null,null,null,null,null,"Villa Estrella"]
[null,null,null,null,null,null,null,null,null,null,null,null,null,null,null,null,null,null,null,null,null,null,null,null,null,null,null,null,null,null,null,null,null,null,null,null,null,null,"Villa Hermosa"]
[null,null,null,null,null,null,null,null,null,null,null,null,null,null,null,null,null,null,null,null,null,null,null,null,null,null,null,null,null,null,null,null,null,null,null,null,null,null,"Villagarzon"]
[null,null,null,null,null,null,null,null,null,null,null,null,null,null,null,null,null,null,null,null,null,null,null,null,null,null,null,null,null,null,null,null,null,null,null,null,null,null,"Villagomez"]
[null,null,null,null,null,null,null,null,null,null,null,null,null,null,null,null,null,null,null,null,null,null,null,null,null,null,null,null,null,null,null,null,null,null,null,null,null,null,"Villamaria"]
[null,null,null,null,null,null,null,null,null,null,null,null,null,null,null,null,null,null,null,null,null,null,null,null,null,null,null,null,null,null,null,null,null,null,null,null,null,null,"Villanueva"]
[null,null,null,null,null,null,null,null,null,null,null,null,null,null,null,null,null,null,null,null,null,null,null,null,null,null,null,null,null,null,null,null,null,null,null,null,null,null,"Villapinzo"]
[null,null,null,null,null,null,null,null,null,null,null,null,null,null,null,null,null,null,null,null,null,null,null,null,null,null,null,null,null,null,null,null,null,null,null,null,null,null,"Villeta"]
[null,null,null,null,null,null,null,null,null,null,null,null,null,null,null,null,null,null,null,null,null,null,null,null,null,null,null,null,null,null,null,null,null,null,null,null,null,null,"Violetas"]
[null,null,null,null,null,null,null,null,null,null,null,null,null,null,null,null,null,null,null,null,null,null,null,null,null,null,null,null,null,null,null,null,null,null,null,null,null,null,"Viota"]
[null,null,null,null,null,null,null,null,null,null,null,null,null,null,null,null,null,null,null,null,null,null,null,null,null,null,null,null,null,null,null,null,null,null,null,null,null,null,"Vista Hermosa"]
[null,null,null,null,null,null,null,null,null,null,null,null,null,null,null,null,null,null,null,null,null,null,null,null,null,null,null,null,null,null,null,null,null,null,null,null,null,null,"Viterbo"]
[null,null,null,null,null,null,null,null,null,null,null,null,null,null,null,null,null,null,null,null,null,null,null,null,null,null,null,null,null,null,null,null,null,null,null,null,null,null,"Vl_Manjui"]
[null,null,null,null,null,null,null,null,null,null,null,null,null,null,null,null,null,null,null,null,null,null,null,null,null,null,null,null,null,null,null,null,null,null,null,null,null,null,"Yacopi"]
[null,null,null,null,null,null,null,null,null,null,null,null,null,null,null,null,null,null,null,null,null,null,null,null,null,null,null,null,null,null,null,null,null,null,null,null,null,null,"Yaguara"]
[null,null,null,null,null,null,null,null,null,null,null,null,null,null,null,null,null,null,null,null,null,null,null,null,null,null,null,null,null,null,null,null,null,null,null,null,null,null,"Yali"]
[null,null,null,null,null,null,null,null,null,null,null,null,null,null,null,null,null,null,null,null,null,null,null,null,null,null,null,null,null,null,null,null,null,null,null,null,null,null,"Yarumal"]
[null,null,null,null,null,null,null,null,null,null,null,null,null,null,null,null,null,null,null,null,null,null,null,null,null,null,null,null,null,null,null,null,null,null,null,null,null,null,"Yarumal 2"]
[null,null,null,null,null,null,null,null,null,null,null,null,null,null,null,null,null,null,null,null,null,null,null,null,null,null,null,null,null,null,null,null,null,null,null,null,null,null,"Yarumo Gamma 3"]
[null,null,null,null,null,null,null,null,null,null,null,null,null,null,null,null,null,null,null,null,null,null,null,null,null,null,null,null,null,null,null,null,null,null,null,null,null,null,"Yatacue"]
[null,null,null,null,null,null,null,null,null,null,null,null,null,null,null,null,null,null,null,null,null,null,null,null,null,null,null,null,null,null,null,null,null,null,null,null,null,null,"Yolombo"]
[null,null,null,null,null,null,null,null,null,null,null,null,null,null,null,null,null,null,null,null,null,null,null,null,null,null,null,null,null,null,null,null,null,null,null,null,null,null,"Yondo"]
[null,null,null,null,null,null,null,null,null,null,null,null,null,null,null,null,null,null,null,null,null,null,null,null,null,null,null,null,null,null,null,null,null,null,null,null,null,null,"Yopal"]
[null,null,null,null,null,null,null,null,null,null,null,null,null,null,null,null,null,null,null,null,null,null,null,null,null,null,null,null,null,null,null,null,null,null,null,null,null,null,"Yopitos"]
[null,null,null,null,null,null,null,null,null,null,null,null,null,null,null,null,null,null,null,null,null,null,null,null,null,null,null,null,null,null,null,null,null,null,null,null,null,null,"Yotoco"]
[null,null,null,null,null,null,null,null,null,null,null,null,null,null,null,null,null,null,null,null,null,null,null,null,null,null,null,null,null,null,null,null,null,null,null,null,null,null,"Yumbo"]
[null,null,null,null,null,null,null,null,null,null,null,null,null,null,null,null,null,null,null,null,null,null,null,null,null,null,null,null,null,null,null,null,null,null,null,null,null,null,"Zambrano"]
[null,null,null,null,null,null,null,null,null,null,null,null,null,null,null,null,null,null,null,null,null,null,null,null,null,null,null,null,null,null,null,null,null,null,null,null,null,null,"Zamora"]
[null,null,null,null,null,null,null,null,null,null,null,null,null,null,null,null,null,null,null,null,null,null,null,null,null,null,null,null,null,null,null,null,null,null,null,null,null,null,"Zapatoca 13.8 Kv"]
[null,null,null,null,null,null,null,null,null,null,null,null,null,null,null,null,null,null,null,null,null,null,null,null,null,null,null,null,null,null,null,null,null,null,null,null,null,null,"Zapatoca 34.5 Kv"]
[null,null,null,null,null,null,null,null,null,null,null,null,null,null,null,null,null,null,null,null,null,null,null,null,null,null,null,null,null,null,null,null,null,null,null,null,null,null,"Zaragocilla"]
[null,null,null,null,null,null,null,null,null,null,null,null,null,null,null,null,null,null,null,null,null,null,null,null,null,null,null,null,null,null,null,null,null,null,null,null,null,null,"Zaragoza"]
[null,null,null,null,null,null,null,null,null,null,null,null,null,null,null,null,null,null,null,null,null,null,null,null,null,null,null,null,null,null,null,null,null,null,null,null,null,null,"Zarzal"]
[null,null,null,null,null,null,null,null,null,null,null,null,null,null,null,null,null,null,null,null,null,null,null,null,null,null,null,null,null,null,null,null,null,null,null,null,null,null,"Zawady"]
[null,null,null,null,null,null,null,null,null,null,null,null,null,null,null,null,null,null,null,null,null,null,null,null,null,null,null,null,null,null,null,null,null,null,null,null,null,null,"Zetaquira"]
[null,null,null,null,null,null,null,null,null,null,null,null,null,null,null,null,null,null,null,null,null,null,null,null,null,null,null,null,null,null,null,null,null,null,null,null,null,null,"Zipaquira"]
[null,null,null,null,null,null,null,null,null,null,null,null,null,null,null,null,null,null,null,null,null,null,null,null,null,null,null,null,null,null,null,null,null,null,null,null,null,null,"Zona Industrial"]
[null,null,null,null,null,null,null,null,null,null,null,null,null,null,null,null,null,null,null,null,null,null,null,null,null,null,null,null,null,null,null,null,null,null,null,null,null,null,"Zuluaga"]
[null,null,null,null,null,null,null,null,null,null,null,null,null,null,null,null,null,null,null,null,null,null,null,null,null,null,null,null,null,null,null,null,null,null,null,null,null,null,"Zungo"]
[null,null,null,null,null,null,null,null,null,null,null,null,null,null,null,null,null,null,null,null,null,null,null,null,null,null,null,null,null,null,null,null,null,null,null,null,null,null,"Otra"]